{"text_format":"3","workbook":"xlsx","n_sheets":1,"sheets":["Sheet1"],"read":"whole","date_system":"1900"}

{"sheet":"Sheet1","index":0,"n_rows":3109,"n_cols":7,"rows_kept":3109}
["Receipt of the following addenda are hereby acknowledged:",null,null,"#","Date"]
[{"$nulls":3},"                   ","                                             "]
[{"$nulls":3},"                   ","                                             "]
[{"$nulls":3},"                   ","                                            "]
[{"$nulls":3},"                   ","                                            "]
["ITEM","MFG","DESCRIPTION","UOM","UNIT PRICE","QTY","EXTENDED PRICE"]
[1,"3M","1403-XR WTR BALL MRKR ","EA",null,50,{"$f":"SUM(E7*F7)","v":{"v":0,"d":"$0.00"}}]
[2,"3M","1404-XR WST WTR BALL MRKR","EA",null,50,{"$f":"SUM(E8*F8)","v":{"v":0,"d":"$0.00"}}]
[3,"3M","RECLAIM/REUSE PURPLE BALL MARKER","EA",null,50,{"v":0,"d":"$0.00"}]
[4,"AFC","HOUSING GASKET F/MK73","EA",null,5,{"v":0,"d":"$0.00"}]
[5,"AFC","18 HYD EXT 4-1/2 MK73 5-1/4 B84B SS","EA",null,1,{"v":0,"d":"$0.00"}]
[6,"AFC","TRAFFIC REP KIT 4-1/2 MK73 / 5-1/4 ","EA",null,10,{"v":0,"d":"$0.00"}]
[7,"AFC","TRAFFIC REP KIT 6 B84B / 5-1/4 B62B","EA",null,10,{"v":0,"d":"$0.00"}]
[8,"AFC","NOZ CAP GSKT F/ MK73","EA",null,25,{"v":0,"d":"$0.00"}]
[9,"AFC","HOUSING COVER GASKET","EA",null,5,{"v":0,"d":"$0.00"}]
[10,"AFC","HOUSING COVER 73-6","EA",null,5,{"v":0,"d":"$0.00"}]
[11,"AFC","HYD NOZ F/ WINSAL","EA",null,2,{"v":0,"d":"$0.00"}]
[12,"AFC","4-1/2 PUMPER NOZZLE","EA",null,2,{"v":0,"d":"$0.00"}]
[13,"AFC","HOUSING COVER CAP SCREWS","EA",null,5,{"v":0,"d":"$0.00"}]
[14,"AFC","PUMPER NOZZLE O-RING (AMLOK)","EA",null,10,{"v":0,"d":"$0.00"}]
[15,"AFC","PUMPER NOZZLE SPACER O-RING (AMLOK)","EA",null,10,{"v":0,"d":"$0.00"}]
[16,"AFC","HOSE NOZZLE O-RING (AMLOK)","EA",null,10,{"v":0,"d":"$0.00"}]
[17,"AFC","HOSE NOZZLE SPACER O-RING (AMLOK)","EA",null,10,{"v":0,"d":"$0.00"}]
[18,"AFC","COVER \"O\" RING","EA",null,10,{"v":0,"d":"$0.00"}]
[19,"AFC","HOUSING \"O\" RING","EA",null,10,{"v":0,"d":"$0.00"}]
[20,"AFC","5-1/4 B84B HSNG CVR","EA",null,5,{"v":0,"d":"$0.00"}]
[21,"AFC","HOSE NOZ AMLOK F/ B84B","EA",null,10,{"v":0,"d":"$0.00"}]
[22,"AFC","HOSE NOZ ORING F/ B84B","EA",null,10,{"v":0,"d":"$0.00"}]
[23,"AFC","5-1/4 B84B NOZ SPACER O-RING F/ B20","EA",null,5,{"v":0,"d":"$0.00"}]
[24,"AFC","5-1/4 B84B NOZ PUMPER SPACER ORING","EA",null,5,{"v":0,"d":"$0.00"}]
[25,"AFC","BARL GSKT F/ MK73","EA",null,5,{"v":0,"d":"$0.00"}]
[26,"AFC","HSNG GSKT F/ 5-1/4 B84B","EA",null,5,{"v":0,"d":"$0.00"}]
[27,"AFC","CVR GSKT F/ AD B-84-B","EA",null,5,{"v":0,"d":"$0.00"}]
[28,"AFC","THRUST WSHR F/ B84B","EA",null,5,{"v":0,"d":"$0.00"}]
[29,"AFC","WEATHER SHIELD #84-7-7","EA",null,5,{"v":0,"d":"$0.00"}]
[30,"AFC","BSE BOLT & NUT F/ 5-1/4 B84B 8 REQ","EA",null,40,{"v":0,"d":"$0.00"}]
[31,"AFC","SPRG PLT PIN F/ 5-1/4 B84B","EA",null,5,{"v":0,"d":"$0.00"}]
[32,"AFC","SPRG PLT F/ 5-1/4 B84B","EA",null,5,{"v":0,"d":"$0.00"}]
[33,"AFC","COTTER PIN F/ 5-1/4 B84B","EA",null,10,{"v":0,"d":"$0.00"}]
[34,"AFC","HOSE NOZ CAP F/ B84B","EA",null,5,{"v":0,"d":"$0.00"}]
[35,"AFC","STEAMER NOZ CAP F/ B84B","EA",null,5,{"v":0,"d":"$0.00"}]
[36,"AFC","2-1/2 HOSE CAP GSKT F/ B84B","EA",null,20,{"v":0,"d":"$0.00"}]
[37,"AFC","HOSE NOZ CAP CHAIN F/ B848","EA",null,10,{"v":0,"d":"$0.00"}]
[38,"AFC","NOZ INT SET SCRW F/ 5-1/4 B84B","EA",null,10,{"v":0,"d":"$0.00"}]
[39,"AFC","O RING SEAL B84B-5","EA",null,10,{"v":0,"d":"$0.00"}]
[40,"AFC","RETAINER F/B84B-5","EA",null,10,{"v":0,"d":"$0.00"}]
[41,"AFC","WASHER F/B84B-5","EA",null,10,{"v":0,"d":"$0.00"}]
[42,"AFC","HYD SEAT W/ ORING F/ 5-1/4 B84B","EA",null,10,{"v":0,"d":"$0.00"}]
[43,"AFC","LOWER ROD AFC B84B","EA",null,10,{"v":0,"d":"$0.00"}]
[44,"AFC","PUMPER NOZZLE B84B-5","EA",null,10,{"v":0,"d":"$0.00"}]
[45,"AFC","HYD SEAT ORING F/ MK73","EA",null,10,{"v":0,"d":"$0.00"}]
[46,"AFC","RUB HYD  VLV F/ 5-1/4 B84B","EA",null,10,{"v":0,"d":"$0.00"}]
[47,"AFC","HOSE NOZ F/ B84B-5 NST","EA",null,10,{"v":0,"d":"$0.00"}]
[48,"AFC","HOSE NOZ O-RING SEAL (B84B-5)","EA",null,10,{"v":0,"d":"$0.00"}]
[49,"AFC","HOSE NOZZLE RETAINER (B84B-5","EA",null,10,{"v":0,"d":"$0.00"}]
[50,"AFC","HOSE NOZZLEWASHER (B84B-5)","EA",null,10,{"v":0,"d":"$0.00"}]
[51,"AFC","WEATHERSHIELD NUT ","EA",null,10,{"v":0,"d":"$0.00"}]
[52,"AFC","OPERATING NUT - BRZ ","EA",null,2,{"v":0,"d":"$0.00"}]
[53,"AFC","STANDPIPE GASKET - NEOPRENE ","EA",null,50,{"v":0,"d":"$0.00"}]
[54,"AFC","VALVE SEAT - BRZ ","EA",null,2,{"v":0,"d":"$0.00"}]
[55,"AFC","O-RING (VALVE SEAT) 4-7/8X5-1/4","EA",null,5,{"v":0,"d":"$0.00"}]
[56,"AFC","MAIN VLV RUBBER - URETHANE ","EA",null,2,{"v":0,"d":"$0.00"}]
[57,"AFC","NOZZLE CAP GSKT - HOSE WT77","EA",null,5,{"v":0,"d":"$0.00"}]
[58,"AFC","UPPER ROD F/ B-84-B","EA",null,2,{"v":0,"d":"$0.00"}]
[59,"AFC","WEATHER SHLD F/ 5-1/4 B84B","EA",null,2,{"v":0,"d":"$0.00"}]
[60,"AFC","AFC B84B NON-BREAKABLE FLG","EA",null,5,{"v":0,"d":"$0.00"}]
[61,"AFC","TRAFFIC REP KIT 5-1/4 WB67","EA",null,10,{"v":0,"d":"$0.00"}]
[62,"AFC","HYD SEAT O-RING (2 REQ) F/MK73","EA",null,6,{"v":0,"d":"$0.00"}]
[63,"AFC","DRAIN LEVER F/MK73 ","EA",null,5,{"v":0,"d":"$0.00"}]
[64,"AFC","VALVE TOP BRZ F/MK73 ","EA",null,5,{"v":0,"d":"$0.00"}]
[65,"AFC","VALVE BOTTOM F/MK73","EA",null,5,{"v":0,"d":"$0.00"}]
[66,"AFC","TRUST WASHER LOCTITE F/MK73","EA",null,5,{"$f":"SUM(E72*F72)","v":{"v":0,"d":"$0.00"}}]
[67,"AFC,Clow,Kennedy,M&H, Mueller","2 THRD RW DI OL GATE VLV","EA",null,20,{"v":0,"d":"$0.00"}]
[68,"AFC,Clow,Kennedy,M&H, Mueller","2 FLG RW DI OL GATE VLV","EA",null,2,{"v":0,"d":"$0.00"}]
[69,"AFC,Clow,Kennedy,M&H, Mueller","3 THRD RW DI OL GATE VLV","EA",null,2,{"v":0,"d":"$0.00"}]
[70,"AFC,Clow,Kennedy,M&H, Mueller","3 FLG RW DI OL GATE VLV","EA",null,2,{"v":0,"d":"$0.00"}]
[71,"AFC,Clow,Kennedy,M&H, Mueller","3 FLG RW DI OS&Y OL GATE VLV","EA",null,1,{"v":0,"d":"$0.00"}]
[72,"AFC,Clow,Kennedy,M&H, Mueller","4 MJ RW DI OL GATE VLV L/A","EA",null,20,{"v":0,"d":"$0.00"}]
[73,"AFC,Clow,Kennedy,M&H, Mueller","4 FLG RW DI OS&Y OL GATE VLV ","EA",null,1,{"v":0,"d":"$0.00"}]
[74,"AFC,Clow,Kennedy,M&H, Mueller","4 MJ RW DI OL TAPN VLV L/A ","EA",null,5,{"v":0,"d":"$0.00"}]
[75,"AFC,Clow,Kennedy,M&H, Mueller","4 FLG RW DI OL GATE VLV ","EA",null,1,{"v":0,"d":"$0.00"}]
[76,"AFC,Clow,Kennedy,M&H, Mueller","6 MJ RW DI OL GATE VLV L/A","EA",null,10,{"v":0,"d":"$0.00"}]
[77,"AFC,Clow,Kennedy,M&H, Mueller","6 FLG RW DI OS&Y OL GATE VLV ","EA",null,1,{"v":0,"d":"$0.00"}]
[78,"AFC,Clow,Kennedy,M&H, Mueller","6 MJ RW DI OL TAPN VLV L/A ","EA",null,1,{"v":0,"d":"$0.00"}]
[79,"AFC,Clow,Kennedy,M&H, Mueller","6 FLG RW DI OL GATE VLV ","EA",null,2,{"v":0,"d":"$0.00"}]
[80,"AFC,Clow,Kennedy,M&H, Mueller","8 MJ RW DI OL GATE VLV L/A","EA",null,5,{"v":0,"d":"$0.00"}]
[81,"AFC,Clow,Kennedy,M&H, Mueller","8 FLG RW DI OS&Y OL GATE VLV ","EA",null,1,{"v":0,"d":"$0.00"}]
[82,"AFC,Clow,Kennedy,M&H, Mueller","8 MJ RW DI OL TAPN VLV L/A ","EA",null,1,{"v":0,"d":"$0.00"}]
[83,"AFC,Clow,Kennedy,M&H, Mueller","8 FLG RW DI OL GATE VLV ","EA",null,1,{"v":0,"d":"$0.00"}]
[84,"AFC,Clow,Kennedy,M&H, Mueller","10 MJ RW DI OL GATE VLV L/A","EA",null,2,{"v":0,"d":"$0.00"}]
[85,"AFC,Clow,Kennedy,M&H, Mueller","10 FLG RW DI OS&Y OL GATE VLV ","EA",null,1,{"v":0,"d":"$0.00"}]
[86,"AFC,Clow,Kennedy,M&H, Mueller","10 MJ RW DI OL TAPN VLV L/A ","EA",null,1,{"v":0,"d":"$0.00"}]
[87,"AFC,Clow,Kennedy,M&H, Mueller","10 FLG RW DI OL GATE VLV ","EA",null,1,{"v":0,"d":"$0.00"}]
[88,"AFC,Clow,Kennedy,M&H, Mueller","12 MJ RW DI OL GATE VLV L/A","EA",null,2,{"v":0,"d":"$0.00"}]
[89,"AFC,Clow,Kennedy,M&H, Mueller","12 FLG RW DI OS&Y OL GATE VLV ","EA",null,1,{"v":0,"d":"$0.00"}]
[90,"AFC,Clow,Kennedy,M&H, Mueller","12 MJ RW DI OL TAPN VLV L/A ","EA",null,1,{"v":0,"d":"$0.00"}]
[91,"AFC,Clow,Kennedy,M&H, Mueller","12 FLG RW DI OL GATE VLV ","EA",null,1,{"v":0,"d":"$0.00"}]
[92,"AFC,Clow,Kennedy,M&H, Mueller","16 FLG RW DI OL GATE VLV ","EA",null,1,{"v":0,"d":"$0.00"}]
[93,"AFC,Clow,Kennedy,M&H, Mueller","16 MJ RW DI OL TAPN VLV L/A ","EA",null,1,{"v":0,"d":"$0.00"}]
[94,"AFC,Clow,Kennedy,M&H, Mueller","18 MJ RW DI OL GATE VLV L/A","EA",null,1,{"v":0,"d":"$0.00"}]
[95,"AFC,Clow,Kennedy,M&H, Mueller","18 FLG RW DI OL GATE VLV","EA",null,1,{"v":0,"d":"$0.00"}]
[96,"AFC,Clow,Kennedy,M&H, Mueller","20 MJ RW DI OL GATE VLV L/A","EA",null,1,{"v":0,"d":"$0.00"}]
[97,"AFC,Clow,Kennedy,M&H, Mueller","20 MJ RW DI OL TAPN VLV L/A","EA",null,1,{"v":0,"d":"$0.00"}]
[98,"AFC,Clow,Kennedy,M&H, Mueller","20 FLG RW DI OL GATE VLV","EA",null,1,{"v":0,"d":"$0.00"}]
[99,"AFC,Clow,Kennedy,M&H, Mueller","24 MJ RW DI OL GATE VLV L/A ","EA",null,1,{"v":0,"d":"$0.00"}]
[100,"AFC,Clow,Kennedy,M&H, Mueller","24 MJ RW DI OL TAPN VLV L/A ","EA",null,1,{"v":0,"d":"$0.00"}]
[101,"AFC,Clow,Kennedy,M&H, Mueller","24 FLG RW DI OL GATE VLV ","EA",null,1,{"v":0,"d":"$0.00"}]
[102,"AMERICAN DARLING, CLOW, KENNEDY,M&H,MUELLER VAL-MATIC","3 FLG L&W CHK VLV","EA",null,1,{"v":0,"d":"$0.00"}]
[103,"AFC","AFC B84B HYDRANT VLV","EA",null,1,{"v":0,"d":"$0.00"}]
[104,"AFC","STM CAP GKT F/  5 1/4 B84B","EA",null,1,{"v":0,"d":"$0.00"}]
[105,"AFC","PUMPER NOZ CAP GSKT F/MK73","EA",null,1,{"v":0,"d":"$0.00"}]
[106,"AFC","HYDRANT SEAT O-RING (2 REQ) MK73","EA",null,1,{"v":0,"d":"$0.00"}]
[107,"AFC","TRAFFIC MODEL ROD COUPLING F/MK73","EA",null,1,{"v":0,"d":"$0.00"}]
[108,"AFC","HOUSING COVER F/MK73 4-1/2\"","EA",null,1,{"v":0,"d":"$0.00"}]
[109,"AFC","12 HYD EXT 4-1/2 MK73 5-1/4 B84B SS","EA",null,1,{"v":0,"d":"$0.00"}]
[110,"AFC","3/8 NPT PIPE PLUG","EA",null,1,{"v":0,"d":"$0.00"}]
[111,"AFC","1 GAL HYD OIL","EA",null,5,{"v":0,"d":"$0.00"}]
[112,"AFC","6.5 OZ FMG387 AFC HYD GRSE","EA",null,5,{"v":0,"d":"$0.00"}]
[113,"ARI,APCO,GA INDUSTRIES, VAL-MATIC","1 COMB AIR RELEASE VLV","EA",null,2,{"v":0,"d":"$0.00"}]
[114,"ARI,APCO,GA INDUSTRIES, VAL-MATIC","2 COMB AIR RELEASE VLV ","EA",null,2,{"v":0,"d":"$0.00"}]
[115,"ARI","2 SEWAGE AIR & VAC VLV","EA",null,2,{"v":0,"d":"$0.00"}]
[116,"ARI","2 SEWAGE COMB AIR RELEASE VLV ","EA",null,2,{"v":0,"d":"$0.00"}]
[117,"ARI","2 IPS D025 COMB. AIR VLV F/ SWR","EA",null,5,{"v":0,"d":"$0.00"}]
[118,"AMERICAN PIPE AND SUPPLY,CLOW/MCWANE, GRIFFIN PIPE PRODUCTS CO.,U.S. PIPE","3X1'0 FLGXPE CL BT DI SPL","EA",null,1,{"v":0,"d":"$0.00"}]
[119,"AMERICAN PIPE AND SUPPLY,CLOW/MCWANE, GRIFFIN PIPE PRODUCTS CO.,U.S. PIPE","3X2'0 FLGXPE CL BT DI SPL","EA",null,1,{"v":0,"d":"$0.00"}]
[120,"AMERICAN PIPE AND SUPPLY,CLOW/MCWANE, GRIFFIN PIPE PRODUCTS CO.,U.S. PIPE","3X3'0 FLGXPE CL BT DI SPL","EA",null,1,{"v":0,"d":"$0.00"}]
[121,"AMERICAN PIPE AND SUPPLY,CLOW/MCWANE, GRIFFIN PIPE PRODUCTS CO.,U.S. PIPE","3X4'0 FLGXPE CL BT DI SPL","EA",null,1,{"v":0,"d":"$0.00"}]
[122,"AMERICAN PIPE AND SUPPLY,CLOW/MCWANE, GRIFFIN PIPE PRODUCTS CO.,U.S. PIPE","3X5'0 FLGXPE CL BT DI SPL","EA",null,1,{"v":0,"d":"$0.00"}]
[123,"AMERICAN PIPE AND SUPPLY,CLOW/MCWANE, GRIFFIN PIPE PRODUCTS CO.,U.S. PIPE","3X6'0 FLGXPE CL BT DI SPL","EA",null,1,{"v":0,"d":"$0.00"}]
[124,"AMERICAN PIPE AND SUPPLY,CLOW/MCWANE, GRIFFIN PIPE PRODUCTS CO.,U.S. PIPE","3X7'0 FLGXPE CL BT DI SPL","EA",null,1,{"v":0,"d":"$0.00"}]
[125,"AMERICAN PIPE AND SUPPLY,CLOW/MCWANE, GRIFFIN PIPE PRODUCTS CO.,U.S. PIPE","3X8'0 FLGXPE CL BT DI SPL","EA",null,1,{"v":0,"d":"$0.00"}]
[126,"AMERICAN PIPE AND SUPPLY,CLOW/MCWANE, GRIFFIN PIPE PRODUCTS CO.,U.S. PIPE","3X9'0 FLGXPE CL BT DI SPL","EA",null,1,{"v":0,"d":"$0.00"}]
[127,"AMERICAN PIPE AND SUPPLY,CLOW/MCWANE, GRIFFIN PIPE PRODUCTS CO.,U.S. PIPE","3X10'0 FLGXPE CL BT DI SPL","EA",null,1,{"v":0,"d":"$0.00"}]
[128,"AMERICAN PIPE AND SUPPLY,CLOW/MCWANE, GRIFFIN PIPE PRODUCTS CO.,U.S. PIPE","4X1'0 FLGXPE CL BT DI SPL","EA",null,1,{"v":0,"d":"$0.00"}]
[129,"AMERICAN PIPE AND SUPPLY,CLOW/MCWANE, GRIFFIN PIPE PRODUCTS CO.,U.S. PIPE","4X1'6 FLGXPE CL BT DI SPL","EA",null,1,{"v":0,"d":"$0.00"}]
[130,"AMERICAN PIPE AND SUPPLY,CLOW/MCWANE, GRIFFIN PIPE PRODUCTS CO.,U.S. PIPE","4X2'0 FLGXPE CL BT DI SPL","EA",null,1,{"$f":"SUM(E136*F136)","v":{"v":0,"d":"$0.00"}}]
[131,"AMERICAN PIPE AND SUPPLY,CLOW/MCWANE, GRIFFIN PIPE PRODUCTS CO.,U.S. PIPE","4X2'6 FLGXPE CL BT DI SPL","EA",null,1,{"v":0,"d":"$0.00"}]
[132,"AMERICAN PIPE AND SUPPLY,CLOW/MCWANE, GRIFFIN PIPE PRODUCTS CO.,U.S. PIPE","4X3'0 FLGXPE CL BT DI SPL","EA",null,1,{"v":0,"d":"$0.00"}]
[133,"AMERICAN PIPE AND SUPPLY,CLOW/MCWANE, GRIFFIN PIPE PRODUCTS CO.,U.S. PIPE","4X4'0 FLGXPE CL BT DI SPL","EA",null,1,{"v":0,"d":"$0.00"}]
[134,"AMERICAN PIPE AND SUPPLY,CLOW/MCWANE, GRIFFIN PIPE PRODUCTS CO.,U.S. PIPE","4X4'6 FLGXPE CL BT DI SPL","EA",null,1,{"v":0,"d":"$0.00"}]
[135,"AMERICAN PIPE AND SUPPLY,CLOW/MCWANE, GRIFFIN PIPE PRODUCTS CO.,U.S. PIPE","4X5'0 FLGXPE CL BT DI SPL","EA",null,1,{"v":0,"d":"$0.00"}]
[136,"AMERICAN PIPE AND SUPPLY,CLOW/MCWANE, GRIFFIN PIPE PRODUCTS CO.,U.S. PIPE","4X6'0 FLGXPE CL BT DI SPL","EA",null,1,{"v":0,"d":"$0.00"}]
[137,"AMERICAN PIPE AND SUPPLY,CLOW/MCWANE, GRIFFIN PIPE PRODUCTS CO.,U.S. PIPE","4X7'0 FLGXPE CL BT DI SPL","EA",null,1,{"v":0,"d":"$0.00"}]
[138,"AMERICAN PIPE AND SUPPLY,CLOW/MCWANE, GRIFFIN PIPE PRODUCTS CO.,U.S. PIPE","4X8'0 FLGXPE CL BT DI SPL","EA",null,1,{"v":0,"d":"$0.00"}]
[139,"AMERICAN PIPE AND SUPPLY,CLOW/MCWANE, GRIFFIN PIPE PRODUCTS CO.,U.S. PIPE","4X9'0 FLGXPE CL BT DI SPL","EA",null,1,{"v":0,"d":"$0.00"}]
[140,"AMERICAN PIPE AND SUPPLY,CLOW/MCWANE, GRIFFIN PIPE PRODUCTS CO.,U.S. PIPE","4X10'0 FLGXPE CL BT DI SPL","EA",null,1,{"v":0,"d":"$0.00"}]
[141,"AMERICAN PIPE AND SUPPLY,CLOW/MCWANE, GRIFFIN PIPE PRODUCTS CO.,U.S. PIPE","4X11'0 FLGXPE CL BT DI SPL","EA",null,1,{"v":0,"d":"$0.00"}]
[142,"AMERICAN PIPE AND SUPPLY,CLOW/MCWANE, GRIFFIN PIPE PRODUCTS CO.,U.S. PIPE","6X1'0 FLGXPE CL BT DI SPL","EA",null,1,{"v":0,"d":"$0.00"}]
[143,"AMERICAN PIPE AND SUPPLY,CLOW/MCWANE, GRIFFIN PIPE PRODUCTS CO.,U.S. PIPE","6X1'6 FLGXPE CL BT DI SPL","EA",null,1,{"v":0,"d":"$0.00"}]
[144,"AMERICAN PIPE AND SUPPLY,CLOW/MCWANE, GRIFFIN PIPE PRODUCTS CO.,U.S. PIPE","6X2'0 FLGXPE CL BT DI SPL","EA",null,1,{"v":0,"d":"$0.00"}]
[145,"AMERICAN PIPE AND SUPPLY,CLOW/MCWANE, GRIFFIN PIPE PRODUCTS CO.,U.S. PIPE","6X2'6 FLGXPE CL BT DI SPL","EA",null,1,{"v":0,"d":"$0.00"}]
[146,"AMERICAN PIPE AND SUPPLY,CLOW/MCWANE, GRIFFIN PIPE PRODUCTS CO.,U.S. PIPE","6X3'0 FLGXPE CL BT DI SPL","EA",null,1,{"v":0,"d":"$0.00"}]
[147,"AMERICAN PIPE AND SUPPLY,CLOW/MCWANE, GRIFFIN PIPE PRODUCTS CO.,U.S. PIPE","6X4'0 FLGXPE CL BT DI SPL","EA",null,1,{"v":0,"d":"$0.00"}]
[148,"AMERICAN PIPE AND SUPPLY,CLOW/MCWANE, GRIFFIN PIPE PRODUCTS CO.,U.S. PIPE","6X4'6 FLGXPE CL BT DI SPL","EA",null,1,{"v":0,"d":"$0.00"}]
[149,"AMERICAN PIPE AND SUPPLY,CLOW/MCWANE, GRIFFIN PIPE PRODUCTS CO.,U.S. PIPE","6X5'0 FLGXPE CL BT DI SPL","EA",null,1,{"v":0,"d":"$0.00"}]
[150,"AMERICAN PIPE AND SUPPLY,CLOW/MCWANE, GRIFFIN PIPE PRODUCTS CO.,U.S. PIPE","6X6'0 FLGXPE CL BT DI SPL","EA",null,1,{"v":0,"d":"$0.00"}]
[151,"AMERICAN PIPE AND SUPPLY,CLOW/MCWANE, GRIFFIN PIPE PRODUCTS CO.,U.S. PIPE","6X7'0 FLGXPE CL BT DI SPL","EA",null,1,{"v":0,"d":"$0.00"}]
[152,"AMERICAN PIPE AND SUPPLY,CLOW/MCWANE, GRIFFIN PIPE PRODUCTS CO.,U.S. PIPE","6X8'0 FLGXPE CL BT DI SPL","EA",null,1,{"v":0,"d":"$0.00"}]
[153,"AMERICAN PIPE AND SUPPLY,CLOW/MCWANE, GRIFFIN PIPE PRODUCTS CO.,U.S. PIPE","6X9'0 FLGXPE CL BT DI SPL","EA",null,1,{"v":0,"d":"$0.00"}]
[154,"AMERICAN PIPE AND SUPPLY,CLOW/MCWANE, GRIFFIN PIPE PRODUCTS CO.,U.S. PIPE","6X10'0 FLGXPE CL BT DI SPL","EA",null,1,{"v":0,"d":"$0.00"}]
[155,"AMERICAN PIPE AND SUPPLY,CLOW/MCWANE, GRIFFIN PIPE PRODUCTS CO.,U.S. PIPE","6X11'0\" FLGXPE CL BT DI SPL","EA",null,1,{"v":0,"d":"$0.00"}]
[156,"AMERICAN PIPE AND SUPPLY,CLOW/MCWANE, GRIFFIN PIPE PRODUCTS CO.,U.S. PIPE","8X1'0 FLGXPE CL BT DI SPL","EA",null,1,{"v":0,"d":"$0.00"}]
[157,"AMERICAN PIPE AND SUPPLY,CLOW/MCWANE, GRIFFIN PIPE PRODUCTS CO.,U.S. PIPE","8X2'0 FLGXPE CL BT DI SPL","EA",null,1,{"v":0,"d":"$0.00"}]
[158,"AMERICAN PIPE AND SUPPLY,CLOW/MCWANE, GRIFFIN PIPE PRODUCTS CO.,U.S. PIPE","8X2'6 FLGXPE CL BT DI SPL","EA",null,1,{"v":0,"d":"$0.00"}]
[159,"AMERICAN PIPE AND SUPPLY,CLOW/MCWANE, GRIFFIN PIPE PRODUCTS CO.,U.S. PIPE","8X3'0 FLGXPE CL BT DI SPL","EA",null,1,{"v":0,"d":"$0.00"}]
[160,"AMERICAN PIPE AND SUPPLY,CLOW/MCWANE, GRIFFIN PIPE PRODUCTS CO.,U.S. PIPE","8X4'0 FLGXPE CL BT DI SPL","EA",null,1,{"v":0,"d":"$0.00"}]
[161,"AMERICAN PIPE AND SUPPLY,CLOW/MCWANE, GRIFFIN PIPE PRODUCTS CO.,U.S. PIPE","8X5'0 FLGXPE CL BT DI SPL","EA",null,1,{"v":0,"d":"$0.00"}]
[162,"AMERICAN PIPE AND SUPPLY,CLOW/MCWANE, GRIFFIN PIPE PRODUCTS CO.,U.S. PIPE","8X6'0 FLGXPE CL BT DI SPL","EA",null,1,{"v":0,"d":"$0.00"}]
[163,"AMERICAN PIPE AND SUPPLY,CLOW/MCWANE, GRIFFIN PIPE PRODUCTS CO.,U.S. PIPE","8X7'0 FLGXPE CL BT DI SPL","EA",null,1,{"v":0,"d":"$0.00"}]
[164,"AMERICAN PIPE AND SUPPLY,CLOW/MCWANE, GRIFFIN PIPE PRODUCTS CO.,U.S. PIPE","8X8'0 FLGXPE CL BT DI SPL","EA",null,1,{"v":0,"d":"$0.00"}]
[165,"AMERICAN PIPE AND SUPPLY,CLOW/MCWANE, GRIFFIN PIPE PRODUCTS CO.,U.S. PIPE","8X9'0 FLGXPE CL BT DI SPL","EA",null,1,{"v":0,"d":"$0.00"}]
[166,"AMERICAN PIPE AND SUPPLY,CLOW/MCWANE, GRIFFIN PIPE PRODUCTS CO.,U.S. PIPE","8X10'0 FLGXPE CL BT DI SPL","EA",null,1,{"v":0,"d":"$0.00"}]
[167,"AMERICAN PIPE AND SUPPLY,CLOW/MCWANE, GRIFFIN PIPE PRODUCTS CO.,U.S. PIPE","10X1'0 FLGXPE CL BT DI SPL","EA",null,1,{"v":0,"d":"$0.00"}]
[168,"AMERICAN PIPE AND SUPPLY,CLOW/MCWANE, GRIFFIN PIPE PRODUCTS CO.,U.S. PIPE","10X2'0 FLGXPE CL BT DI SPL","EA",null,1,{"v":0,"d":"$0.00"}]
[169,"AMERICAN PIPE AND SUPPLY,CLOW/MCWANE, GRIFFIN PIPE PRODUCTS CO.,U.S. PIPE","10X3'0 FLGXPE CL BT DI SPL","EA",null,1,{"v":0,"d":"$0.00"}]
[170,"AMERICAN PIPE AND SUPPLY,CLOW/MCWANE, GRIFFIN PIPE PRODUCTS CO.,U.S. PIPE","10X3'6 FLGXPE CL BT DI SPL","EA",null,1,{"v":0,"d":"$0.00"}]
[171,"AMERICAN PIPE AND SUPPLY,CLOW/MCWANE, GRIFFIN PIPE PRODUCTS CO.,U.S. PIPE","10X4'0 FLGXPE CL BT DI SPL","EA",null,1,{"v":0,"d":"$0.00"}]
[172,"AMERICAN PIPE AND SUPPLY,CLOW/MCWANE, GRIFFIN PIPE PRODUCTS CO.,U.S. PIPE","10X5'0 FLGXPE CL BT DI SPL","EA",null,1,{"v":0,"d":"$0.00"}]
[173,"AMERICAN PIPE AND SUPPLY,CLOW/MCWANE, GRIFFIN PIPE PRODUCTS CO.,U.S. PIPE","10X6'0 FLGXPE CL BT DI SPL","EA",null,1,{"v":0,"d":"$0.00"}]
[174,"AMERICAN PIPE AND SUPPLY,CLOW/MCWANE, GRIFFIN PIPE PRODUCTS CO.,U.S. PIPE","10X7'0 FLGXPE CL BT DI SPL","EA",null,1,{"v":0,"d":"$0.00"}]
[175,"AMERICAN PIPE AND SUPPLY,CLOW/MCWANE, GRIFFIN PIPE PRODUCTS CO.,U.S. PIPE","10X8'0 FLGXPE CL BT DI SPL","EA",null,1,{"v":0,"d":"$0.00"}]
[176,"AMERICAN PIPE AND SUPPLY,CLOW/MCWANE, GRIFFIN PIPE PRODUCTS CO.,U.S. PIPE","10X9'0 FLGXPE CL BT DI SPL","EA",null,1,{"v":0,"d":"$0.00"}]
[177,"AMERICAN PIPE AND SUPPLY,CLOW/MCWANE, GRIFFIN PIPE PRODUCTS CO.,U.S. PIPE","10X10'0 FLGXPE CL BT DI SPL","EA",null,1,{"v":0,"d":"$0.00"}]
[178,"AMERICAN PIPE AND SUPPLY,CLOW/MCWANE, GRIFFIN PIPE PRODUCTS CO.,U.S. PIPE","12X1'0 FLGXPE CL BT DI SPL","EA",null,1,{"v":0,"d":"$0.00"}]
[179,"AMERICAN PIPE AND SUPPLY,CLOW/MCWANE, GRIFFIN PIPE PRODUCTS CO.,U.S. PIPE","12X1'6 FLGXPE CL BT DI SPL","EA",null,1,{"v":0,"d":"$0.00"}]
[180,"AMERICAN PIPE AND SUPPLY,CLOW/MCWANE, GRIFFIN PIPE PRODUCTS CO.,U.S. PIPE","12X2'0 FLGXPE CL BT DI SPL","EA",null,1,{"v":0,"d":"$0.00"}]
[181,"AMERICAN PIPE AND SUPPLY,CLOW/MCWANE, GRIFFIN PIPE PRODUCTS CO.,U.S. PIPE","12X3'0 FLGXPE CL BT DI SPL","EA",null,1,{"v":0,"d":"$0.00"}]
[182,"AMERICAN PIPE AND SUPPLY,CLOW/MCWANE, GRIFFIN PIPE PRODUCTS CO.,U.S. PIPE","12X4'0 FLGXPE CL BT DI SPL","EA",null,1,{"v":0,"d":"$0.00"}]
[183,"AMERICAN PIPE AND SUPPLY,CLOW/MCWANE, GRIFFIN PIPE PRODUCTS CO.,U.S. PIPE","12X5'0 FLGXPE CL BT DI SPL","EA",null,1,{"v":0,"d":"$0.00"}]
[184,"AMERICAN PIPE AND SUPPLY,CLOW/MCWANE, GRIFFIN PIPE PRODUCTS CO.,U.S. PIPE","12X6'0 FLGXPE CL BT DI SPL","EA",null,1,{"v":0,"d":"$0.00"}]
[185,"AMERICAN PIPE AND SUPPLY,CLOW/MCWANE, GRIFFIN PIPE PRODUCTS CO.,U.S. PIPE","12X7'0 FLGXPE CL BT DI SPL","EA",null,1,{"v":0,"d":"$0.00"}]
[186,"AMERICAN PIPE AND SUPPLY,CLOW/MCWANE, GRIFFIN PIPE PRODUCTS CO.,U.S. PIPE","12X8'0 FLGXPE CL BT DI SPL","EA",null,1,{"v":0,"d":"$0.00"}]
[187,"AMERICAN PIPE AND SUPPLY,CLOW/MCWANE, GRIFFIN PIPE PRODUCTS CO.,U.S. PIPE","12X9'0 FLGXPE CL BT DI SPL","EA",null,1,{"v":0,"d":"$0.00"}]
[188,"AMERICAN PIPE AND SUPPLY,CLOW/MCWANE, GRIFFIN PIPE PRODUCTS CO.,U.S. PIPE","12X10'0 FLGXPE CL BT DI SPL","EA",null,1,{"v":0,"d":"$0.00"}]
[189,"AMERICAN PIPE AND SUPPLY,CLOW/MCWANE, GRIFFIN PIPE PRODUCTS CO.,U.S. PIPE","3X0'6 FLGXFLG CL BT DI SPL","EA",null,1,{"v":0,"d":"$0.00"}]
[190,"AMERICAN PIPE AND SUPPLY,CLOW/MCWANE, GRIFFIN PIPE PRODUCTS CO.,U.S. PIPE","3X1'0 FLGXFLG CL BT DI SPL","EA",null,1,{"v":0,"d":"$0.00"}]
[191,"AMERICAN PIPE AND SUPPLY,CLOW/MCWANE, GRIFFIN PIPE PRODUCTS CO.,U.S. PIPE","3X1'0 FLGXFLG CL BT DI SPL 1 TAP","EA",null,1,{"v":0,"d":"$0.00"}]
[192,"AMERICAN PIPE AND SUPPLY,CLOW/MCWANE, GRIFFIN PIPE PRODUCTS CO.,U.S. PIPE","3X2'0 FLGXFLG CL BT DI SPL","EA",null,1,{"v":0,"d":"$0.00"}]
[193,"AMERICAN PIPE AND SUPPLY,CLOW/MCWANE, GRIFFIN PIPE PRODUCTS CO.,U.S. PIPE","3X3'0 FLGXFLG CL BT DI SPL","EA",null,1,{"v":0,"d":"$0.00"}]
[194,"AMERICAN PIPE AND SUPPLY,CLOW/MCWANE, GRIFFIN PIPE PRODUCTS CO.,U.S. PIPE","3X4'0 FLGXFLG CL BT DI SPL","EA",null,1,{"$f":"SUM(E200*F200)","v":{"v":0,"d":"$0.00"}}]
[195,"AMERICAN PIPE AND SUPPLY,CLOW/MCWANE, GRIFFIN PIPE PRODUCTS CO.,U.S. PIPE","3X5'0 FLGXFLG CL BT DI SPL","EA",null,1,{"v":0,"d":"$0.00"}]
[196,"AMERICAN PIPE AND SUPPLY,CLOW/MCWANE, GRIFFIN PIPE PRODUCTS CO.,U.S. PIPE","3X6'0 FLGXFLG CL BT DI SPL","EA",null,1,{"v":0,"d":"$0.00"}]
[197,"AMERICAN PIPE AND SUPPLY,CLOW/MCWANE, GRIFFIN PIPE PRODUCTS CO.,U.S. PIPE","3X7'0 FLGXFLG CL BT DI SPL","EA",null,1,{"v":0,"d":"$0.00"}]
[198,"AMERICAN PIPE AND SUPPLY,CLOW/MCWANE, GRIFFIN PIPE PRODUCTS CO.,U.S. PIPE","3X8'0 FLGXFLG CL BT DI SPL","EA",null,1,{"v":0,"d":"$0.00"}]
[199,"AMERICAN PIPE AND SUPPLY,CLOW/MCWANE, GRIFFIN PIPE PRODUCTS CO.,U.S. PIPE","3X9'0 FLGXFLG CL BT DI SPL","EA",null,1,{"v":0,"d":"$0.00"}]
[200,"AMERICAN PIPE AND SUPPLY,CLOW/MCWANE, GRIFFIN PIPE PRODUCTS CO.,U.S. PIPE","3X10'0 FLGXFLG CL BT DI SPL","EA",null,1,{"v":0,"d":"$0.00"}]
[201,"AMERICAN PIPE AND SUPPLY,CLOW/MCWANE, GRIFFIN PIPE PRODUCTS CO.,U.S. PIPE","4X1'0 FLGXFLG CL BT DI SPL","EA",null,1,{"v":0,"d":"$0.00"}]
[202,"AMERICAN PIPE AND SUPPLY,CLOW/MCWANE, GRIFFIN PIPE PRODUCTS CO.,U.S. PIPE","4X1'0 FLGXFLG CL BT DI SPL 1 TAP","EA",null,1,{"v":0,"d":"$0.00"}]
[203,"AMERICAN PIPE AND SUPPLY,CLOW/MCWANE, GRIFFIN PIPE PRODUCTS CO.,U.S. PIPE","4X1'6 FLGXFLG CL BT DI SPL","EA",null,1,{"v":0,"d":"$0.00"}]
[204,"AMERICAN PIPE AND SUPPLY,CLOW/MCWANE, GRIFFIN PIPE PRODUCTS CO.,U.S. PIPE","4X2'0 FLGXFLG CL BT DI SPL","EA",null,1,{"v":0,"d":"$0.00"}]
[205,"AMERICAN PIPE AND SUPPLY,CLOW/MCWANE, GRIFFIN PIPE PRODUCTS CO.,U.S. PIPE","4X3'0 FLGXFLG CL BT DI SPL","EA",null,1,{"v":0,"d":"$0.00"}]
[206,"AMERICAN PIPE AND SUPPLY,CLOW/MCWANE, GRIFFIN PIPE PRODUCTS CO.,U.S. PIPE","4X4'0 FLGXFLG CL BT DI SPL","EA",null,1,{"v":0,"d":"$0.00"}]
[207,"AMERICAN PIPE AND SUPPLY,CLOW/MCWANE, GRIFFIN PIPE PRODUCTS CO.,U.S. PIPE","4X5'0 FLGXFLG CL BT DI SPL","EA",null,1,{"v":0,"d":"$0.00"}]
[208,"AMERICAN PIPE AND SUPPLY,CLOW/MCWANE, GRIFFIN PIPE PRODUCTS CO.,U.S. PIPE","4X6'0 FLGXFLG CL BT DI SPL","EA",null,1,{"v":0,"d":"$0.00"}]
[209,"AMERICAN PIPE AND SUPPLY,CLOW/MCWANE, GRIFFIN PIPE PRODUCTS CO.,U.S. PIPE","4X7'0 FLGXFLG CL BT DI SPL","EA",null,1,{"v":0,"d":"$0.00"}]
[210,"AMERICAN PIPE AND SUPPLY,CLOW/MCWANE, GRIFFIN PIPE PRODUCTS CO.,U.S. PIPE","4X8'0 FLGXFLG CL BT DI SPL","EA",null,1,{"v":0,"d":"$0.00"}]
[211,"AMERICAN PIPE AND SUPPLY,CLOW/MCWANE, GRIFFIN PIPE PRODUCTS CO.,U.S. PIPE","4X9'0 FLGXFLG CL BT DI SPL","EA",null,1,{"v":0,"d":"$0.00"}]
[212,"AMERICAN PIPE AND SUPPLY,CLOW/MCWANE, GRIFFIN PIPE PRODUCTS CO.,U.S. PIPE","4X10'0 FLGXFLG CL BT DI SPL","EA",null,1,{"v":0,"d":"$0.00"}]
[213,"AMERICAN PIPE AND SUPPLY,CLOW/MCWANE, GRIFFIN PIPE PRODUCTS CO.,U.S. PIPE","6X1'0 FLGXFLG CL BT DI SPL","EA",null,1,{"v":0,"d":"$0.00"}]
[214,"AMERICAN PIPE AND SUPPLY,CLOW/MCWANE, GRIFFIN PIPE PRODUCTS CO.,U.S. PIPE","6X1'0 FLGXFLG CL BT DI SPL 1 TAP","EA",null,1,{"v":0,"d":"$0.00"}]
[215,"AMERICAN PIPE AND SUPPLY,CLOW/MCWANE, GRIFFIN PIPE PRODUCTS CO.,U.S. PIPE","6X1'6 FLGXFLG CL BT DI SPL","EA",null,1,{"v":0,"d":"$0.00"}]
[216,"AMERICAN PIPE AND SUPPLY,CLOW/MCWANE, GRIFFIN PIPE PRODUCTS CO.,U.S. PIPE","6X2'0 FLGXFLG CL BT DI SPL","EA",null,1,{"v":0,"d":"$0.00"}]
[217,"AMERICAN PIPE AND SUPPLY,CLOW/MCWANE, GRIFFIN PIPE PRODUCTS CO.,U.S. PIPE","6X3'0 FLGXFLG CL BT DI SPL","EA",null,1,{"v":0,"d":"$0.00"}]
[218,"AMERICAN PIPE AND SUPPLY,CLOW/MCWANE, GRIFFIN PIPE PRODUCTS CO.,U.S. PIPE","6X4'0 FLGXFLG CL BT DI SPL","EA",null,1,{"v":0,"d":"$0.00"}]
[219,"AMERICAN PIPE AND SUPPLY,CLOW/MCWANE, GRIFFIN PIPE PRODUCTS CO.,U.S. PIPE","6X5'0 FLGXFLG CL BT DI SPL","EA",null,1,{"v":0,"d":"$0.00"}]
[220,"AMERICAN PIPE AND SUPPLY,CLOW/MCWANE, GRIFFIN PIPE PRODUCTS CO.,U.S. PIPE","6X6'0 FLGXFLG CL BT DI SPL","EA",null,1,{"v":0,"d":"$0.00"}]
[221,"AMERICAN PIPE AND SUPPLY,CLOW/MCWANE, GRIFFIN PIPE PRODUCTS CO.,U.S. PIPE","6X7'0 FLGXFLG CL BT DI SPL","EA",null,1,{"v":0,"d":"$0.00"}]
[222,"AMERICAN PIPE AND SUPPLY,CLOW/MCWANE, GRIFFIN PIPE PRODUCTS CO.,U.S. PIPE","6X8'0 FLGXFLG CL BT DI SPL","EA",null,1,{"v":0,"d":"$0.00"}]
[223,"AMERICAN PIPE AND SUPPLY,CLOW/MCWANE, GRIFFIN PIPE PRODUCTS CO.,U.S. PIPE","6X9'0 FLGXFLG CL BT DI SPL","EA",null,1,{"v":0,"d":"$0.00"}]
[224,"AMERICAN PIPE AND SUPPLY,CLOW/MCWANE, GRIFFIN PIPE PRODUCTS CO.,U.S. PIPE","6X10'0 FLGXFLG CL BT DI SPL","EA",null,1,{"v":0,"d":"$0.00"}]
[225,"AMERICAN PIPE AND SUPPLY,CLOW/MCWANE, GRIFFIN PIPE PRODUCTS CO.,U.S. PIPE","8X1'0 FLGXFLG CL BT DI SPL","EA",null,1,{"v":0,"d":"$0.00"}]
[226,"AMERICAN PIPE AND SUPPLY,CLOW/MCWANE, GRIFFIN PIPE PRODUCTS CO.,U.S. PIPE","8X1'0 FLGXFLG CL BT DI SPL 1 TAP","EA",null,1,{"v":0,"d":"$0.00"}]
[227,"AMERICAN PIPE AND SUPPLY,CLOW/MCWANE, GRIFFIN PIPE PRODUCTS CO.,U.S. PIPE","8X1'6 FLGXFLG CL BT DI SPL","EA",null,1,{"v":0,"d":"$0.00"}]
[228,"AMERICAN PIPE AND SUPPLY,CLOW/MCWANE, GRIFFIN PIPE PRODUCTS CO.,U.S. PIPE","8X2'0 FLGXFLG CL BT DI SPL","EA",null,1,{"v":0,"d":"$0.00"}]
[229,"AMERICAN PIPE AND SUPPLY,CLOW/MCWANE, GRIFFIN PIPE PRODUCTS CO.,U.S. PIPE","8X3'0 FLGXFLG CL BT DI SPL","EA",null,1,{"v":0,"d":"$0.00"}]
[230,"AMERICAN PIPE AND SUPPLY,CLOW/MCWANE, GRIFFIN PIPE PRODUCTS CO.,U.S. PIPE","8X4'0 FLGXFLG CL BT DI SPL","EA",null,1,{"v":0,"d":"$0.00"}]
[231,"AMERICAN PIPE AND SUPPLY,CLOW/MCWANE, GRIFFIN PIPE PRODUCTS CO.,U.S. PIPE","8X5'0 FLGXFLG CL BT DI SPL","EA",null,1,{"v":0,"d":"$0.00"}]
[232,"AMERICAN PIPE AND SUPPLY,CLOW/MCWANE, GRIFFIN PIPE PRODUCTS CO.,U.S. PIPE","8X6'0 FLGXFLG CL BT DI SPL","EA",null,1,{"v":0,"d":"$0.00"}]
[233,"AMERICAN PIPE AND SUPPLY,CLOW/MCWANE, GRIFFIN PIPE PRODUCTS CO.,U.S. PIPE","8X7'0 FLGXFLG CL BT DI SPL","EA",null,1,{"v":0,"d":"$0.00"}]
[234,"AMERICAN PIPE AND SUPPLY,CLOW/MCWANE, GRIFFIN PIPE PRODUCTS CO.,U.S. PIPE","8X8'0 FLGXFLG CL BT DI SPL","EA",null,1,{"v":0,"d":"$0.00"}]
[235,"AMERICAN PIPE AND SUPPLY,CLOW/MCWANE, GRIFFIN PIPE PRODUCTS CO.,U.S. PIPE","8X9'0 FLGXFLG CL BT DI SPL","EA",null,1,{"v":0,"d":"$0.00"}]
[236,"AMERICAN PIPE AND SUPPLY,CLOW/MCWANE, GRIFFIN PIPE PRODUCTS CO.,U.S. PIPE","8X10'0 FLGXFLG CL BT DI SPL","EA",null,1,{"v":0,"d":"$0.00"}]
[237,"AMERICAN PIPE AND SUPPLY,CLOW/MCWANE, GRIFFIN PIPE PRODUCTS CO.,U.S. PIPE","10X1'0 FLGXFLG CL BT DI SPL","EA",null,1,{"v":0,"d":"$0.00"}]
[238,"AMERICAN PIPE AND SUPPLY,CLOW/MCWANE, GRIFFIN PIPE PRODUCTS CO.,U.S. PIPE","10X2'6 FLGXFLG CL BT DI SPL","EA",null,1,{"v":0,"d":"$0.00"}]
[239,"AMERICAN PIPE AND SUPPLY,CLOW/MCWANE, GRIFFIN PIPE PRODUCTS CO.,U.S. PIPE","10X3'0 FLGXFLG CL BT DI SPL","EA",null,1,{"v":0,"d":"$0.00"}]
[240,"AMERICAN PIPE AND SUPPLY,CLOW/MCWANE, GRIFFIN PIPE PRODUCTS CO.,U.S. PIPE","10X4'0 FLGXFLG CL BT DI SPL","EA",null,1,{"v":0,"d":"$0.00"}]
[241,"AMERICAN PIPE AND SUPPLY,CLOW/MCWANE, GRIFFIN PIPE PRODUCTS CO.,U.S. PIPE","10X5'0 FLGXFLG CL BT DI SPL","EA",null,1,{"v":0,"d":"$0.00"}]
[242,"AMERICAN PIPE AND SUPPLY,CLOW/MCWANE, GRIFFIN PIPE PRODUCTS CO.,U.S. PIPE","10X6'0 FLGXFLG CL BT DI SPL","EA",null,1,{"v":0,"d":"$0.00"}]
[243,"AMERICAN PIPE AND SUPPLY,CLOW/MCWANE, GRIFFIN PIPE PRODUCTS CO.,U.S. PIPE","10X7'0 FLGXFLG CL BT DI SPL","EA",null,1,{"v":0,"d":"$0.00"}]
[244,"AMERICAN PIPE AND SUPPLY,CLOW/MCWANE, GRIFFIN PIPE PRODUCTS CO.,U.S. PIPE","10X8'0 FLGXFLG CL BT DI SPL","EA",null,1,{"v":0,"d":"$0.00"}]
[245,"AMERICAN PIPE AND SUPPLY,CLOW/MCWANE, GRIFFIN PIPE PRODUCTS CO.,U.S. PIPE","10X9'0 FLGXFLG CL BT DI SPL","EA",null,1,{"v":0,"d":"$0.00"}]
[246,"AMERICAN PIPE AND SUPPLY,CLOW/MCWANE, GRIFFIN PIPE PRODUCTS CO.,U.S. PIPE","10X10'0 FLGXFLG CL BT DI SPL","EA",null,1,{"v":0,"d":"$0.00"}]
[247,"AMERICAN PIPE AND SUPPLY,CLOW/MCWANE, GRIFFIN PIPE PRODUCTS CO.,U.S. PIPE","12X1'0 FLGXFLG CL BT DI SPL","EA",null,1,{"v":0,"d":"$0.00"}]
[248,"AMERICAN PIPE AND SUPPLY,CLOW/MCWANE, GRIFFIN PIPE PRODUCTS CO.,U.S. PIPE","12X2'0 FLGXFLG CL BT DI SPL","EA",null,1,{"v":0,"d":"$0.00"}]
[249,"AMERICAN PIPE AND SUPPLY,CLOW/MCWANE, GRIFFIN PIPE PRODUCTS CO.,U.S. PIPE","12X3'0 FLGXFLG CL BT DI SPL","EA",null,1,{"v":0,"d":"$0.00"}]
[250,"AMERICAN PIPE AND SUPPLY,CLOW/MCWANE, GRIFFIN PIPE PRODUCTS CO.,U.S. PIPE","12X4'0 FLGXFLG CL BT DI SPL","EA",null,1,{"v":0,"d":"$0.00"}]
[251,"AMERICAN PIPE AND SUPPLY,CLOW/MCWANE, GRIFFIN PIPE PRODUCTS CO.,U.S. PIPE","12X5'0 FLGXFLG CL BT DI SPL","EA",null,1,{"v":0,"d":"$0.00"}]
[252,"AMERICAN PIPE AND SUPPLY,CLOW/MCWANE, GRIFFIN PIPE PRODUCTS CO.,U.S. PIPE","12X6'0 FLGXFLG CL BT DI SPL","EA",null,1,{"v":0,"d":"$0.00"}]
[253,"AMERICAN PIPE AND SUPPLY,CLOW/MCWANE, GRIFFIN PIPE PRODUCTS CO.,U.S. PIPE","12X7'0 FLGXFLG CL BT DI SPL","EA",null,1,{"v":0,"d":"$0.00"}]
[254,"AMERICAN PIPE AND SUPPLY,CLOW/MCWANE, GRIFFIN PIPE PRODUCTS CO.,U.S. PIPE","12X8'0 FLGXFLG CL BT DI SPL","EA",null,1,{"v":0,"d":"$0.00"}]
[255,"AMERICAN PIPE AND SUPPLY,CLOW/MCWANE, GRIFFIN PIPE PRODUCTS CO.,U.S. PIPE","12X9'0 FLGXFLG CL BT DI SPL","EA",null,1,{"v":0,"d":"$0.00"}]
[256,"AMERICAN PIPE AND SUPPLY,CLOW/MCWANE, GRIFFIN PIPE PRODUCTS CO.,U.S. PIPE","12X10'0 FLGXFLG CL BT DI SPL","EA",null,1,{"v":0,"d":"$0.00"}]
[257,"AMERICAN PIPE AND SUPPLY,CLOW/MCWANE, GRIFFIN PIPE PRODUCTS CO.,U.S. PIPE","4X1'0 FLGXPE EPOX DI SPL","EA",null,1,{"v":0,"d":"$0.00"}]
[258,"AMERICAN PIPE AND SUPPLY,CLOW/MCWANE, GRIFFIN PIPE PRODUCTS CO.,U.S. PIPE","4X1'6 FLGXPE EPOX DI SPL","EA",null,1,{"$f":"SUM(E264*F264)","v":{"v":0,"d":"$0.00"}}]
[259,"AMERICAN PIPE AND SUPPLY,CLOW/MCWANE, GRIFFIN PIPE PRODUCTS CO.,U.S. PIPE","4X2'0 FLGXPE EPOX DI SPL","EA",null,1,{"v":0,"d":"$0.00"}]
[260,"AMERICAN PIPE AND SUPPLY,CLOW/MCWANE, GRIFFIN PIPE PRODUCTS CO.,U.S. PIPE","4X3'0 FLGXPE EPOX DI SPL","EA",null,1,{"v":0,"d":"$0.00"}]
[261,"AMERICAN PIPE AND SUPPLY,CLOW/MCWANE, GRIFFIN PIPE PRODUCTS CO.,U.S. PIPE","4X4'0 FLGXPE EPOX DI SPL","EA",null,1,{"v":0,"d":"$0.00"}]
[262,"AMERICAN PIPE AND SUPPLY,CLOW/MCWANE, GRIFFIN PIPE PRODUCTS CO.,U.S. PIPE","4X5'0 FLGXPE EPOX DI SPL","EA",null,1,{"v":0,"d":"$0.00"}]
[263,"AMERICAN PIPE AND SUPPLY,CLOW/MCWANE, GRIFFIN PIPE PRODUCTS CO.,U.S. PIPE","4X6'0 FLGXPE EPOX DI SPL","EA",null,1,{"v":0,"d":"$0.00"}]
[264,"AMERICAN PIPE AND SUPPLY,CLOW/MCWANE, GRIFFIN PIPE PRODUCTS CO.,U.S. PIPE","4X7'0 FLGXPE EPOX DI SPL","EA",null,1,{"v":0,"d":"$0.00"}]
[265,"AMERICAN PIPE AND SUPPLY,CLOW/MCWANE, GRIFFIN PIPE PRODUCTS CO.,U.S. PIPE","4X8'0 FLGXPE EPOX DI SPL","EA",null,1,{"v":0,"d":"$0.00"}]
[266,"AMERICAN PIPE AND SUPPLY,CLOW/MCWANE, GRIFFIN PIPE PRODUCTS CO.,U.S. PIPE","4X9'0 FLGXPE EPOX DI SPL","EA",null,1,{"v":0,"d":"$0.00"}]
[267,"AMERICAN PIPE AND SUPPLY,CLOW/MCWANE, GRIFFIN PIPE PRODUCTS CO.,U.S. PIPE","4X10'0 FLGXPE EPOX DI SPL","EA",null,1,{"v":0,"d":"$0.00"}]
[268,"AMERICAN PIPE AND SUPPLY,CLOW/MCWANE, GRIFFIN PIPE PRODUCTS CO.,U.S. PIPE","6X1'0 FLGXPE EPOX DI SPL","EA",null,1,{"v":0,"d":"$0.00"}]
[269,"AMERICAN PIPE AND SUPPLY,CLOW/MCWANE, GRIFFIN PIPE PRODUCTS CO.,U.S. PIPE","6X2'0 FLGXPE EPOX DI SPL","EA",null,1,{"v":0,"d":"$0.00"}]
[270,"AMERICAN PIPE AND SUPPLY,CLOW/MCWANE, GRIFFIN PIPE PRODUCTS CO.,U.S. PIPE","6X3'0 FLGXPE EPOX DI SPL","EA",null,1,{"v":0,"d":"$0.00"}]
[271,"AMERICAN PIPE AND SUPPLY,CLOW/MCWANE, GRIFFIN PIPE PRODUCTS CO.,U.S. PIPE","6X4'0 FLGXPE EPOX DI SPL","EA",null,1,{"v":0,"d":"$0.00"}]
[272,"AMERICAN PIPE AND SUPPLY,CLOW/MCWANE, GRIFFIN PIPE PRODUCTS CO.,U.S. PIPE","6X5'0 FLGXPE EPOX DI SPL","EA",null,1,{"v":0,"d":"$0.00"}]
[273,"AMERICAN PIPE AND SUPPLY,CLOW/MCWANE, GRIFFIN PIPE PRODUCTS CO.,U.S. PIPE","6X6'0 FLGXPE EPOX DI SPL","EA",null,1,{"v":0,"d":"$0.00"}]
[274,"AMERICAN PIPE AND SUPPLY,CLOW/MCWANE, GRIFFIN PIPE PRODUCTS CO.,U.S. PIPE","6X7'0 FLGXPE EPOX DI SPL","EA",null,1,{"v":0,"d":"$0.00"}]
[275,"AMERICAN PIPE AND SUPPLY,CLOW/MCWANE, GRIFFIN PIPE PRODUCTS CO.,U.S. PIPE","6X8'0 FLGXPE EPOX DI SPL","EA",null,1,{"v":0,"d":"$0.00"}]
[276,"AMERICAN PIPE AND SUPPLY,CLOW/MCWANE, GRIFFIN PIPE PRODUCTS CO.,U.S. PIPE","6X9'0 FLGXPE EPOX DI SPL","EA",null,1,{"v":0,"d":"$0.00"}]
[277,"AMERICAN PIPE AND SUPPLY,CLOW/MCWANE, GRIFFIN PIPE PRODUCTS CO.,U.S. PIPE","6X10'0 FLGXPE EPOX DI SPL","EA",null,1,{"v":0,"d":"$0.00"}]
[278,"AMERICAN PIPE AND SUPPLY,CLOW/MCWANE, GRIFFIN PIPE PRODUCTS CO.,U.S. PIPE","8X1'0 FLGXPE EPOX DI SPL","EA",null,1,{"v":0,"d":"$0.00"}]
[279,"AMERICAN PIPE AND SUPPLY,CLOW/MCWANE, GRIFFIN PIPE PRODUCTS CO.,U.S. PIPE","8X2'0 FLGXPE EPOX DI SPL","EA",null,1,{"v":0,"d":"$0.00"}]
[280,"AMERICAN PIPE AND SUPPLY,CLOW/MCWANE, GRIFFIN PIPE PRODUCTS CO.,U.S. PIPE","8X3'0 FLGXPE EPOX DI SPL","EA",null,1,{"v":0,"d":"$0.00"}]
[281,"AMERICAN PIPE AND SUPPLY,CLOW/MCWANE, GRIFFIN PIPE PRODUCTS CO.,U.S. PIPE","8X4'0 FLGXPE EPOX DI SPL","EA",null,1,{"v":0,"d":"$0.00"}]
[282,"AMERICAN PIPE AND SUPPLY,CLOW/MCWANE, GRIFFIN PIPE PRODUCTS CO.,U.S. PIPE","8X5'0 FLGXPE EPOX DI SPL","EA",null,1,{"v":0,"d":"$0.00"}]
[283,"AMERICAN PIPE AND SUPPLY,CLOW/MCWANE, GRIFFIN PIPE PRODUCTS CO.,U.S. PIPE","8X6'0 FLGXPE EPOX DI SPL","EA",null,1,{"v":0,"d":"$0.00"}]
[284,"AMERICAN PIPE AND SUPPLY,CLOW/MCWANE, GRIFFIN PIPE PRODUCTS CO.,U.S. PIPE","8X7'0 FLGXPE EPOX DI SPL","EA",null,1,{"v":0,"d":"$0.00"}]
[285,"AMERICAN PIPE AND SUPPLY,CLOW/MCWANE, GRIFFIN PIPE PRODUCTS CO.,U.S. PIPE","8X8'0 FLGXPE EPOX DI SPL","EA",null,1,{"v":0,"d":"$0.00"}]
[286,"AMERICAN PIPE AND SUPPLY,CLOW/MCWANE, GRIFFIN PIPE PRODUCTS CO.,U.S. PIPE","8X9'0 FLGXPE EPOX DI SPL","EA",null,1,{"v":0,"d":"$0.00"}]
[287,"AMERICAN PIPE AND SUPPLY,CLOW/MCWANE, GRIFFIN PIPE PRODUCTS CO.,U.S. PIPE","8X10'0 FLGXPE EPOX DI SPL","EA",null,1,{"v":0,"d":"$0.00"}]
[288,"AMERICAN PIPE AND SUPPLY,CLOW/MCWANE, GRIFFIN PIPE PRODUCTS CO.,U.S. PIPE","10X1'0 FLGXPE EPOX DI SPL","EA",null,1,{"v":0,"d":"$0.00"}]
[289,"AMERICAN PIPE AND SUPPLY,CLOW/MCWANE, GRIFFIN PIPE PRODUCTS CO.,U.S. PIPE","10X2'0 FLGXPE EPOX DI SPL","EA",null,1,{"v":0,"d":"$0.00"}]
[290,"AMERICAN PIPE AND SUPPLY,CLOW/MCWANE, GRIFFIN PIPE PRODUCTS CO.,U.S. PIPE","10X3'0 FLGXPE EPOX DI SPL","EA",null,1,{"v":0,"d":"$0.00"}]
[291,"AMERICAN PIPE AND SUPPLY,CLOW/MCWANE, GRIFFIN PIPE PRODUCTS CO.,U.S. PIPE","10X4`0 FLGXPE EPOX DI SPL","EA",null,1,{"v":0,"d":"$0.00"}]
[292,"AMERICAN PIPE AND SUPPLY,CLOW/MCWANE, GRIFFIN PIPE PRODUCTS CO.,U.S. PIPE","10X5'0 FLGXPE EPOX DI SPL","EA",null,1,{"v":0,"d":"$0.00"}]
[293,"AMERICAN PIPE AND SUPPLY,CLOW/MCWANE, GRIFFIN PIPE PRODUCTS CO.,U.S. PIPE","10X6'0 FLGXPE EPOX DI SPL","EA",null,1,{"v":0,"d":"$0.00"}]
[294,"AMERICAN PIPE AND SUPPLY,CLOW/MCWANE, GRIFFIN PIPE PRODUCTS CO.,U.S. PIPE","10X7'0 FLGXPE EPOX DI SPL","EA",null,1,{"v":0,"d":"$0.00"}]
[295,"AMERICAN PIPE AND SUPPLY,CLOW/MCWANE, GRIFFIN PIPE PRODUCTS CO.,U.S. PIPE","10X8'0 FLGXPE EPOX DI SPL","EA",null,1,{"v":0,"d":"$0.00"}]
[296,"AMERICAN PIPE AND SUPPLY,CLOW/MCWANE, GRIFFIN PIPE PRODUCTS CO.,U.S. PIPE","10X9'0 FLGXPE EPOX DI SPL","EA",null,1,{"v":0,"d":"$0.00"}]
[297,"AMERICAN PIPE AND SUPPLY,CLOW/MCWANE, GRIFFIN PIPE PRODUCTS CO.,U.S. PIPE","10X10'0 FLGXPE EPOX DI SPL","EA",null,1,{"v":0,"d":"$0.00"}]
[298,"AMERICAN PIPE AND SUPPLY,CLOW/MCWANE, GRIFFIN PIPE PRODUCTS CO.,U.S. PIPE","12X1'0 FLGXPE EPOX DI SPL","EA",null,1,{"v":0,"d":"$0.00"}]
[299,"AMERICAN PIPE AND SUPPLY,CLOW/MCWANE, GRIFFIN PIPE PRODUCTS CO.,U.S. PIPE","12X2'0 FLGXPE EPOX DI SPL","EA",null,1,{"v":0,"d":"$0.00"}]
[300,"AMERICAN PIPE AND SUPPLY,CLOW/MCWANE, GRIFFIN PIPE PRODUCTS CO.,U.S. PIPE","12X3'0 FLGXPE EPOX DI SPL","EA",null,1,{"v":0,"d":"$0.00"}]
[301,"AMERICAN PIPE AND SUPPLY,CLOW/MCWANE, GRIFFIN PIPE PRODUCTS CO.,U.S. PIPE","12X4'0 FLGXPE EPOX DI SPL","EA",null,1,{"v":0,"d":"$0.00"}]
[302,"AMERICAN PIPE AND SUPPLY,CLOW/MCWANE, GRIFFIN PIPE PRODUCTS CO.,U.S. PIPE","12X5'0 FLGXPE EPOX DI SPL","EA",null,1,{"v":0,"d":"$0.00"}]
[303,"AMERICAN PIPE AND SUPPLY,CLOW/MCWANE, GRIFFIN PIPE PRODUCTS CO.,U.S. PIPE","12X6'0 FLGXPE EPOX DI SPL","EA",null,1,{"v":0,"d":"$0.00"}]
[304,"AMERICAN PIPE AND SUPPLY,CLOW/MCWANE, GRIFFIN PIPE PRODUCTS CO.,U.S. PIPE","12X7'0 FLGXPE EPOX DI SPL","EA",null,1,{"v":0,"d":"$0.00"}]
[305,"AMERICAN PIPE AND SUPPLY,CLOW/MCWANE, GRIFFIN PIPE PRODUCTS CO.,U.S. PIPE","12X8'0 FLGXPE EPOX DI SPL","EA",null,1,{"v":0,"d":"$0.00"}]
[306,"AMERICAN PIPE AND SUPPLY,CLOW/MCWANE, GRIFFIN PIPE PRODUCTS CO.,U.S. PIPE","12X9'0 FLGXPE EPOX DI SPL","EA",null,1,{"v":0,"d":"$0.00"}]
[307,"AMERICAN PIPE AND SUPPLY,CLOW/MCWANE, GRIFFIN PIPE PRODUCTS CO.,U.S. PIPE","12X10'0 FLGXPE EPOX DI SPL","EA",null,1,{"v":0,"d":"$0.00"}]
[308,"AMERICAN PIPE AND SUPPLY,CLOW/MCWANE, GRIFFIN PIPE PRODUCTS CO.,U.S. PIPE","4X1'0 FLGXFLG EPOX DI SPL","EA",null,1,{"v":0,"d":"$0.00"}]
[309,"AMERICAN PIPE AND SUPPLY,CLOW/MCWANE, GRIFFIN PIPE PRODUCTS CO.,U.S. PIPE","4X2'0 FLGXFLG EPOX DI SPL","EA",null,1,{"v":0,"d":"$0.00"}]
[310,"AMERICAN PIPE AND SUPPLY,CLOW/MCWANE, GRIFFIN PIPE PRODUCTS CO.,U.S. PIPE","4X3'0 FLGXFLG EPOX DI SPL","EA",null,1,{"v":0,"d":"$0.00"}]
[311,"AMERICAN PIPE AND SUPPLY,CLOW/MCWANE, GRIFFIN PIPE PRODUCTS CO.,U.S. PIPE","4X4'0 FLGXFLG EPOX DI SPL","EA",null,1,{"v":0,"d":"$0.00"}]
[312,"AMERICAN PIPE AND SUPPLY,CLOW/MCWANE, GRIFFIN PIPE PRODUCTS CO.,U.S. PIPE","4X5'0 FLGXFLG EPOX DI SPL","EA",null,1,{"v":0,"d":"$0.00"}]
[313,"AMERICAN PIPE AND SUPPLY,CLOW/MCWANE, GRIFFIN PIPE PRODUCTS CO.,U.S. PIPE","4X6'0 FLGXFLG EPOX DI SPL","EA",null,1,{"v":0,"d":"$0.00"}]
[314,"AMERICAN PIPE AND SUPPLY,CLOW/MCWANE, GRIFFIN PIPE PRODUCTS CO.,U.S. PIPE","4X7'0 FLGXFLG EPOX DI SPL","EA",null,1,{"v":0,"d":"$0.00"}]
[315,"AMERICAN PIPE AND SUPPLY,CLOW/MCWANE, GRIFFIN PIPE PRODUCTS CO.,U.S. PIPE","4X8'0 FLGXFLG EPOX DI SPL","EA",null,1,{"v":0,"d":"$0.00"}]
[316,"AMERICAN PIPE AND SUPPLY,CLOW/MCWANE, GRIFFIN PIPE PRODUCTS CO.,U.S. PIPE","4X9'0 FLGXFLG EPOX DI SPL","EA",null,1,{"v":0,"d":"$0.00"}]
[317,"AMERICAN PIPE AND SUPPLY,CLOW/MCWANE, GRIFFIN PIPE PRODUCTS CO.,U.S. PIPE","4X10'0 FLGXFLG EPOX DI SPL","EA",null,1,{"v":0,"d":"$0.00"}]
[318,"AMERICAN PIPE AND SUPPLY,CLOW/MCWANE, GRIFFIN PIPE PRODUCTS CO.,U.S. PIPE","6X1'0 FLGXFLG EPOX DI SPL","EA",null,1,{"v":0,"d":"$0.00"}]
[319,"AMERICAN PIPE AND SUPPLY,CLOW/MCWANE, GRIFFIN PIPE PRODUCTS CO.,U.S. PIPE","6X2'0 FLGXFLG EPOX DI SPL","EA",null,1,{"v":0,"d":"$0.00"}]
[320,"AMERICAN PIPE AND SUPPLY,CLOW/MCWANE, GRIFFIN PIPE PRODUCTS CO.,U.S. PIPE","6X3'0 FLGXFLG EPOX DI SPL","EA",null,1,{"v":0,"d":"$0.00"}]
[321,"AMERICAN PIPE AND SUPPLY,CLOW/MCWANE, GRIFFIN PIPE PRODUCTS CO.,U.S. PIPE","6X4'0 FLGXFLG EPOX DI SPL","EA",null,1,{"v":0,"d":"$0.00"}]
[322,"AMERICAN PIPE AND SUPPLY,CLOW/MCWANE, GRIFFIN PIPE PRODUCTS CO.,U.S. PIPE","6X5'0 FLGXFLG EPOX DI SPL","EA",null,1,{"$f":"SUM(E328*F328)","v":{"v":0,"d":"$0.00"}}]
[323,"AMERICAN PIPE AND SUPPLY,CLOW/MCWANE, GRIFFIN PIPE PRODUCTS CO.,U.S. PIPE","6X6'0 FLGXFLG EPOX DI SPL","EA",null,1,{"v":0,"d":"$0.00"}]
[324,"AMERICAN PIPE AND SUPPLY,CLOW/MCWANE, GRIFFIN PIPE PRODUCTS CO.,U.S. PIPE","6X7'0 FLGXFLG EPOX DI SPL","EA",null,1,{"v":0,"d":"$0.00"}]
[325,"AMERICAN PIPE AND SUPPLY,CLOW/MCWANE, GRIFFIN PIPE PRODUCTS CO.,U.S. PIPE","6X8'0 FLGXFLG EPOX DI SPL","EA",null,1,{"v":0,"d":"$0.00"}]
[326,"AMERICAN PIPE AND SUPPLY,CLOW/MCWANE, GRIFFIN PIPE PRODUCTS CO.,U.S. PIPE","6X9'0 FLGXFLG EPOX DI SPL","EA",null,1,{"v":0,"d":"$0.00"}]
[327,"AMERICAN PIPE AND SUPPLY,CLOW/MCWANE, GRIFFIN PIPE PRODUCTS CO.,U.S. PIPE","6X10'0 FLGXFLG EPOX DI SPL","EA",null,1,{"v":0,"d":"$0.00"}]
[328,"AMERICAN PIPE AND SUPPLY,CLOW/MCWANE, GRIFFIN PIPE PRODUCTS CO.,U.S. PIPE","8X1'0 FLGXFLG EPOX DI SPL","EA",null,1,{"v":0,"d":"$0.00"}]
[329,"AMERICAN PIPE AND SUPPLY,CLOW/MCWANE, GRIFFIN PIPE PRODUCTS CO.,U.S. PIPE","8X2'0 FLGXFLG EPOX DI SPL","EA",null,1,{"v":0,"d":"$0.00"}]
[330,"AMERICAN PIPE AND SUPPLY,CLOW/MCWANE, GRIFFIN PIPE PRODUCTS CO.,U.S. PIPE","8X3'0 FLGXFLG EPOX DI SPL","EA",null,1,{"v":0,"d":"$0.00"}]
[331,"AMERICAN PIPE AND SUPPLY,CLOW/MCWANE, GRIFFIN PIPE PRODUCTS CO.,U.S. PIPE","8X4'0 FLGXFLG EPOX DI SPL","EA",null,1,{"v":0,"d":"$0.00"}]
[332,"AMERICAN PIPE AND SUPPLY,CLOW/MCWANE, GRIFFIN PIPE PRODUCTS CO.,U.S. PIPE","8X5'0 FLGXFLG EPOX DI SPL","EA",null,1,{"v":0,"d":"$0.00"}]
[333,"AMERICAN PIPE AND SUPPLY,CLOW/MCWANE, GRIFFIN PIPE PRODUCTS CO.,U.S. PIPE","8X6'0 FLGXFLG EPOX DI SPL","EA",null,1,{"v":0,"d":"$0.00"}]
[334,"AMERICAN PIPE AND SUPPLY,CLOW/MCWANE, GRIFFIN PIPE PRODUCTS CO.,U.S. PIPE","8X7'0 FLGXFLG EPOX DI SPL","EA",null,1,{"v":0,"d":"$0.00"}]
[335,"AMERICAN PIPE AND SUPPLY,CLOW/MCWANE, GRIFFIN PIPE PRODUCTS CO.,U.S. PIPE","8X8'0 FLGXFLG EPOX DI SPL","EA",null,1,{"v":0,"d":"$0.00"}]
[336,"AMERICAN PIPE AND SUPPLY,CLOW/MCWANE, GRIFFIN PIPE PRODUCTS CO.,U.S. PIPE","8X9'0 FLGXFLG EPOX DI SPL","EA",null,1,{"v":0,"d":"$0.00"}]
[337,"AMERICAN PIPE AND SUPPLY,CLOW/MCWANE, GRIFFIN PIPE PRODUCTS CO.,U.S. PIPE","8X10'0 FLGXFLG EPOX DI SPL","EA",null,1,{"v":0,"d":"$0.00"}]
[338,"AMERICAN PIPE AND SUPPLY,CLOW/MCWANE, GRIFFIN PIPE PRODUCTS CO.,U.S. PIPE","10X1'0 FLGXFLG EPOX DI SPL","EA",null,1,{"v":0,"d":"$0.00"}]
[339,"AMERICAN PIPE AND SUPPLY,CLOW/MCWANE, GRIFFIN PIPE PRODUCTS CO.,U.S. PIPE","10X2'0 FLGXFLG EPOX DI SPL","EA",null,1,{"v":0,"d":"$0.00"}]
[340,"AMERICAN PIPE AND SUPPLY,CLOW/MCWANE, GRIFFIN PIPE PRODUCTS CO.,U.S. PIPE","10X3'0 FLGXFLG EPOX DI SPL","EA",null,1,{"v":0,"d":"$0.00"}]
[341,"AMERICAN PIPE AND SUPPLY,CLOW/MCWANE, GRIFFIN PIPE PRODUCTS CO.,U.S. PIPE","10X4'0 FLGXFLG EPOX DI SPL","EA",null,1,{"v":0,"d":"$0.00"}]
[342,"AMERICAN PIPE AND SUPPLY,CLOW/MCWANE, GRIFFIN PIPE PRODUCTS CO.,U.S. PIPE","10X5'0 FLGXFLG EPOX DI SPL","EA",null,1,{"v":0,"d":"$0.00"}]
[343,"AMERICAN PIPE AND SUPPLY,CLOW/MCWANE, GRIFFIN PIPE PRODUCTS CO.,U.S. PIPE","10X6'0 FLGXFLG EPOX DI SPL","EA",null,1,{"v":0,"d":"$0.00"}]
[344,"AMERICAN PIPE AND SUPPLY,CLOW/MCWANE, GRIFFIN PIPE PRODUCTS CO.,U.S. PIPE","10X7'0 FLGXFLG EPOX DI SPL","EA",null,1,{"v":0,"d":"$0.00"}]
[345,"AMERICAN PIPE AND SUPPLY,CLOW/MCWANE, GRIFFIN PIPE PRODUCTS CO.,U.S. PIPE","10X8'0 FLGXFLG EPOX DI SPL","EA",null,1,{"v":0,"d":"$0.00"}]
[346,"AMERICAN PIPE AND SUPPLY,CLOW/MCWANE, GRIFFIN PIPE PRODUCTS CO.,U.S. PIPE","10X9'0 FLGXFLG EPOX DI SPL","EA",null,1,{"v":0,"d":"$0.00"}]
[347,"AMERICAN PIPE AND SUPPLY,CLOW/MCWANE, GRIFFIN PIPE PRODUCTS CO.,U.S. PIPE","10X10'0 FLGXFLG EPOX DI SPL","EA",null,1,{"v":0,"d":"$0.00"}]
[348,"AMERICAN PIPE AND SUPPLY,CLOW/MCWANE, GRIFFIN PIPE PRODUCTS CO.,U.S. PIPE","12X1'0 FLGXFLG EPOX DI SPL","EA",null,1,{"v":0,"d":"$0.00"}]
[349,"AMERICAN PIPE AND SUPPLY,CLOW/MCWANE, GRIFFIN PIPE PRODUCTS CO.,U.S. PIPE","12X2'0 FLGXFLG EPOX DI SPL","EA",null,1,{"v":0,"d":"$0.00"}]
[350,"AMERICAN PIPE AND SUPPLY,CLOW/MCWANE, GRIFFIN PIPE PRODUCTS CO.,U.S. PIPE","12X3'0 FLGXFLG EPOX DI SPL","EA",null,1,{"v":0,"d":"$0.00"}]
[351,"AMERICAN PIPE AND SUPPLY,CLOW/MCWANE, GRIFFIN PIPE PRODUCTS CO.,U.S. PIPE","12X4'0 FLGXFLG EPOX DI SPL","EA",null,1,{"v":0,"d":"$0.00"}]
[352,"AMERICAN PIPE AND SUPPLY,CLOW/MCWANE, GRIFFIN PIPE PRODUCTS CO.,U.S. PIPE","12X5'0 FLGXFLG EPOX DI SPL","EA",null,1,{"v":0,"d":"$0.00"}]
[353,"AMERICAN PIPE AND SUPPLY,CLOW/MCWANE, GRIFFIN PIPE PRODUCTS CO.,U.S. PIPE","12X6'0 FLGXFLG EPOX DI SPL","EA",null,1,{"v":0,"d":"$0.00"}]
[354,"AMERICAN PIPE AND SUPPLY,CLOW/MCWANE, GRIFFIN PIPE PRODUCTS CO.,U.S. PIPE","12X7'0 FLGXFLG EPOX DI SPL","EA",null,1,{"v":0,"d":"$0.00"}]
[355,"AMERICAN PIPE AND SUPPLY,CLOW/MCWANE, GRIFFIN PIPE PRODUCTS CO.,U.S. PIPE","12X8'0 FLGXFLG EPOX DI SPL","EA",null,1,{"v":0,"d":"$0.00"}]
[356,"AMERICAN PIPE AND SUPPLY,CLOW/MCWANE, GRIFFIN PIPE PRODUCTS CO.,U.S. PIPE","12X9'0 FLGXFLG EPOX DI SPL","EA",null,1,{"v":0,"d":"$0.00"}]
[357,"AMERICAN PIPE AND SUPPLY,CLOW/MCWANE, GRIFFIN PIPE PRODUCTS CO.,U.S. PIPE","12X10'0 FLGXFLG EPOX DI SPL","EA",null,1,{"v":0,"d":"$0.00"}]
[358,"AMERICAN PIPE AND SUPPLY,CLOW/MCWANE, GRIFFIN PIPE PRODUCTS CO.,U.S. PIPE","24X2'0 FLGXFLG CL BT DI SPL","EA",null,1,{"v":0,"d":"$0.00"}]
[359,"AMERICAN PIPE AND SUPPLY,CLOW/MCWANE, GRIFFIN PIPE PRODUCTS CO.,U.S. PIPE","20X6'0  FLGXPE EPOX DI SPL","EA",null,1,{"v":0,"d":"$0.00"}]
[360,"AMERICAN PIPE AND SUPPLY,CLOW/MCWANE, GRIFFIN PIPE PRODUCTS CO.,U.S. PIPE","16X1'0 FLGXFLG CL BT DI SPL","EA",null,1,{"v":0,"d":"$0.00"}]
[361,"AMERICAN PIPE AND SUPPLY,CLOW/MCWANE, GRIFFIN PIPE PRODUCTS CO.,U.S. PIPE","16X4'0 FLGXFLG CL BT DI SPL","EA",null,1,{"v":0,"d":"$0.00"}]
[362,"AMERICAN PIPE AND SUPPLY,CLOW/MCWANE, GRIFFIN PIPE PRODUCTS CO.,U.S. PIPE","20X10'0 FLGXPE EPOX DI SPL","EA",null,1,{"v":0,"d":"$0.00"}]
[363,"AMERICAN PIPE AND SUPPLY,CLOW/MCWANE, GRIFFIN PIPE PRODUCTS CO.,U.S. PIPE","12X12FT 0 FLGXPE CL BT DI SPL","EA",null,1,{"v":0,"d":"$0.00"}]
[364,"AMERICAN PIPE AND SUPPLY,CLOW/MCWANE, GRIFFIN PIPE PRODUCTS CO.,U.S. PIPE","20X2'0  FLGXFLG EPOX DI SPL","EA",null,1,{"v":0,"d":"$0.00"}]
[365,"AMERICAN PIPE AND SUPPLY,CLOW/MCWANE, GRIFFIN PIPE PRODUCTS CO.,U.S. PIPE","4X12'0 FLGXPE CL BT DI SPL","EA",null,1,{"v":0,"d":"$0.00"}]
[366,"AMERICAN PIPE AND SUPPLY,CLOW/MCWANE, GRIFFIN PIPE PRODUCTS CO.,U.S. PIPE","3X11'0 FLGXPE CL BT DI SPL","EA",null,1,{"v":0,"d":"$0.00"}]
[367,"AMERICAN PIPE AND SUPPLY,CLOW/MCWANE, GRIFFIN PIPE PRODUCTS CO.,U.S. PIPE","4X13'0 FLGXPE CL BT DI SPL","EA",null,1,{"v":0,"d":"$0.00"}]
[368,"AMERICAN PIPE AND SUPPLY,CLOW/MCWANE, GRIFFIN PIPE PRODUCTS CO.,U.S. PIPE","3X1FT 6IN FLGXFLG CL BT DI SPL","EA",null,1,{"v":0,"d":"$0.00"}]
[369,"AMERICAN PIPE AND SUPPLY,CLOW/MCWANE, GRIFFIN PIPE PRODUCTS CO.,U.S. PIPE","18X7FT FLGXPE CL BT DI SPL","EA",null,1,{"v":0,"d":"$0.00"}]
[370,"AMERICAN PIPE AND SUPPLY,CLOW/MCWANE, GRIFFIN PIPE PRODUCTS CO.,U.S. PIPE","18X2FT FLGXFLG CL BT DI SPL","EA",null,1,{"v":0,"d":"$0.00"}]
[371,"AMERICAN PIPE AND SUPPLY,CLOW/MCWANE, GRIFFIN PIPE PRODUCTS CO.,U.S. PIPE","8X12'0 FLGXPE CL BT DI SPL","EA",null,1,{"v":0,"d":"$0.00"}]
[372,"AMERICAN PIPE AND SUPPLY,CLOW/MCWANE, GRIFFIN PIPE PRODUCTS CO.,U.S. PIPE","18X3FT FLGXFLG CL BT DI SPL","EA",null,1,{"v":0,"d":"$0.00"}]
[373,"AMERICAN PIPE AND SUPPLY,CLOW/MCWANE, GRIFFIN PIPE PRODUCTS CO.,U.S. PIPE","16X11FT FLGXFLG CL BT DI SPL","EA",null,1,{"v":0,"d":"$0.00"}]
[374,"AMERICAN PIPE AND SUPPLY,CLOW/MCWANE, GRIFFIN PIPE PRODUCTS CO.,U.S. PIPE","18X5FT FLGXPE CL BT DI SPL","EA",null,1,{"v":0,"d":"$0.00"}]
[375,"MUNI-BALL","4 TEST BALL","EA",null,1,{"v":0,"d":"$0.00"}]
[376,"MUNI-BALL","6 TEST BALL","EA",null,1,{"v":0,"d":"$0.00"}]
[377,"MUNI-BALL","8 TEST BALL","EA",null,1,{"v":0,"d":"$0.00"}]
[378,"MUNI-BALL","10 TEST BALL","EA",null,1,{"v":0,"d":"$0.00"}]
[379,"MUNI-BALL","12 TEST BALL","EA",null,1,{"v":0,"d":"$0.00"}]
[380,"MUNI-BALL","12 - 18 TEST BALL","EA",null,1,{"v":0,"d":"$0.00"}]
[381,"MUNI-BALL","3 TEST BALL","EA",null,1,{"v":0,"d":"$0.00"}]
[382,"MUNI-BALL","20 FT EXT HOSE ASSY","EA",null,5,{"v":0,"d":"$0.00"}]
[383,"DIAMOND PLASTICS,ETI PIPE,FREEDOM PLASTIC,JM MANUFACTURING,NATIONAL PIPE,NORTH AMERICAN PIPE, CHARLOTTE, SILVER LINE","1/2 PVC S40 SXF ADPT","EA",null,5,{"v":0,"d":"$0.00"}]
[384,"DIAMOND PLASTICS,ETI PIPE,FREEDOM PLASTIC,JM MANUFACTURING,NATIONAL PIPE,NORTH AMERICAN PIPE, CHARLOTTE, SILVER LINE","3/4X1 PVC S80 MXS ADPT","EA",null,30,{"v":0,"d":"$0.00"}]
[385,"DIAMOND PLASTICS,ETI PIPE,FREEDOM PLASTIC,JM MANUFACTURING,NATIONAL PIPE,NORTH AMERICAN PIPE, CHARLOTTE, SILVER LINE","1X1-1/4 PVC S80 MXS ADPT","EA",null,30,{"v":0,"d":"$0.00"}]
[386,"DIAMOND PLASTICS,ETI PIPE,FREEDOM PLASTIC,JM MANUFACTURING,NATIONAL PIPE,NORTH AMERICAN PIPE, CHARLOTTE, SILVER LINE","3/4 PVC S80 SXF ADPT","EA",null,1000,{"$f":"SUM(E392*F392)","v":{"v":0,"d":"$0.00"}}]
[387,"DIAMOND PLASTICS,ETI PIPE,FREEDOM PLASTIC,JM MANUFACTURING,NATIONAL PIPE,NORTH AMERICAN PIPE, CHARLOTTE, SILVER LINE","1-1/4 PVC S80 SXF ADPT","EA",null,20,{"v":0,"d":"$0.00"}]
[388,"DIAMOND PLASTICS,ETI PIPE,FREEDOM PLASTIC,JM MANUFACTURING,NATIONAL PIPE,NORTH AMERICAN PIPE, CHARLOTTE, SILVER LINE","1-1/2 PVC S80 SXF ADPT","EA",null,20,{"v":0,"d":"$0.00"}]
[389,"DIAMOND PLASTICS,ETI PIPE,FREEDOM PLASTIC,JM MANUFACTURING,NATIONAL PIPE,NORTH AMERICAN PIPE, CHARLOTTE, SILVER LINE","2 PVC S80 SXF ADPT","EA",null,20,{"v":0,"d":"$0.00"}]
[390,"DIAMOND PLASTICS,ETI PIPE,FREEDOM PLASTIC,JM MANUFACTURING,NATIONAL PIPE,NORTH AMERICAN PIPE, CHARLOTTE, SILVER LINE","2-1/2 PVC S80 SXF ADPT","EA",null,1,{"v":0,"d":"$0.00"}]
[391,"DIAMOND PLASTICS,ETI PIPE,FREEDOM PLASTIC,JM MANUFACTURING,NATIONAL PIPE,NORTH AMERICAN PIPE, CHARLOTTE, SILVER LINE","1/2 PVC S40 SXM ADPT","EA",null,5,{"v":0,"d":"$0.00"}]
[392,"DIAMOND PLASTICS,ETI PIPE,FREEDOM PLASTIC,JM MANUFACTURING,NATIONAL PIPE,NORTH AMERICAN PIPE, CHARLOTTE, SILVER LINE","3/4 PVC S80 SXM ADPT","EA",null,1000,{"v":0,"d":"$0.00"}]
[393,"DIAMOND PLASTICS,ETI PIPE,FREEDOM PLASTIC,JM MANUFACTURING,NATIONAL PIPE,NORTH AMERICAN PIPE, CHARLOTTE, SILVER LINE","1 PVC S80 SXM ADPT","EA",null,50,{"v":0,"d":"$0.00"}]
[394,"DIAMOND PLASTICS,ETI PIPE,FREEDOM PLASTIC,JM MANUFACTURING,NATIONAL PIPE,NORTH AMERICAN PIPE, CHARLOTTE, SILVER LINE","1-1/4 PVC S80 SXM ADPT","EA",null,20,{"v":0,"d":"$0.00"}]
[395,"DIAMOND PLASTICS,ETI PIPE,FREEDOM PLASTIC,JM MANUFACTURING,NATIONAL PIPE,NORTH AMERICAN PIPE, CHARLOTTE, SILVER LINE","1-1/2 PVC S80 SXM ADPT","EA",null,20,{"v":0,"d":"$0.00"}]
[396,"DIAMOND PLASTICS,ETI PIPE,FREEDOM PLASTIC,JM MANUFACTURING,NATIONAL PIPE,NORTH AMERICAN PIPE, CHARLOTTE, SILVER LINE","2 PVC S80 SXM ADPT","EA",null,20,{"v":0,"d":"$0.00"}]
[397,"DIAMOND PLASTICS,ETI PIPE,FREEDOM PLASTIC,JM MANUFACTURING,NATIONAL PIPE,NORTH AMERICAN PIPE, CHARLOTTE, SILVER LINE","2-1/2 PVC S80 SXM ADPT","EA",null,20,{"v":0,"d":"$0.00"}]
[398,"DIAMOND PLASTICS,ETI PIPE,FREEDOM PLASTIC,JM MANUFACTURING,NATIONAL PIPE,NORTH AMERICAN PIPE, CHARLOTTE, SILVER LINE","3 PVC S40 SXM ADPT","EA",null,20,{"v":0,"d":"$0.00"}]
[399,"DIAMOND PLASTICS,ETI PIPE,FREEDOM PLASTIC,JM MANUFACTURING,NATIONAL PIPE,NORTH AMERICAN PIPE, CHARLOTTE, SILVER LINE","4 PVC S40 SXM ADPT","EA",null,20,{"v":0,"d":"$0.00"}]
[400,"DIAMOND PLASTICS,ETI PIPE,FREEDOM PLASTIC,JM MANUFACTURING,NATIONAL PIPE,NORTH AMERICAN PIPE, CHARLOTTE, SILVER LINE","6 PVC S40 SXM ADPT","EA",null,5,{"v":0,"d":"$0.00"}]
[401,"DIAMOND PLASTICS,ETI PIPE,FREEDOM PLASTIC,JM MANUFACTURING,NATIONAL PIPE,NORTH AMERICAN PIPE, CHARLOTTE, SILVER LINE","8 PVC S40 SXM ADPT","EA",null,1,{"v":0,"d":"$0.00"}]
[402,"DIAMOND PLASTICS,ETI PIPE,FREEDOM PLASTIC,JM MANUFACTURING,NATIONAL PIPE,NORTH AMERICAN PIPE, CHARLOTTE, SILVER LINE","1/2 PVC S80 SXF ADPT","EA",null,1,{"v":0,"d":"$0.00"}]
[403,"DIAMOND PLASTICS,ETI PIPE,FREEDOM PLASTIC,JM MANUFACTURING,NATIONAL PIPE,NORTH AMERICAN PIPE, CHARLOTTE, SILVER LINE","1 PVC S80 SXF ADPT","EA",null,20,{"v":0,"d":"$0.00"}]
[404,"DIAMOND PLASTICS,ETI PIPE,FREEDOM PLASTIC,JM MANUFACTURING,NATIONAL PIPE,NORTH AMERICAN PIPE, CHARLOTTE, SILVER LINE","8X6 PVC S40 SXS BUSH","EA",null,1,{"v":0,"d":"$0.00"}]
[405,"DIAMOND PLASTICS,ETI PIPE,FREEDOM PLASTIC,JM MANUFACTURING,NATIONAL PIPE,NORTH AMERICAN PIPE, CHARLOTTE, SILVER LINE","8X4 PVC S40 SXS BUSH","EA",null,1,{"v":0,"d":"$0.00"}]
[406,"DIAMOND PLASTICS,ETI PIPE,FREEDOM PLASTIC,JM MANUFACTURING,NATIONAL PIPE,NORTH AMERICAN PIPE, CHARLOTTE, SILVER LINE","6X4 PVC S40 SXS BUSH","EA",null,1,{"v":0,"d":"$0.00"}]
[407,"DIAMOND PLASTICS,ETI PIPE,FREEDOM PLASTIC,JM MANUFACTURING,NATIONAL PIPE,NORTH AMERICAN PIPE, CHARLOTTE, SILVER LINE","6X3 PVC S40 SXS BUSH","EA",null,1,{"v":0,"d":"$0.00"}]
[408,"DIAMOND PLASTICS,ETI PIPE,FREEDOM PLASTIC,JM MANUFACTURING,NATIONAL PIPE,NORTH AMERICAN PIPE, CHARLOTTE, SILVER LINE","4X3 PVC S40 SXS BUSH","EA",null,1,{"v":0,"d":"$0.00"}]
[409,"DIAMOND PLASTICS,ETI PIPE,FREEDOM PLASTIC,JM MANUFACTURING,NATIONAL PIPE,NORTH AMERICAN PIPE, CHARLOTTE, SILVER LINE","4X2-1/2 PVC S40 SXS BUSH","EA",null,1,{"v":0,"d":"$0.00"}]
[410,"DIAMOND PLASTICS,ETI PIPE,FREEDOM PLASTIC,JM MANUFACTURING,NATIONAL PIPE,NORTH AMERICAN PIPE, CHARLOTTE, SILVER LINE","4X2 PVC S40 SXS BUSH","EA",null,1,{"v":0,"d":"$0.00"}]
[411,"DIAMOND PLASTICS,ETI PIPE,FREEDOM PLASTIC,JM MANUFACTURING,NATIONAL PIPE,NORTH AMERICAN PIPE, CHARLOTTE, SILVER LINE","3X2-1/2 PVC S40 SXS BUSH","EA",null,1,{"v":0,"d":"$0.00"}]
[412,"DIAMOND PLASTICS,ETI PIPE,FREEDOM PLASTIC,JM MANUFACTURING,NATIONAL PIPE,NORTH AMERICAN PIPE, CHARLOTTE, SILVER LINE","3X2 PVC S40 SXS BUSH","EA",null,1,{"v":0,"d":"$0.00"}]
[413,"DIAMOND PLASTICS,ETI PIPE,FREEDOM PLASTIC,JM MANUFACTURING,NATIONAL PIPE,NORTH AMERICAN PIPE, CHARLOTTE, SILVER LINE","3X1-1/2 PVC S40 SXS BUSH","EA",null,1,{"v":0,"d":"$0.00"}]
[414,"DIAMOND PLASTICS,ETI PIPE,FREEDOM PLASTIC,JM MANUFACTURING,NATIONAL PIPE,NORTH AMERICAN PIPE, CHARLOTTE, SILVER LINE","3X1 PVC S40 SXS BUSH","EA",null,1,{"v":0,"d":"$0.00"}]
[415,"DIAMOND PLASTICS,ETI PIPE,FREEDOM PLASTIC,JM MANUFACTURING,NATIONAL PIPE,NORTH AMERICAN PIPE, CHARLOTTE, SILVER LINE","2-1/2X2 PVC S80 SXS BUSH","EA",null,1,{"v":0,"d":"$0.00"}]
[416,"DIAMOND PLASTICS,ETI PIPE,FREEDOM PLASTIC,JM MANUFACTURING,NATIONAL PIPE,NORTH AMERICAN PIPE, CHARLOTTE, SILVER LINE","2-1/2X1-1/2 PVC S80 SXS BUSH","EA",null,1,{"v":0,"d":"$0.00"}]
[417,"DIAMOND PLASTICS,ETI PIPE,FREEDOM PLASTIC,JM MANUFACTURING,NATIONAL PIPE,NORTH AMERICAN PIPE, CHARLOTTE, SILVER LINE","2-1/2X1-1/4 PVC S80 SXS BUSH","EA",null,1,{"v":0,"d":"$0.00"}]
[418,"DIAMOND PLASTICS,ETI PIPE,FREEDOM PLASTIC,JM MANUFACTURING,NATIONAL PIPE,NORTH AMERICAN PIPE, CHARLOTTE, SILVER LINE","2-1/2X1 PVC S80 SXS BUSH","EA",null,1,{"v":0,"d":"$0.00"}]
[419,"DIAMOND PLASTICS,ETI PIPE,FREEDOM PLASTIC,JM MANUFACTURING,NATIONAL PIPE,NORTH AMERICAN PIPE, CHARLOTTE, SILVER LINE","2X1-1/2 PVC S80 SXS BUSH","EA",null,10,{"v":0,"d":"$0.00"}]
[420,"DIAMOND PLASTICS,ETI PIPE,FREEDOM PLASTIC,JM MANUFACTURING,NATIONAL PIPE,NORTH AMERICAN PIPE, CHARLOTTE, SILVER LINE","2X1-1/4 PVC S80 SXS BUSH","EA",null,10,{"v":0,"d":"$0.00"}]
[421,"DIAMOND PLASTICS,ETI PIPE,FREEDOM PLASTIC,JM MANUFACTURING,NATIONAL PIPE,NORTH AMERICAN PIPE, CHARLOTTE, SILVER LINE","2X1 PVC S80 SXS BUSH","EA",null,10,{"v":0,"d":"$0.00"}]
[422,"DIAMOND PLASTICS,ETI PIPE,FREEDOM PLASTIC,JM MANUFACTURING,NATIONAL PIPE,NORTH AMERICAN PIPE, CHARLOTTE, SILVER LINE","2X3/4 PVC S80 SXS BUSH","EA",null,10,{"v":0,"d":"$0.00"}]
[423,"DIAMOND PLASTICS,ETI PIPE,FREEDOM PLASTIC,JM MANUFACTURING,NATIONAL PIPE,NORTH AMERICAN PIPE, CHARLOTTE, SILVER LINE","2X1/2 PVC S80 SXS BUSH","EA",null,1,{"v":0,"d":"$0.00"}]
[424,"DIAMOND PLASTICS,ETI PIPE,FREEDOM PLASTIC,JM MANUFACTURING,NATIONAL PIPE,NORTH AMERICAN PIPE, CHARLOTTE, SILVER LINE","1-1/2X1-1/4 PVC S80 SXS BUSH","EA",null,1,{"v":0,"d":"$0.00"}]
[425,"DIAMOND PLASTICS,ETI PIPE,FREEDOM PLASTIC,JM MANUFACTURING,NATIONAL PIPE,NORTH AMERICAN PIPE, CHARLOTTE, SILVER LINE","1-1/2X1 PVC S80 SXS BUSH","EA",null,10,{"v":0,"d":"$0.00"}]
[426,"DIAMOND PLASTICS,ETI PIPE,FREEDOM PLASTIC,JM MANUFACTURING,NATIONAL PIPE,NORTH AMERICAN PIPE, CHARLOTTE, SILVER LINE","1-1/2X3/4 PVC S80 SXS BUSH","EA",null,10,{"v":0,"d":"$0.00"}]
[427,"DIAMOND PLASTICS,ETI PIPE,FREEDOM PLASTIC,JM MANUFACTURING,NATIONAL PIPE,NORTH AMERICAN PIPE, CHARLOTTE, SILVER LINE","1-1/2X1/2 PVC S80 SXS BUSH","EA",null,1,{"v":0,"d":"$0.00"}]
[428,"DIAMOND PLASTICS,ETI PIPE,FREEDOM PLASTIC,JM MANUFACTURING,NATIONAL PIPE,NORTH AMERICAN PIPE, CHARLOTTE, SILVER LINE","1-1/4X1 PVC S80 SXS BUSH","EA",null,5,{"v":0,"d":"$0.00"}]
[429,"DIAMOND PLASTICS,ETI PIPE,FREEDOM PLASTIC,JM MANUFACTURING,NATIONAL PIPE,NORTH AMERICAN PIPE, CHARLOTTE, SILVER LINE","1-1/4X3/4 PVC S80 SXS BUSH","EA",null,5,{"v":0,"d":"$0.00"}]
[430,"DIAMOND PLASTICS,ETI PIPE,FREEDOM PLASTIC,JM MANUFACTURING,NATIONAL PIPE,NORTH AMERICAN PIPE, CHARLOTTE, SILVER LINE","1-1/4X1/2 PVC S80 SXS BUSH","EA",null,5,{"v":0,"d":"$0.00"}]
[431,"DIAMOND PLASTICS,ETI PIPE,FREEDOM PLASTIC,JM MANUFACTURING,NATIONAL PIPE,NORTH AMERICAN PIPE, CHARLOTTE, SILVER LINE","1X3/4 PVC S80 SXS BUSH","EA",null,25,{"v":0,"d":"$0.00"}]
[432,"DIAMOND PLASTICS,ETI PIPE,FREEDOM PLASTIC,JM MANUFACTURING,NATIONAL PIPE,NORTH AMERICAN PIPE, CHARLOTTE, SILVER LINE","1X1/2 PVC S80 SXS BUSH","EA",null,5,{"v":0,"d":"$0.00"}]
[433,"DIAMOND PLASTICS,ETI PIPE,FREEDOM PLASTIC,JM MANUFACTURING,NATIONAL PIPE,NORTH AMERICAN PIPE, CHARLOTTE, SILVER LINE","3/4X1/2 PVC S80 SXS BUSH","EA",null,5,{"v":0,"d":"$0.00"}]
[434,"DIAMOND PLASTICS,ETI PIPE,FREEDOM PLASTIC,JM MANUFACTURING,NATIONAL PIPE,NORTH AMERICAN PIPE, CHARLOTTE, SILVER LINE","3/4X1/4 PVC S80 SXS BUSH","EA",null,1,{"v":0,"d":"$0.00"}]
[435,"DIAMOND PLASTICS,ETI PIPE,FREEDOM PLASTIC,JM MANUFACTURING,NATIONAL PIPE,NORTH AMERICAN PIPE, CHARLOTTE, SILVER LINE","1/2X1/4 PVC S80 SXS BUSH","EA",null,1,{"v":0,"d":"$0.00"}]
[436,"DIAMOND PLASTICS,ETI PIPE,FREEDOM PLASTIC,JM MANUFACTURING,NATIONAL PIPE,NORTH AMERICAN PIPE, CHARLOTTE, SILVER LINE","4X3 PVC S40 SXF BUSH","EA",null,2,{"v":0,"d":"$0.00"}]
[437,"DIAMOND PLASTICS,ETI PIPE,FREEDOM PLASTIC,JM MANUFACTURING,NATIONAL PIPE,NORTH AMERICAN PIPE, CHARLOTTE, SILVER LINE","4X2 PVC S40 SXF BUSH","EA",null,2,{"v":0,"d":"$0.00"}]
[438,"DIAMOND PLASTICS,ETI PIPE,FREEDOM PLASTIC,JM MANUFACTURING,NATIONAL PIPE,NORTH AMERICAN PIPE, CHARLOTTE, SILVER LINE","3X2-1/2 PVC S40 SXF BUSH","EA",null,1,{"v":0,"d":"$0.00"}]
[439,"DIAMOND PLASTICS,ETI PIPE,FREEDOM PLASTIC,JM MANUFACTURING,NATIONAL PIPE,NORTH AMERICAN PIPE, CHARLOTTE, SILVER LINE","3X2 PVC S40 SXF BUSH","EA",null,1,{"v":0,"d":"$0.00"}]
[440,"DIAMOND PLASTICS,ETI PIPE,FREEDOM PLASTIC,JM MANUFACTURING,NATIONAL PIPE,NORTH AMERICAN PIPE, CHARLOTTE, SILVER LINE","3X1-1/2 PVC S40 SXF BUSH","EA",null,1,{"v":0,"d":"$0.00"}]
[441,"DIAMOND PLASTICS,ETI PIPE,FREEDOM PLASTIC,JM MANUFACTURING,NATIONAL PIPE,NORTH AMERICAN PIPE, CHARLOTTE, SILVER LINE","3X1 PVC S40 SXF BUSH","EA",null,1,{"v":0,"d":"$0.00"}]
[442,"DIAMOND PLASTICS,ETI PIPE,FREEDOM PLASTIC,JM MANUFACTURING,NATIONAL PIPE,NORTH AMERICAN PIPE, CHARLOTTE, SILVER LINE","3X3/4 PVC S40 SXF BUSH","EA",null,1,{"v":0,"d":"$0.00"}]
[443,"DIAMOND PLASTICS,ETI PIPE,FREEDOM PLASTIC,JM MANUFACTURING,NATIONAL PIPE,NORTH AMERICAN PIPE, CHARLOTTE, SILVER LINE","2-1/2X2 PVC S80 SXF BUSH","EA",null,1,{"v":0,"d":"$0.00"}]
[444,"DIAMOND PLASTICS,ETI PIPE,FREEDOM PLASTIC,JM MANUFACTURING,NATIONAL PIPE,NORTH AMERICAN PIPE, CHARLOTTE, SILVER LINE","2-1/2X1-1/2 PVC S80 SXF BUSH","EA",null,1,{"v":0,"d":"$0.00"}]
[445,"DIAMOND PLASTICS,ETI PIPE,FREEDOM PLASTIC,JM MANUFACTURING,NATIONAL PIPE,NORTH AMERICAN PIPE, CHARLOTTE, SILVER LINE","2X1-1/2 PVC S80 SXF BUSH","EA",null,5,{"v":0,"d":"$0.00"}]
[446,"DIAMOND PLASTICS,ETI PIPE,FREEDOM PLASTIC,JM MANUFACTURING,NATIONAL PIPE,NORTH AMERICAN PIPE, CHARLOTTE, SILVER LINE","2X1-1/4 PVC S80 SXF BUSH","EA",null,5,{"v":0,"d":"$0.00"}]
[447,"DIAMOND PLASTICS,ETI PIPE,FREEDOM PLASTIC,JM MANUFACTURING,NATIONAL PIPE,NORTH AMERICAN PIPE, CHARLOTTE, SILVER LINE","2X1 PVC S80 SXF BUSH","EA",null,10,{"v":0,"d":"$0.00"}]
[448,"DIAMOND PLASTICS,ETI PIPE,FREEDOM PLASTIC,JM MANUFACTURING,NATIONAL PIPE,NORTH AMERICAN PIPE, CHARLOTTE, SILVER LINE","2X3/4 PVC S80 SXF BUSH","EA",null,10,{"v":0,"d":"$0.00"}]
[449,"DIAMOND PLASTICS,ETI PIPE,FREEDOM PLASTIC,JM MANUFACTURING,NATIONAL PIPE,NORTH AMERICAN PIPE, CHARLOTTE, SILVER LINE","2X1/2 PVC S80 SXF BUSH","EA",null,1,{"v":0,"d":"$0.00"}]
[450,"DIAMOND PLASTICS,ETI PIPE,FREEDOM PLASTIC,JM MANUFACTURING,NATIONAL PIPE,NORTH AMERICAN PIPE, CHARLOTTE, SILVER LINE","1-1/2X1-1/4 PVC S80 SXF BUSH","EA",null,5,{"$f":"SUM(E456*F456)","v":{"v":0,"d":"$0.00"}}]
[451,"DIAMOND PLASTICS,ETI PIPE,FREEDOM PLASTIC,JM MANUFACTURING,NATIONAL PIPE,NORTH AMERICAN PIPE, CHARLOTTE, SILVER LINE","1-1/2X1 PVC S80 SXF BUSH","EA",null,10,{"v":0,"d":"$0.00"}]
[452,"DIAMOND PLASTICS,ETI PIPE,FREEDOM PLASTIC,JM MANUFACTURING,NATIONAL PIPE,NORTH AMERICAN PIPE, CHARLOTTE, SILVER LINE","1-1/2X3/4 PVC S80 SXF BUSH","EA",null,10,{"v":0,"d":"$0.00"}]
[453,"DIAMOND PLASTICS,ETI PIPE,FREEDOM PLASTIC,JM MANUFACTURING,NATIONAL PIPE,NORTH AMERICAN PIPE, CHARLOTTE, SILVER LINE","1-1/2X1/2 PVC S80 SXF BUSH","EA",null,1,{"v":0,"d":"$0.00"}]
[454,"DIAMOND PLASTICS,ETI PIPE,FREEDOM PLASTIC,JM MANUFACTURING,NATIONAL PIPE,NORTH AMERICAN PIPE, CHARLOTTE, SILVER LINE","1-1/4X1 PVC S80 SXF BUSH","EA",null,1,{"v":0,"d":"$0.00"}]
[455,"DIAMOND PLASTICS,ETI PIPE,FREEDOM PLASTIC,JM MANUFACTURING,NATIONAL PIPE,NORTH AMERICAN PIPE, CHARLOTTE, SILVER LINE","1-1/4X3/4 PVC S80 SXF BUSH","EA",null,1,{"v":0,"d":"$0.00"}]
[456,"DIAMOND PLASTICS,ETI PIPE,FREEDOM PLASTIC,JM MANUFACTURING,NATIONAL PIPE,NORTH AMERICAN PIPE, CHARLOTTE, SILVER LINE","1X3/4 PVC S80 SXF BUSH","EA",null,100,{"v":0,"d":"$0.00"}]
[457,"DIAMOND PLASTICS,ETI PIPE,FREEDOM PLASTIC,JM MANUFACTURING,NATIONAL PIPE,NORTH AMERICAN PIPE, CHARLOTTE, SILVER LINE","1X1/2 PVC S80 SXF BUSH","EA",null,1,{"v":0,"d":"$0.00"}]
[458,"DIAMOND PLASTICS,ETI PIPE,FREEDOM PLASTIC,JM MANUFACTURING,NATIONAL PIPE,NORTH AMERICAN PIPE, CHARLOTTE, SILVER LINE","3/4X1/2 PVC S80 SXF BUSH","EA",null,5,{"v":0,"d":"$0.00"}]
[459,"DIAMOND PLASTICS,ETI PIPE,FREEDOM PLASTIC,JM MANUFACTURING,NATIONAL PIPE,NORTH AMERICAN PIPE, CHARLOTTE, SILVER LINE","3/4X1/4 PVC S80 SXF BUSH","EA",null,1,{"v":0,"d":"$0.00"}]
[460,"DIAMOND PLASTICS,ETI PIPE,FREEDOM PLASTIC,JM MANUFACTURING,NATIONAL PIPE,NORTH AMERICAN PIPE, CHARLOTTE, SILVER LINE","1/2X1/4 PVC S80 SXF BUSH","EA",null,1,{"v":0,"d":"$0.00"}]
[461,"DIAMOND PLASTICS,ETI PIPE,FREEDOM PLASTIC,JM MANUFACTURING,NATIONAL PIPE,NORTH AMERICAN PIPE, CHARLOTTE, SILVER LINE","4X2 PVC S40 THRD BUSH TXT","EA",null,2,{"v":0,"d":"$0.00"}]
[462,"DIAMOND PLASTICS,ETI PIPE,FREEDOM PLASTIC,JM MANUFACTURING,NATIONAL PIPE,NORTH AMERICAN PIPE, CHARLOTTE, SILVER LINE","3X2-1/2 PVC S40 THRD BUSH","EA",null,1,{"v":0,"d":"$0.00"}]
[463,"DIAMOND PLASTICS,ETI PIPE,FREEDOM PLASTIC,JM MANUFACTURING,NATIONAL PIPE,NORTH AMERICAN PIPE, CHARLOTTE, SILVER LINE","3X2 PVC S40 THRD BUSH","EA",null,1,{"v":0,"d":"$0.00"}]
[464,"DIAMOND PLASTICS,ETI PIPE,FREEDOM PLASTIC,JM MANUFACTURING,NATIONAL PIPE,NORTH AMERICAN PIPE, CHARLOTTE, SILVER LINE","3X1-1/2 PVC S40 THRD BUSH","EA",null,1,{"v":0,"d":"$0.00"}]
[465,"DIAMOND PLASTICS,ETI PIPE,FREEDOM PLASTIC,JM MANUFACTURING,NATIONAL PIPE,NORTH AMERICAN PIPE, CHARLOTTE, SILVER LINE","2-1/2X2 PVC S80 THRD BUSH","EA",null,1,{"v":0,"d":"$0.00"}]
[466,"DIAMOND PLASTICS,ETI PIPE,FREEDOM PLASTIC,JM MANUFACTURING,NATIONAL PIPE,NORTH AMERICAN PIPE, CHARLOTTE, SILVER LINE","2X1-1/2 PVC S80 THRD BUSH","EA",null,10,{"v":0,"d":"$0.00"}]
[467,"DIAMOND PLASTICS,ETI PIPE,FREEDOM PLASTIC,JM MANUFACTURING,NATIONAL PIPE,NORTH AMERICAN PIPE, CHARLOTTE, SILVER LINE","2X1-1/4 PVC S80 THRD BUSH","EA",null,5,{"v":0,"d":"$0.00"}]
[468,"DIAMOND PLASTICS,ETI PIPE,FREEDOM PLASTIC,JM MANUFACTURING,NATIONAL PIPE,NORTH AMERICAN PIPE, CHARLOTTE, SILVER LINE","2X1 PVC S80 THRD BUSH","EA",null,10,{"v":0,"d":"$0.00"}]
[469,"DIAMOND PLASTICS,ETI PIPE,FREEDOM PLASTIC,JM MANUFACTURING,NATIONAL PIPE,NORTH AMERICAN PIPE, CHARLOTTE, SILVER LINE","2X3/4 PVC S80 THRD BUSH","EA",null,10,{"v":0,"d":"$0.00"}]
[470,"DIAMOND PLASTICS,ETI PIPE,FREEDOM PLASTIC,JM MANUFACTURING,NATIONAL PIPE,NORTH AMERICAN PIPE, CHARLOTTE, SILVER LINE","2X1/2 PVC S80 THRD BUSH","EA",null,1,{"v":0,"d":"$0.00"}]
[471,"DIAMOND PLASTICS,ETI PIPE,FREEDOM PLASTIC,JM MANUFACTURING,NATIONAL PIPE,NORTH AMERICAN PIPE, CHARLOTTE, SILVER LINE","1-1/2X1-1/4 PVC S80 THRD BUSH","EA",null,1,{"v":0,"d":"$0.00"}]
[472,"DIAMOND PLASTICS,ETI PIPE,FREEDOM PLASTIC,JM MANUFACTURING,NATIONAL PIPE,NORTH AMERICAN PIPE, CHARLOTTE, SILVER LINE","1-1/2X1 PVC S80 THRD BUSH","EA",null,5,{"v":0,"d":"$0.00"}]
[473,"DIAMOND PLASTICS,ETI PIPE,FREEDOM PLASTIC,JM MANUFACTURING,NATIONAL PIPE,NORTH AMERICAN PIPE, CHARLOTTE, SILVER LINE","1-1/2X3/4 PVC S80 THRD BUSH","EA",null,10,{"v":0,"d":"$0.00"}]
[474,"DIAMOND PLASTICS,ETI PIPE,FREEDOM PLASTIC,JM MANUFACTURING,NATIONAL PIPE,NORTH AMERICAN PIPE, CHARLOTTE, SILVER LINE","1-1/4X1 PVC S80 THRD BUSH","EA",null,1,{"v":0,"d":"$0.00"}]
[475,"DIAMOND PLASTICS,ETI PIPE,FREEDOM PLASTIC,JM MANUFACTURING,NATIONAL PIPE,NORTH AMERICAN PIPE, CHARLOTTE, SILVER LINE","1-1/4X3/4 PVC S80 THRD BUSH","EA",null,1,{"v":0,"d":"$0.00"}]
[476,"DIAMOND PLASTICS,ETI PIPE,FREEDOM PLASTIC,JM MANUFACTURING,NATIONAL PIPE,NORTH AMERICAN PIPE, CHARLOTTE, SILVER LINE","1X3/4 PVC S80 THRD BUSH","EA",null,5,{"v":0,"d":"$0.00"}]
[477,"DIAMOND PLASTICS,ETI PIPE,FREEDOM PLASTIC,JM MANUFACTURING,NATIONAL PIPE,NORTH AMERICAN PIPE, CHARLOTTE, SILVER LINE","1X1/2 PVC S80 THRD BUSH","EA",null,5,{"v":0,"d":"$0.00"}]
[478,"DIAMOND PLASTICS,ETI PIPE,FREEDOM PLASTIC,JM MANUFACTURING,NATIONAL PIPE,NORTH AMERICAN PIPE, CHARLOTTE, SILVER LINE","3/4X1/2 PVC S80 THRD BUSH","EA",null,1,{"v":0,"d":"$0.00"}]
[479,"DIAMOND PLASTICS,ETI PIPE,FREEDOM PLASTIC,JM MANUFACTURING,NATIONAL PIPE,NORTH AMERICAN PIPE, CHARLOTTE, SILVER LINE","3/4X1/4 PVC S80 THRD BUSH","EA",null,1,{"v":0,"d":"$0.00"}]
[480,"DIAMOND PLASTICS,ETI PIPE,FREEDOM PLASTIC,JM MANUFACTURING,NATIONAL PIPE,NORTH AMERICAN PIPE, CHARLOTTE, SILVER LINE","1/2X1/4 PVC S80 THRD BUSH","EA",null,1,{"v":0,"d":"$0.00"}]
[481,"DIAMOND PLASTICS,ETI PIPE,FREEDOM PLASTIC,JM MANUFACTURING,NATIONAL PIPE,NORTH AMERICAN PIPE, CHARLOTTE, SILVER LINE","6X2 PVC S40 SXS BUSH","EA",null,1,{"v":0,"d":"$0.00"}]
[482,"DIAMOND PLASTICS,ETI PIPE,FREEDOM PLASTIC,JM MANUFACTURING,NATIONAL PIPE,NORTH AMERICAN PIPE, CHARLOTTE, SILVER LINE","1/2 PVC S40 SOC CAP","EA",null,5,{"v":0,"d":"$0.00"}]
[483,"DIAMOND PLASTICS,ETI PIPE,FREEDOM PLASTIC,JM MANUFACTURING,NATIONAL PIPE,NORTH AMERICAN PIPE, CHARLOTTE, SILVER LINE","3 PVC S40 SOC CAP","EA",null,5,{"v":0,"d":"$0.00"}]
[484,"DIAMOND PLASTICS,ETI PIPE,FREEDOM PLASTIC,JM MANUFACTURING,NATIONAL PIPE,NORTH AMERICAN PIPE, CHARLOTTE, SILVER LINE","4 PVC S40 SOC CAP","EA",null,5,{"v":0,"d":"$0.00"}]
[485,"DIAMOND PLASTICS,ETI PIPE,FREEDOM PLASTIC,JM MANUFACTURING,NATIONAL PIPE,NORTH AMERICAN PIPE, CHARLOTTE, SILVER LINE","6 PVC S40 SOC CAP","EA",null,5,{"v":0,"d":"$0.00"}]
[486,"DIAMOND PLASTICS,ETI PIPE,FREEDOM PLASTIC,JM MANUFACTURING,NATIONAL PIPE,NORTH AMERICAN PIPE, CHARLOTTE, SILVER LINE","8 PVC S40 SOC CAP","EA",null,5,{"v":0,"d":"$0.00"}]
[487,"DIAMOND PLASTICS,ETI PIPE,FREEDOM PLASTIC,JM MANUFACTURING,NATIONAL PIPE,NORTH AMERICAN PIPE, CHARLOTTE, SILVER LINE","10 PVC S40 SOC CAP","EA",null,1,{"v":0,"d":"$0.00"}]
[488,"DIAMOND PLASTICS,ETI PIPE,FREEDOM PLASTIC,JM MANUFACTURING,NATIONAL PIPE,NORTH AMERICAN PIPE, CHARLOTTE, SILVER LINE","1/2 PVC S40 THRD CAP","EA",null,5,{"v":0,"d":"$0.00"}]
[489,"DIAMOND PLASTICS,ETI PIPE,FREEDOM PLASTIC,JM MANUFACTURING,NATIONAL PIPE,NORTH AMERICAN PIPE, CHARLOTTE, SILVER LINE","3 PVC S40 THRD CAP","EA",null,1,{"v":0,"d":"$0.00"}]
[490,"DIAMOND PLASTICS,ETI PIPE,FREEDOM PLASTIC,JM MANUFACTURING,NATIONAL PIPE,NORTH AMERICAN PIPE, CHARLOTTE, SILVER LINE","4 PVC S40 THRD CAP","EA",null,1,{"v":0,"d":"$0.00"}]
[491,"DIAMOND PLASTICS,ETI PIPE,FREEDOM PLASTIC,JM MANUFACTURING,NATIONAL PIPE,NORTH AMERICAN PIPE, CHARLOTTE, SILVER LINE","6 PVC S40 THRD CAP","EA",null,1,{"v":0,"d":"$0.00"}]
[492,"DIAMOND PLASTICS,ETI PIPE,FREEDOM PLASTIC,JM MANUFACTURING,NATIONAL PIPE,NORTH AMERICAN PIPE, CHARLOTTE, SILVER LINE","3/4 PVC S80 SOC CAP","EA",null,5,{"v":0,"d":"$0.00"}]
[493,"DIAMOND PLASTICS,ETI PIPE,FREEDOM PLASTIC,JM MANUFACTURING,NATIONAL PIPE,NORTH AMERICAN PIPE, CHARLOTTE, SILVER LINE","1 PVC S80 SOC CAP","EA",null,5,{"v":0,"d":"$0.00"}]
[494,"DIAMOND PLASTICS,ETI PIPE,FREEDOM PLASTIC,JM MANUFACTURING,NATIONAL PIPE,NORTH AMERICAN PIPE, CHARLOTTE, SILVER LINE","1-1/4 PVC S80 SOC CAP","EA",null,5,{"v":0,"d":"$0.00"}]
[495,"DIAMOND PLASTICS,ETI PIPE,FREEDOM PLASTIC,JM MANUFACTURING,NATIONAL PIPE,NORTH AMERICAN PIPE, CHARLOTTE, SILVER LINE","1-1/2 PVC S80 SOC CAP","EA",null,5,{"v":0,"d":"$0.00"}]
[496,"DIAMOND PLASTICS,ETI PIPE,FREEDOM PLASTIC,JM MANUFACTURING,NATIONAL PIPE,NORTH AMERICAN PIPE, CHARLOTTE, SILVER LINE","2 PVC S80 SOC CAP","EA",null,5,{"v":0,"d":"$0.00"}]
[497,"DIAMOND PLASTICS,ETI PIPE,FREEDOM PLASTIC,JM MANUFACTURING,NATIONAL PIPE,NORTH AMERICAN PIPE, CHARLOTTE, SILVER LINE","2-1/2 PVC S80 SOC CAP","EA",null,1,{"v":0,"d":"$0.00"}]
[498,"DIAMOND PLASTICS,ETI PIPE,FREEDOM PLASTIC,JM MANUFACTURING,NATIONAL PIPE,NORTH AMERICAN PIPE, CHARLOTTE, SILVER LINE","3/4 PVC S80 THRD CAP","EA",null,5,{"v":0,"d":"$0.00"}]
[499,"DIAMOND PLASTICS,ETI PIPE,FREEDOM PLASTIC,JM MANUFACTURING,NATIONAL PIPE,NORTH AMERICAN PIPE, CHARLOTTE, SILVER LINE","1 PVC S80 THRD CAP","EA",null,5,{"v":0,"d":"$0.00"}]
[500,"DIAMOND PLASTICS,ETI PIPE,FREEDOM PLASTIC,JM MANUFACTURING,NATIONAL PIPE,NORTH AMERICAN PIPE, CHARLOTTE, SILVER LINE","1-1/4 PVC S80 THRD CAP","EA",null,1,{"v":0,"d":"$0.00"}]
[501,"DIAMOND PLASTICS,ETI PIPE,FREEDOM PLASTIC,JM MANUFACTURING,NATIONAL PIPE,NORTH AMERICAN PIPE, CHARLOTTE, SILVER LINE","1-1/2 PVC S80 THRD CAP","EA",null,5,{"v":0,"d":"$0.00"}]
[502,"DIAMOND PLASTICS,ETI PIPE,FREEDOM PLASTIC,JM MANUFACTURING,NATIONAL PIPE,NORTH AMERICAN PIPE, CHARLOTTE, SILVER LINE","2 PVC S80 THRD CAP","EA",null,5,{"v":0,"d":"$0.00"}]
[503,"DIAMOND PLASTICS,ETI PIPE,FREEDOM PLASTIC,JM MANUFACTURING,NATIONAL PIPE,NORTH AMERICAN PIPE, CHARLOTTE, SILVER LINE","2-1/2 PVC S80 THRD CAP","EA",null,1,{"v":0,"d":"$0.00"}]
[504,"DIAMOND PLASTICS,ETI PIPE,FREEDOM PLASTIC,JM MANUFACTURING,NATIONAL PIPE,NORTH AMERICAN PIPE, CHARLOTTE, SILVER LINE","1/2 PVC S40 SXS COUP","EA",null,10,{"v":0,"d":"$0.00"}]
[505,"DIAMOND PLASTICS,ETI PIPE,FREEDOM PLASTIC,JM MANUFACTURING,NATIONAL PIPE,NORTH AMERICAN PIPE, CHARLOTTE, SILVER LINE","3 PVC S40 SXS COUP","EA",null,10,{"v":0,"d":"$0.00"}]
[506,"DIAMOND PLASTICS,ETI PIPE,FREEDOM PLASTIC,JM MANUFACTURING,NATIONAL PIPE,NORTH AMERICAN PIPE, CHARLOTTE, SILVER LINE","4 PVC S40 SXS COUP","EA",null,50,{"v":0,"d":"$0.00"}]
[507,"DIAMOND PLASTICS,ETI PIPE,FREEDOM PLASTIC,JM MANUFACTURING,NATIONAL PIPE,NORTH AMERICAN PIPE, CHARLOTTE, SILVER LINE","6 PVC S40 SXS COUP","EA",null,10,{"v":0,"d":"$0.00"}]
[508,"DIAMOND PLASTICS,ETI PIPE,FREEDOM PLASTIC,JM MANUFACTURING,NATIONAL PIPE,NORTH AMERICAN PIPE, CHARLOTTE, SILVER LINE","8 PVC S40 SXS COUP","EA",null,5,{"v":0,"d":"$0.00"}]
[509,"DIAMOND PLASTICS,ETI PIPE,FREEDOM PLASTIC,JM MANUFACTURING,NATIONAL PIPE,NORTH AMERICAN PIPE, CHARLOTTE, SILVER LINE","1/2 PVC S40 THRD COUP","EA",null,5,{"v":0,"d":"$0.00"}]
[510,"DIAMOND PLASTICS,ETI PIPE,FREEDOM PLASTIC,JM MANUFACTURING,NATIONAL PIPE,NORTH AMERICAN PIPE, CHARLOTTE, SILVER LINE","3/4 PVC S80 SXS COUP","EA",null,700,{"v":0,"d":"$0.00"}]
[511,"DIAMOND PLASTICS,ETI PIPE,FREEDOM PLASTIC,JM MANUFACTURING,NATIONAL PIPE,NORTH AMERICAN PIPE, CHARLOTTE, SILVER LINE","1 PVC S80 SXS COUP","EA",null,200,{"v":0,"d":"$0.00"}]
[512,"DIAMOND PLASTICS,ETI PIPE,FREEDOM PLASTIC,JM MANUFACTURING,NATIONAL PIPE,NORTH AMERICAN PIPE, CHARLOTTE, SILVER LINE","1-1/4 PVC S80 SXS COUP","EA",null,20,{"v":0,"d":"$0.00"}]
[513,"DIAMOND PLASTICS,ETI PIPE,FREEDOM PLASTIC,JM MANUFACTURING,NATIONAL PIPE,NORTH AMERICAN PIPE, CHARLOTTE, SILVER LINE","1-1/2 PVC S80 SXS COUP","EA",null,20,{"v":0,"d":"$0.00"}]
[514,"DIAMOND PLASTICS,ETI PIPE,FREEDOM PLASTIC,JM MANUFACTURING,NATIONAL PIPE,NORTH AMERICAN PIPE, CHARLOTTE, SILVER LINE","2 PVC S80 SXS COUP","EA",null,50,{"$f":"SUM(E520*F520)","v":{"v":0,"d":"$0.00"}}]
[515,"DIAMOND PLASTICS,ETI PIPE,FREEDOM PLASTIC,JM MANUFACTURING,NATIONAL PIPE,NORTH AMERICAN PIPE, CHARLOTTE, SILVER LINE","2-1/2 PVC S80 SXS COUP","EA",null,1,{"v":0,"d":"$0.00"}]
[516,"DIAMOND PLASTICS,ETI PIPE,FREEDOM PLASTIC,JM MANUFACTURING,NATIONAL PIPE,NORTH AMERICAN PIPE, CHARLOTTE, SILVER LINE","3/4 PVC S80 THRD COUP","EA",null,20,{"v":0,"d":"$0.00"}]
[517,"DIAMOND PLASTICS,ETI PIPE,FREEDOM PLASTIC,JM MANUFACTURING,NATIONAL PIPE,NORTH AMERICAN PIPE, CHARLOTTE, SILVER LINE","1-1/4 PVC S80 THRD COUP","EA",null,1,{"v":0,"d":"$0.00"}]
[518,"DIAMOND PLASTICS,ETI PIPE,FREEDOM PLASTIC,JM MANUFACTURING,NATIONAL PIPE,NORTH AMERICAN PIPE, CHARLOTTE, SILVER LINE","1-1/2 PVC S80 THRD COUP","EA",null,20,{"v":0,"d":"$0.00"}]
[519,"DIAMOND PLASTICS,ETI PIPE,FREEDOM PLASTIC,JM MANUFACTURING,NATIONAL PIPE,NORTH AMERICAN PIPE, CHARLOTTE, SILVER LINE","2 PVC S80 THRD COUP","EA",null,20,{"v":0,"d":"$0.00"}]
[520,"DIAMOND PLASTICS,ETI PIPE,FREEDOM PLASTIC,JM MANUFACTURING,NATIONAL PIPE,NORTH AMERICAN PIPE, CHARLOTTE, SILVER LINE","2-1/2 PVC S80 THRD COUP","EA",null,1,{"v":0,"d":"$0.00"}]
[521,"DIAMOND PLASTICS,ETI PIPE,FREEDOM PLASTIC,JM MANUFACTURING,NATIONAL PIPE,NORTH AMERICAN PIPE, CHARLOTTE, SILVER LINE","3 PVC S80 THRD COUP","EA",null,10,{"v":0,"d":"$0.00"}]
[522,"DIAMOND PLASTICS,ETI PIPE,FREEDOM PLASTIC,JM MANUFACTURING,NATIONAL PIPE,NORTH AMERICAN PIPE, CHARLOTTE, SILVER LINE","4 PVC S80 THRD COUP","EA",null,10,{"v":0,"d":"$0.00"}]
[523,"DIAMOND PLASTICS,ETI PIPE,FREEDOM PLASTIC,JM MANUFACTURING,NATIONAL PIPE,NORTH AMERICAN PIPE, CHARLOTTE, SILVER LINE","1 PVC S80 THRD COUP","EA",null,10,{"v":0,"d":"$0.00"}]
[524,"DIAMOND PLASTICS,ETI PIPE,FREEDOM PLASTIC,JM MANUFACTURING,NATIONAL PIPE,NORTH AMERICAN PIPE, CHARLOTTE, SILVER LINE","1/2 PVC S40 SXS 45 ELL","EA",null,5,{"v":0,"d":"$0.00"}]
[525,"DIAMOND PLASTICS,ETI PIPE,FREEDOM PLASTIC,JM MANUFACTURING,NATIONAL PIPE,NORTH AMERICAN PIPE, CHARLOTTE, SILVER LINE","2-1/2 PVC S40 SXS 45 ELL","EA",null,1,{"v":0,"d":"$0.00"}]
[526,"DIAMOND PLASTICS,ETI PIPE,FREEDOM PLASTIC,JM MANUFACTURING,NATIONAL PIPE,NORTH AMERICAN PIPE, CHARLOTTE, SILVER LINE","3 PVC S40 SXS 45 ELL","EA",null,1,{"v":0,"d":"$0.00"}]
[527,"DIAMOND PLASTICS,ETI PIPE,FREEDOM PLASTIC,JM MANUFACTURING,NATIONAL PIPE,NORTH AMERICAN PIPE, CHARLOTTE, SILVER LINE","4 PVC S40 SXS 45 ELL","EA",null,1,{"v":0,"d":"$0.00"}]
[528,"DIAMOND PLASTICS,ETI PIPE,FREEDOM PLASTIC,JM MANUFACTURING,NATIONAL PIPE,NORTH AMERICAN PIPE, CHARLOTTE, SILVER LINE","6 PVC S40 SXS 45 ELL","EA",null,1,{"v":0,"d":"$0.00"}]
[529,"DIAMOND PLASTICS,ETI PIPE,FREEDOM PLASTIC,JM MANUFACTURING,NATIONAL PIPE,NORTH AMERICAN PIPE, CHARLOTTE, SILVER LINE","8 PVC S40 SXS 45 ELL","EA",null,1,{"v":0,"d":"$0.00"}]
[530,"DIAMOND PLASTICS,ETI PIPE,FREEDOM PLASTIC,JM MANUFACTURING,NATIONAL PIPE,NORTH AMERICAN PIPE, CHARLOTTE, SILVER LINE","1/2 PVC S40 SXS 90 ELL","EA",null,5,{"v":0,"d":"$0.00"}]
[531,"DIAMOND PLASTICS,ETI PIPE,FREEDOM PLASTIC,JM MANUFACTURING,NATIONAL PIPE,NORTH AMERICAN PIPE, CHARLOTTE, SILVER LINE","3 PVC S40 SXS 90 ELL","EA",null,1,{"v":0,"d":"$0.00"}]
[532,"DIAMOND PLASTICS,ETI PIPE,FREEDOM PLASTIC,JM MANUFACTURING,NATIONAL PIPE,NORTH AMERICAN PIPE, CHARLOTTE, SILVER LINE","4 PVC S40 SXS 90 ELL","EA",null,1,{"v":0,"d":"$0.00"}]
[533,"DIAMOND PLASTICS,ETI PIPE,FREEDOM PLASTIC,JM MANUFACTURING,NATIONAL PIPE,NORTH AMERICAN PIPE, CHARLOTTE, SILVER LINE","6 PVC S40 SXS 90 ELL","EA",null,1,{"v":0,"d":"$0.00"}]
[534,"DIAMOND PLASTICS,ETI PIPE,FREEDOM PLASTIC,JM MANUFACTURING,NATIONAL PIPE,NORTH AMERICAN PIPE, CHARLOTTE, SILVER LINE","8 PVC S40 SXS 90 ELL","EA",null,1,{"v":0,"d":"$0.00"}]
[535,"DIAMOND PLASTICS,ETI PIPE,FREEDOM PLASTIC,JM MANUFACTURING,NATIONAL PIPE,NORTH AMERICAN PIPE, CHARLOTTE, SILVER LINE","1/2 PVC S40 SXF 90 ELL","EA",null,5,{"v":0,"d":"$0.00"}]
[536,"DIAMOND PLASTICS,ETI PIPE,FREEDOM PLASTIC,JM MANUFACTURING,NATIONAL PIPE,NORTH AMERICAN PIPE, CHARLOTTE, SILVER LINE","1/2 PVC S40 SXM ST 90 ELL","EA",null,5,{"v":0,"d":"$0.00"}]
[537,"DIAMOND PLASTICS,ETI PIPE,FREEDOM PLASTIC,JM MANUFACTURING,NATIONAL PIPE,NORTH AMERICAN PIPE, CHARLOTTE, SILVER LINE","3/4 PVC S80 SXS 90 ELL","EA",null,1500,{"v":0,"d":"$0.00"}]
[538,"DIAMOND PLASTICS,ETI PIPE,FREEDOM PLASTIC,JM MANUFACTURING,NATIONAL PIPE,NORTH AMERICAN PIPE, CHARLOTTE, SILVER LINE","1 PVC S80 SXS 90 ELL","EA",null,200,{"v":0,"d":"$0.00"}]
[539,"DIAMOND PLASTICS,ETI PIPE,FREEDOM PLASTIC,JM MANUFACTURING,NATIONAL PIPE,NORTH AMERICAN PIPE, CHARLOTTE, SILVER LINE","1-1/4 PVC S80 SXS 90 ELL","EA",null,5,{"v":0,"d":"$0.00"}]
[540,"DIAMOND PLASTICS,ETI PIPE,FREEDOM PLASTIC,JM MANUFACTURING,NATIONAL PIPE,NORTH AMERICAN PIPE, CHARLOTTE, SILVER LINE","1-1/2 PVC S80 SXS 90 ELL","EA",null,10,{"v":0,"d":"$0.00"}]
[541,"DIAMOND PLASTICS,ETI PIPE,FREEDOM PLASTIC,JM MANUFACTURING,NATIONAL PIPE,NORTH AMERICAN PIPE, CHARLOTTE, SILVER LINE","2 PVC S80 SXS 90 ELL","EA",null,50,{"v":0,"d":"$0.00"}]
[542,"DIAMOND PLASTICS,ETI PIPE,FREEDOM PLASTIC,JM MANUFACTURING,NATIONAL PIPE,NORTH AMERICAN PIPE, CHARLOTTE, SILVER LINE","2-1/2 PVC S80 SXS 90 ELL","EA",null,1,{"v":0,"d":"$0.00"}]
[543,"DIAMOND PLASTICS,ETI PIPE,FREEDOM PLASTIC,JM MANUFACTURING,NATIONAL PIPE,NORTH AMERICAN PIPE, CHARLOTTE, SILVER LINE","3/4 PVC S80 SXS 45 ELL","EA",null,150,{"v":0,"d":"$0.00"}]
[544,"DIAMOND PLASTICS,ETI PIPE,FREEDOM PLASTIC,JM MANUFACTURING,NATIONAL PIPE,NORTH AMERICAN PIPE, CHARLOTTE, SILVER LINE","1 PVC S80 SXS 45 ELL","EA",null,20,{"v":0,"d":"$0.00"}]
[545,"DIAMOND PLASTICS,ETI PIPE,FREEDOM PLASTIC,JM MANUFACTURING,NATIONAL PIPE,NORTH AMERICAN PIPE, CHARLOTTE, SILVER LINE","1-1/4 PVC S80 SXS 45 ELL","EA",null,5,{"v":0,"d":"$0.00"}]
[546,"DIAMOND PLASTICS,ETI PIPE,FREEDOM PLASTIC,JM MANUFACTURING,NATIONAL PIPE,NORTH AMERICAN PIPE, CHARLOTTE, SILVER LINE","1-1/2 PVC S80 SXS 45 ELL","EA",null,20,{"v":0,"d":"$0.00"}]
[547,"DIAMOND PLASTICS,ETI PIPE,FREEDOM PLASTIC,JM MANUFACTURING,NATIONAL PIPE,NORTH AMERICAN PIPE, CHARLOTTE, SILVER LINE","2 PVC S80 SXS 45 ELL","EA",null,20,{"v":0,"d":"$0.00"}]
[548,"DIAMOND PLASTICS,ETI PIPE,FREEDOM PLASTIC,JM MANUFACTURING,NATIONAL PIPE,NORTH AMERICAN PIPE, CHARLOTTE, SILVER LINE","2-1/2 PVC S80 SXS 45 ELL","EA",null,1,{"v":0,"d":"$0.00"}]
[549,"DIAMOND PLASTICS,ETI PIPE,FREEDOM PLASTIC,JM MANUFACTURING,NATIONAL PIPE,NORTH AMERICAN PIPE, CHARLOTTE, SILVER LINE","3/4 PVC S80 THRD 90 ELL","EA",null,20,{"v":0,"d":"$0.00"}]
[550,"DIAMOND PLASTICS,ETI PIPE,FREEDOM PLASTIC,JM MANUFACTURING,NATIONAL PIPE,NORTH AMERICAN PIPE, CHARLOTTE, SILVER LINE","1 PVC S80 THRD 90 ELL","EA",null,20,{"v":0,"d":"$0.00"}]
[551,"DIAMOND PLASTICS,ETI PIPE,FREEDOM PLASTIC,JM MANUFACTURING,NATIONAL PIPE,NORTH AMERICAN PIPE, CHARLOTTE, SILVER LINE","1-1/4 PVC S80 THRD 90 ELL","EA",null,5,{"v":0,"d":"$0.00"}]
[552,"DIAMOND PLASTICS,ETI PIPE,FREEDOM PLASTIC,JM MANUFACTURING,NATIONAL PIPE,NORTH AMERICAN PIPE, CHARLOTTE, SILVER LINE","1-1/2 PVC S80 THRD 90 ELL","EA",null,20,{"v":0,"d":"$0.00"}]
[553,"DIAMOND PLASTICS,ETI PIPE,FREEDOM PLASTIC,JM MANUFACTURING,NATIONAL PIPE,NORTH AMERICAN PIPE, CHARLOTTE, SILVER LINE","2 PVC S80 THRD 90 ELL","EA",null,20,{"v":0,"d":"$0.00"}]
[554,"DIAMOND PLASTICS,ETI PIPE,FREEDOM PLASTIC,JM MANUFACTURING,NATIONAL PIPE,NORTH AMERICAN PIPE, CHARLOTTE, SILVER LINE","2-1/2 PVC S80 THRD 90 ELL","EA",null,1,{"v":0,"d":"$0.00"}]
[555,"DIAMOND PLASTICS,ETI PIPE,FREEDOM PLASTIC,JM MANUFACTURING,NATIONAL PIPE,NORTH AMERICAN PIPE, CHARLOTTE, SILVER LINE","3/4 PVC S80 THRD 45 ELL","EA",null,20,{"v":0,"d":"$0.00"}]
[556,"DIAMOND PLASTICS,ETI PIPE,FREEDOM PLASTIC,JM MANUFACTURING,NATIONAL PIPE,NORTH AMERICAN PIPE, CHARLOTTE, SILVER LINE","1 PVC S80 THRD 45 ELL","EA",null,20,{"v":0,"d":"$0.00"}]
[557,"DIAMOND PLASTICS,ETI PIPE,FREEDOM PLASTIC,JM MANUFACTURING,NATIONAL PIPE,NORTH AMERICAN PIPE, CHARLOTTE, SILVER LINE","1-1/4 PVC S80 THRD 45 ELL","EA",null,20,{"v":0,"d":"$0.00"}]
[558,"DIAMOND PLASTICS,ETI PIPE,FREEDOM PLASTIC,JM MANUFACTURING,NATIONAL PIPE,NORTH AMERICAN PIPE, CHARLOTTE, SILVER LINE","1-1/2 PVC S80 THRD 45 ELL","EA",null,20,{"v":0,"d":"$0.00"}]
[559,"DIAMOND PLASTICS,ETI PIPE,FREEDOM PLASTIC,JM MANUFACTURING,NATIONAL PIPE,NORTH AMERICAN PIPE, CHARLOTTE, SILVER LINE","2 PVC S80 THRD 45 ELL","EA",null,20,{"v":0,"d":"$0.00"}]
[560,"DIAMOND PLASTICS,ETI PIPE,FREEDOM PLASTIC,JM MANUFACTURING,NATIONAL PIPE,NORTH AMERICAN PIPE, CHARLOTTE, SILVER LINE","2-1/2 PVC S80 THRD 45 ELL","EA",null,20,{"v":0,"d":"$0.00"}]
[561,"DIAMOND PLASTICS,ETI PIPE,FREEDOM PLASTIC,JM MANUFACTURING,NATIONAL PIPE,NORTH AMERICAN PIPE, CHARLOTTE, SILVER LINE","3/4 PVC S80 SXF 90 ELL","EA",null,20,{"v":0,"d":"$0.00"}]
[562,"DIAMOND PLASTICS,ETI PIPE,FREEDOM PLASTIC,JM MANUFACTURING,NATIONAL PIPE,NORTH AMERICAN PIPE, CHARLOTTE, SILVER LINE","1 PVC S80 SXF 90 ELL","EA",null,20,{"v":0,"d":"$0.00"}]
[563,"DIAMOND PLASTICS,ETI PIPE,FREEDOM PLASTIC,JM MANUFACTURING,NATIONAL PIPE,NORTH AMERICAN PIPE, CHARLOTTE, SILVER LINE","1-1/4 PVC S80 SXF 90 ELL","EA",null,20,{"v":0,"d":"$0.00"}]
[564,"DIAMOND PLASTICS,ETI PIPE,FREEDOM PLASTIC,JM MANUFACTURING,NATIONAL PIPE,NORTH AMERICAN PIPE, CHARLOTTE, SILVER LINE","1-1/2 PVC S80 SXF 90 ELL","EA",null,20,{"v":0,"d":"$0.00"}]
[565,"DIAMOND PLASTICS,ETI PIPE,FREEDOM PLASTIC,JM MANUFACTURING,NATIONAL PIPE,NORTH AMERICAN PIPE, CHARLOTTE, SILVER LINE","2 PVC S80 SXF 90 ELL","EA",null,20,{"v":0,"d":"$0.00"}]
[566,"DIAMOND PLASTICS,ETI PIPE,FREEDOM PLASTIC,JM MANUFACTURING,NATIONAL PIPE,NORTH AMERICAN PIPE, CHARLOTTE, SILVER LINE","2 PVC S80 SPGT VAN STONE FLG","EA",null,1,{"v":0,"d":"$0.00"}]
[567,"DIAMOND PLASTICS,ETI PIPE,FREEDOM PLASTIC,JM MANUFACTURING,NATIONAL PIPE,NORTH AMERICAN PIPE, CHARLOTTE, SILVER LINE","2-1/2 PVC S80 VAN STONE SOC FLG","EA",null,1,{"v":0,"d":"$0.00"}]
[568,"DIAMOND PLASTICS,ETI PIPE,FREEDOM PLASTIC,JM MANUFACTURING,NATIONAL PIPE,NORTH AMERICAN PIPE, CHARLOTTE, SILVER LINE","3 PVC S80 VAN STONE SOC FLG","EA",null,1,{"v":0,"d":"$0.00"}]
[569,"DIAMOND PLASTICS,ETI PIPE,FREEDOM PLASTIC,JM MANUFACTURING,NATIONAL PIPE,NORTH AMERICAN PIPE, CHARLOTTE, SILVER LINE","4 PVC S80 VAN STONE SOC FLG","EA",null,1,{"v":0,"d":"$0.00"}]
[570,"DIAMOND PLASTICS,ETI PIPE,FREEDOM PLASTIC,JM MANUFACTURING,NATIONAL PIPE,NORTH AMERICAN PIPE, CHARLOTTE, SILVER LINE","4 PVC S80 SPGT VAN STONE FLG","EA",null,1,{"v":0,"d":"$0.00"}]
[571,"DIAMOND PLASTICS,ETI PIPE,FREEDOM PLASTIC,JM MANUFACTURING,NATIONAL PIPE,NORTH AMERICAN PIPE, CHARLOTTE, SILVER LINE","4 PVC S80 VAN STONE THRD FLG","EA",null,1,{"v":0,"d":"$0.00"}]
[572,"DIAMOND PLASTICS,ETI PIPE,FREEDOM PLASTIC,JM MANUFACTURING,NATIONAL PIPE,NORTH AMERICAN PIPE, CHARLOTTE, SILVER LINE","6 PVC S80 VAN STONE SOC FLG","EA",null,1,{"v":0,"d":"$0.00"}]
[573,"DIAMOND PLASTICS,ETI PIPE,FREEDOM PLASTIC,JM MANUFACTURING,NATIONAL PIPE,NORTH AMERICAN PIPE, CHARLOTTE, SILVER LINE","8 PVC S80 VAN STONE SOC FLG","EA",null,1,{"v":0,"d":"$0.00"}]
[574,"DIAMOND PLASTICS,ETI PIPE,FREEDOM PLASTIC,JM MANUFACTURING,NATIONAL PIPE,NORTH AMERICAN PIPE, CHARLOTTE, SILVER LINE","10 PVC S80 VAN STONE SOC FLG","EA",null,1,{"v":0,"d":"$0.00"}]
[575,"DIAMOND PLASTICS,ETI PIPE,FREEDOM PLASTIC,JM MANUFACTURING,NATIONAL PIPE,NORTH AMERICAN PIPE, CHARLOTTE, SILVER LINE","12 PVC S80 VAN STONE SOC FLG","EA",null,1,{"v":0,"d":"$0.00"}]
[576,"DIAMOND PLASTICS,ETI PIPE,FREEDOM PLASTIC,JM MANUFACTURING,NATIONAL PIPE,NORTH AMERICAN PIPE, CHARLOTTE, SILVER LINE","1 PVC S80 BLIND FLG","EA",null,1,{"v":0,"d":"$0.00"}]
[577,"DIAMOND PLASTICS,ETI PIPE,FREEDOM PLASTIC,JM MANUFACTURING,NATIONAL PIPE,NORTH AMERICAN PIPE, CHARLOTTE, SILVER LINE","2 PVC S80 WEBB BLIND FLG","EA",null,1,{"v":0,"d":"$0.00"}]
[578,"DIAMOND PLASTICS,ETI PIPE,FREEDOM PLASTIC,JM MANUFACTURING,NATIONAL PIPE,NORTH AMERICAN PIPE, CHARLOTTE, SILVER LINE","3 PVC S80 WEBB BLIND FLG","EA",null,1,{"$f":"SUM(E584*F584)","v":{"v":0,"d":"$0.00"}}]
[579,"DIAMOND PLASTICS,ETI PIPE,FREEDOM PLASTIC,JM MANUFACTURING,NATIONAL PIPE,NORTH AMERICAN PIPE, CHARLOTTE, SILVER LINE","4 PVC S80 WEBB BLIND FLG","EA",null,1,{"v":0,"d":"$0.00"}]
[580,"DIAMOND PLASTICS,ETI PIPE,FREEDOM PLASTIC,JM MANUFACTURING,NATIONAL PIPE,NORTH AMERICAN PIPE, CHARLOTTE, SILVER LINE","6 PVC S80 WEBB BLIND FLG","EA",null,1,{"v":0,"d":"$0.00"}]
[581,"DIAMOND PLASTICS,ETI PIPE,FREEDOM PLASTIC,JM MANUFACTURING,NATIONAL PIPE,NORTH AMERICAN PIPE, CHARLOTTE, SILVER LINE","8 PVC S80 BLIND FLG","EA",null,1,{"v":0,"d":"$0.00"}]
[582,"DIAMOND PLASTICS,ETI PIPE,FREEDOM PLASTIC,JM MANUFACTURING,NATIONAL PIPE,NORTH AMERICAN PIPE, CHARLOTTE, SILVER LINE","2 PVC S80 VAN STONE SOC FLG","EA",null,1,{"v":0,"d":"$0.00"}]
[583,"DIAMOND PLASTICS,ETI PIPE,FREEDOM PLASTIC,JM MANUFACTURING,NATIONAL PIPE,NORTH AMERICAN PIPE, CHARLOTTE, SILVER LINE","2 PVC S80 VAN STONE SOC FLG","EA",null,1,{"v":0,"d":"$0.00"}]
[584,"DIAMOND PLASTICS,ETI PIPE,FREEDOM PLASTIC,JM MANUFACTURING,NATIONAL PIPE,NORTH AMERICAN PIPE, CHARLOTTE, SILVER LINE","1 PVC S80 SXS CRS","EA",null,1,{"v":0,"d":"$0.00"}]
[585,"DIAMOND PLASTICS,ETI PIPE,FREEDOM PLASTIC,JM MANUFACTURING,NATIONAL PIPE,NORTH AMERICAN PIPE, CHARLOTTE, SILVER LINE","1-1/2 PVC S80 SXS CRS","EA",null,1,{"v":0,"d":"$0.00"}]
[586,"DIAMOND PLASTICS,ETI PIPE,FREEDOM PLASTIC,JM MANUFACTURING,NATIONAL PIPE,NORTH AMERICAN PIPE, CHARLOTTE, SILVER LINE","2 PVC S80 SXS CRS","EA",null,1,{"v":0,"d":"$0.00"}]
[587,"DIAMOND PLASTICS,ETI PIPE,FREEDOM PLASTIC,JM MANUFACTURING,NATIONAL PIPE,NORTH AMERICAN PIPE, CHARLOTTE, SILVER LINE","1/2 PVC S40 THRD PLUG","EA",null,1,{"v":0,"d":"$0.00"}]
[588,"DIAMOND PLASTICS,ETI PIPE,FREEDOM PLASTIC,JM MANUFACTURING,NATIONAL PIPE,NORTH AMERICAN PIPE, CHARLOTTE, SILVER LINE","3 PVC S40 THRD PLUG","EA",null,1,{"v":0,"d":"$0.00"}]
[589,"DIAMOND PLASTICS,ETI PIPE,FREEDOM PLASTIC,JM MANUFACTURING,NATIONAL PIPE,NORTH AMERICAN PIPE, CHARLOTTE, SILVER LINE","4 PVC S40 THRD PLUG","EA",null,1,{"v":0,"d":"$0.00"}]
[590,"DIAMOND PLASTICS,ETI PIPE,FREEDOM PLASTIC,JM MANUFACTURING,NATIONAL PIPE,NORTH AMERICAN PIPE, CHARLOTTE, SILVER LINE","3/4 PVC S80 THRD PLUG","EA",null,20,{"v":0,"d":"$0.00"}]
[591,"DIAMOND PLASTICS,ETI PIPE,FREEDOM PLASTIC,JM MANUFACTURING,NATIONAL PIPE,NORTH AMERICAN PIPE, CHARLOTTE, SILVER LINE","1 PVC S80 THRD PLUG","EA",null,10,{"v":0,"d":"$0.00"}]
[592,"DIAMOND PLASTICS,ETI PIPE,FREEDOM PLASTIC,JM MANUFACTURING,NATIONAL PIPE,NORTH AMERICAN PIPE, CHARLOTTE, SILVER LINE","1-1/4 PVC S80 THRD PLUG","EA",null,1,{"v":0,"d":"$0.00"}]
[593,"DIAMOND PLASTICS,ETI PIPE,FREEDOM PLASTIC,JM MANUFACTURING,NATIONAL PIPE,NORTH AMERICAN PIPE, CHARLOTTE, SILVER LINE","1-1/2 PVC S80 THRD PLUG","EA",null,10,{"v":0,"d":"$0.00"}]
[594,"DIAMOND PLASTICS,ETI PIPE,FREEDOM PLASTIC,JM MANUFACTURING,NATIONAL PIPE,NORTH AMERICAN PIPE, CHARLOTTE, SILVER LINE","2 PVC S80 THRD PLUG","EA",null,10,{"v":0,"d":"$0.00"}]
[595,"DIAMOND PLASTICS,ETI PIPE,FREEDOM PLASTIC,JM MANUFACTURING,NATIONAL PIPE,NORTH AMERICAN PIPE, CHARLOTTE, SILVER LINE","2-1/2 PVC S80 THRD PLUG","EA",null,1,{"v":0,"d":"$0.00"}]
[596,"DIAMOND PLASTICS,ETI PIPE,FREEDOM PLASTIC,JM MANUFACTURING,NATIONAL PIPE,NORTH AMERICAN PIPE, CHARLOTTE, SILVER LINE","1/2 PVC S40 SXSXS TEE","EA",null,10,{"v":0,"d":"$0.00"}]
[597,"DIAMOND PLASTICS,ETI PIPE,FREEDOM PLASTIC,JM MANUFACTURING,NATIONAL PIPE,NORTH AMERICAN PIPE, CHARLOTTE, SILVER LINE","3 PVC S40 SXSXS TEE","EA",null,1,{"v":0,"d":"$0.00"}]
[598,"DIAMOND PLASTICS,ETI PIPE,FREEDOM PLASTIC,JM MANUFACTURING,NATIONAL PIPE,NORTH AMERICAN PIPE, CHARLOTTE, SILVER LINE","4 PVC S40 SXSXS TEE","EA",null,1,{"v":0,"d":"$0.00"}]
[599,"DIAMOND PLASTICS,ETI PIPE,FREEDOM PLASTIC,JM MANUFACTURING,NATIONAL PIPE,NORTH AMERICAN PIPE, CHARLOTTE, SILVER LINE","6 PVC S40 SXSXS TEE","EA",null,1,{"v":0,"d":"$0.00"}]
[600,"DIAMOND PLASTICS,ETI PIPE,FREEDOM PLASTIC,JM MANUFACTURING,NATIONAL PIPE,NORTH AMERICAN PIPE, CHARLOTTE, SILVER LINE","8 PVC S40 SXSXS TEE","EA",null,1,{"v":0,"d":"$0.00"}]
[601,"DIAMOND PLASTICS,ETI PIPE,FREEDOM PLASTIC,JM MANUFACTURING,NATIONAL PIPE,NORTH AMERICAN PIPE, CHARLOTTE, SILVER LINE","10 PVC S40 SXSXS TEE","EA",null,1,{"v":0,"d":"$0.00"}]
[602,"DIAMOND PLASTICS,ETI PIPE,FREEDOM PLASTIC,JM MANUFACTURING,NATIONAL PIPE,NORTH AMERICAN PIPE, CHARLOTTE, SILVER LINE","12 PVC S40 SXSXS TEE","EA",null,1,{"v":0,"d":"$0.00"}]
[603,"DIAMOND PLASTICS,ETI PIPE,FREEDOM PLASTIC,JM MANUFACTURING,NATIONAL PIPE,NORTH AMERICAN PIPE, CHARLOTTE, SILVER LINE","1/2 PVC S40 SXSXF TEE","EA",null,10,{"v":0,"d":"$0.00"}]
[604,"DIAMOND PLASTICS,ETI PIPE,FREEDOM PLASTIC,JM MANUFACTURING,NATIONAL PIPE,NORTH AMERICAN PIPE, CHARLOTTE, SILVER LINE","3/4 PVC S80 SXSXS TEE","EA",null,50,{"v":0,"d":"$0.00"}]
[605,"DIAMOND PLASTICS,ETI PIPE,FREEDOM PLASTIC,JM MANUFACTURING,NATIONAL PIPE,NORTH AMERICAN PIPE, CHARLOTTE, SILVER LINE","1 PVC S80 SXSXS TEE","EA",null,20,{"v":0,"d":"$0.00"}]
[606,"DIAMOND PLASTICS,ETI PIPE,FREEDOM PLASTIC,JM MANUFACTURING,NATIONAL PIPE,NORTH AMERICAN PIPE, CHARLOTTE, SILVER LINE","1-1/4 PVC S80 SXSXS TEE","EA",null,1,{"v":0,"d":"$0.00"}]
[607,"DIAMOND PLASTICS,ETI PIPE,FREEDOM PLASTIC,JM MANUFACTURING,NATIONAL PIPE,NORTH AMERICAN PIPE, CHARLOTTE, SILVER LINE","1-1/2 PVC S80 SXSXS TEE","EA",null,20,{"v":0,"d":"$0.00"}]
[608,"DIAMOND PLASTICS,ETI PIPE,FREEDOM PLASTIC,JM MANUFACTURING,NATIONAL PIPE,NORTH AMERICAN PIPE, CHARLOTTE, SILVER LINE","2 PVC S80 SXSXS TEE","EA",null,20,{"v":0,"d":"$0.00"}]
[609,"DIAMOND PLASTICS,ETI PIPE,FREEDOM PLASTIC,JM MANUFACTURING,NATIONAL PIPE,NORTH AMERICAN PIPE, CHARLOTTE, SILVER LINE","2-1/2 PVC S80 SXSXS TEE","EA",null,1,{"v":0,"d":"$0.00"}]
[610,"DIAMOND PLASTICS,ETI PIPE,FREEDOM PLASTIC,JM MANUFACTURING,NATIONAL PIPE,NORTH AMERICAN PIPE, CHARLOTTE, SILVER LINE","3/4 PVC S80 THRD TEE","EA",null,20,{"v":0,"d":"$0.00"}]
[611,"DIAMOND PLASTICS,ETI PIPE,FREEDOM PLASTIC,JM MANUFACTURING,NATIONAL PIPE,NORTH AMERICAN PIPE, CHARLOTTE, SILVER LINE","1 PVC S80 THRD TEE","EA",null,20,{"v":0,"d":"$0.00"}]
[612,"DIAMOND PLASTICS,ETI PIPE,FREEDOM PLASTIC,JM MANUFACTURING,NATIONAL PIPE,NORTH AMERICAN PIPE, CHARLOTTE, SILVER LINE","1-1/4 PVC S80 THRD TEE","EA",null,1,{"v":0,"d":"$0.00"}]
[613,"DIAMOND PLASTICS,ETI PIPE,FREEDOM PLASTIC,JM MANUFACTURING,NATIONAL PIPE,NORTH AMERICAN PIPE, CHARLOTTE, SILVER LINE","1-1/2 PVC S80 THRD TEE","EA",null,20,{"v":0,"d":"$0.00"}]
[614,"DIAMOND PLASTICS,ETI PIPE,FREEDOM PLASTIC,JM MANUFACTURING,NATIONAL PIPE,NORTH AMERICAN PIPE, CHARLOTTE, SILVER LINE","2 PVC S80 THRD TEE","EA",null,20,{"v":0,"d":"$0.00"}]
[615,"DIAMOND PLASTICS,ETI PIPE,FREEDOM PLASTIC,JM MANUFACTURING,NATIONAL PIPE,NORTH AMERICAN PIPE, CHARLOTTE, SILVER LINE","2-1/2 PVC S80 THRD TEE","EA",null,1,{"v":0,"d":"$0.00"}]
[616,"DIAMOND PLASTICS,ETI PIPE,FREEDOM PLASTIC,JM MANUFACTURING,NATIONAL PIPE,NORTH AMERICAN PIPE, CHARLOTTE, SILVER LINE","1/2 PVC S80 THRD EPDM UNION","EA",null,1,{"v":0,"d":"$0.00"}]
[617,"DIAMOND PLASTICS,ETI PIPE,FREEDOM PLASTIC,JM MANUFACTURING,NATIONAL PIPE,NORTH AMERICAN PIPE, CHARLOTTE, SILVER LINE","3/4 PVC S80 THRD EPDM UNION","EA",null,10,{"v":0,"d":"$0.00"}]
[618,"DIAMOND PLASTICS,ETI PIPE,FREEDOM PLASTIC,JM MANUFACTURING,NATIONAL PIPE,NORTH AMERICAN PIPE, CHARLOTTE, SILVER LINE","1 PVC S80 THRD EPDM UNION","EA",null,5,{"v":0,"d":"$0.00"}]
[619,"DIAMOND PLASTICS,ETI PIPE,FREEDOM PLASTIC,JM MANUFACTURING,NATIONAL PIPE,NORTH AMERICAN PIPE, CHARLOTTE, SILVER LINE","1-1/4 PVC S80 THRD EPDM UNION","EA",null,1,{"v":0,"d":"$0.00"}]
[620,"DIAMOND PLASTICS,ETI PIPE,FREEDOM PLASTIC,JM MANUFACTURING,NATIONAL PIPE,NORTH AMERICAN PIPE, CHARLOTTE, SILVER LINE","1-1/2 PVC S80 THRD EPDM UNION","EA",null,5,{"v":0,"d":"$0.00"}]
[621,"DIAMOND PLASTICS,ETI PIPE,FREEDOM PLASTIC,JM MANUFACTURING,NATIONAL PIPE,NORTH AMERICAN PIPE, CHARLOTTE, SILVER LINE","2 PVC S80 THRD EPDM UNION","EA",null,5,{"v":0,"d":"$0.00"}]
[622,"DIAMOND PLASTICS,ETI PIPE,FREEDOM PLASTIC,JM MANUFACTURING,NATIONAL PIPE,NORTH AMERICAN PIPE, CHARLOTTE, SILVER LINE","1/2 PVC S80 SXS UNION EPDM","EA",null,1,{"v":0,"d":"$0.00"}]
[623,"DIAMOND PLASTICS,ETI PIPE,FREEDOM PLASTIC,JM MANUFACTURING,NATIONAL PIPE,NORTH AMERICAN PIPE, CHARLOTTE, SILVER LINE","3/4 PVC S80 SXS UNION EPDM","EA",null,10,{"v":0,"d":"$0.00"}]
[624,"DIAMOND PLASTICS,ETI PIPE,FREEDOM PLASTIC,JM MANUFACTURING,NATIONAL PIPE,NORTH AMERICAN PIPE, CHARLOTTE, SILVER LINE","1 PVC S80 SXS UNION EPDM","EA",null,5,{"v":0,"d":"$0.00"}]
[625,"DIAMOND PLASTICS,ETI PIPE,FREEDOM PLASTIC,JM MANUFACTURING,NATIONAL PIPE,NORTH AMERICAN PIPE, CHARLOTTE, SILVER LINE","1-1/4 PVC S80 SXS UNION EPDM","EA",null,1,{"v":0,"d":"$0.00"}]
[626,"DIAMOND PLASTICS,ETI PIPE,FREEDOM PLASTIC,JM MANUFACTURING,NATIONAL PIPE,NORTH AMERICAN PIPE, CHARLOTTE, SILVER LINE","1-1/2 PVC S80 SXS UNION EPDM","EA",null,5,{"v":0,"d":"$0.00"}]
[627,"DIAMOND PLASTICS,ETI PIPE,FREEDOM PLASTIC,JM MANUFACTURING,NATIONAL PIPE,NORTH AMERICAN PIPE, CHARLOTTE, SILVER LINE","2 PVC S80 SXS UNION EPDM","EA",null,5,{"v":0,"d":"$0.00"}]
[628,"DIAMOND PLASTICS,ETI PIPE,FREEDOM PLASTIC,JM MANUFACTURING,NATIONAL PIPE,NORTH AMERICAN PIPE, CHARLOTTE, SILVER LINE","2-1/2 PVC S80 SXS UNION EPDM","EA",null,1,{"v":0,"d":"$0.00"}]
[629,"DIAMOND PLASTICS,ETI PIPE,FREEDOM PLASTIC,JM MANUFACTURING,NATIONAL PIPE,NORTH AMERICAN PIPE, CHARLOTTE, SILVER LINE","2 PVC S80 SXSXS WYE","EA",null,1,{"v":0,"d":"$0.00"}]
[630,"DIAMOND PLASTICS,ETI PIPE,FREEDOM PLASTIC,JM MANUFACTURING,NATIONAL PIPE,NORTH AMERICAN PIPE, CHARLOTTE, SILVER LINE","1/4 PVC S80 THRD TEE","EA",null,1,{"v":0,"d":"$0.00"}]
[631,"DIAMOND PLASTICS,ETI PIPE,FREEDOM PLASTIC,JM MANUFACTURING,NATIONAL PIPE,NORTH AMERICAN PIPE, CHARLOTTE, SILVER LINE","1/4 PVC S80 THRD 90 ELL","EA",null,1,{"v":0,"d":"$0.00"}]
[632,"DIAMOND PLASTICS,ETI PIPE,FREEDOM PLASTIC,JM MANUFACTURING,NATIONAL PIPE,NORTH AMERICAN PIPE, CHARLOTTE, SILVER LINE","1 PVC S80 VAN STONE SOC FLG","EA",null,1,{"v":0,"d":"$0.00"}]
[633,"DIAMOND PLASTICS,ETI PIPE,FREEDOM PLASTIC,JM MANUFACTURING,NATIONAL PIPE,NORTH AMERICAN PIPE, CHARLOTTE, SILVER LINE","1-1/2 PVC S80 VAN STONE SOC FLG","EA",null,1,{"v":0,"d":"$0.00"}]
[634,"DIAMOND PLASTICS,ETI PIPE,FREEDOM PLASTIC,JM MANUFACTURING,NATIONAL PIPE,NORTH AMERICAN PIPE, CHARLOTTE, SILVER LINE","3 PVC S80 VAN STONE THRD FLG","EA",null,1,{"v":0,"d":"$0.00"}]
[635,"DIAMOND PLASTICS,ETI PIPE,FREEDOM PLASTIC,JM MANUFACTURING,NATIONAL PIPE,NORTH AMERICAN PIPE, CHARLOTTE, SILVER LINE","3X1-1/4 PVC S40 SXS BUSH","EA",null,1,{"v":0,"d":"$0.00"}]
[636,"DIAMOND PLASTICS,ETI PIPE,FREEDOM PLASTIC,JM MANUFACTURING,NATIONAL PIPE,NORTH AMERICAN PIPE, CHARLOTTE, SILVER LINE","1-1/2 PVC S80 SLIP FIX COUP","EA",null,10,{"v":0,"d":"$0.00"}]
[637,"DIAMOND PLASTICS,ETI PIPE,FREEDOM PLASTIC,JM MANUFACTURING,NATIONAL PIPE,NORTH AMERICAN PIPE, CHARLOTTE, SILVER LINE","3 PVC S40 SXSXS WYE","EA",null,1,{"v":0,"d":"$0.00"}]
[638,"DIAMOND PLASTICS,ETI PIPE,FREEDOM PLASTIC,JM MANUFACTURING,NATIONAL PIPE,NORTH AMERICAN PIPE, CHARLOTTE, SILVER LINE","4 PVC S40 SXSXS WYE","EA",null,1,{"v":0,"d":"$0.00"}]
[639,"DIAMOND PLASTICS,ETI PIPE,FREEDOM PLASTIC,JM MANUFACTURING,NATIONAL PIPE,NORTH AMERICAN PIPE, CHARLOTTE, SILVER LINE","2 PVC S80 SLIP FIX COUP","EA",null,10,{"v":0,"d":"$0.00"}]
[640,"DIAMOND PLASTICS,ETI PIPE,FREEDOM PLASTIC,JM MANUFACTURING,NATIONAL PIPE,NORTH AMERICAN PIPE, CHARLOTTE, SILVER LINE","2 PVC S80 SXS VITON UNION","EA",null,1,{"v":0,"d":"$0.00"}]
[641,"DIAMOND PLASTICS,ETI PIPE,FREEDOM PLASTIC,JM MANUFACTURING,NATIONAL PIPE,NORTH AMERICAN PIPE, CHARLOTTE, SILVER LINE","1-1/2 PVC S80 SXS VITON UNION","EA",null,1,{"v":0,"d":"$0.00"}]
[642,"DIAMOND PLASTICS,ETI PIPE,FREEDOM PLASTIC,JM MANUFACTURING,NATIONAL PIPE,NORTH AMERICAN PIPE, CHARLOTTE, SILVER LINE","1 PVC S80 SXS VITON UNION","EA",null,1,{"$f":"SUM(E648*F648)","v":{"v":0,"d":"$0.00"}}]
[643,"CLOW, DEZURIK-SERIES 100, HENRY PRATT,KENNEDY,M7H,VAL-MATIC SERIES 1500","4 FLG PLUG VLV EPOX LINED 3 WAY ","EA",null,1,{"v":0,"d":"$0.00"}]
[644,"CLOW, DEZURIK-SERIES 100, HENRY PRATT,KENNEDY,M7H,VAL-MATIC SERIES 1500","6 FLG PLUG VLV EPOX LINED 3 WAY ","EA",null,1,{"v":0,"d":"$0.00"}]
[645,"CLOW, DEZURIK-SERIES 100, HENRY PRATT,KENNEDY,M7H,VAL-MATIC SERIES 1500","8 CI FLG 3 WAY N/LUBE PLUG VLV ","EA",null,1,{"v":0,"d":"$0.00"}]
[646,"CLOW, DEZURIK-SERIES 100, HENRY PRATT,KENNEDY,M7H,VAL-MATIC SERIES 1500","4 PEF FLG PV E/L NUT 304 SS HDWR","EA",null,1,{"v":0,"d":"$0.00"}]
[647,"CLOW, DEZURIK-SERIES 100, HENRY PRATT,KENNEDY,M7H,VAL-MATIC SERIES 1500","6 PEF FLG PV E/L NUT 304 SS HDWR","EA",null,1,{"v":0,"d":"$0.00"}]
[648,"CLOW, DEZURIK-SERIES 100, HENRY PRATT,KENNEDY,M7H,VAL-MATIC SERIES 1500","8 PEF FLG PV E/L GSHW 304 SS HDWR","EA",null,1,{"v":0,"d":"$0.00"}]
[649,"CLOW, DEZURIK-SERIES 100, HENRY PRATT,KENNEDY,M7H,VAL-MATIC SERIES 1500","10 PEF FLG PV E/L GSHW 304 SS HDWR","EA",null,1,{"v":0,"d":"$0.00"}]
[650,"CLOW, DEZURIK-SERIES 100, HENRY PRATT,KENNEDY,M7H,VAL-MATIC SERIES 1500","12 PEF FLG PV E/L GSHW 304 SS HDWR","EA",null,1,{"v":0,"d":"$0.00"}]
[651,"CLOW, DEZURIK-SERIES 100, HENRY PRATT,KENNEDY,M7H,VAL-MATIC SERIES 1500","16 PEF FLG PV E/L GSHW 304 SS HDWR","EA",null,1,{"v":0,"d":"$0.00"}]
[652,"CLOW, DEZURIK-SERIES 100, HENRY PRATT,KENNEDY,M7H,VAL-MATIC SERIES 1500","18 PEF FLG PV E/L GSHW 304 SS HDWR","EA",null,1,{"v":0,"d":"$0.00"}]
[653,"CLOW, DEZURIK-SERIES 100, HENRY PRATT,KENNEDY,M7H,VAL-MATIC SERIES 1500","20 PEF FLG PV E/L GSHW 304 SS HDWR","EA",null,1,{"v":0,"d":"$0.00"}]
[654,"CLOW, DEZURIK-SERIES 100, HENRY PRATT,KENNEDY,M7H,VAL-MATIC SERIES 1500","24 PEF FLG PV E/L GSHW 304 SS HDWR","EA",null,1,{"v":0,"d":"$0.00"}]
[655,"CLOW, DEZURIK-SERIES 100, HENRY PRATT,KENNEDY,M7H,VAL-MATIC SERIES 1500","24   MJ N/LUBE PLUG W/GEAR VLV L/A","EA",null,1,{"v":0,"d":"$0.00"}]
[656,"CLOW, DEZURIK-SERIES 100, HENRY PRATT,KENNEDY,M7H,VAL-MATIC SERIES 1500","16 PEF MJ PV E/L GBNT 304 SS HDWR","EA",null,1,{"v":0,"d":"$0.00"}]
[657,"CLOW, DEZURIK-SERIES 100, HENRY PRATT,KENNEDY,M7H,VAL-MATIC SERIES 1500","6 PEF FLG PV E/L GSHW 304 SS HDWR","EA",null,1,{"v":0,"d":"$0.00"}]
[658,"CLOW, DEZURIK-SERIES 100, HENRY PRATT,KENNEDY,M7H,VAL-MATIC SERIES 1500","10 PEF MJ PV E/L GBNT 304 SS HDWR","EA",null,1,{"v":0,"d":"$0.00"}]
[659,"CLOW, DEZURIK-SERIES 100, HENRY PRATT,KENNEDY,M7H,VAL-MATIC SERIES 1500","8 PEF MJ PV E/L GBNT 304 SS HDWR","EA",null,1,{"v":0,"d":"$0.00"}]
[660,"CLOW, DEZURIK-SERIES 100, HENRY PRATT,KENNEDY,M7H,VAL-MATIC SERIES 1500","6 PEF MJ PV E/L GBNT 304 SS HDWR","EA",null,1,{"v":0,"d":"$0.00"}]
[661,"CLOW, DEZURIK-SERIES 100, HENRY PRATT,KENNEDY,M7H,VAL-MATIC SERIES 1500","4 PEF MJ PV E/L NUT 304 SS HDWR","EA",null,1,{"v":0,"d":"$0.00"}]
[662,"DIXON OR EQUIVALENT","2 ALUM MALE ADPT","EA",null,1,{"v":0,"d":"$0.00"}]
[663,"DIXON OR EQUIVALENT","2 ALUM MALE ADPT X FEM NPT","EA",null,1,{"v":0,"d":"$0.00"}]
[664,"DIXON OR EQUIVALENT","3 ALUM MALE ADPT","EA",null,1,{"v":0,"d":"$0.00"}]
[665,"DIXON OR EQUIVALENT","3 ALUM MALE ADPT X FEM NPT","EA",null,1,{"v":0,"d":"$0.00"}]
[666,"DIXON OR EQUIVALENT","4 ALUM MALE ADPT X MPT","EA",null,1,{"v":0,"d":"$0.00"}]
[667,"DIXON OR EQUIVALENT","4 ALUM MALE ADPT X FEM NPT","EA",null,1,{"v":0,"d":"$0.00"}]
[668,"DIXON OR EQUIVALENT","3 BR MALE ADPT","EA",null,1,{"v":0,"d":"$0.00"}]
[669,"DIXON OR EQUIVALENT","4 BR MALE ADPT","EA",null,1,{"v":0,"d":"$0.00"}]
[670,"DIXON OR EQUIVALENT","2 SS MALE ADPT","EA",null,1,{"v":0,"d":"$0.00"}]
[671,"DIXON OR EQUIVALENT","2 SS GBL FNPT ADPT TYPE A","EA",null,1,{"v":0,"d":"$0.00"}]
[672,"DIXON OR EQUIVALENT","3 SS GBL MNPT ADPT TYPE F","EA",null,1,{"v":0,"d":"$0.00"}]
[673,"DIXON OR EQUIVALENT","4 SS MALE ADPT X MPT TYPE F ADPT","EA",null,1,{"v":0,"d":"$0.00"}]
[674,"DIXON OR EQUIVALENT","4 SS GBL FNPT ADPT TYPE A","EA",null,1,{"v":0,"d":"$0.00"}]
[675,"DIXON OR EQUIVALENT","2 ALUM DUST CAP","EA",null,1,{"v":0,"d":"$0.00"}]
[676,"DIXON OR EQUIVALENT","3 ALUM DUST CAP","EA",null,1,{"v":0,"d":"$0.00"}]
[677,"DIXON OR EQUIVALENT","4 ALUM DUST CAP","EA",null,1,{"v":0,"d":"$0.00"}]
[678,"DIXON OR EQUIVALENT","2 SS DUST CAP","EA",null,1,{"v":0,"d":"$0.00"}]
[679,"DIXON OR EQUIVALENT","3 SS DUST CAP","EA",null,1,{"v":0,"d":"$0.00"}]
[680,"DIXON OR EQUIVALENT","4 SS DUST CAP TYPE DC","EA",null,1,{"v":0,"d":"$0.00"}]
[681,"DIXON OR EQUIVALENT","3 BR QUICK COUP A","EA",null,1,{"v":0,"d":"$0.00"}]
[682,"DIXON OR EQUIVALENT","4 BR QUICK COUP A","EA",null,1,{"v":0,"d":"$0.00"}]
[683,"DIXON OR EQUIVALENT","3 SS QCK COUP A","EA",null,1,{"v":0,"d":"$0.00"}]
[684,"DIXON OR EQUIVALENT","1-1/2 FEM COUP X FNPT POLYPRO FTG","EA",null,1,{"v":0,"d":"$0.00"}]
[685,"DIXON OR EQUIVALENT","3 SS QCK COUP B","EA",null,1,{"v":0,"d":"$0.00"}]
[686,"DIXON OR EQUIVALENT","4 SS QCK COUP B","EA",null,1,{"v":0,"d":"$0.00"}]
[687,"DIXON OR EQUIVALENT","1-1/2 SS QCK COUP B","EA",null,1,{"v":0,"d":"$0.00"}]
[688,"DIXON OR EQUIVALENT","3 ALUM QCK COUP B","EA",null,1,{"v":0,"d":"$0.00"}]
[689,"DIXON OR EQUIVALENT","4 ALUM QCK COUP D","EA",null,1,{"v":0,"d":"$0.00"}]
[690,"DIXON OR EQUIVALENT","6 ALUM QCK COUP D","EA",null,1,{"v":0,"d":"$0.00"}]
[691,"DIXON OR EQUIVALENT","3 ALUM DUST PLUG","EA",null,1,{"v":0,"d":"$0.00"}]
[692,"DIXON OR EQUIVALENT","1-1/2 POLY CAM MALE X MIP ADPT","EA",null,1,{"v":0,"d":"$0.00"}]
[693,"DIXON OR EQUIVALENT","2 BRS GBL MALE NPT X MALE ADPT","EA",null,1,{"v":0,"d":"$0.00"}]
[694,"DIXON OR EQUIVALENT","2 BR DUST CAP","EA",null,1,{"v":0,"d":"$0.00"}]
[695,"DIXON OR EQUIVALENT","3 ALUM QCK COUP E","EA",null,1,{"v":0,"d":"$0.00"}]
[696,"DIXON OR EQUIVALENT","3 ALUM QCK COUP C","EA",null,1,{"v":0,"d":"$0.00"}]
[697,"DIXON OR EQUIVALENT","2 BR QUICK COUP B","EA",null,1,{"v":0,"d":"$0.00"}]
[698,"DIXON OR EQUIVALENT","6 ALUM MALE ADPT X MALE NPT","EA",null,1,{"v":0,"d":"$0.00"}]
[699,"DIXON OR EQUIVALENT","2 ALUM QCK COUP B","EA",null,1,{"v":0,"d":"$0.00"}]
[700,"DIXON OR EQUIVALENT","4 BUNA-N CAM & GRV GSKT","EA",null,1,{"v":0,"d":"$0.00"}]
[701,"DIXON OR EQUIVALENT","4 SS ADPT X 150 LB ASA FLG DRILL","EA",null,1,{"v":0,"d":"$0.00"}]
[702,"DIXON OR EQUIVALENT","3 SS COUP X 150 ASA FLG DRILL","EA",null,1,{"v":0,"d":"$0.00"}]
[703,"DIXON OR EQUIVALENT","2 SS DUST PLUG","EA",null,1,{"v":0,"d":"$0.00"}]
[704,"DIXON OR EQUIVALENT","2 SS QCK COUP B","EA",null,1,{"v":0,"d":"$0.00"}]
[705,"DIXON OR EQUIVALENT","1 POLYPRO MALE ADPT X HOSE SHK","EA",null,1,{"v":0,"d":"$0.00"}]
[706,"DIXON OR EQUIVALENT","1-1/2 POLY CAM MALE X BARB ADPT","EA",null,1,{"$f":"SUM(E712*F712)","v":{"v":0,"d":"$0.00"}}]
[707,"DIXON OR EQUIVALENT","2 POLYPRO MALE ADPT X HOSE SHK","EA",null,1,{"v":0,"d":"$0.00"}]
[708,"DIXON OR EQUIVALENT","1 FIP FEM QC ADPT","EA",null,1,{"v":0,"d":"$0.00"}]
[709,"DIXON OR EQUIVALENT","1 FIP MALE QC ADPT","EA",null,1,{"v":0,"d":"$0.00"}]
[710,"DIXON OR EQUIVALENT","2 ALUM QCK COUP D","EA",null,1,{"v":0,"d":"$0.00"}]
[711,"DIXON OR EQUIVALENT","2-1/2 FNST X 2 MNPT SWVL ADPT","EA",null,1,{"v":0,"d":"$0.00"}]
[712,"EBAA, SIGMA, STAR PIPE, U.S. PIPE","4 MEGAFLANGE FLG ADPT","EA",null,1,{"v":0,"d":"$0.00"}]
[713,"EBAA, SIGMA, STAR PIPE, U.S. PIPE","6 MEGAFLANGE FLG ADPT","EA",null,1,{"v":0,"d":"$0.00"}]
[714,"EBAA, SIGMA, STAR PIPE, U.S. PIPE","8 MEGAFLANGE FLG ADPT","EA",null,1,{"v":0,"d":"$0.00"}]
[715,"EBAA, SIGMA, STAR PIPE, U.S. PIPE","10 MEGAFLANGE FLG ADPT","EA",null,1,{"v":0,"d":"$0.00"}]
[716,"EBAA, SIGMA, STAR PIPE, U.S. PIPE","12 MEGAFLANGE FLG ADPT","EA",null,1,{"v":0,"d":"$0.00"}]
[717,"EBAA, SIGMA, STAR PIPE, U.S. PIPE","3 MEGAFLANGE FLG ADPT","EA",null,1,{"v":0,"d":"$0.00"}]
[718,"EBAA, SIGMA, STAR PIPE, U.S. PIPE","3 MEGALUG F/ C900/IPS PVC ","EA",null,5,{"v":0,"d":"$0.00"}]
[719,"EBAA, SIGMA, STAR PIPE, U.S. PIPE","4 MEGALUG F/ C900/IPS PVC ","EA",null,10,{"v":0,"d":"$0.00"}]
[720,"EBAA, SIGMA, STAR PIPE, U.S. PIPE","6 MEGALUG F/ C900/IPS PVC ","EA",null,30,{"v":0,"d":"$0.00"}]
[721,"EBAA, SIGMA, STAR PIPE, U.S. PIPE","8 MEGALUG F/ C900/IPS PVC ","EA",null,30,{"v":0,"d":"$0.00"}]
[722,"EBAA, SIGMA, STAR PIPE, U.S. PIPE","10 MEGALUG F/ C900/IPS PVC ","EA",null,10,{"v":0,"d":"$0.00"}]
[723,"EBAA, SIGMA, STAR PIPE, U.S. PIPE","12 MEGALUG F/ C900/IPS PVC ","EA",null,15,{"v":0,"d":"$0.00"}]
[724,"EBAA, SIGMA, STAR PIPE, U.S. PIPE","3 MEGALUG F/ DI ","EA",null,5,{"v":0,"d":"$0.00"}]
[725,"EBAA, SIGMA, STAR PIPE, U.S. PIPE","4 MEGALUG F/ DI","EA",null,10,{"v":0,"d":"$0.00"}]
[726,"EBAA, SIGMA, STAR PIPE, U.S. PIPE","6 MEGALUG F/ DI","EA",null,10,{"v":0,"d":"$0.00"}]
[727,"EBAA, SIGMA, STAR PIPE, U.S. PIPE","8 MEGALUG F/ DI ","EA",null,10,{"v":0,"d":"$0.00"}]
[728,"EBAA, SIGMA, STAR PIPE, U.S. PIPE","10 MEGALUG F/ DI ","EA",null,10,{"v":0,"d":"$0.00"}]
[729,"EBAA, SIGMA, STAR PIPE, U.S. PIPE","12 MEGALUG F/ DI ","EA",null,10,{"v":0,"d":"$0.00"}]
[730,"EBAA, SIGMA, STAR PIPE, U.S. PIPE","12 EPOX MEGA FL W/ 316 SS BOLT","EA",null,1,{"v":0,"d":"$0.00"}]
[731,"EBAA, SIGMA, STAR PIPE, U.S. PIPE","20 EPOX MEGA FL W/ 316 SS BOLT","EA",null,1,{"v":0,"d":"$0.00"}]
[732,"EBAA, SIGMA, STAR PIPE, U.S. PIPE","18IN EPOX MEGA FL W/ 316 SS BOLT","EA",null,1,{"v":0,"d":"$0.00"}]
[733,"EBAA, SIGMA, STAR PIPE, U.S. PIPE","16 EPOX MEGA FL W/ 316 SS BOLT","EA",null,1,{"v":0,"d":"$0.00"}]
[734,"EBAA, SIGMA, STAR PIPE, U.S. PIPE","16 MEGALUG F/ DI","EA",null,1,{"v":0,"d":"$0.00"}]
[735,"CHEVRON-PHILLIPS, FLYING W PLASTICS,JM EAGLE, MUNICIPLEX, POLYPIPE","3/4X100  BLUE PE PIPE ","FT",null,500,{"v":0,"d":"$0.00"}]
[736,"CHEVRON-PHILLIPS, FLYING W PLASTICS,JM EAGLE, MUNICIPLEX, POLYPIPE","3/4X300 BLUE PE PIPE","FT",null,300,{"v":0,"d":"$0.00"}]
[737,"CHEVRON-PHILLIPS, FLYING W PLASTICS,JM EAGLE, MUNICIPLEX, POLYPIPE","1X100 BLUE PE PIPE","FT",null,5000,{"v":0,"d":"$0.00"}]
[738,"CHEVRON-PHILLIPS, FLYING W PLASTICS,JM EAGLE, MUNICIPLEX, POLYPIPE","1X300 BLUE PE PIPE","FT",null,2000,{"v":0,"d":"$0.00"}]
[739,"CHEVRON-PHILLIPS, FLYING W PLASTICS,JM EAGLE, MUNICIPLEX, POLYPIPE","1-1/2X100 BLUE PE PIPE","FT",null,3000,{"v":0,"d":"$0.00"}]
[740,"CHEVRON-PHILLIPS, FLYING W PLASTICS,JM EAGLE, MUNICIPLEX, POLYPIPE","1-1/2X300 BLUE PE PIPE","FT",null,900,{"v":0,"d":"$0.00"}]
[741,"CHEVRON-PHILLIPS, FLYING W PLASTICS,JM EAGLE, MUNICIPLEX, POLYPIPE","2X100 BLUE PE PIPE","FT",null,3000,{"v":0,"d":"$0.00"}]
[742,"CHEVRON-PHILLIPS, FLYING W PLASTICS,JM EAGLE, MUNICIPLEX, POLYPIPE","2X300 BLUE PE PIPE","FT",null,3000,{"v":0,"d":"$0.00"}]
[743,"FERNCO","2 CI PVC X 2 CI PVC COUP","EA",null,1,{"v":0,"d":"$0.00"}]
[744,"FERNCO","3 CI PVC X 3 CI PVC COUP","EA",null,10,{"v":0,"d":"$0.00"}]
[745,"FERNCO","4 CI PVC X 3 CI PVC COUP","EA",null,5,{"v":0,"d":"$0.00"}]
[746,"FERNCO","4 CI PVC X 4 CI PVC COUP","EA",null,50,{"v":0,"d":"$0.00"}]
[747,"FERNCO","6 CI PVC X 4 CI PVC COUP","EA",null,5,{"v":0,"d":"$0.00"}]
[748,"FERNCO","6 CI PVC X 6 CI PVC COUP","EA",null,10,{"v":0,"d":"$0.00"}]
[749,"FERNCO","8 CI PVC X 6 CI PVC COUP","EA",null,1,{"v":0,"d":"$0.00"}]
[750,"FERNCO","8 CI PVC X 8 CI PVC COUP","EA",null,1,{"v":0,"d":"$0.00"}]
[751,"FERNCO","10 CI PVC X 10 CI PVC COUP","EA",null,1,{"v":0,"d":"$0.00"}]
[752,"FERNCO","4 CLAY X 4 CI PVC COUP","EA",null,25,{"v":0,"d":"$0.00"}]
[753,"FERNCO","4 CLAY X 6 CI PVC COUP","EA",null,5,{"v":0,"d":"$0.00"}]
[754,"FERNCO","6 CLAY X 4 CI PVC COUP","EA",null,5,{"v":0,"d":"$0.00"}]
[755,"FERNCO","6 CLAY X 6 CI PVC COUP","EA",null,10,{"v":0,"d":"$0.00"}]
[756,"FERNCO","8 CLAY X 6 CI PVC COUP","EA",null,1,{"v":0,"d":"$0.00"}]
[757,"FERNCO","8 CLAY X 8 CI PVC COUP","EA",null,1,{"v":0,"d":"$0.00"}]
[758,"FERNCO","10 CLAY X 10 CI PVC COUP","EA",null,1,{"v":0,"d":"$0.00"}]
[759,"FORD, AY MCDONALD, MUELLER","LF 5/8X3/4 X 3/4 MTR ADPT","EA",null,10,{"v":0,"d":"$0.00"}]
[760,"FORD, AY MCDONALD, MUELLER","LF 5/8X3/4 X 1 MTR ADPT PR","EA",null,10,{"v":0,"d":"$0.00"}]
[761,"FORD, AY MCDONALD, MUELLER","LF 3/4 CTS COMP 90 BEND","EA",null,10,{"v":0,"d":"$0.00"}]
[762,"FORD, AY MCDONALD, MUELLER","LF 3/4 CTS GJ COMP 90 BEND","EA",null,10,{"v":0,"d":"$0.00"}]
[763,"FORD, AY MCDONALD, MUELLER","LF 1 CTS COMP 90 BEND","EA",null,50,{"v":0,"d":"$0.00"}]
[764,"FORD, AY MCDONALD, MUELLER","LF 1 CTS GJ COMP 90 BEND","EA",null,50,{"v":0,"d":"$0.00"}]
[765,"FORD, AY MCDONALD, MUELLER","LF 1-1/2 CTS COMP 90 BEND","EA",null,20,{"v":0,"d":"$0.00"}]
[766,"FORD, AY MCDONALD, MUELLER","LF 1-1/2 CTS GJ 90 BEND","EA",null,20,{"v":0,"d":"$0.00"}]
[767,"FORD, AY MCDONALD, MUELLER","LF 2 CTS GJ COMP 90 BEND","EA",null,30,{"v":0,"d":"$0.00"}]
[768,"FORD, AY MCDONALD, MUELLER","LF 3/4 MIP X CTS COMP 90 BEND","EA",null,5,{"v":0,"d":"$0.00"}]
[769,"FORD, AY MCDONALD, MUELLER","LF 3/4 MIP X CTS GRIP COMP 90 BEND","EA",null,5,{"v":0,"d":"$0.00"}]
[770,"FORD, AY MCDONALD, MUELLER","LF 1 MIP X CTS COMP 90 BEND","EA",null,5,{"$f":"SUM(E776*F776)","v":{"v":0,"d":"$0.00"}}]
[771,"FORD, AY MCDONALD, MUELLER","LF 1 MIP X CTS GRIP COMP 90 BEND","EA",null,5,{"v":0,"d":"$0.00"}]
[772,"FORD, AY MCDONALD, MUELLER","LF 1-1/2 MIP X CTS COMP 90 BEND","EA",null,5,{"v":0,"d":"$0.00"}]
[773,"FORD, AY MCDONALD, MUELLER","LF 2 MIP X CTS COMP 90 BEND","EA",null,5,{"v":0,"d":"$0.00"}]
[774,"FORD, AY MCDONALD, MUELLER","LF 2 MIP X CTS GRIP COMP 90 BEND","EA",null,5,{"v":0,"d":"$0.00"}]
[775,"FORD, AY MCDONALD, MUELLER","LF 3/4 FIP X 3/4 MTR BUSH","EA",null,100,{"v":0,"d":"$0.00"}]
[776,"FORD, AY MCDONALD, MUELLER","LF 1IN FIP X 1IN MTR BUSH","EA",null,20,{"v":0,"d":"$0.00"}]
[777,"FORD, AY MCDONALD, MUELLER","LF 1-1/2IN NPT X 1-1/2MTR BUS","EA",null,1,{"v":0,"d":"$0.00"}]
[778,"FORD, AY MCDONALD, MUELLER","LF 2 NPT X 2 MTR BUSH","EA",null,1,{"v":0,"d":"$0.00"}]
[779,"FORD, AY MCDONALD, MUELLER","LF 3/4 CTS X CTS GJ COMP COUP","EA",null,25,{"v":0,"d":"$0.00"}]
[780,"FORD, AY MCDONALD, MUELLER","LF 3/4 CTS X CTS COMP COUP","EA",null,25,{"v":0,"d":"$0.00"}]
[781,"FORD, AY MCDONALD, MUELLER","LF 1 CTS X CTS GJ COMP COUP","EA",null,250,{"v":0,"d":"$0.00"}]
[782,"FORD, AY MCDONALD, MUELLER","LF 1 CTS X CTS COMP COUP","EA",null,250,{"v":0,"d":"$0.00"}]
[783,"FORD, AY MCDONALD, MUELLER","LF 1-1/2 CTS X CTS COMP COUP","EA",null,50,{"v":0,"d":"$0.00"}]
[784,"FORD, AY MCDONALD, MUELLER","LF 2 CTS COMP X CTS GRIP COMP C","EA",null,50,{"v":0,"d":"$0.00"}]
[785,"FORD, AY MCDONALD, MUELLER","LF 2 CTS X CTS COMP COUP","EA",null,50,{"v":0,"d":"$0.00"}]
[786,"FORD, AY MCDONALD, MUELLER","LF 3/4 PVC X PVC COMP COUP","EA",null,5,{"v":0,"d":"$0.00"}]
[787,"FORD, AY MCDONALD, MUELLER","LF 1 PVC X PVC COMP PJ COUP","EA",null,5,{"v":0,"d":"$0.00"}]
[788,"FORD, AY MCDONALD, MUELLER","LF 1-1/2 PVC X PVC COMP COUP","EA",null,5,{"v":0,"d":"$0.00"}]
[789,"FORD, AY MCDONALD, MUELLER","LF 2 PVC X PVC COMP PJ COUP","EA",null,5,{"v":0,"d":"$0.00"}]
[790,"FORD, AY MCDONALD, MUELLER","LF 3/4 MIP X 3/4 CTS GJ COMP COUP","EA",null,5,{"v":0,"d":"$0.00"}]
[791,"FORD, AY MCDONALD, MUELLER","LF 3/4 MIP X 3/4 CTS COMP COUP","EA",null,5,{"v":0,"d":"$0.00"}]
[792,"FORD, AY MCDONALD, MUELLER","LF 1 MIP X 1 CTS GRIP COMP C","EA",null,5,{"v":0,"d":"$0.00"}]
[793,"FORD, AY MCDONALD, MUELLER","LF 1 MIP X 1 CTS COMP COUP","EA",null,5,{"v":0,"d":"$0.00"}]
[794,"FORD, AY MCDONALD, MUELLER","LF 1-1/2 MIP X CTS GRIP COMP COUP","EA",null,5,{"v":0,"d":"$0.00"}]
[795,"FORD, AY MCDONALD, MUELLER","LF 1-1/2 MIP X CTS COMP COUP","EA",null,5,{"v":0,"d":"$0.00"}]
[796,"FORD, AY MCDONALD, MUELLER","LF 2 MIP X CTS GRIP COMP COUP","EA",null,5,{"v":0,"d":"$0.00"}]
[797,"FORD, AY MCDONALD, MUELLER","LF 2 MIP X CTS COMP COUP","EA",null,5,{"v":0,"d":"$0.00"}]
[798,"FORD, AY MCDONALD, MUELLER","LF 3/4 MIP X PVC COMP COUP","EA",null,5,{"v":0,"d":"$0.00"}]
[799,"FORD, AY MCDONALD, MUELLER","LF 1 MIPXPVC COMP COUP","EA",null,5,{"v":0,"d":"$0.00"}]
[800,"FORD, AY MCDONALD, MUELLER","LF 1-1/2 MIP X PVC COMP COUP","EA",null,5,{"v":0,"d":"$0.00"}]
[801,"FORD, AY MCDONALD, MUELLER","LF 2 MIP X PVC COMP COUP","EA",null,5,{"v":0,"d":"$0.00"}]
[802,"FORD, AY MCDONALD, MUELLER","LF 3/4 FIP X CTS GRIP COMP COUP","EA",null,5,{"v":0,"d":"$0.00"}]
[803,"FORD, AY MCDONALD, MUELLER","LF 3/4 FIP X CTS COMP COUP","EA",null,5,{"v":0,"d":"$0.00"}]
[804,"FORD, AY MCDONALD, MUELLER","LF 1 FIP X CTS GRIP COMP COUP","EA",null,5,{"v":0,"d":"$0.00"}]
[805,"FORD, AY MCDONALD, MUELLER","LF 1 FIP X CTS COMP COUP","EA",null,5,{"v":0,"d":"$0.00"}]
[806,"FORD, AY MCDONALD, MUELLER","LF 1-1/2 FIP X CTS GJ COMP COUP","EA",null,10,{"v":0,"d":"$0.00"}]
[807,"FORD, AY MCDONALD, MUELLER","LF 1-1/2 FIP X CTS COMP COUP","EA",null,10,{"v":0,"d":"$0.00"}]
[808,"FORD, AY MCDONALD, MUELLER","LF 2 FIP X CTS GRIP COMP COUP","EA",null,15,{"v":0,"d":"$0.00"}]
[809,"FORD, AY MCDONALD, MUELLER","LF 2 FIP X CTS COMP COUP","EA",null,15,{"v":0,"d":"$0.00"}]
[810,"FORD, AY MCDONALD, MUELLER","LF 3/4X2-1/2 MIP STRT MTR COUP","EA",null,1,{"v":0,"d":"$0.00"}]
[811,"FORD, AY MCDONALD, MUELLER","LF 1X2-5/8 MIP STRT MTR COUP","EA",null,1,{"v":0,"d":"$0.00"}]
[812,"FORD, AY MCDONALD, MUELLER","LF 1-1/2X2-7/8 MIP STRT MTR COUP","EA",null,1,{"v":0,"d":"$0.00"}]
[813,"FORD, AY MCDONALD, MUELLER","LF C38-77-3.0625 MTR COUP","EA",null,1,{"v":0,"d":"$0.00"}]
[814,"FORD, AY MCDONALD, MUELLER","LF 2X3-1/16 MIP STRT MTR COUP","EA",null,1,{"v":0,"d":"$0.00"}]
[815,"FORD, AY MCDONALD, MUELLER","LF 1X1-1/2 C44-46-NL COUP","EA",null,1,{"v":0,"d":"$0.00"}]
[816,"FORD, AY MCDONALD, MUELLER","LF 1-1/4 MIP X 1-1/4 CTS PJ COUP","EA",null,1,{"v":0,"d":"$0.00"}]
[817,"FORD, AY MCDONALD, MUELLER","LF 2 CTS COMP PJ 90 ELL","EA",null,5,{"v":0,"d":"$0.00"}]
[818,"EBAA, SIGMA, STAR PIPE, U.S. PIPE, FORD","4 UNIFLANGE F/ C900 PVC PIPE ","EA",null,2,{"v":0,"d":"$0.00"}]
[819,"EBAA, SIGMA, STAR PIPE, U.S. PIPE, FORD","6 UNIFLANGE F/ C900 PVC PIPE ","EA",null,2,{"v":0,"d":"$0.00"}]
[820,"EBAA, SIGMA, STAR PIPE, U.S. PIPE, FORD","8 UNIFLANGE F/ C900 PVC PIPE ","EA",null,2,{"v":0,"d":"$0.00"}]
[821,"EBAA, SIGMA, STAR PIPE, U.S. PIPE, FORD","10 UNIFLANGE F/ C900 PVC PIPE ","EA",null,1,{"v":0,"d":"$0.00"}]
[822,"EBAA, SIGMA, STAR PIPE, U.S. PIPE, FORD","12 UNIFLANGE F/ C900 PVC PIPE ","EA",null,1,{"v":0,"d":"$0.00"}]
[823,"FORD, AY MCDONALD, MUELLER","LF 3/4 FIP X FIP BALL CURB ST LW","EA",null,5,{"v":0,"d":"$0.00"}]
[824,"FORD, AY MCDONALD, MUELLER","LF 1 FIP X FIP BALL CURB ST LW","EA",null,5,{"v":0,"d":"$0.00"}]
[825,"FORD, AY MCDONALD, MUELLER","LF 1-1/2 FIP X FIP BALL CURB ST LW","EA",null,5,{"v":0,"d":"$0.00"}]
[826,"FORD, AY MCDONALD, MUELLER","LF 2 FIP X FIP BALL CURB ST LW","EA",null,5,{"v":0,"d":"$0.00"}]
[827,"FORD, AY MCDONALD, MUELLER","LF 3/4 CTS X FIP BALL CURB ST LW","EA",null,5,{"v":0,"d":"$0.00"}]
[828,"FORD, AY MCDONALD, MUELLER","LF 1 CTS COMP X FIP BALL CURB LW","EA",null,5,{"v":0,"d":"$0.00"}]
[829,"FORD, AY MCDONALD, MUELLER","LF 2 CTS COMP X FIP BALL CURB LW","EA",null,5,{"v":0,"d":"$0.00"}]
[830,"FORD, AY MCDONALD, MUELLER","LF 2 CTS GRIP X FIP BALL CURB","EA",null,5,{"v":0,"d":"$0.00"}]
[831,"FORD, AY MCDONALD, MUELLER","LF 3/4 CTS GRIP X MTR BALL CURB LW","EA",null,10,{"v":0,"d":"$0.00"}]
[832,"FORD, AY MCDONALD, MUELLER","LF 1  CTS GRIP X MTR BALL CURB LW","EA",null,20,{"v":0,"d":"$0.00"}]
[833,"FORD, AY MCDONALD, MUELLER","LF 3/4 CTS COMP X MTR STRT BV LW","EA",null,5,{"v":0,"d":"$0.00"}]
[834,"FORD, AY MCDONALD, MUELLER","LF 1 CTS X 3/4 MTR STRT BV LW","EA",null,20,{"$f":"SUM(E840*F840)","v":{"v":0,"d":"$0.00"}}]
[835,"FORD, AY MCDONALD, MUELLER","LF 1X3/4 B43-342W-G-NL BV","EA",null,20,{"v":0,"d":"$0.00"}]
[836,"FORD, AY MCDONALD, MUELLER","LF 3/4 MIP X FIP CORP ST","EA",null,5,{"v":0,"d":"$0.00"}]
[837,"FORD, AY MCDONALD, MUELLER","LF 1 MIP X FIP CORP ST","EA",null,10,{"v":0,"d":"$0.00"}]
[838,"FORD, AY MCDONALD, MUELLER","LF 1-1/2 MIP X FIP BALL CORP ST","EA",null,10,{"v":0,"d":"$0.00"}]
[839,"FORD, AY MCDONALD, MUELLER","LF 2 MIP X FIP BALL CORP ST","EA",null,10,{"v":0,"d":"$0.00"}]
[840,"FORD, AY MCDONALD, MUELLER","LF 3/4 MIP X CTS GRIP BALL CORP ST","EA",null,5,{"v":0,"d":"$0.00"}]
[841,"FORD, AY MCDONALD, MUELLER","LF 3/4 MIP X CTS PJ BALL CORP ST","EA",null,5,{"v":0,"d":"$0.00"}]
[842,"FORD, AY MCDONALD, MUELLER","LF 1 MIP X CTS GRIP BALL CORP ST","EA",null,5,{"v":0,"d":"$0.00"}]
[843,"FORD, AY MCDONALD, MUELLER","LF 1 MIP X CTS PJ BALL CORP ST","EA",null,5,{"v":0,"d":"$0.00"}]
[844,"FORD, AY MCDONALD, MUELLER","LF 1-1/2  MIP X CTS PJ BALL CORP ST","EA",null,5,{"v":0,"d":"$0.00"}]
[845,"FORD, AY MCDONALD, MUELLER","LF 2 MIP X CTS GRIP BALL CORP ST","EA",null,5,{"v":0,"d":"$0.00"}]
[846,"FORD, AY MCDONALD, MUELLER","LF 2 MIP X CTS PJ BALL CORP ST","EA",null,5,{"v":0,"d":"$0.00"}]
[847,"FORD, AY MCDONALD, MUELLER","LF 3/4 MIP X CTS COMP CORP ST","EA",null,5,{"v":0,"d":"$0.00"}]
[848,"FORD, AY MCDONALD, MUELLER","LF 1 MIP X CTS COMP CORP ST","EA",null,5,{"v":0,"d":"$0.00"}]
[849,"FORD, AY MCDONALD, MUELLER","LF 1 MIP X CTS GRIP CORP ST","EA",null,5,{"v":0,"d":"$0.00"}]
[850,"FORD, AY MCDONALD, MUELLER","LF 3/4 MIP X FIP BALL CORP ST","EA",null,5,{"v":0,"d":"$0.00"}]
[851,"FORD, AY MCDONALD, MUELLER","LF 1 MIP X FIP BALL CORP ST","EA",null,5,{"v":0,"d":"$0.00"}]
[852,"FORD, AY MCDONALD, MUELLER","LF Y44-274-G Y BRCH CONN","EA",null,20,{"v":0,"d":"$0.00"}]
[853,"FORD, AY MCDONALD, MUELLER","3/4 CTS PET / HDPE DR9 INS STFNR","EA",null,200,{"v":0,"d":"$0.00"}]
[854,"FORD, AY MCDONALD, MUELLER","1 CTS PET / HDPE DR9 INS STFNR","EA",null,2000,{"v":0,"d":"$0.00"}]
[855,"FORD, AY MCDONALD, MUELLER","1-1/2 CTS PET INS STFNR","EA",null,500,{"v":0,"d":"$0.00"}]
[856,"FORD, AY MCDONALD, MUELLER","2 CTS PET INS STFNR","EA",null,300,{"v":0,"d":"$0.00"}]
[857,"FORD, SMITH BLAIR, JCM","3/4X3 WRAP CLMP .875","EA",null,10,{"v":0,"d":"$0.00"}]
[858,"FORD, SMITH BLAIR, JCM","3/4X3 SNAP CLMP 1.05","EA",null,200,{"v":0,"d":"$0.00"}]
[859,"FORD, SMITH BLAIR, JCM","3/4X6 SNAP CLMP 1.05 ","EA",null,200,{"v":0,"d":"$0.00"}]
[860,"FORD, SMITH BLAIR, JCM","3/4X6 WRAP CLMP .875 ","EA",null,10,{"v":0,"d":"$0.00"}]
[861,"FORD, SMITH BLAIR, JCM","3/4X6 WRAP CLMP W/ GSKT 1.05","EA",null,10,{"v":0,"d":"$0.00"}]
[862,"FORD, SMITH BLAIR, JCM","1X3 WRAP CLMP 1.13","EA",null,10,{"v":0,"d":"$0.00"}]
[863,"FORD, SMITH BLAIR, JCM","1X3 SNAP CLMP 1.32 ","EA",null,20,{"v":0,"d":"$0.00"}]
[864,"FORD, SMITH BLAIR, JCM","1X6 SNAP CLMP 1.32 ","EA",null,10,{"v":0,"d":"$0.00"}]
[865,"FORD, SMITH BLAIR, JCM","1X6 WRAP CLMP 1.32","EA",null,10,{"v":0,"d":"$0.00"}]
[866,"FORD, SMITH BLAIR, JCM","1-1/4X6 WRAP CLMP W/ GSKT 1.66","EA",null,100,{"v":0,"d":"$0.00"}]
[867,"FORD, SMITH BLAIR, JCM","1-1/2X3 WRAP CLMP 1.625 ","EA",null,10,{"v":0,"d":"$0.00"}]
[868,"FORD, SMITH BLAIR, JCM","1-1/2X3 SNAP CLMP 1.90","EA",null,30,{"v":0,"d":"$0.00"}]
[869,"FORD, SMITH BLAIR, JCM","1-1/2X6 WRAP CLMP 1.90 ","EA",null,10,{"v":0,"d":"$0.00"}]
[870,"FORD, SMITH BLAIR, JCM","1-1/2X6 SNAP CLMP 1.90 ","EA",null,10,{"v":0,"d":"$0.00"}]
[871,"FORD, SMITH BLAIR, JCM","2X3 WRAP CLMP 2.125 ","EA",null,10,{"v":0,"d":"$0.00"}]
[872,"FORD, SMITH BLAIR, JCM","2X6 SNAP CLMP 2.38 ","EA",null,10,{"v":0,"d":"$0.00"}]
[873,"FORD, SMITH BLAIR, JCM","2X6 WRAP CLMP 2.38 ","EA",null,10,{"v":0,"d":"$0.00"}]
[874,"FORD, SMITH BLAIR, JCM","4X15 FS1 SS REP CLMP 4.74-5.14","EA",null,1,{"v":0,"d":"$0.00"}]
[875,"FORD, SMITH BLAIR, JCM","4X15         SS REP CLMP 4.45-4.73","EA",null,1,{"v":0,"d":"$0.00"}]
[876,"FORD, SMITH BLAIR, JCM","4X15        SS REP CLMP 5.22-5.62","EA",null,1,{"v":0,"d":"$0.00"}]
[877,"FORD, SMITH BLAIR, JCM","6X15         SS REP CLMP 7.05-7.45","EA",null,5,{"v":0,"d":"$0.00"}]
[878,"FORD, SMITH BLAIR, JCM","6X15 SS REP CLMP 6.56-6.96","EA",null,5,{"v":0,"d":"$0.00"}]
[879,"FORD, SMITH BLAIR, JCM","6X15  SS REP CLMP 7.45-7.85","EA",null,1,{"v":0,"d":"$0.00"}]
[880,"FORD, SMITH BLAIR, JCM","8X15 SS REP CLMP 9.27-9.67 ","EA",null,1,{"v":0,"d":"$0.00"}]
[881,"FORD, SMITH BLAIR, JCM","8X15         SS REP CLMP 8.54-8.94","EA",null,2,{"v":0,"d":"$0.00"}]
[882,"FORD, SMITH BLAIR, JCM","8X15 F1 SS REP CLMP 8.99-9.39","EA",null,5,{"v":0,"d":"$0.00"}]
[883,"FORD, SMITH BLAIR, JCM","FS1-9.67 X 15 REP CLMP","EA",null,1,{"v":0,"d":"$0.00"}]
[884,"FORD, SMITH BLAIR, JCM","10X15 F1 SS REP CLMP 11.04-11.44","EA",null,1,{"v":0,"d":"$0.00"}]
[885,"FORD, SMITH BLAIR, JCM","10X15      SS REP CLMP 11.75-12.15","EA",null,2,{"v":0,"d":"$0.00"}]
[886,"FORD, SMITH BLAIR, JCM","12X15 F1 SS REP CLMP 13.10-13.50","EA",null,1,{"v":0,"d":"$0.00"}]
[887,"FORD, SMITH BLAIR, JCM","12X15      SS REP CLMP  13.65-14.45","EA",null,1,{"v":0,"d":"$0.00"}]
[888,"FORD, SMITH BLAIR, JCM","16X15 F2 SS REP CLMP 17.15-17.90","EA",null,1,{"v":0,"d":"$0.00"}]
[889,"FORD","COMPLETE REPAIR CLAMP KIT-FSERK","EA",null,2,{"v":0,"d":"$0.00"}]
[890,"FORD,JCM,ROMAC","2X1 IP DBL STRP SDL-STAINLESS","EA",null,5,{"v":0,"d":"$0.00"}]
[891,"FORD,JCM,ROMAC","3X3/4 IP DBL STRP SDL-STAINLESS","EA",null,1,{"v":0,"d":"$0.00"}]
[892,"FORD,JCM,ROMAC","3X1 IP DBL STRP SDL-STAINLESS","EA",null,1,{"v":0,"d":"$0.00"}]
[893,"FORD,JCM,ROMAC","3X2 IP DBL STRP SDL-STAINLESS","EA",null,1,{"v":0,"d":"$0.00"}]
[894,"FORD,JCM,ROMAC","4X2 IP DBL STRP SDL-STAINLESS","EA",null,10,{"v":0,"d":"$0.00"}]
[895,"FORD,JCM,ROMAC","6X2 IP DBL STRP SDL-STAINLESS","EA",null,75,{"v":0,"d":"$0.00"}]
[896,"FORD,JCM,ROMAC","8X2 IP DBL STRP SDL-STAINLESS","EA",null,40,{"v":0,"d":"$0.00"}]
[897,"FORD,JCM,ROMAC","10X2 IP DBL STRP SDL-STAINLESS","EA",null,10,{"v":0,"d":"$0.00"}]
[898,"FORD,JCM,ROMAC","12X2 IP DBL STRP SDL-STAINLESS","EA",null,20,{"$f":"SUM(E904*F904)","v":{"v":0,"d":"$0.00"}}]
[899,"FORD,JCM,ROMAC","14X2 IP DBL STRP SDL-STAINLESS","EA",null,1,{"v":0,"d":"$0.00"}]
[900,"FORD,JCM,ROMAC","16X2 IP DBL STRP SDL-STAINLESS","EA",null,5,{"v":0,"d":"$0.00"}]
[901,"FORD,JCM,ROMAC","18X2 IP DBL STRP SDL-STAINLESS","EA",null,1,{"v":0,"d":"$0.00"}]
[902,"FORD,JCM,ROMAC","20X2 IP DBL STRP SDL-STAINLESS","EA",null,1,{"v":0,"d":"$0.00"}]
[903,"FORD,JCM,ROMAC","24X2 IP DBL STRP SDL-STAINLESS","EA",null,1,{"v":0,"d":"$0.00"}]
[904,"FORD, AY MCDONALD, MUELLER","LF 2X1 FIP MULTI SERV WYE","EA",null,10,{"v":0,"d":"$0.00"}]
[905,"FORD, AY MCDONALD, MUELLER","LF 1X3/4 CTS COMP WYE BRCH","EA",null,10,{"v":0,"d":"$0.00"}]
[906,"FORD, AY MCDONALD, MUELLER","LF 1X3/4 CTS GRIP WYE B","EA",null,10,{"v":0,"d":"$0.00"}]
[907,"FORD, AY MCDONALD, MUELLER","LF 1-1/2X1 CTS COMP WYE BRCH","EA",null,5,{"v":0,"d":"$0.00"}]
[908,"FORD, AY MCDONALD, MUELLER","LF 1-1/2 X1 CTS GRIP COMP WYE BRCH","EA",null,5,{"v":0,"d":"$0.00"}]
[909,"FORD, AY MCDONALD, MUELLER","LF 2X1 CTS COMP WYE BRCH","EA",null,10,{"v":0,"d":"$0.00"}]
[910,"FORD, AY MCDONALD, MUELLER","LF 3/4 MTR X FIP STRT DUAL CHK VLV","EA",null,4000,{"v":0,"d":"$0.00"}]
[911,"FORD, AY MCDONALD, MUELLER","LF 1 FIP X FIP STRT CHK VLV","EA",null,30,{"v":0,"d":"$0.00"}]
[912,"FORD, AY MCDONALD, MUELLER","LF 1-1/2 HS11-666-NL STRT CHK VLV","EA",null,10,{"v":0,"d":"$0.00"}]
[913,"FORD, AY MCDONALD, MUELLER","LF 2 FIP STRT CHK VLV","EA",null,15,{"v":0,"d":"$0.00"}]
[914,"FORD, AY MCDONALD, MUELLER","LF 3/4 FIP X MTR ANG KEY VLV","EA",null,20,{"v":0,"d":"$0.00"}]
[915,"FORD, AY MCDONALD, MUELLER","LF 1 FIP X 3/4 MTR ANG VLV KEY","EA",null,10,{"v":0,"d":"$0.00"}]
[916,"FORD, AY MCDONALD, MUELLER","LF 1 FIP X MTR ANG KEY VLV","EA",null,10,{"v":0,"d":"$0.00"}]
[917,"FORD, AY MCDONALD, MUELLER","LF 3/4 CTS COMP X MTR ANG KEY VLV","EA",null,10,{"v":0,"d":"$0.00"}]
[918,"FORD, AY MCDONALD, MUELLER","LF 1 CTS COMP X 3/4 MTR ANG KEY VLV","EA",null,400,{"v":0,"d":"$0.00"}]
[919,"FORD, AY MCDONALD, MUELLER","LF 1 CTS COMP X MTR ANG KEY VLV","EA",null,10,{"v":0,"d":"$0.00"}]
[920,"FORD, AY MCDONALD, MUELLER","LF 3/4 CTS COMP X MTR STRT MTR VLV","EA",null,25,{"v":0,"d":"$0.00"}]
[921,"FORD, AY MCDONALD, MUELLER","LF HHS11-777 DU CHK VLV","EA",null,10,{"v":0,"d":"$0.00"}]
[922,"FORD, AY MCDONALD, MUELLER","LF 3/4 CTS X MTR GRIP STRT BV","EA",null,5,{"v":0,"d":"$0.00"}]
[923,"FORD, AY MCDONALD, MUELLER","LF 1-1/2 B41-666W-G-NL BV","EA",null,5,{"v":0,"d":"$0.00"}]
[924,"FORD, AY MCDONALD, MUELLER","16X20 FS2 SS REP CLMP 17.15-17.90","EA",null,1,{"v":0,"d":"$0.00"}]
[925,"FORD, AY MCDONALD, MUELLER","LF 3/4X1 TO 1 MTR ADPT","EA",null,10,{"v":0,"d":"$0.00"}]
[926,"FORD, AY MCDONALD, MUELLER","2 C47-77-NL COUP","EA",null,1,{"v":0,"d":"$0.00"}]
[927,"FORD, AY MCDONALD, MUELLER","3/4 CTS COMP X FIP BALL CURB","EA",null,15,{"v":0,"d":"$0.00"}]
[928,"FORD, SMITH BLAIR, JCM","3X7-1/2 SS REP CLMP 3.46-3.70","EA",null,1,{"v":0,"d":"$0.00"}]
[929,"AFC,Clow,Kennedy,M&H, Mueller, FORD","2 OP NUT F/ BV","EA",null,10,{"v":0,"d":"$0.00"}]
[930,"FORD","F2-22.27 X 20 FORDFLEX CLMP","EA",null,1,{"v":0,"d":"$0.00"}]
[931,"FORD, SMITH BLAIR, JCM","18X15 SS REP CLMP 18.46-19.21","EA",null,1,{"v":0,"d":"$0.00"}]
[932,"FORD, SMITH BLAIR, JCM","1X3 WRAP CLMP 1.32","EA",null,15,{"v":0,"d":"$0.00"}]
[933,"FORD, SMITH BLAIR, JCM","1 B11-344W-NL BV","EA",null,10,{"v":0,"d":"$0.00"}]
[934,"FORD, SMITH BLAIR, JCM","3X15 FS1 SS REP CLMP 3.46-3.70","EA",null,1,{"v":0,"d":"$0.00"}]
[935,"FORD, SMITH BLAIR, JCM","FS1-11.04 X 7.5 REPAIR CLMP","EA",null,1,{"v":0,"d":"$0.00"}]
[936,"FORD, SMITH BLAIR, JCM","FS1-11.04 X 10 REPAIR CLMP","EA",null,1,{"v":0,"d":"$0.00"}]
[937,"FORD, SMITH BLAIR, JCM","FS1-11.04 X 24 REP CLMP","EA",null,1,{"v":0,"d":"$0.00"}]
[938,"FORD, SMITH BLAIR, JCM","FS2-15.82 X 20 CLMP","EA",null,1,{"v":0,"d":"$0.00"}]
[939,"FORD, SMITH BLAIR, JCM","FS3-19.20 X 20 REPAIR CLMP","EA",null,1,{"v":0,"d":"$0.00"}]
[940,"ARI,APCO,GA INDUSTRIES, VAL-MATIC","3\" 316SS ARV","EA",null,1,{"v":0,"d":"$0.00"}]
[941,"ARI,APCO,GA INDUSTRIES, VAL-MATIC","2\" FLG 316SS ARV","EA",null,1,{"v":0,"d":"$0.00"}]
[942,"ARI,APCO,GA INDUSTRIES, VAL-MATIC","3\" FLG 316SS ARV","EA",null,1,{"v":0,"d":"$0.00"}]
[943,"ARI,APCO,GA INDUSTRIES, VAL-MATIC","4\" FLG 316SS ARV","EA",null,1,{"v":0,"d":"$0.00"}]
[944,"ARI,APCO,GA INDUSTRIES, VAL-MATIC","6\" FLG 316SS ARV","EA",null,1,{"v":0,"d":"$0.00"}]
[945,"ARI,APCO,GA INDUSTRIES, VAL-MATIC","8\" FLG 316SS ARV","EA",null,1,{"v":0,"d":"$0.00"}]
[946,"FORD,JCM,ROMAC","6X2 DBL SS EPOX SDL 6.63-6.90","EA",null,1,{"v":0,"d":"$0.00"}]
[947,"FORD,JCM,SMITH-BLAIR,ROMAC","8X2 TAPN SLV 9.05 IP THRD","EA",null,1,{"v":0,"d":"$0.00"}]
[948,"FORD,JCM,ROMAC","10X2 SS DBL STRP EPOX 10.75-11.10","EA",null,1,{"v":0,"d":"$0.00"}]
[949,"FORD,JCM,ROMAC","12X2 SS DBL STRP EPOX 12.75-13.50","EA",null,1,{"v":0,"d":"$0.00"}]
[950,"FORD,JCM,ROMAC","8X2       IP COAT DBL STRP SDL 9.79","EA",null,1,{"v":0,"d":"$0.00"}]
[951,"AMERICAN DARLING, CLOW, KENNEDY,M&H,MUELLER VAL-MATIC","4 FLG L&W CHK VLV ","EA",null,4,{"v":0,"d":"$0.00"}]
[952,"AMERICAN DARLING, CLOW, KENNEDY,M&H,MUELLER VAL-MATIC","6 FLG L&W CHK VLV ","EA",null,1,{"v":0,"d":"$0.00"}]
[953,"AMERICAN DARLING, CLOW, KENNEDY,M&H,MUELLER VAL-MATIC","8 FLG L&W CHK VLV ","EA",null,1,{"v":0,"d":"$0.00"}]
[954,"AMERICAN DARLING, CLOW, KENNEDY,M&H,MUELLER VAL-MATIC","10 LW FLG CHK VLV","EA",null,1,{"v":0,"d":"$0.00"}]
[955,"AMERICAN DARLING, CLOW, KENNEDY,M&H,MUELLER VAL-MATIC","12 FLG SWG CHK VLV BFD","EA",null,1,{"v":0,"d":"$0.00"}]
[956,"AMERICAN DARLING, CLOW, KENNEDY,M&H,MUELLER VAL-MATIC","16 FLG L&W CHK VLV","EA",null,1,{"v":0,"d":"$0.00"}]
[957,"AMERICAN DARLING, CLOW, KENNEDY,M&H,MUELLER VAL-MATIC","18 FLG L&W CHK VLV","EA",null,1,{"v":0,"d":"$0.00"}]
[958,"AMERICAN DARLING, CLOW, KENNEDY,M&H,MUELLER VAL-MATIC","20 FLG LEV & WT CHK VLV","EA",null,1,{"v":0,"d":"$0.00"}]
[959,"AMERICAN DARLING, CLOW, KENNEDY,M&H,MUELLER VAL-MATIC","24 FLG LEV & WT CHK VLV","EA",null,1,{"v":0,"d":"$0.00"}]
[960,"EBAA,SIGMA,STAR,US PIPE","3 MJ C153 BOLT GSKT PK L/ GLAND","EA",null,5,{"v":0,"d":"$0.00"}]
[961,"EBAA,SIGMA,STAR,US PIPE","4 MJ C153 BOLT GSKT PK L/ GLAND","EA",null,15,{"v":0,"d":"$0.00"}]
[962,"EBAA,SIGMA,STAR,US PIPE","6 MJ C153 BOLT GSKT PK L/ GLAND","EA",null,50,{"$f":"SUM(E968*F968)","v":{"v":0,"d":"$0.00"}}]
[963,"EBAA,SIGMA,STAR,US PIPE","6 MJ TRANS BOLT GSKT PK L/ GLAND","EA",null,5,{"v":0,"d":"$0.00"}]
[964,"EBAA,SIGMA,STAR,US PIPE","8 MJ C153 BOLT GSKT PK L/ GLAND","EA",null,50,{"v":0,"d":"$0.00"}]
[965,"EBAA,SIGMA,STAR,US PIPE","10 MJ C153 BOLT GSKT PK L/ GLAND","EA",null,5,{"v":0,"d":"$0.00"}]
[966,"EBAA,SIGMA,STAR,US PIPE","12 MJ C153 BOLT GSKT PK L/ GLAND","EA",null,25,{"v":0,"d":"$0.00"}]
[967,"EBAA,SIGMA,STAR,US PIPE","14 MJ C153 BOLT GSKT PK L/ GLAND","EA",null,1,{"v":0,"d":"$0.00"}]
[968,"EBAA,SIGMA,STAR,US PIPE","16 MJ C153 BOLT GSKT PK L/ GLAND","EA",null,5,{"v":0,"d":"$0.00"}]
[969,"EBAA,SIGMA,STAR,US PIPE","20 MJ C153 BOLT GSKT PK L/ GLAND","EA",null,5,{"v":0,"d":"$0.00"}]
[970,"SIP,STAR OR EQUIVALENT","3 316SS 150# RR FF 1/8 FLG PKG","EA",null,15,{"v":0,"d":"$0.00"}]
[971,"SIP,STAR OR EQUIVALENT","4 316SS 150# RR FF 1/8 FLG PKG","EA",null,40,{"v":0,"d":"$0.00"}]
[972,"SIP,STAR OR EQUIVALENT","8 316SS 150# RR FF 1/8 FLG PKG","EA",null,10,{"v":0,"d":"$0.00"}]
[973,"SIP,STAR OR EQUIVALENT","10 316SS 150# RR FF 1/8 FLG PKG","EA",null,5,{"v":0,"d":"$0.00"}]
[974,"SIP,STAR OR EQUIVALENT","12 316SS 150# RR FF 1/8 FLG PKG","EA",null,5,{"v":0,"d":"$0.00"}]
[975,"SIP,STAR OR EQUIVALENT","16 316SS 150# RR FF 1/8 FLG PKG","EA",null,5,{"v":0,"d":"$0.00"}]
[976,"EBAA,SIGMA,STAR,US PIPE","24 MJ B&GSKT PACK L/GLAND 316SS ","EA",null,2,{"v":0,"d":"$0.00"}]
[977,"EBAA,SIGMA,STAR,US PIPE","24 MJ C153 BOLT GSKT PK L/ GLAND","EA",null,2,{"v":0,"d":"$0.00"}]
[978,"EBAA,SIGMA,STAR,US PIPE","3 MJ TRANS BOLT GSKT PK L/ GLAND","EA",null,1,{"v":0,"d":"$0.00"}]
[979,"EBAA,SIGMA,STAR,US PIPE","4 MJ TRANS BOLT GSKT PK L/ GLAND","EA",null,1,{"v":0,"d":"$0.00"}]
[980,"STAR OR EQUIVALENT","16 304SS 150# NEOP FF 1/8 FLG PKG","EA",null,1,{"v":0,"d":"$0.00"}]
[981,"STAR OR EQUIVALENT","10 304SS 150# NEOP FF 1/8 FLG PKG","EA",null,1,{"v":0,"d":"$0.00"}]
[982,"STAR OR EQUIVALENT","4 316SS 150 NEOP FF 1/8 FLG PKG","EA",null,1,{"v":0,"d":"$0.00"}]
[983,"STAR OR EQUIVALENT","6 316SS 150 NEOP FF 1/8 FLG SET","EA",null,1,{"v":0,"d":"$0.00"}]
[984,"STAR OR EQUIVALENT","8 316SS 150 NEOP FF 1/8 FLG PKG","EA",null,1,{"v":0,"d":"$0.00"}]
[985,"STAR OR EQUIVALENT","16 316SS 150 NEOP FF 1/8 FLG PKG","EA",null,1,{"v":0,"d":"$0.00"}]
[986,"STAR OR EQUIVALENT","12 316SS 150 NEOP FF 1/8 FLG PKG","EA",null,1,{"v":0,"d":"$0.00"}]
[987,"KRAUSZ","4 HYMAX FLG ADPT 4.25-5.63","EA",null,1,{"v":0,"d":"$0.00"}]
[988,"KRAUSZ","6 HYMAX FLG ADPT 6.42-7.68","EA",null,1,{"v":0,"d":"$0.00"}]
[989,"KRAUSZ","8 HYMAX FLG ADPT 8.54-9.84","EA",null,1,{"v":0,"d":"$0.00"}]
[990,"KRAUSZ","10 HYMAX FLG ADPT 10.70-12.00","EA",null,1,{"v":0,"d":"$0.00"}]
[991,"KRAUSZ","10 OS HYMAX FLG ADPT 10.96-12.26","EA",null,1,{"v":0,"d":"$0.00"}]
[992,"KRAUSZ","12 HYMAX FLG ADPT 12.40-13.66","EA",null,1,{"v":0,"d":"$0.00"}]
[993,"KRAUSZ","12 OS HYMAX FLG ADPT 13.15-14.41","EA",null,1,{"v":0,"d":"$0.00"}]
[994,"KRAUSZ","2 HYMAX REP COUP 2.10-3.03","EA",null,1,{"v":0,"d":"$0.00"}]
[995,"KRAUSZ","3 HYMAX REP COUP 3.46-4.33","EA",null,1,{"v":0,"d":"$0.00"}]
[996,"KRAUSZ","4 HYMAX REP COUP 4.25 - 5.63","EA",null,1,{"v":0,"d":"$0.00"}]
[997,"KRAUSZ","6 HYMAX REP COUP 6.42-7.68","EA",null,2,{"v":0,"d":"$0.00"}]
[998,"KRAUSZ","8 HYMAX REP COUP 8.54-9.84","EA",null,2,{"v":0,"d":"$0.00"}]
[999,"KRAUSZ","10 HYMAX REP COUP 10.70-12.00","EA",null,1,{"v":0,"d":"$0.00"}]
[1000,"KRAUSZ","10 OS HYMAX REP COUP 10.96-12.26","EA",null,1,{"v":0,"d":"$0.00"}]
[1001,"KRAUSZ","12 HYMAX REP COUP 12.40-13.66","EA",null,1,{"v":0,"d":"$0.00"}]
[1002,"KRAUSZ","12 OS HYMAX REP COUP 13.15-14.41","EA",null,1,{"v":0,"d":"$0.00"}]
[1003,"KRAUSZ","14 HYMAX COUP 15.00-17.10","EA",null,1,{"v":0,"d":"$0.00"}]
[1004,"KRAUSZ","16 HYMAX REP COUP 17.10-19.20","EA",null,1,{"v":0,"d":"$0.00"}]
[1005,"KRAUSZ","18 HYMAX REP COUP 19.20-21.30","EA",null,1,{"v":0,"d":"$0.00"}]
[1006,"KRAUSZ","20 HYMAX REP COUP 21.25 - 23.35","EA",null,1,{"v":0,"d":"$0.00"}]
[1007,"KRAUSZ","24 HYMAX LONG BODY COUP 24.60-26.70","EA",null,1,{"v":0,"d":"$0.00"}]
[1008,"KRAUSZ","4X15 HYMAX REP CLMP 4.47-5.27","EA",null,1,{"v":0,"d":"$0.00"}]
[1009,"KRAUSZ","6X15 HYMAX REP CLMP 6.60-7.40","EA",null,1,{"v":0,"d":"$0.00"}]
[1010,"KRAUSZ","8X15 EZ-MAX REP CLMP 8.60-9.40","EA",null,1,{"v":0,"d":"$0.00"}]
[1011,"KRAUSZ","10X15 HYMAX REP CLMP 10.73-11.53","EA",null,1,{"v":0,"d":"$0.00"}]
[1012,"KRAUSZ","12X15 HYMAX REP CLMP 12.75-13.55","EA",null,1,{"v":0,"d":"$0.00"}]
[1013,"KRAUSZ","3 HYMAX FLG ADPT 3.46-4.33","EA",null,1,{"v":0,"d":"$0.00"}]
[1014,"KRAUSZ","3X9 EZ MAX SS REP CLMP 3.42-4.25","EA",null,1,{"v":0,"d":"$0.00"}]
[1015,"KRAUSZ","4X12 EZ-MAX REP CLMP 4.47-5.27","EA",null,1,{"v":0,"d":"$0.00"}]
[1016,"FORD,BMI","LF 3X2-1/2 BRS BUSH","EA",null,10,{"v":0,"d":"$0.00"}]
[1017,"FORD,BMI","LF 3X2 BRS BUSH","EA",null,10,{"v":0,"d":"$0.00"}]
[1018,"FORD,BMI","LF 2X1-1/2 BRS BUSH","EA",null,75,{"v":0,"d":"$0.00"}]
[1019,"FORD,BMI","LF 2X1-1/4 BRS BUSH","EA",null,5,{"v":0,"d":"$0.00"}]
[1020,"FORD,BMI","LF 2X1 BRS BUSH","EA",null,100,{"v":0,"d":"$0.00"}]
[1021,"FORD,BMI","LF 2X3/4 BRS BUSH","EA",null,15,{"v":0,"d":"$0.00"}]
[1022,"FORD,BMI","LF 2X1/2 BRS BUSH","EA",null,5,{"v":0,"d":"$0.00"}]
[1023,"FORD,BMI","LF 1-1/2X1-1/4 BRS BUSH","EA",null,5,{"v":0,"d":"$0.00"}]
[1024,"FORD,BMI","LF 1-1/2X1 BRS BUSH","EA",null,75,{"v":0,"d":"$0.00"}]
[1025,"FORD,BMI","LF 1-1/2X3/4 BRS BUSH","EA",null,15,{"v":0,"d":"$0.00"}]
[1026,"FORD,BMI","LF 1-1/2X1/2 BRS BUSH","EA",null,5,{"$f":"SUM(E1032*F1032)","v":{"v":0,"d":"$0.00"}}]
[1027,"FORD,BMI","LF 1-1/2X1/4 BRS BUSH","EA",null,5,{"v":0,"d":"$0.00"}]
[1028,"FORD,BMI","LF 1-1/4X1 BRS BUSH","EA",null,5,{"v":0,"d":"$0.00"}]
[1029,"FORD,BMI","LF 1-1/4X3/4 BRS BUSH","EA",null,5,{"v":0,"d":"$0.00"}]
[1030,"FORD,BMI","LF LF 1-1/4X1/2 BRS BUSH","EA",null,5,{"v":0,"d":"$0.00"}]
[1031,"FORD,BMI","LF 1X3/4 BRS BUSH","EA",null,50,{"v":0,"d":"$0.00"}]
[1032,"FORD,BMI","LF 1X1/2 BRS BUSH","EA",null,5,{"v":0,"d":"$0.00"}]
[1033,"FORD,BMI","LF 1X1/4 BRS BUSH","EA",null,5,{"v":0,"d":"$0.00"}]
[1034,"FORD,BMI","LF 3/4X1/2 BRS BUSH","EA",null,5,{"v":0,"d":"$0.00"}]
[1035,"FORD,BMI","LF 3/4X1/4 BRS BUSH","EA",null,5,{"v":0,"d":"$0.00"}]
[1036,"FORD,BMI","LF 1/2X1/4 BRS BUSH","EA",null,5,{"v":0,"d":"$0.00"}]
[1037,"TA CHEN INTERNATIONAL","2X1-1/2 SS 304 150# THRD BUSH","EA",null,1,{"v":0,"d":"$0.00"}]
[1038,"TA CHEN INTERNATIONAL","2X1-1/4 SS 304 150# THRD BUSH","EA",null,1,{"v":0,"d":"$0.00"}]
[1039,"TA CHEN INTERNATIONAL","2X1 SS 304 150# THRD BUSH","EA",null,1,{"v":0,"d":"$0.00"}]
[1040,"TA CHEN INTERNATIONAL","2X3/4 SS 304 150# THRD BUSH","EA",null,1,{"v":0,"d":"$0.00"}]
[1041,"TA CHEN INTERNATIONAL","2X1/2 SS 304 150# THRD BUSH","EA",null,1,{"v":0,"d":"$0.00"}]
[1042,"TA CHEN INTERNATIONAL","1-1/2X1-1/4 SS 304 150# THRD BUSH","EA",null,1,{"v":0,"d":"$0.00"}]
[1043,"TA CHEN INTERNATIONAL","1-1/2X1 SS 304 150# THRD BUSH","EA",null,1,{"v":0,"d":"$0.00"}]
[1044,"TA CHEN INTERNATIONAL","1-1/2X3/4 SS 304 150# THRD BUSH","EA",null,11,{"v":0,"d":"$0.00"}]
[1045,"TA CHEN INTERNATIONAL","1-1/2X1/2 SS 304 150# THRD BUSH","EA",null,1,{"v":0,"d":"$0.00"}]
[1046,"TA CHEN INTERNATIONAL","1-1/2X1/4 SS 304 150# THRD BUSH","EA",null,1,{"v":0,"d":"$0.00"}]
[1047,"TA CHEN INTERNATIONAL","1-1/4X1 SS 304 150# THRD BUSH","EA",null,1,{"v":0,"d":"$0.00"}]
[1048,"TA CHEN INTERNATIONAL","1-1/4X3/4 SS 304 150# THRD BUSH","EA",null,1,{"v":0,"d":"$0.00"}]
[1049,"TA CHEN INTERNATIONAL","1-1/4X1/2 SS 304 150# THRD BUSH","EA",null,1,{"v":0,"d":"$0.00"}]
[1050,"TA CHEN INTERNATIONAL","1X3/4 SS 304 150# THRD BUSH","EA",null,1,{"v":0,"d":"$0.00"}]
[1051,"TA CHEN INTERNATIONAL","1X1/2 SS 304 150# THRD BUSH","EA",null,1,{"v":0,"d":"$0.00"}]
[1052,"TA CHEN INTERNATIONAL","1X1/4 SS 304 150# THRD BUSH","EA",null,1,{"v":0,"d":"$0.00"}]
[1053,"TA CHEN INTERNATIONAL","3/4X1/2 SS 304 150# THRD BUSH","EA",null,1,{"v":0,"d":"$0.00"}]
[1054,"TA CHEN INTERNATIONAL","3/4X1/4 SS 304 150# THRD BUSH","EA",null,1,{"v":0,"d":"$0.00"}]
[1055,"TA CHEN INTERNATIONAL","1/2X1/4 SS 304 150# THRD BUSH","EA",null,1,{"v":0,"d":"$0.00"}]
[1056,"TA CHEN INTERNATIONAL","3X2           SS 316 150# THRD BUSH","EA",null,1,{"v":0,"d":"$0.00"}]
[1057,"TA CHEN INTERNATIONAL","2X1-1/2 SS 316 150# THRD BUSH","EA",null,1,{"v":0,"d":"$0.00"}]
[1058,"TA CHEN INTERNATIONAL","2X1-1/4 SS 316 150# THRD BUSH","EA",null,1,{"v":0,"d":"$0.00"}]
[1059,"TA CHEN INTERNATIONAL","2X1 SS 316 150# THRD BUSH","EA",null,1,{"v":0,"d":"$0.00"}]
[1060,"TA CHEN INTERNATIONAL","2X3/4 SS 316 150# THRD BUSH","EA",null,1,{"v":0,"d":"$0.00"}]
[1061,"TA CHEN INTERNATIONAL","2X1/2 SS 316 150# THRD BUSH","EA",null,1,{"v":0,"d":"$0.00"}]
[1062,"TA CHEN INTERNATIONAL","2X1/4         SS 316 150# THRD BUSH","EA",null,1,{"v":0,"d":"$0.00"}]
[1063,"TA CHEN INTERNATIONAL","1-1/2X1-1/4 SS 316 150# THRD BUSH","EA",null,1,{"v":0,"d":"$0.00"}]
[1064,"TA CHEN INTERNATIONAL","1-1/2X1 SS 316 150# THRD BUSH","EA",null,1,{"v":0,"d":"$0.00"}]
[1065,"TA CHEN INTERNATIONAL","1-1/2X3/4 SS 316 150# THRD BUSH","EA",null,1,{"v":0,"d":"$0.00"}]
[1066,"TA CHEN INTERNATIONAL","1-1/2X1/2 SS 316 150# THRD BUSH","EA",null,1,{"v":0,"d":"$0.00"}]
[1067,"TA CHEN INTERNATIONAL","1-1/2X1/4 SS 316 150# THRD BUSH","EA",null,1,{"v":0,"d":"$0.00"}]
[1068,"TA CHEN INTERNATIONAL","1-1/4X1 SS 316 150# THRD BUSH","EA",null,1,{"v":0,"d":"$0.00"}]
[1069,"TA CHEN INTERNATIONAL","1-1/4X3/4 SS 316 150# THRD BUSH","EA",null,1,{"v":0,"d":"$0.00"}]
[1070,"TA CHEN INTERNATIONAL","1-1/4X1/2 SS 316 150# THRD BUSH","EA",null,1,{"v":0,"d":"$0.00"}]
[1071,"TA CHEN INTERNATIONAL","1X3/4 SS 316 150# THRD BUSH","EA",null,1,{"v":0,"d":"$0.00"}]
[1072,"TA CHEN INTERNATIONAL","1X1/2 SS 316 150# THRD BUSH","EA",null,1,{"v":0,"d":"$0.00"}]
[1073,"TA CHEN INTERNATIONAL","1X1/4 SS 316 150# THRD BUSH","EA",null,1,{"v":0,"d":"$0.00"}]
[1074,"TA CHEN INTERNATIONAL","3/4X1/2 SS 316 150# THRD BUSH","EA",null,1,{"v":0,"d":"$0.00"}]
[1075,"TA CHEN INTERNATIONAL","3/4X1/4 SS 316 150# THRD BUSH","EA",null,1,{"v":0,"d":"$0.00"}]
[1076,"TA CHEN INTERNATIONAL","1/2X1/4 SS 316 150# THRD BUSH","EA",null,1,{"v":0,"d":"$0.00"}]
[1077,"TA CHEN INTERNATIONAL","3X1 SS 316 150# THRD BUSH","EA",null,1,{"v":0,"d":"$0.00"}]
[1078,"FORD, AY MCDONALD, MUELLER","LF 1/4 BRS CAP","EA",null,1,{"v":0,"d":"$0.00"}]
[1079,"FORD, AY MCDONALD, MUELLER","LF 1/2 BRS CAP","EA",null,1,{"v":0,"d":"$0.00"}]
[1080,"FORD, AY MCDONALD, MUELLER","LF 3/4 BRS CAP","EA",null,5,{"v":0,"d":"$0.00"}]
[1081,"FORD, AY MCDONALD, MUELLER","LF 1 BRS CAP","EA",null,5,{"v":0,"d":"$0.00"}]
[1082,"FORD, AY MCDONALD, MUELLER","LF 1-1/4 BRS CAP","EA",null,1,{"v":0,"d":"$0.00"}]
[1083,"FORD, AY MCDONALD, MUELLER","LF 1-1/2 BRS CAP","EA",null,5,{"v":0,"d":"$0.00"}]
[1084,"FORD, AY MCDONALD, MUELLER","LF 2 BRS CAP","EA",null,5,{"v":0,"d":"$0.00"}]
[1085,"FORD, AY MCDONALD, MUELLER","LF 2-1/2 BRS CAP","EA",null,1,{"v":0,"d":"$0.00"}]
[1086,"FORD, AY MCDONALD, MUELLER","LF 3 BRS CAP","EA",null,1,{"v":0,"d":"$0.00"}]
[1087,"TA CHEN INTERNATIONAL","1/4 SS 304 150# THRD CAP","EA",null,1,{"v":0,"d":"$0.00"}]
[1088,"TA CHEN INTERNATIONAL","1/2 SS 304 150# THRD CAP","EA",null,1,{"v":0,"d":"$0.00"}]
[1089,"TA CHEN INTERNATIONAL","3/4 SS 304 150# THRD CAP","EA",null,1,{"v":0,"d":"$0.00"}]
[1090,"TA CHEN INTERNATIONAL","1 SS 304 150# THRD CAP","EA",null,1,{"$f":"SUM(E1096*F1096)","v":{"v":0,"d":"$0.00"}}]
[1091,"TA CHEN INTERNATIONAL","1-1/4 SS 304 150# THRD CAP","EA",null,1,{"v":0,"d":"$0.00"}]
[1092,"TA CHEN INTERNATIONAL","1-1/2 SS 304 150# THRD CAP","EA",null,1,{"v":0,"d":"$0.00"}]
[1093,"TA CHEN INTERNATIONAL","2 SS 304 150# THRD CAP","EA",null,1,{"v":0,"d":"$0.00"}]
[1094,"TA CHEN INTERNATIONAL","1/4 SS 316 150# THRD CAP","EA",null,1,{"v":0,"d":"$0.00"}]
[1095,"TA CHEN INTERNATIONAL","1/2 SS 316 150# THRD CAP","EA",null,1,{"v":0,"d":"$0.00"}]
[1096,"TA CHEN INTERNATIONAL","3/4 SS 316 150# THRD CAP","EA",null,1,{"v":0,"d":"$0.00"}]
[1097,"TA CHEN INTERNATIONAL","1 SS 316 150# THRD CAP","EA",null,1,{"v":0,"d":"$0.00"}]
[1098,"TA CHEN INTERNATIONAL","1-1/4 SS 316 150# THRD CAP","EA",null,1,{"v":0,"d":"$0.00"}]
[1099,"TA CHEN INTERNATIONAL","1-1/2 SS 316 150# THRD CAP","EA",null,1,{"v":0,"d":"$0.00"}]
[1100,"TA CHEN INTERNATIONAL","2 SS 316 150# THRD CAP","EA",null,1,{"v":0,"d":"$0.00"}]
[1101,"FORD, AY MCDONALD, MUELLER","LF 1/4 BRS COUP","EA",null,1,{"v":0,"d":"$0.00"}]
[1102,"FORD, AY MCDONALD, MUELLER","LF 1/2 BRS COUP","EA",null,1,{"v":0,"d":"$0.00"}]
[1103,"FORD, AY MCDONALD, MUELLER","LF 3/4 BRS COUP","EA",null,20,{"v":0,"d":"$0.00"}]
[1104,"FORD, AY MCDONALD, MUELLER","LF 1 BRS COUP","EA",null,20,{"v":0,"d":"$0.00"}]
[1105,"FORD, AY MCDONALD, MUELLER","LF 1-1/4 BRS COUP","EA",null,5,{"v":0,"d":"$0.00"}]
[1106,"FORD, AY MCDONALD, MUELLER","LF 1-1/2 BRS COUP","EA",null,20,{"v":0,"d":"$0.00"}]
[1107,"FORD, AY MCDONALD, MUELLER","LF 2 BRS COUP","EA",null,20,{"v":0,"d":"$0.00"}]
[1108,"FORD, AY MCDONALD, MUELLER","LF 2-1/2 BRS COUP","EA",null,1,{"v":0,"d":"$0.00"}]
[1109,"FORD, AY MCDONALD, MUELLER","LF 3 BRS COUP","EA",null,1,{"v":0,"d":"$0.00"}]
[1110,"TA CHEN INTERNATIONAL","2 SS 304 150# THRD COUP 2.58OD","EA",null,5,{"v":0,"d":"$0.00"}]
[1111,"TA CHEN INTERNATIONAL","2 SS 316 150# THRD COUP","EA",null,5,{"v":0,"d":"$0.00"}]
[1112,"FORD, AY MCDONALD, MUELLER","LF 1/4 BRS 90 ELL","EA",null,1,{"v":0,"d":"$0.00"}]
[1113,"FORD, AY MCDONALD, MUELLER","LF 1/2 BRS 90 ELL","EA",null,1,{"v":0,"d":"$0.00"}]
[1114,"FORD, AY MCDONALD, MUELLER","LF 3/4 BRS 90 ELL","EA",null,10,{"v":0,"d":"$0.00"}]
[1115,"FORD, AY MCDONALD, MUELLER","LF 1 BRS 90 ELL","EA",null,10,{"v":0,"d":"$0.00"}]
[1116,"FORD, AY MCDONALD, MUELLER","LF 1-1/4 BRS 90 ELL","EA",null,5,{"v":0,"d":"$0.00"}]
[1117,"FORD, AY MCDONALD, MUELLER","LF 1-1/2 BRS 90 ELL","EA",null,10,{"v":0,"d":"$0.00"}]
[1118,"FORD, AY MCDONALD, MUELLER","LF 2 BRS 90 ELL","EA",null,10,{"v":0,"d":"$0.00"}]
[1119,"FORD, AY MCDONALD, MUELLER","LF 2-1/2 BRS 90 ELL","EA",null,1,{"v":0,"d":"$0.00"}]
[1120,"FORD, AY MCDONALD, MUELLER","LF 3 BRS 90 ELL","EA",null,1,{"v":0,"d":"$0.00"}]
[1121,"FORD, AY MCDONALD, MUELLER","LF 1/4 BRS 45 ELL","EA",null,1,{"v":0,"d":"$0.00"}]
[1122,"FORD, AY MCDONALD, MUELLER","LF 1/2 BRS 45 ELL","EA",null,1,{"v":0,"d":"$0.00"}]
[1123,"FORD, AY MCDONALD, MUELLER","LF 3/4 BRS 45 ELL","EA",null,5,{"v":0,"d":"$0.00"}]
[1124,"FORD, AY MCDONALD, MUELLER","LF 1 BRS 45 ELL","EA",null,5,{"v":0,"d":"$0.00"}]
[1125,"FORD, AY MCDONALD, MUELLER","LF 1-1/4 BRS 45 ELL","EA",null,5,{"v":0,"d":"$0.00"}]
[1126,"FORD, AY MCDONALD, MUELLER","LF 1-1/2 BRS 45 ELL","EA",null,5,{"v":0,"d":"$0.00"}]
[1127,"FORD, AY MCDONALD, MUELLER","LF 2 BRS 45 ELL","EA",null,5,{"v":0,"d":"$0.00"}]
[1128,"FORD, AY MCDONALD, MUELLER","LF 2-1/2 BRS 45 ELL","EA",null,1,{"v":0,"d":"$0.00"}]
[1129,"FORD, AY MCDONALD, MUELLER","LF 3 BRS 45 ELL","EA",null,1,{"v":0,"d":"$0.00"}]
[1130,"TA CHEN INTERNATIONAL OR EQUIVALENT","1/4 SS 304 150# THRD 90 ELL","EA",null,1,{"v":0,"d":"$0.00"}]
[1131,"TA CHEN INTERNATIONAL OR EQUIVALENT","1/2 SS 304 150# THRD 90 ELL","EA",null,1,{"v":0,"d":"$0.00"}]
[1132,"TA CHEN INTERNATIONAL OR EQUIVALENT","3/4 SS 304 150# THRD 90 ELL","EA",null,1,{"v":0,"d":"$0.00"}]
[1133,"TA CHEN INTERNATIONAL OR EQUIVALENT","1 SS 304 150# THRD 90 ELL","EA",null,1,{"v":0,"d":"$0.00"}]
[1134,"TA CHEN INTERNATIONAL OR EQUIVALENT","1-1/4 SS 304 150# THRD 90 ELL","EA",null,1,{"v":0,"d":"$0.00"}]
[1135,"TA CHEN INTERNATIONAL OR EQUIVALENT","1-1/2 SS 304 150# THRD 90 ELL","EA",null,1,{"v":0,"d":"$0.00"}]
[1136,"TA CHEN INTERNATIONAL OR EQUIVALENT","2 SS 304 150# THRD 90 ELL","EA",null,1,{"v":0,"d":"$0.00"}]
[1137,"TA CHEN INTERNATIONAL OR EQUIVALENT","2 SS 304 150# THRD 45 ELL","EA",null,1,{"v":0,"d":"$0.00"}]
[1138,"TA CHEN INTERNATIONAL OR EQUIVALENT","1/4 SS 316 150# THRD 90 ELL","EA",null,1,{"v":0,"d":"$0.00"}]
[1139,"TA CHEN INTERNATIONAL OR EQUIVALENT","1/2 SS 316 150# THRD 90 ELL","EA",null,1,{"v":0,"d":"$0.00"}]
[1140,"TA CHEN INTERNATIONAL OR EQUIVALENT","3/4 SS 316 150# THRD 90 ELL","EA",null,1,{"v":0,"d":"$0.00"}]
[1141,"TA CHEN INTERNATIONAL OR EQUIVALENT","1 SS 316 150# THRD 90 ELL","EA",null,1,{"v":0,"d":"$0.00"}]
[1142,"TA CHEN INTERNATIONAL OR EQUIVALENT","1-1/4 SS 316 150# THRD 90 ELL","EA",null,1,{"v":0,"d":"$0.00"}]
[1143,"TA CHEN INTERNATIONAL OR EQUIVALENT","1-1/2 SS 316 150# THRD 90 ELL","EA",null,1,{"v":0,"d":"$0.00"}]
[1144,"TA CHEN INTERNATIONAL OR EQUIVALENT","2 SS 316 150# THRD 90 ELL","EA",null,1,{"v":0,"d":"$0.00"}]
[1145,"TA CHEN INTERNATIONAL OR EQUIVALENT","3     SS 316 150# THRD 90 ELL","EA",null,1,{"v":0,"d":"$0.00"}]
[1146,"TA CHEN INTERNATIONAL OR EQUIVALENT","1/4 SS 316 150# THRD 45 ELL","EA",null,1,{"v":0,"d":"$0.00"}]
[1147,"TA CHEN INTERNATIONAL OR EQUIVALENT","1/2 SS 316 150# THRD 45 ELL","EA",null,1,{"v":0,"d":"$0.00"}]
[1148,"TA CHEN INTERNATIONAL OR EQUIVALENT","3/4 SS 316 150# THRD 45 ELL","EA",null,1,{"v":0,"d":"$0.00"}]
[1149,"TA CHEN INTERNATIONAL OR EQUIVALENT","1 SS 316 150# THRD 45 ELL","EA",null,1,{"v":0,"d":"$0.00"}]
[1150,"TA CHEN INTERNATIONAL OR EQUIVALENT","1-1/4 SS 316 150# THRD 45 ELL","EA",null,1,{"v":0,"d":"$0.00"}]
[1151,"TA CHEN INTERNATIONAL OR EQUIVALENT","1-1/2 SS 316 150# THRD 45 ELL","EA",null,1,{"v":0,"d":"$0.00"}]
[1152,"TA CHEN INTERNATIONAL OR EQUIVALENT","2 SS 316 150# THRD 45 ELL","EA",null,1,{"v":0,"d":"$0.00"}]
[1153,"FORD, AY MCDONALD, MUELLER","LF 1/4XCLOSE BRS NIP","EA",null,1,{"v":0,"d":"$0.00"}]
[1154,"FORD, AY MCDONALD, MUELLER","LF 1/4X2 BRS NIP","EA",null,1,{"$f":"SUM(E1160*F1160)","v":{"v":0,"d":"$0.00"}}]
[1155,"FORD, AY MCDONALD, MUELLER","LF 1/4X3 BRS NIP","EA",null,1,{"v":0,"d":"$0.00"}]
[1156,"FORD, AY MCDONALD, MUELLER","LF 1/4X4 BRS NIP","EA",null,1,{"v":0,"d":"$0.00"}]
[1157,"FORD, AY MCDONALD, MUELLER","LF 1/4X6 BRS NIP","EA",null,1,{"v":0,"d":"$0.00"}]
[1158,"FORD, AY MCDONALD, MUELLER","LF 1/4X8 BRS NIP","EA",null,1,{"v":0,"d":"$0.00"}]
[1159,"FORD, AY MCDONALD, MUELLER","LF 1/4X12 BRS NIP","EA",null,1,{"v":0,"d":"$0.00"}]
[1160,"FORD, AY MCDONALD, MUELLER","LF 1/2XCLOSE BRS NIP","EA",null,1,{"v":0,"d":"$0.00"}]
[1161,"FORD, AY MCDONALD, MUELLER","LF 1/2X2 BRS NIP","EA",null,1,{"v":0,"d":"$0.00"}]
[1162,"FORD, AY MCDONALD, MUELLER","LF 1/2X3 BRS NIP","EA",null,1,{"v":0,"d":"$0.00"}]
[1163,"FORD, AY MCDONALD, MUELLER","LF 1/2X4 BRS NIP","EA",null,1,{"v":0,"d":"$0.00"}]
[1164,"FORD, AY MCDONALD, MUELLER","LF 1/2X6 BRS NIP","EA",null,1,{"v":0,"d":"$0.00"}]
[1165,"FORD, AY MCDONALD, MUELLER","LF 1/2X8 BRS NIP","EA",null,1,{"v":0,"d":"$0.00"}]
[1166,"FORD, AY MCDONALD, MUELLER","LF 1/2X12 BRS NIP","EA",null,1,{"v":0,"d":"$0.00"}]
[1167,"FORD, AY MCDONALD, MUELLER","LF 3/4XCLOSE BRS NIP","EA",null,50,{"v":0,"d":"$0.00"}]
[1168,"FORD, AY MCDONALD, MUELLER","LF 3/4X2 BRS NIP","EA",null,30,{"v":0,"d":"$0.00"}]
[1169,"FORD, AY MCDONALD, MUELLER","LF 3/4X3 BRS NIP","EA",null,30,{"v":0,"d":"$0.00"}]
[1170,"FORD, AY MCDONALD, MUELLER","LF 3/4X4 BRS NIP","EA",null,10,{"v":0,"d":"$0.00"}]
[1171,"FORD, AY MCDONALD, MUELLER","LF 3/4X6 BRS NIP","EA",null,20,{"v":0,"d":"$0.00"}]
[1172,"FORD, AY MCDONALD, MUELLER","LF 3/4X8 BRS NIP","EA",null,1,{"v":0,"d":"$0.00"}]
[1173,"FORD, AY MCDONALD, MUELLER","LF 3/4X12 BRS NIP","EA",null,1,{"v":0,"d":"$0.00"}]
[1174,"FORD, AY MCDONALD, MUELLER","LF 3/4X20 BRS NIP","EA",null,1,{"v":0,"d":"$0.00"}]
[1175,"FORD, AY MCDONALD, MUELLER","LF 3/4X24 BRS NIP","EA",null,1,{"v":0,"d":"$0.00"}]
[1176,"FORD, AY MCDONALD, MUELLER","LF 3/4 X 26 BRS NIP","EA",null,1,{"v":0,"d":"$0.00"}]
[1177,"FORD, AY MCDONALD, MUELLER","LF 3/4X36 BRS NIP","EA",null,1,{"v":0,"d":"$0.00"}]
[1178,"FORD, AY MCDONALD, MUELLER","LF 3/4X48 BRS NIP","EA",null,1,{"v":0,"d":"$0.00"}]
[1179,"FORD, AY MCDONALD, MUELLER","LF 1XCLOSE BRS NIP","EA",null,15,{"v":0,"d":"$0.00"}]
[1180,"FORD, AY MCDONALD, MUELLER","LF 1X2 BRS NIP","EA",null,10,{"v":0,"d":"$0.00"}]
[1181,"FORD, AY MCDONALD, MUELLER","LF 1X3 BRS NIP","EA",null,10,{"v":0,"d":"$0.00"}]
[1182,"FORD, AY MCDONALD, MUELLER","LF 1X4 BRS NIP","EA",null,5,{"v":0,"d":"$0.00"}]
[1183,"FORD, AY MCDONALD, MUELLER","LF 1X6 BRS NIP","EA",null,5,{"v":0,"d":"$0.00"}]
[1184,"FORD, AY MCDONALD, MUELLER","LF 1X8 BRS NIP","EA",null,1,{"v":0,"d":"$0.00"}]
[1185,"FORD, AY MCDONALD, MUELLER","LF 1X12 BRS NIP","EA",null,1,{"v":0,"d":"$0.00"}]
[1186,"FORD, AY MCDONALD, MUELLER","LF 1X24 BRS NIP","EA",null,1,{"v":0,"d":"$0.00"}]
[1187,"FORD, AY MCDONALD, MUELLER","LF 1X36 BRS NIP","EA",null,1,{"v":0,"d":"$0.00"}]
[1188,"FORD, AY MCDONALD, MUELLER","LF 1X48 BRS NIP","EA",null,1,{"v":0,"d":"$0.00"}]
[1189,"FORD, AY MCDONALD, MUELLER","LF 1-1/4XCLOSE BRS NIP","EA",null,1,{"v":0,"d":"$0.00"}]
[1190,"FORD, AY MCDONALD, MUELLER","LF 1-1/4X2 BRS NIP","EA",null,1,{"v":0,"d":"$0.00"}]
[1191,"FORD, AY MCDONALD, MUELLER","LF 1-1/4X3 BRS NIP","EA",null,1,{"v":0,"d":"$0.00"}]
[1192,"FORD, AY MCDONALD, MUELLER","LF 1-1/4X4 BRS NIP","EA",null,1,{"v":0,"d":"$0.00"}]
[1193,"FORD, AY MCDONALD, MUELLER","LF 1-1/4X6 BRS NIP","EA",null,1,{"v":0,"d":"$0.00"}]
[1194,"FORD, AY MCDONALD, MUELLER","LF 1-1/4X8 BRS NIP","EA",null,1,{"v":0,"d":"$0.00"}]
[1195,"FORD, AY MCDONALD, MUELLER","LF 1-1/4X12 BRS NIP","EA",null,1,{"v":0,"d":"$0.00"}]
[1196,"FORD, AY MCDONALD, MUELLER","LF 1-1/2XCLOSE BRS NIP","EA",null,5,{"v":0,"d":"$0.00"}]
[1197,"FORD, AY MCDONALD, MUELLER","LF 1-1/2X2 BRS NIP","EA",null,5,{"v":0,"d":"$0.00"}]
[1198,"FORD, AY MCDONALD, MUELLER","LF 1-1/2X3 BRS NIP","EA",null,5,{"v":0,"d":"$0.00"}]
[1199,"FORD, AY MCDONALD, MUELLER","LF 1-1/2X4 BRS NIP","EA",null,5,{"v":0,"d":"$0.00"}]
[1200,"FORD, AY MCDONALD, MUELLER","LF 1-1/2X6 BRS NIP","EA",null,5,{"v":0,"d":"$0.00"}]
[1201,"FORD, AY MCDONALD, MUELLER","LF 1-1/2X8 BRS NIP","EA",null,1,{"v":0,"d":"$0.00"}]
[1202,"FORD, AY MCDONALD, MUELLER","LF 1-1/2X12 BRS NIP","EA",null,1,{"v":0,"d":"$0.00"}]
[1203,"FORD, AY MCDONALD, MUELLER","LF 1-1/2X18 BRASS NIPPLE","EA",null,1,{"v":0,"d":"$0.00"}]
[1204,"FORD, AY MCDONALD, MUELLER","LF 1-1/2X24 BRS NIP","EA",null,1,{"v":0,"d":"$0.00"}]
[1205,"FORD, AY MCDONALD, MUELLER","LF 1-1/2X36 BRS NIP","EA",null,1,{"v":0,"d":"$0.00"}]
[1206,"FORD, AY MCDONALD, MUELLER","LF 1-1/2X48 BRS NIP","EA",null,1,{"v":0,"d":"$0.00"}]
[1207,"FORD, AY MCDONALD, MUELLER","LF 2XCLOSE BRS NIP","EA",null,50,{"v":0,"d":"$0.00"}]
[1208,"FORD, AY MCDONALD, MUELLER","LF 2X3 BRS NIP","EA",null,10,{"v":0,"d":"$0.00"}]
[1209,"FORD, AY MCDONALD, MUELLER","LF 2X4 BRS NIP","EA",null,5,{"v":0,"d":"$0.00"}]
[1210,"FORD, AY MCDONALD, MUELLER","LF 2X6 BRS NIP","EA",null,5,{"v":0,"d":"$0.00"}]
[1211,"FORD, AY MCDONALD, MUELLER","LF 2X8 BRS NIP","EA",null,1,{"v":0,"d":"$0.00"}]
[1212,"FORD, AY MCDONALD, MUELLER","LF 2X9 BRS NIP GBL","EA",null,1,{"v":0,"d":"$0.00"}]
[1213,"FORD, AY MCDONALD, MUELLER","LF 2X12 BRS NIP","EA",null,1,{"v":0,"d":"$0.00"}]
[1214,"FORD, AY MCDONALD, MUELLER","LF 2X18 BRS NIP","EA",null,1,{"v":0,"d":"$0.00"}]
[1215,"FORD, AY MCDONALD, MUELLER","LF 2X24 BRS NIP","EA",null,1,{"v":0,"d":"$0.00"}]
[1216,"FORD, AY MCDONALD, MUELLER","LF 2X36 BRS NIP","EA",null,1,{"v":0,"d":"$0.00"}]
[1217,"FORD, AY MCDONALD, MUELLER","LF 2X48 BRS NIP","EA",null,1,{"v":0,"d":"$0.00"}]
[1218,"FORD, AY MCDONALD, MUELLER","LF 3X9 BRS NIP GBL","EA",null,1,{"$f":"SUM(E1224*F1224)","v":{"v":0,"d":"$0.00"}}]
[1219,"TA CHEN INTERNATIONAL OR EQUIVALENT","1/4XCLOSE SS S40 304 NIP","EA",null,1,{"v":0,"d":"$0.00"}]
[1220,"TA CHEN INTERNATIONAL OR EQUIVALENT","1/4X2 SS S40 304 NIP","EA",null,1,{"v":0,"d":"$0.00"}]
[1221,"TA CHEN INTERNATIONAL OR EQUIVALENT","1/4X3 SS S40 304 NIP","EA",null,1,{"v":0,"d":"$0.00"}]
[1222,"TA CHEN INTERNATIONAL OR EQUIVALENT","1/4X4 SS S40 304 NIP","EA",null,1,{"v":0,"d":"$0.00"}]
[1223,"TA CHEN INTERNATIONAL OR EQUIVALENT","1/4X6 SS S40 304 NIP","EA",null,1,{"v":0,"d":"$0.00"}]
[1224,"TA CHEN INTERNATIONAL OR EQUIVALENT","1/4X8 SS S40 304 NIP","EA",null,1,{"v":0,"d":"$0.00"}]
[1225,"TA CHEN INTERNATIONAL OR EQUIVALENT","1/4X12 SS S40 304 NIP","EA",null,1,{"v":0,"d":"$0.00"}]
[1226,"TA CHEN INTERNATIONAL OR EQUIVALENT","1/2XCLOSE SS S40 304 NIP","EA",null,1,{"v":0,"d":"$0.00"}]
[1227,"TA CHEN INTERNATIONAL OR EQUIVALENT","1/2X2 SS S40 304 NIP","EA",null,1,{"v":0,"d":"$0.00"}]
[1228,"TA CHEN INTERNATIONAL OR EQUIVALENT","1/2X3 SS S40 304 NIP","EA",null,1,{"v":0,"d":"$0.00"}]
[1229,"TA CHEN INTERNATIONAL OR EQUIVALENT","1/2X4 SS S40 304 NIP","EA",null,1,{"v":0,"d":"$0.00"}]
[1230,"TA CHEN INTERNATIONAL OR EQUIVALENT","1/2X6 SS S40 304 NIP","EA",null,1,{"v":0,"d":"$0.00"}]
[1231,"TA CHEN INTERNATIONAL OR EQUIVALENT","1/2X8 SS S40 304 NIP","EA",null,1,{"v":0,"d":"$0.00"}]
[1232,"TA CHEN INTERNATIONAL OR EQUIVALENT","1/2X12 SS S40 304 NIP","EA",null,1,{"v":0,"d":"$0.00"}]
[1233,"TA CHEN INTERNATIONAL OR EQUIVALENT","3/4XCLOSE SS S40 304 NIP","EA",null,1,{"v":0,"d":"$0.00"}]
[1234,"TA CHEN INTERNATIONAL OR EQUIVALENT","3/4X2 SS S40 304 NIP","EA",null,1,{"v":0,"d":"$0.00"}]
[1235,"TA CHEN INTERNATIONAL OR EQUIVALENT","3/4X3 SS S40 304 NIP","EA",null,1,{"v":0,"d":"$0.00"}]
[1236,"TA CHEN INTERNATIONAL OR EQUIVALENT","3/4X4 SS S40 304 NIP","EA",null,1,{"v":0,"d":"$0.00"}]
[1237,"TA CHEN INTERNATIONAL OR EQUIVALENT","3/4X6 SS S40 304 NIP","EA",null,1,{"v":0,"d":"$0.00"}]
[1238,"TA CHEN INTERNATIONAL OR EQUIVALENT","3/4X8 SS S40 304 NIP","EA",null,1,{"v":0,"d":"$0.00"}]
[1239,"TA CHEN INTERNATIONAL OR EQUIVALENT","3/4X12 SS S40 304 NIP","EA",null,1,{"v":0,"d":"$0.00"}]
[1240,"TA CHEN INTERNATIONAL OR EQUIVALENT","1XCLOSE SS S40 304 NIP","EA",null,1,{"v":0,"d":"$0.00"}]
[1241,"TA CHEN INTERNATIONAL OR EQUIVALENT","1X2 SS S40 304 NIP","EA",null,1,{"v":0,"d":"$0.00"}]
[1242,"TA CHEN INTERNATIONAL OR EQUIVALENT","1X3 SS S40 304 NIP","EA",null,1,{"v":0,"d":"$0.00"}]
[1243,"TA CHEN INTERNATIONAL OR EQUIVALENT","1X4 SS S40 304 NIP","EA",null,1,{"v":0,"d":"$0.00"}]
[1244,"TA CHEN INTERNATIONAL OR EQUIVALENT","1X6 SS S40 304 NIP","EA",null,1,{"v":0,"d":"$0.00"}]
[1245,"TA CHEN INTERNATIONAL OR EQUIVALENT","1X8 SS S40 304 NIP","EA",null,1,{"v":0,"d":"$0.00"}]
[1246,"TA CHEN INTERNATIONAL OR EQUIVALENT","1X12 SS S40 304 NIP","EA",null,1,{"v":0,"d":"$0.00"}]
[1247,"TA CHEN INTERNATIONAL OR EQUIVALENT","1-1/4XCLOSE SS S40 304 NIP","EA",null,1,{"v":0,"d":"$0.00"}]
[1248,"TA CHEN INTERNATIONAL OR EQUIVALENT","1-1/4X2 SS S40 304 NIP","EA",null,1,{"v":0,"d":"$0.00"}]
[1249,"TA CHEN INTERNATIONAL OR EQUIVALENT","1-1/4X3 SS S40 304 NIP","EA",null,1,{"v":0,"d":"$0.00"}]
[1250,"TA CHEN INTERNATIONAL OR EQUIVALENT","1-1/4X4 SS S40 304 NIP","EA",null,1,{"v":0,"d":"$0.00"}]
[1251,"TA CHEN INTERNATIONAL OR EQUIVALENT","1-1/4X6 SS S40 304 NIP","EA",null,1,{"v":0,"d":"$0.00"}]
[1252,"TA CHEN INTERNATIONAL OR EQUIVALENT","1-1/4X8 SS S40 304 NIP","EA",null,1,{"v":0,"d":"$0.00"}]
[1253,"TA CHEN INTERNATIONAL OR EQUIVALENT","1-1/4X12 SS S40 304 NIP","EA",null,1,{"v":0,"d":"$0.00"}]
[1254,"TA CHEN INTERNATIONAL OR EQUIVALENT","1-1/2XCLOSE SS S40 304 NIP","EA",null,1,{"v":0,"d":"$0.00"}]
[1255,"TA CHEN INTERNATIONAL OR EQUIVALENT","1-1/2X2 SS S40 304 NIP","EA",null,1,{"v":0,"d":"$0.00"}]
[1256,"TA CHEN INTERNATIONAL OR EQUIVALENT","1-1/2X3 SS S40 304 NIP","EA",null,1,{"v":0,"d":"$0.00"}]
[1257,"TA CHEN INTERNATIONAL OR EQUIVALENT","1-1/2X4 SS S40 304 NIP","EA",null,1,{"v":0,"d":"$0.00"}]
[1258,"TA CHEN INTERNATIONAL OR EQUIVALENT","1-1/2X6 SS S40 304 NIP","EA",null,1,{"v":0,"d":"$0.00"}]
[1259,"TA CHEN INTERNATIONAL OR EQUIVALENT","1-1/2X8 SS S40 304 NIP","EA",null,1,{"v":0,"d":"$0.00"}]
[1260,"TA CHEN INTERNATIONAL OR EQUIVALENT","1-1/2X12 SS S40 304 NIP","EA",null,1,{"v":0,"d":"$0.00"}]
[1261,"TA CHEN INTERNATIONAL OR EQUIVALENT","2XCLOSE SS S40 304 NIP","EA",null,1,{"v":0,"d":"$0.00"}]
[1262,"TA CHEN INTERNATIONAL OR EQUIVALENT","2X3 SS S40 304 NIP","EA",null,1,{"v":0,"d":"$0.00"}]
[1263,"TA CHEN INTERNATIONAL OR EQUIVALENT","2X4 SS S40 304 NIP","EA",null,1,{"v":0,"d":"$0.00"}]
[1264,"TA CHEN INTERNATIONAL OR EQUIVALENT","2X6 SS S40 304 NIP","EA",null,1,{"v":0,"d":"$0.00"}]
[1265,"TA CHEN INTERNATIONAL OR EQUIVALENT","2X8 SS S40 304 NIP","EA",null,1,{"v":0,"d":"$0.00"}]
[1266,"TA CHEN INTERNATIONAL OR EQUIVALENT","2X12 SS S40 304 NIP","EA",null,1,{"v":0,"d":"$0.00"}]
[1267,"FORD, AY MCDONALD, MUELLER","LF 1/4 BRS BS SQ HD SLD PLUG","EA",null,5,{"v":0,"d":"$0.00"}]
[1268,"FORD, AY MCDONALD, MUELLER","LF 1/2 BRS SQ HD CORED PLUG ","EA",null,5,{"v":0,"d":"$0.00"}]
[1269,"FORD, AY MCDONALD, MUELLER","LF 3/4 BRS SQ HD CORED PLUG ","EA",null,5,{"v":0,"d":"$0.00"}]
[1270,"FORD, AY MCDONALD, MUELLER","LF 1 BRS SQ HD CORED PLUG ","EA",null,5,{"v":0,"d":"$0.00"}]
[1271,"FORD, AY MCDONALD, MUELLER","LF 1-1/4 BRS CORED PLUG ","EA",null,5,{"v":0,"d":"$0.00"}]
[1272,"FORD, AY MCDONALD, MUELLER","LF 1-1/2 BRS SQ HD CORED PLUG ","EA",null,5,{"v":0,"d":"$0.00"}]
[1273,"FORD, AY MCDONALD, MUELLER","LF 2 BRS SQ HD CORED PLUG ","EA",null,10,{"v":0,"d":"$0.00"}]
[1274,"FORD, AY MCDONALD, MUELLER","LF 2-1/2 BRS SQ HD CORED PLUG ","EA",null,1,{"v":0,"d":"$0.00"}]
[1275,"FORD, AY MCDONALD, MUELLER","LF 3 BRS SQ HD CORED PLUG ","EA",null,1,{"v":0,"d":"$0.00"}]
[1276,"TA CHEN INTERNATIONAL OR EQUIVALENT","1/2 SS 304 150# THRD SQ PLUG ","EA",null,1,{"v":0,"d":"$0.00"}]
[1277,"TA CHEN INTERNATIONAL OR EQUIVALENT","3/4 SS 304 150# THRD SQ PLUG ","EA",null,1,{"v":0,"d":"$0.00"}]
[1278,"TA CHEN INTERNATIONAL OR EQUIVALENT","1 SS 304 150# THRD SQ PLUG ","EA",null,1,{"v":0,"d":"$0.00"}]
[1279,"TA CHEN INTERNATIONAL OR EQUIVALENT","1-1/4 SS 304 150# THRD SQ PLUG ","EA",null,1,{"v":0,"d":"$0.00"}]
[1280,"TA CHEN INTERNATIONAL OR EQUIVALENT","1-1/2 SS 304 150# THRD SQ PLUG ","EA",null,1,{"v":0,"d":"$0.00"}]
[1281,"TA CHEN INTERNATIONAL OR EQUIVALENT","2 SS 304 150# THRD SQ PLUG ","EA",null,1,{"v":0,"d":"$0.00"}]
[1282,"TA CHEN INTERNATIONAL OR EQUIVALENT","1/2 SS 316 150# THRD SQ HD PLUG ","EA",null,1,{"$f":"SUM(E1288*F1288)","v":{"v":0,"d":"$0.00"}}]
[1283,"TA CHEN INTERNATIONAL OR EQUIVALENT","3/4 SS 316 150# THRD SQ HD PLUG ","EA",null,1,{"v":0,"d":"$0.00"}]
[1284,"TA CHEN INTERNATIONAL OR EQUIVALENT","1 SS 316 150# THRD SQ HD PLUG ","EA",null,1,{"v":0,"d":"$0.00"}]
[1285,"TA CHEN INTERNATIONAL OR EQUIVALENT","1-1/4 SS 316 150# THRD SQ HD PLUG ","EA",null,1,{"v":0,"d":"$0.00"}]
[1286,"TA CHEN INTERNATIONAL OR EQUIVALENT","1-1/2 SS 316 150# THRD SQ HD PLUG ","EA",null,1,{"v":0,"d":"$0.00"}]
[1287,"TA CHEN INTERNATIONAL OR EQUIVALENT","2 SS 316 150# THRD SQ HD PLUG ","EA",null,1,{"v":0,"d":"$0.00"}]
[1288,"FORD, AY MCDONALD, MUELLER","LF 1/4 BRS TEE","EA",null,1,{"v":0,"d":"$0.00"}]
[1289,"FORD, AY MCDONALD, MUELLER","LF 1/2 BRS TEE","EA",null,1,{"v":0,"d":"$0.00"}]
[1290,"FORD, AY MCDONALD, MUELLER","LF 3/4 BRS TEE","EA",null,15,{"v":0,"d":"$0.00"}]
[1291,"FORD, AY MCDONALD, MUELLER","LF 1 BRS TEE","EA",null,15,{"v":0,"d":"$0.00"}]
[1292,"FORD, AY MCDONALD, MUELLER","LF 1-1/4 BRS TEE","EA",null,5,{"v":0,"d":"$0.00"}]
[1293,"FORD, AY MCDONALD, MUELLER","LF 1-1/2 BRS TEE","EA",null,15,{"v":0,"d":"$0.00"}]
[1294,"FORD, AY MCDONALD, MUELLER","LF 2 BRS TEE","EA",null,15,{"v":0,"d":"$0.00"}]
[1295,"FORD, AY MCDONALD, MUELLER","LF 2-1/2 BRS TEE","EA",null,1,{"v":0,"d":"$0.00"}]
[1296,"FORD, AY MCDONALD, MUELLER","LF 3 BRS TEE","EA",null,1,{"v":0,"d":"$0.00"}]
[1297,"TA CHEN INTERNATIONAL OR EQUIVALENT","1/4 SS 304 150# THRD TEE","EA",null,1,{"v":0,"d":"$0.00"}]
[1298,"TA CHEN INTERNATIONAL OR EQUIVALENT","1/2 SS 304 150# THRD TEE","EA",null,1,{"v":0,"d":"$0.00"}]
[1299,"TA CHEN INTERNATIONAL OR EQUIVALENT","3/4 SS 304 150# THRD TEE","EA",null,1,{"v":0,"d":"$0.00"}]
[1300,"TA CHEN INTERNATIONAL OR EQUIVALENT","1 SS 304 150# THRD TEE","EA",null,1,{"v":0,"d":"$0.00"}]
[1301,"TA CHEN INTERNATIONAL OR EQUIVALENT","1-1/4 SS 304 150# THRD TEE","EA",null,1,{"v":0,"d":"$0.00"}]
[1302,"TA CHEN INTERNATIONAL OR EQUIVALENT","1-1/2 SS 304 150# THRD TEE","EA",null,1,{"v":0,"d":"$0.00"}]
[1303,"TA CHEN INTERNATIONAL OR EQUIVALENT","2 SS 304 150# THRD TEE","EA",null,1,{"v":0,"d":"$0.00"}]
[1304,"TA CHEN INTERNATIONAL OR EQUIVALENT","1/4 SS 316 150# THRD TEE","EA",null,1,{"v":0,"d":"$0.00"}]
[1305,"TA CHEN INTERNATIONAL OR EQUIVALENT","1/2 SS 316 150# THRD TEE","EA",null,1,{"v":0,"d":"$0.00"}]
[1306,"TA CHEN INTERNATIONAL OR EQUIVALENT","3/4 SS 316 150# THRD TEE","EA",null,1,{"v":0,"d":"$0.00"}]
[1307,"TA CHEN INTERNATIONAL OR EQUIVALENT","1 SS 316 150# THRD TEE","EA",null,1,{"v":0,"d":"$0.00"}]
[1308,"TA CHEN INTERNATIONAL OR EQUIVALENT","1-1/4 SS 316 150# THRD TEE","EA",null,1,{"v":0,"d":"$0.00"}]
[1309,"TA CHEN INTERNATIONAL OR EQUIVALENT","1-1/2 SS 316 150# THRD TEE","EA",null,1,{"v":0,"d":"$0.00"}]
[1310,"TA CHEN INTERNATIONAL OR EQUIVALENT","2 SS 316 150# THRD TEE","EA",null,1,{"v":0,"d":"$0.00"}]
[1311,"TA CHEN INTERNATIONAL OR EQUIVALENT","3 SS 316 150# THRD TEE","EA",null,1,{"v":0,"d":"$0.00"}]
[1312,"FORD, AY MCDONALD, MUELLER","LF 1/4 BRS 125# UNION","EA",null,1,{"v":0,"d":"$0.00"}]
[1313,"FORD, AY MCDONALD, MUELLER","LF 1/2 BRS 125# UNION","EA",null,1,{"v":0,"d":"$0.00"}]
[1314,"FORD, AY MCDONALD, MUELLER","LF 3/4 BRS 125# UNION","EA",null,5,{"v":0,"d":"$0.00"}]
[1315,"FORD, AY MCDONALD, MUELLER","LF 1 BRS 125# UNION","EA",null,5,{"v":0,"d":"$0.00"}]
[1316,"FORD, AY MCDONALD, MUELLER","LF 1-1/4 BRS 125# UNION","EA",null,1,{"v":0,"d":"$0.00"}]
[1317,"FORD, AY MCDONALD, MUELLER","LF 1-1/2 BRS 125# UNION","EA",null,5,{"v":0,"d":"$0.00"}]
[1318,"FORD, AY MCDONALD, MUELLER","LF 2 BRS 125# UNION","EA",null,5,{"v":0,"d":"$0.00"}]
[1319,"FORD, AY MCDONALD, MUELLER","LF 2-1/2 BRS 125# UNION","EA",null,1,{"v":0,"d":"$0.00"}]
[1320,"FORD, AY MCDONALD, MUELLER","LF 3 BRS 125# UNION","EA",null,1,{"v":0,"d":"$0.00"}]
[1321,"TA CHEN INTERNATIONAL OR EQUIVALENT","1/4 SS 304 150# THRD UNION","EA",null,1,{"v":0,"d":"$0.00"}]
[1322,"TA CHEN INTERNATIONAL OR EQUIVALENT","1/2 SS 304 150# THRD UNION","EA",null,1,{"v":0,"d":"$0.00"}]
[1323,"TA CHEN INTERNATIONAL OR EQUIVALENT","3/4 SS 304 150# THRD UNION","EA",null,1,{"v":0,"d":"$0.00"}]
[1324,"TA CHEN INTERNATIONAL OR EQUIVALENT","1 SS 304 150# THRD UNION","EA",null,1,{"v":0,"d":"$0.00"}]
[1325,"TA CHEN INTERNATIONAL OR EQUIVALENT","1-1/4 SS 304 150# THRD UNION","EA",null,1,{"v":0,"d":"$0.00"}]
[1326,"TA CHEN INTERNATIONAL OR EQUIVALENT","1-1/2 SS 304 150# THRD UNION","EA",null,1,{"v":0,"d":"$0.00"}]
[1327,"TA CHEN INTERNATIONAL OR EQUIVALENT","2 SS 304 150# THRD UNION","EA",null,1,{"v":0,"d":"$0.00"}]
[1328,"TA CHEN INTERNATIONAL OR EQUIVALENT","1/4 SS 316 150# THRD UNION","EA",null,1,{"v":0,"d":"$0.00"}]
[1329,"TA CHEN INTERNATIONAL OR EQUIVALENT","1/2 SS 316 150# THRD UNION","EA",null,1,{"v":0,"d":"$0.00"}]
[1330,"TA CHEN INTERNATIONAL OR EQUIVALENT","3/4 SS 316 150# THRD UNION","EA",null,1,{"v":0,"d":"$0.00"}]
[1331,"TA CHEN INTERNATIONAL OR EQUIVALENT","1 SS 316 150# THRD UNION","EA",null,1,{"v":0,"d":"$0.00"}]
[1332,"TA CHEN INTERNATIONAL OR EQUIVALENT","1-1/4 SS 316 150# THRD UNION","EA",null,1,{"v":0,"d":"$0.00"}]
[1333,"TA CHEN INTERNATIONAL OR EQUIVALENT","1-1/2 SS 316 150# THRD UNION","EA",null,1,{"v":0,"d":"$0.00"}]
[1334,"TA CHEN INTERNATIONAL OR EQUIVALENT","2 SS 316 150# THRD UNION","EA",null,1,{"v":0,"d":"$0.00"}]
[1335,"TA CHEN INTERNATIONAL OR EQUIVALENT","2-1/2 SS 316 150# THRD SQ PLUG","EA",null,1,{"v":0,"d":"$0.00"}]
[1336,"TA CHEN INTERNATIONAL OR EQUIVALENT","3     SS 316 150# THRD SQ PLUG","EA",null,1,{"v":0,"d":"$0.00"}]
[1337,"FORD, AY MCDONALD, MUELLER","3 X CLOSE BRS NIP GBL","EA",null,1,{"v":0,"d":"$0.00"}]
[1338,"FORD, AY MCDONALD, MUELLER","3/4X3/8 BRS BUSH","EA",null,1,{"v":0,"d":"$0.00"}]
[1339,"FORD, AY MCDONALD, MUELLER","1/2X3/8 BRS BUSH","EA",null,1,{"v":0,"d":"$0.00"}]
[1340,"FORD, AY MCDONALD, MUELLER","4X2 BRS HEX BUSH","EA",null,1,{"v":0,"d":"$0.00"}]
[1341,"FORD, AY MCDONALD, MUELLER","3/8 BRS TEE","EA",null,1,{"v":0,"d":"$0.00"}]
[1342,"FORD, AY MCDONALD, MUELLER","3/8 BRS 90 ELL","EA",null,1,{"v":0,"d":"$0.00"}]
[1343,"FORD, AY MCDONALD, MUELLER","3/8XCLOSE BRS NIP GBL","EA",null,1,{"v":0,"d":"$0.00"}]
[1344,"FORD, AY MCDONALD, MUELLER","3/8X3 BRS NIP GBL","EA",null,1,{"v":0,"d":"$0.00"}]
[1345,"TA CHEN INTERNATIONAL","2-1/2 SS 304 150 THRD 45 ELL","EA",null,1,{"v":0,"d":"$0.00"}]
[1346,"FORD, AY MCDONALD, MUELLER","1X3/4 BRS RED COUP","EA",null,25,{"$f":"SUM(E1352*F1352)","v":{"v":0,"d":"$0.00"}}]
[1347,"TA CHEN INTERNATIONAL OR EQUIVALENT","1/4 SS 316 150 THRD SQ HD PLUG","EA",null,1,{"v":0,"d":"$0.00"}]
[1348,"TA CHEN INTERNATIONAL OR EQUIVALENT","3/8 SS 316 150 THRD SQ HD PLUG","EA",null,1,{"v":0,"d":"$0.00"}]
[1349,"FORD, AY MCDONALD, MUELLER","LF 1/4X1-1/2 BRS NIP GBL","EA",null,1,{"v":0,"d":"$0.00"}]
[1350,"SAKRETE OR EQUIVALENT","80# BAG HIGH STRENGTH CONCRETE","EA",null,300,{"v":0,"d":"$0.00"}]
[1351,"SAKRETE OR EQUIVALENT","40# BAG HIGH STRENGTH CONCRETE","EA",null,100,{"v":0,"d":"$0.00"}]
[1352,"SAKRETE OR EQUIVALENT","HYDRA PLUG CMNT FAST 50 LB PAIL RED","EA",null,10,{"v":0,"d":"$0.00"}]
[1353,"QPR OR EQUIVALENT","50 LB BAG EZ STREET COLD ASPHALT","EA",null,20,{"v":0,"d":"$0.00"}]
[1354,"LINEGUARD,3M OR EQUVALENT","3X1000 UG DET SWR GREE","EA",null,5,{"v":0,"d":"$0.00"}]
[1355,"LINEGUARD,3M OR EQUVALENT","3X1000 DET TAPE - FORCE MAIN GREE","EA",null,5,{"v":0,"d":"$0.00"}]
[1356,"LINEGUARD,3M OR EQUVALENT","3X1000 DET TAPE - RECL WATE ","EA",null,5,{"v":0,"d":"$0.00"}]
[1357,"RAYOLITE OR EQUIVALENT","GREE TWO WAY PAVEMENT MRKR ","EA",null,100,{"v":0,"d":"$0.00"}]
[1358,"RAYOLITE OR EQUIVALENT","BLUE TWO WAY PAVEMENT MRKR ","EA",null,100,{"v":0,"d":"$0.00"}]
[1359,"US PIPE OR EQUIVALENT","2-4  ADJ PIPE SUPP","EA",null,1,{"v":0,"d":"$0.00"}]
[1360,"US PIPE OR EQUIVALENT","6-10 ADJ PIPE SUPP","EA",null,1,{"v":0,"d":"$0.00"}]
[1361,"US PIPE OR EQUIVALENT","2-4 SS PIPE SUPP STND","EA",null,1,{"v":0,"d":"$0.00"}]
[1362,"US PIPE OR EQUIVALENT","6-10 SS PIPE SUPP STND","EA",null,1,{"v":0,"d":"$0.00"}]
[1363,"SIGMA,EBBA,STAR,US PIPE OR EQUIVALENT","3/4 TFE RING GSKT 1/4","EA",null,1,{"v":0,"d":"$0.00"}]
[1364,"SIGMA,EBBA,STAR,US PIPE OR EQUIVALENT","1 TFE RING GSKT 1/4 ","EA",null,1,{"v":0,"d":"$0.00"}]
[1365,"SIGMA,EBBA,STAR,US PIPE OR EQUIVALENT","1-1/2 TFE RING GSKT 1/4 ","EA",null,1,{"v":0,"d":"$0.00"}]
[1366,"SIGMA,EBBA,STAR,US PIPE OR EQUIVALENT","2 TFE RING GSKT 1/4 ","EA",null,1,{"v":0,"d":"$0.00"}]
[1367,"SIGMA,EBBA,STAR,US PIPE OR EQUIVALENT","2-1/2 TFE RING GSKT 1/4 ","EA",null,1,{"v":0,"d":"$0.00"}]
[1368,"SIGMA,EBBA,STAR,US PIPE OR EQUIVALENT","3 TFE RING GSKT 1/4 ","EA",null,1,{"v":0,"d":"$0.00"}]
[1369,"SIGMA,EBBA,STAR,US PIPE OR EQUIVALENT","3-1/3 TFE RING GSKT 1/4","EA",null,1,{"v":0,"d":"$0.00"}]
[1370,"SIGMA,EBBA,STAR,US PIPE OR EQUIVALENT","4 TFE RING GSKT 1/4 ","EA",null,1,{"v":0,"d":"$0.00"}]
[1371,"SIGMA,EBBA,STAR,US PIPE OR EQUIVALENT","4-1/2 TFE RING GSKT 1/4 ","EA",null,1,{"v":0,"d":"$0.00"}]
[1372,"SIGMA,EBBA,STAR,US PIPE OR EQUIVALENT","5 TFE RING GSKT 1/4 ","EA",null,1,{"v":0,"d":"$0.00"}]
[1373,"SIGMA,EBBA,STAR,US PIPE OR EQUIVALENT","6 TFE RING GSKT 1/4 ","EA",null,1,{"v":0,"d":"$0.00"}]
[1374,"SIGMA,EBBA,STAR,US PIPE OR EQUIVALENT","8 TFE RING GSKT 1/4","EA",null,1,{"v":0,"d":"$0.00"}]
[1375,"SIGMA,EBBA,STAR,US PIPE OR EQUIVALENT","10 TFE RING GSKT 1/4 ","EA",null,1,{"v":0,"d":"$0.00"}]
[1376,"SIGMA,EBBA,STAR,US PIPE OR EQUIVALENT","12 TFE RING GSKT 1/4 ","EA",null,1,{"v":0,"d":"$0.00"}]
[1377,"SIGMA,EBBA,STAR,US PIPE OR EQUIVALENT","1/2 VITON RING GSKT 1/4 ","EA",null,1,{"v":0,"d":"$0.00"}]
[1378,"SIGMA,EBBA,STAR,US PIPE OR EQUIVALENT","3/4 VITON RING GSKT 1/4 ","EA",null,1,{"v":0,"d":"$0.00"}]
[1379,"SIGMA,EBBA,STAR,US PIPE OR EQUIVALENT","1 VITON RING GSKT 1/4 ","EA",null,1,{"v":0,"d":"$0.00"}]
[1380,"SIGMA,EBBA,STAR,US PIPE OR EQUIVALENT","1-1/2 VITON RING GSKT 1/4 ","EA",null,1,{"v":0,"d":"$0.00"}]
[1381,"SIGMA,EBBA,STAR,US PIPE OR EQUIVALENT","2 VITON RING GSKT 1/4 ","EA",null,1,{"v":0,"d":"$0.00"}]
[1382,"SIGMA,EBBA,STAR,US PIPE OR EQUIVALENT","2-1/2 VITON RING GSKT 1/4 ","EA",null,1,{"v":0,"d":"$0.00"}]
[1383,"SIGMA,EBBA,STAR,US PIPE OR EQUIVALENT","3 VITON RING GSKT 1/4 ","EA",null,1,{"v":0,"d":"$0.00"}]
[1384,"SIGMA,EBBA,STAR,US PIPE OR EQUIVALENT","3-1/2 VITON RING GSKT 1/4 ","EA",null,1,{"v":0,"d":"$0.00"}]
[1385,"SIGMA,EBBA,STAR,US PIPE OR EQUIVALENT","4 VITON RING GSKT 1/4 ","EA",null,1,{"v":0,"d":"$0.00"}]
[1386,"SIGMA,EBBA,STAR,US PIPE OR EQUIVALENT","5 VITON RING GSKT 1/4 ","EA",null,1,{"v":0,"d":"$0.00"}]
[1387,"SIGMA,EBBA,STAR,US PIPE OR EQUIVALENT","6 VITON RING GSKT 1/4 ","EA",null,1,{"v":0,"d":"$0.00"}]
[1388,"SIGMA,EBBA,STAR,US PIPE OR EQUIVALENT","8 VITON RING GSKT 1/4 ","EA",null,1,{"v":0,"d":"$0.00"}]
[1389,"SIGMA,EBBA,STAR,US PIPE OR EQUIVALENT","10 VITON RING GSKT 1/4 ","EA",null,1,{"v":0,"d":"$0.00"}]
[1390,"SIGMA,EBBA,STAR,US PIPE OR EQUIVALENT","12 VITON RING GSKT 1/4 ","EA",null,1,{"v":0,"d":"$0.00"}]
[1391,"SIGMA,EBBA,STAR,US PIPE","3 SBR MJ GSKT","EA",null,1,{"v":0,"d":"$0.00"}]
[1392,"SIGMA,EBBA,STAR,US PIPE","4 SBR MJ GSKT","EA",null,1,{"v":0,"d":"$0.00"}]
[1393,"SIGMA,EBBA,STAR,US PIPE","6 SBR MJ GSKT","EA",null,1,{"v":0,"d":"$0.00"}]
[1394,"SIGMA,EBBA,STAR,US PIPE","8 SBR MJ GSKT","EA",null,1,{"v":0,"d":"$0.00"}]
[1395,"SIGMA,EBBA,STAR,US PIPE","10 SBR MJ GSKT","EA",null,1,{"v":0,"d":"$0.00"}]
[1396,"SIGMA,EBBA,STAR,US PIPE","12 SBR MJ GSKT","EA",null,1,{"v":0,"d":"$0.00"}]
[1397,"SIGMA,EBBA,STAR,US PIPE","14 SBR MJ GSKT","EA",null,1,{"v":0,"d":"$0.00"}]
[1398,"SIGMA,EBBA,STAR,US PIPE","16 SBR MJ GSKT","EA",null,1,{"v":0,"d":"$0.00"}]
[1399,"SIGMA,EBBA,STAR,US PIPE","18 MJ GSKT","EA",null,1,{"v":0,"d":"$0.00"}]
[1400,"SIGMA,EBBA,STAR,US PIPE","20 MJ GSKT","EA",null,1,{"v":0,"d":"$0.00"}]
[1401,"SIGMA,EBBA,STAR,US PIPE","24 MJ GSKT","EA",null,1,{"v":0,"d":"$0.00"}]
[" ","SIGMA,EBBA,STAR,US PIPE OR EQUIVALENT","3 RR 1/8 FF 150# GSKT","EA",null,15,{"v":0,"d":"$0.00"}]
[1406,"SIGMA,EBBA,STAR,US PIPE OR EQUIVALENT","4 RR 1/8 FF 150# GSKT","EA",null,15,{"v":0,"d":"$0.00"}]
[1407,"SIGMA,EBBA,STAR,US PIPE OR EQUIVALENT","6 RR 1/8 FF 150# GSKT","EA",null,5,{"v":0,"d":"$0.00"}]
[1408,"SIGMA,EBBA,STAR,US PIPE OR EQUIVALENT","8 RR 1/8 FF 150# GSKT","EA",null,5,{"v":0,"d":"$0.00"}]
[1409,"SIGMA,EBBA,STAR,US PIPE OR EQUIVALENT","10 RR 1/8 FF 150# GSKT","EA",null,5,{"v":0,"d":"$0.00"}]
[1410,"SIGMA,EBBA,STAR,US PIPE OR EQUIVALENT","12 RR 1/8 FF 150# GSKT","EA",null,5,{"$f":"SUM(E1413*F1413)","v":{"v":0,"d":"$0.00"}}]
[1411,"SIGMA,EBBA,STAR,US PIPE OR EQUIVALENT","14 RR 1/8 FF 150# GSKT","EA",null,1,{"v":0,"d":"$0.00"}]
[1412,"SIGMA,EBBA,STAR,US PIPE OR EQUIVALENT","16 RR 1/8 FF 150# GSKT","EA",null,1,{"v":0,"d":"$0.00"}]
[1413,"SIGMA,EBBA,STAR,US PIPE OR EQUIVALENT","4 FF 1/8 TORUSEAL FLG GSKT","EA",null,1,{"v":0,"d":"$0.00"}]
[1414,"SIGMA,EBBA,STAR,US PIPE OR EQUIVALENT","6 FF 1/8 TORUSEAL FLG GSKT","EA",null,1,{"v":0,"d":"$0.00"}]
[1415,"SIGMA,EBBA,STAR,US PIPE OR EQUIVALENT","8 FF 1/8 TORUSEAL FLG GSKT","EA",null,1,{"v":0,"d":"$0.00"}]
[1416,"SIGMA,EBBA,STAR,US PIPE OR EQUIVALENT","10 FF 1/8 TORUSEAL FLG GSKT","EA",null,1,{"v":0,"d":"$0.00"}]
[1417,"SIGMA,EBBA,STAR,US PIPE OR EQUIVALENT","12 FF 1/8 TORUSEAL FLG GSKT","EA",null,1,{"v":0,"d":"$0.00"}]
[1418,"SIGMA,EBBA,STAR,US PIPE OR EQUIVALENT","14 FF 1/8 TORUSEAL FLG GSKT","EA",null,1,{"v":0,"d":"$0.00"}]
[1419,"SIGMA,EBBA,STAR,US PIPE OR EQUIVALENT","16 FF 1/8 TORUSEAL FLG GSKT","EA",null,1,{"v":0,"d":"$0.00"}]
[1420,"SIGMA,EBBA,STAR,US PIPE OR EQUIVALENT","20 FF 1/8 TORUSEAL FLG GSKT","EA",null,1,{"v":0,"d":"$0.00"}]
[1421,"SIGMA,EBBA,STAR,US PIPE OR EQUIVALENT","24 FF 1/8 TORUSEAL FLG GSKT","EA",null,1,{"v":0,"d":"$0.00"}]
[1422,"SIGMA,EBBA,STAR,US PIPE OR EQUIVALENT","3/4 RUB MTR WSHR 1/16 ","EA",null,2000,{"v":0,"d":"$0.00"}]
[1423,"SIGMA,EBBA,STAR,US PIPE OR EQUIVALENT","1 RUB MTR WSHR (1/16) ","EA",null,50,{"v":0,"d":"$0.00"}]
[1424,"SIGMA,EBBA,STAR,US PIPE OR EQUIVALENT","2 RUB MTR WSHR 1/16 ","EA",null,20,{"v":0,"d":"$0.00"}]
[1425,"SIGMA,EBBA,STAR,US PIPE OR EQUIVALENT","3/4 FIBER MTR WSHR 1/32 ","EA",null,1,{"v":0,"d":"$0.00"}]
[1426,"SIGMA,EBBA,STAR,US PIPE OR EQUIVALENT","1 FIBER MTR WSHR 1/32 ","EA",null,1,{"v":0,"d":"$0.00"}]
[1427,"SIGMA,EBBA,STAR,US PIPE OR EQUIVALENT","1-1/2 FIBER MTR GSKT 1/32 ","EA",null,1,{"v":0,"d":"$0.00"}]
[1428,"SIGMA,EBBA,STAR,US PIPE OR EQUIVALENT","2 FIBER MTR WSHR 1/32","EA",null,1,{"v":0,"d":"$0.00"}]
[1429,"SIGMA,EBBA,STAR,US PIPE OR EQUIVALENT","3/4 FIBER MTR WSHR 1/16 ","EA",null,1,{"v":0,"d":"$0.00"}]
[1430,"SIGMA,EBBA,STAR,US PIPE OR EQUIVALENT","1 FIBER MTR WSHR 1/16 ","EA",null,1,{"v":0,"d":"$0.00"}]
[1431,"SIGMA,EBBA,STAR,US PIPE OR EQUIVALENT","1-1/2 FIBER MTR WSHR 1/16 ","EA",null,1,{"v":0,"d":"$0.00"}]
[1432,"SIGMA,EBBA,STAR,US PIPE OR EQUIVALENT","2 FIBER MTR WSHR 1/16 ","EA",null,1,{"v":0,"d":"$0.00"}]
[1433,"SIGMA,EBBA,STAR,US PIPE OR EQUIVALENT","3/4 FIBER MTR WSHR 1/8 ","EA",null,1,{"v":0,"d":"$0.00"}]
[1434,"SIGMA,EBBA,STAR,US PIPE OR EQUIVALENT","1 FIBER MTR WSHR (1/8) ","EA",null,1,{"v":0,"d":"$0.00"}]
[1435,"SIGMA,EBBA,STAR,US PIPE OR EQUIVALENT","1-1/2 FIBER MTR GSKT 1/16 ","EA",null,1,{"v":0,"d":"$0.00"}]
[1436,"SIGMA,EBBA,STAR,US PIPE OR EQUIVALENT","2 FIBER MTR WSHR 1/8","EA",null,1,{"v":0,"d":"$0.00"}]
[1437,"SIGMA,EBBA,STAR,US PIPE OR EQUIVALENT","1-1/2 RUB  MTR WSHR   1/8","EA",null,50,{"v":0,"d":"$0.00"}]
[1438,"SIGMA,EBBA,STAR,US PIPE OR EQUIVALENT","3/4 RUB MTR WSHR 1/8","EA",null,2500,{"v":0,"d":"$0.00"}]
[1439,"SIGMA,EBBA,STAR,US PIPE OR EQUIVALENT","8 SBR MJ IPS TRANS GSKT","EA",null,1,{"v":0,"d":"$0.00"}]
[1440,"SIGMA,EBBA,STAR,US PIPE OR EQUIVALENT","1-1/2 RR 1/8 FF 150# GSKT","EA",null,1,{"v":0,"d":"$0.00"}]
[1441,"SIGMA,EBBA,STAR,US PIPE OR EQUIVALENT","2     RUB  MTR WSHR   1/8","EA",null,1,{"v":0,"d":"$0.00"}]
[1442,"SIGMA,EBBA,STAR,US PIPE OR EQUIVALENT","3/4X3-1/2 MJ T-BOLT & NUT","EA",null,1,{"v":0,"d":"$0.00"}]
[1443,"SIGMA,EBBA,STAR,US PIPE OR EQUIVALENT","3/4X4 MJ T-BOLT & NUT","EA",null,1,{"v":0,"d":"$0.00"}]
[1444,"T.H.E.,MERIT,ABP OR EQIVALENT","5/8X3-1/2 MJ T-HEAD N&B","EA",null,1,{"v":0,"d":"$0.00"}]
[1445,"T.H.E.,MERIT,ABP OR EQIVALENT","1/2X6 SS 304 ALL THRD ROD","FT",null,1,{"v":0,"d":"$0.00"}]
[1446,"T.H.E.,MERIT,ABP OR EQIVALENT","5/8X6 FT SS 304 ALL THRD ROD","FT",null,1,{"v":0,"d":"$0.00"}]
[1447,"T.H.E.,MERIT,ABP OR EQIVALENT","3/4X6 FT SS 304 ALL THRD ROD","FT",null,1,{"v":0,"d":"$0.00"}]
[1448,"T.H.E.,MERIT,ABP OR EQIVALENT","3/8 SS 316 HEX NUT","EA",null,100,{"v":0,"d":"$0.00"}]
[1449,"T.H.E.,MERIT,ABP OR EQIVALENT","1/2 SS 316 HEX NUT","EA",null,500,{"v":0,"d":"$0.00"}]
[1450,"T.H.E.,MERIT,ABP OR EQIVALENT","5/8 SS 316 HEX NUT","EA",null,500,{"v":0,"d":"$0.00"}]
[1451,"T.H.E.,MERIT,ABP OR EQIVALENT","3/4 SS 316 HEX NUT","EA",null,200,{"v":0,"d":"$0.00"}]
[1452,"T.H.E.,MERIT,ABP OR EQIVALENT","3/8X3 SS 316 WDG ANCR","EA",null,1,{"v":0,"d":"$0.00"}]
[1453,"T.H.E.,MERIT,ABP OR EQIVALENT","3/4X6   SS 316 ALL THRD ROD","FT",null,1,{"v":0,"d":"$0.00"}]
[1454,"T.H.E.,MERIT,ABP OR EQIVALENT","5/8X3 SS STUD","EA",null,1,{"v":0,"d":"$0.00"}]
[1455,"T.H.E.,MERIT,ABP OR EQIVALENT","3/4X3-1/2 SS H/HEAD BOLT","EA",null,1,{"v":0,"d":"$0.00"}]
[1456,"SEWER SAVER OR EQUIVALENT","4 CNCRT DONUT GRD RNG","EA",null,1,{"v":0,"d":"$0.00"}]
[1457,"SEWER SAVER OR EQUIVALENT","6 CNCRT DONUT GRD RNG","EA",null,1,{"v":0,"d":"$0.00"}]
[1458,"LF MFG,SHIEDOW,WAGER","3 BRS VLV ID TAG ","EA",null,100,{"v":0,"d":"$0.00"}]
[1459,"WHITLAM OR EQUIVALENT","1/2X1429\" HIGH DENSITY PTFE PIPE THRD TAPE","EA",null,25,{"v":0,"d":"$0.00"}]
[1460,"ABBOTT OR EQUIVALENT","2\"X25' GRN SUC HOSE FEM CAM X MNPT","EA",null,10,{"v":0,"d":"$0.00"}]
[1461,"ABBOTT OR EQUIVALENT","3\"X25' GRN SUC HOSE FEM CAM X MNPT ","EA",null,10,{"v":0,"d":"$0.00"}]
[1462,"NEW CONCEPT TOOLS OR EQUIVALENT","36 M/HOLE HOOK HDL","EA",null,10,{"v":0,"d":"$0.00"}]
[1463,"POLLARD OR EQUIVALENT","4 FT T- HDL VLV KEY","EA",null,15,{"v":0,"d":"$0.00"}]
[1464,"POLLARD OR EQUIVALENT","6 FT T- HDL VLV KEY","EA",null,15,{"v":0,"d":"$0.00"}]
[1465,"POLLARD OR EQUIVALENT","4 FT CURB ST KEY","EA",null,15,{"v":0,"d":"$0.00"}]
[1467,"TRUMBULL OR EQUIVALENT","48 F/GLS UTIL PROBE ","EA",null,20,{"v":0,"d":"$0.00"}]
[1468,"TRUMBULL OR EQUIVALENT","84 F/GLS UTIL PROBE","EA",null,10,{"v":0,"d":"$0.00"}]
[1469,"BEVEL PRO OR EQIVALENT","4 BEVELING TOOL F/ SDR35 PIPE","EA",null,1,{"v":0,"d":"$0.00"}]
[1470,"BEVEL PRO OR EQIVALENT","6 BEVELING TOOL F/ SDR35 PIPE","EA",null,1,{"v":0,"d":"$0.00"}]
[1471,"VICTOR OR EQIVALENT","1/8 - 1-1/2 OD PVC PIPE CTTR","EA",null,10,{"v":0,"d":"$0.00"}]
[1472,"VICTOR OR EQIVALENT","1/8 - 2-3/8 OD PVC PIPE CTTR","EA",null,10,{"v":0,"d":"$0.00"}]
[1473,"CHERNE OR EQIVALENT","3 CI TEST PLUG ","EA",null,1,{"v":0,"d":"$0.00"}]
[1474,"CHERNE OR EQIVALENT","4 CI TEST PLUG W/ WINGNUT ","EA",null,1,{"$f":"SUM(E1476*F1476)","v":{"v":0,"d":"$0.00"}}]
[1475,"CHERNE OR EQIVALENT","6 CI TEST PLUG W/ WINGNUT ","EA",null,1,{"v":0,"d":"$0.00"}]
[1476,"CHERNE OR EQIVALENT","8 CI TEST PLUG W/ WINGNUT ","EA",null,1,{"v":0,"d":"$0.00"}]
[1477,"CHERNE OR EQIVALENT","10 CI TEST PLUG W/ WINGNUT ","EA",null,1,{"v":0,"d":"$0.00"}]
[1478,"CHERNE OR EQIVALENT","12 CI TEST PLUG W/ WINGNUT ","EA",null,1,{"v":0,"d":"$0.00"}]
[1479,"TRUMBULL OR EQUIVALENT","1-1/4-1-1/16 D/SOC RAT WRCH","EA",null,20,{"v":0,"d":"$0.00"}]
[1480,"NEW CONCEPT TOOLS OR EQUIVALENT","4-12 VLV SETTER","EA",null,5,{"v":0,"d":"$0.00"}]
[1481,"POLLARD OR EQUIVALENT","8 FT T- HDL VLV KEY","EA",null,15,{"v":0,"d":"$0.00"}]
[1482,"SIPHON KING OR EQUIVALENT","6 HAND PUMP","EA",null,25,{"v":0,"d":"$0.00"}]
[1483,"NEW CONCEPT TOOLS OR EQUIVALENT","1-1/16 DP SOC","EA",null,10,{"v":0,"d":"$0.00"}]
[1484,"NEW CONCEPT TOOLS OR EQUIVALENT","1-1/4 DP SOC","EA",null,10,{"v":0,"d":"$0.00"}]
[1495,"AMERICAN VALVE,EAST JORDAN,NIBCO,RED-WHITE VALVE CO,UNITED BRASS WORKS,SCI OR EQUIVALENT","1/2 BRS 200# IPS NRS GATE VLV","EA",null,1,{"v":0,"d":"$0.00"}]
[1496,"AMERICAN VALVE,EAST JORDAN,NIBCO,RED-WHITE VALVE CO,UNITED BRASS WORKS,SCI OR EQUIVALENT","3/4 BRS 200# IPS NRS GATE VLV","EA",null,1,{"v":0,"d":"$0.00"}]
[1497,"AMERICAN VALVE,EAST JORDAN,NIBCO,RED-WHITE VALVE CO,UNITED BRASS WORKS,SCI OR EQUIVALENT","1 BRS 200# IPS NRS GATE VLV","EA",null,1,{"v":0,"d":"$0.00"}]
[1498,"AMERICAN VALVE,EAST JORDAN,NIBCO,RED-WHITE VALVE CO,UNITED BRASS WORKS,SCI OR EQUIVALENT","1-1/2 BRS 200# IPS NRS GATE VLV","EA",null,1,{"v":0,"d":"$0.00"}]
[1499,"AMERICAN VALVE,EAST JORDAN,NIBCO,RED-WHITE VALVE CO,UNITED BRASS WORKS,SCI OR EQUIVALENT","2 BRS 200# IPS NRS GATE VLV","EA",null,1,{"v":0,"d":"$0.00"}]
[1501,"AMERICAN VALVE,EAST JORDAN,NIBCO,RED-WHITE VALVE CO,UNITED BRASS WORKS,SCI OR EQUIVALENT","LF 1 BRS 200#  IPS NRS GATE VLV","EA",null,1,{"v":0,"d":"$0.00"}]
[1502,"AMERICAN VALVE,EAST JORDAN,NIBCO,RED-WHITE VALVE CO,UNITED BRASS WORKS,SCI OR EQUIVALENT","LF 1-1/2 BRS 200#  IPS NRS GATE VLV","EA",null,1,{"v":0,"d":"$0.00"}]
[1503,"AMERICAN VALVE,EAST JORDAN,NIBCO,RED-WHITE VALVE CO,UNITED BRASS WORKS,SCI OR EQUIVALENT","LF 2 BRS 200#  IPS NRS GATE VLV","EA",null,1,{"v":0,"d":"$0.00"}]
[1505,"AMERICAN VALVE,EAST JORDAN,NIBCO,RED-WHITE VALVE CO,UNITED BRASS WORKS,SCI OR EQUIVALENT","LF 3/4 BRS 125# THRD SWG CHK VLV","EA",null,1,{"v":0,"d":"$0.00"}]
[1506,"AMERICAN VALVE,EAST JORDAN,NIBCO,RED-WHITE VALVE CO,UNITED BRASS WORKS,SCI OR EQUIVALENT","LF 3/4 BRS 200#  IPS NRS GATE VLV","EA",null,1,{"v":0,"d":"$0.00"}]
[1507,"TRUMBULL OR EQUIVALENT","5 FT GATE VLV STEM EXT W/ C/PLT","EA",null,5,{"v":0,"d":"$0.00"}]
[1508,"TRUMBULL OR EQUIVALENT","3 FT GATE VLV STEM EXT W/ C/PLT","EA",null,5,{"v":0,"d":"$0.00"}]
[1509,"MERIT OR EQUIVALENT","1/4 SS 1000# THRD 1PC RP BV LL","EA",null,1,{"v":0,"d":"$0.00"}]
[1510,"MERIT OR EQUIVALENT","1/2 SS 1000# THRD 1PC RP BV LL","EA",null,1,{"v":0,"d":"$0.00"}]
[1511,"MERIT OR EQUIVALENT","3/4 SS 1000# THRD 1PC RP BV LL","EA",null,1,{"v":0,"d":"$0.00"}]
[1512,"MERIT OR EQUIVALENT","1 SS 1000# THRD 2PC FP BV LL","EA",null,1,{"v":0,"d":"$0.00"}]
[1513,"MERIT OR EQUIVALENT","1 SS 1000# THRD 1PC RP BV LL","EA",null,1,{"v":0,"d":"$0.00"}]
[1514,"MERIT OR EQUIVALENT","1-1/2 SS 1000# THRD 1PC RP BV LL","EA",null,1,{"v":0,"d":"$0.00"}]
[1515,"MERIT OR EQUIVALENT","2 SS 1000# THRD 1PC RP BV LL","EA",null,1,{"v":0,"d":"$0.00"}]
[1516,"MERIT OR EQUIVALENT","2-1/2 SS 1000# THRD 2PC FP BV LL","EA",null,1,{"v":0,"d":"$0.00"}]
[1517,"MERIT OR EQUIVALENT","3 SS 1000# THRD 2PC FP BV LL","EA",null,1,{"v":0,"d":"$0.00"}]
[1518,"SIGMA,EBBA,STAR,US PIPE OR EQUIVALENT","1 RUB MTR WSHR 1/8","EA",null,10,{"v":0,"d":"$0.00"}]
[1519,"SIGMA,EBBA,STAR,US PIPE OR EQUIVALENT","2 RR 1/8 FF 150 GSKT","EA",null,10,{"v":0,"d":"$0.00"}]
[1520,"NEW CONCEPT TOOLS OR EQUIVALENT","HYD SETTER W/ SPREADER BAR","EA",null,2,{"v":0,"d":"$0.00"}]
[1521,"TRUMBULL OR EQUIVALENT","ADJ HYD WRCH","EA",null,10,{"v":0,"d":"$0.00"}]
[1522,"SIGMA,EBBA,STAR,US PIPE OR EQUIVALENT","24 RR 1/8 FF 150# GSKT","EA",null,1,{"v":0,"d":"$0.00"}]
[1523,"SIGMA,EBBA,STAR,US PIPE OR EQUIVALENT","6 SBR MJ IPS TRANS GSKT","EA",null,1,{"v":0,"d":"$0.00"}]
[1524,"LINEGUARD,3M OR EQUVALENT","3X1000 UG DET WTR BLUE","EA",null,5,{"v":0,"d":"$0.00"}]
[1525,"POLLARD OR EQUIVALENT","5 FT H/WHL VLV KEY","EA",null,5,{"v":0,"d":"$0.00"}]
[1527,"PROFLO OR EQUIVALENT","1/2 SS HOSE CLMP 4-1/4 - 6","EA",null,1,{"v":0,"d":"$0.00"}]
[1528,"PROFLO OR EQUIVALENT","1/2 SS HOSE CLMP 2-1/8 - 4","EA",null,1,{"v":0,"d":"$0.00"}]
[1529,"POLLARD OR EQUIVALENT","3 FT CURB ST KEY","EA",null,15,{"v":0,"d":"$0.00"}]
[1530,"PROFLO OR EQUIVALENT","1/2 SS HOSE CLMP 3/4 - 1-3/4","EA",null,1,{"v":0,"d":"$0.00"}]
[1531,"TRUMBULL OR EQUIVALENT","4 FT GATE VLV STEM EXT W/ C/PLT","EA",null,5,{"v":0,"d":"$0.00"}]
[1532,"FORD, AY MCDONALD, MUELLER","3/4 FIP X 3/4 FHT HOSE SWVL ADPT","EA",null,1,{"v":0,"d":"$0.00"}]
[1533,"SIGMA,EBBA,STAR,US PIPE OR EQUIVALENT","24 NEOP 1/8 150 FF GSKT","EA",null,1,{"v":0,"d":"$0.00"}]
[1534,"SIGMA,EBBA,STAR,US PIPE OR EQUIVALENT","18 NEOP 1/8 150# FF GSKT","EA",null,1,{"v":0,"d":"$0.00"}]
[1535,"SIGMA,EBBA,STAR,US PIPE OR EQUIVALENT","16 NEOP 1/8 150 FF GSKT","EA",null,1,{"v":0,"d":"$0.00"}]
[1536,"SIGMA,EBBA,STAR,US PIPE OR EQUIVALENT","12 NEOP 1/8 150 FF GSKT","EA",null,1,{"v":0,"d":"$0.00"}]
[1537,"SIGMA,EBBA,STAR,US PIPE OR EQUIVALENT","8 NEOP 1/8 150 FF GSKT","EA",null,1,{"v":0,"d":"$0.00"}]
[1538,"SIGMA,EBBA,STAR,US PIPE OR EQUIVALENT","4 SBR MJ IPS TRANS GSKT","EA",null,1,{"$f":"SUM(E1527*F1527)","v":{"v":0,"d":"$0.00"}}]
[1539,"SIGMA,EBBA,STAR,US PIPE OR EQUIVALENT","10 SBR MJ IPS TRANS GSKT","EA",null,1,{"v":0,"d":"$0.00"}]
[1540,"SIGMA,EBBA,STAR,US PIPE OR EQUIVALENT","12 SBR MJ IPS TRANS GSKT","EA",null,1,{"v":0,"d":"$0.00"}]
[1541,"PORTLAND","TYPE II PLND CMNT 94 LB BAG","EA",null,100,{"v":0,"d":"$0.00"}]
[1542,"PROFLO OR EQUIVALENT","1/2 SS HOSE CLMP 1/2 - 1-1/4","EA",null,1,{"v":0,"d":"$0.00"}]
[1543,"NEW CONCEPT TOOLS OR EQUIVALENT","ADJ GATE VLV WRCH 5 - 10","EA",null,5,{"v":0,"d":"$0.00"}]
[1544,"PROFLO OR EQUIVALENT","1/2 SS HOSE CLMP 3-1/8 - 5","EA",null,1,{"v":0,"d":"$0.00"}]
[1545,"POLLARD OR EQUIVALENT","5 FT T HDL VLV KEY","EA",null,10,{"v":0,"d":"$0.00"}]
[1546,"PROFLO OR EQUIVALENT","1/2 SS HOSE CLMP 1 - 2","EA",null,1,{"v":0,"d":"$0.00"}]
[1547,"PROFLO OR EQUIVALENT","9/16 SS HOSE CLMP 3/4 - 1-3/4","EA",null,1,{"v":0,"d":"$0.00"}]
[1548,"AMERICAN VALVE,EAST JORDAN,NIBCO,RED-WHITE VALVE CO,UNITED BRASS WORKS,SCI OR EQUIVALENT","1/2 BRS 200LB THRD NRS GATE VLV","EA",null,1,{"v":0,"d":"$0.00"}]
[1549,"AMERICAN VALVE,EAST JORDAN,NIBCO,RED-WHITE VALVE CO,UNITED BRASS WORKS,SCI OR EQUIVALENT","1-1/4 BRS 200LB THRD NRS GATE VLV","EA",null,1,{"v":0,"d":"$0.00"}]
[1550,"AMERICAN VALVE,EAST JORDAN,NIBCO,RED-WHITE VALVE CO,UNITED BRASS WORKS,SCI OR EQUIVALENT","3 BRS 200LB THRD NRS GATE VLV","EA",null,1,{"v":0,"d":"$0.00"}]
[1551,"PROFLO OR EQUIVALENT","1/2 SS HOSE CLMP 1-9/16 - 2-1/2","EA",null,1,{"v":0,"d":"$0.00"}]
[1552,"MERIT OR EQUIVALENT","2 SS 1000# THRD 2PC FP BV LL","EA",null,1,{"v":0,"d":"$0.00"}]
[1554,"HARCO,MULTI,ROYAL","4 PVC SWR HUB FEM CO ADPT","EA",null,250,{"v":0,"d":"$0.00"}]
[1555,"HARCO,MULTI,ROYAL","4 PVC SWR SPGT X DWV HUB ADPT","EA",null,10,{"v":0,"d":"$0.00"}]
[1556,"HARCO,MULTI,ROYAL","6 PVC SWR HUB FEM CO ADPT","EA",null,20,{"v":0,"d":"$0.00"}]
[1557,"HARCO,MULTI,ROYAL","6 PVC SWR SPGT X DWV HUB ADPT","EA",null,10,{"v":0,"d":"$0.00"}]
[1558,"HARCO,MULTI,ROYAL","8 PVC SWR HUB FEM CO ADPT","EA",null,1,{"v":0,"d":"$0.00"}]
[1559,"HARCO,MULTI,ROYAL","8 PVC SWR SPGT X DWV HUB ADPT","EA",null,1,{"v":0,"d":"$0.00"}]
[1560,"HARCO,MULTI,ROYAL","10 PVC SWR HUB FEM CO ADPT","EA",null,1,{"v":0,"d":"$0.00"}]
[1561,"HARCO,MULTI,ROYAL","4 PVC SWR SPGT X FPT CO ADPT","EA",null,10,{"v":0,"d":"$0.00"}]
[1562,"HARCO,MULTI,ROYAL","6 PVC SWR SPGT X FPT CO ADPT","EA",null,5,{"v":0,"d":"$0.00"}]
[1563,"HARCO,MULTI,ROYAL","8 PVC SWR SPGT X FPT CO ADPT","EA",null,1,{"v":0,"d":"$0.00"}]
[1564,"HARCO,MULTI,ROYAL","10 PVC SWR SPGT X FPT CO ADPT","EA",null,1,{"v":0,"d":"$0.00"}]
[1565,"HARCO,MULTI,ROYAL","4 PVC SWR GXS 45 BEND","EA",null,5,{"v":0,"d":"$0.00"}]
[1566,"HARCO,MULTI,ROYAL","6 PVC SWR GXS 45 BEND","EA",null,5,{"v":0,"d":"$0.00"}]
[1567,"HARCO,MULTI,ROYAL","8 PVC SWR GXS 45 BEND ","EA",null,5,{"v":0,"d":"$0.00"}]
[1568,"HARCO,MULTI,ROYAL","10 PVC SWR GXS 45 BEND ","EA",null,1,{"v":0,"d":"$0.00"}]
[1569,"HARCO,MULTI,ROYAL","12 PVC SWR GXS 45 BEND ","EA",null,1,{"v":0,"d":"$0.00"}]
[1570,"HARCO,MULTI,ROYAL","4 PVC SWR GXS 90 BEND ","EA",null,5,{"v":0,"d":"$0.00"}]
[1571,"HARCO,MULTI,ROYAL","6 PVC SWR GXS 90 BEND ","EA",null,5,{"v":0,"d":"$0.00"}]
[1572,"HARCO,MULTI,ROYAL","8 PVC SWR GXS 90 BEND ","EA",null,5,{"v":0,"d":"$0.00"}]
[1573,"HARCO,MULTI,ROYAL","10 PVC SWR GXS 90 BEND","EA",null,1,{"v":0,"d":"$0.00"}]
[1574,"HARCO,MULTI,ROYAL","12 PVC SWR GXS 90 BEND","EA",null,1,{"v":0,"d":"$0.00"}]
[1575,"HARCO,MULTI,ROYAL","4 PVC SWR GXS 22-1/2 BEND","EA",null,5,{"v":0,"d":"$0.00"}]
[1576,"HARCO,MULTI,ROYAL","6 PVC SWR GXS 22-1/2 BEND ","EA",null,5,{"v":0,"d":"$0.00"}]
[1577,"HARCO,MULTI,ROYAL","8 PVC SWR GXS 22-1/2 BEND ","EA",null,5,{"v":0,"d":"$0.00"}]
[1578,"HARCO,MULTI,ROYAL","10 PVC SWR GXS 22-1/2 BEND ","EA",null,1,{"v":0,"d":"$0.00"}]
[1579,"HARCO,MULTI,ROYAL","12 PVC SWR GXS 22-1/2 BEND","EA",null,1,{"v":0,"d":"$0.00"}]
[1580,"HARCO,MULTI,ROYAL","4 PVC SWR GXG 22-1/2 BEND","EA",null,5,{"v":0,"d":"$0.00"}]
[1581,"HARCO,MULTI,ROYAL","6 PVC SWR GXG 22-1/2 BEND ","EA",null,5,{"v":0,"d":"$0.00"}]
[1582,"HARCO,MULTI,ROYAL","8 PVC SWR GXG 22-1/2 BEND ","EA",null,5,{"v":0,"d":"$0.00"}]
[1583,"HARCO,MULTI,ROYAL","10 PVC SWR GXG 22-1/2 BEND ","EA",null,1,{"v":0,"d":"$0.00"}]
[1584,"HARCO,MULTI,ROYAL","12 PVC SWR GXG 22-1/2 BEND ","EA",null,1,{"v":0,"d":"$0.00"}]
[1585,"HARCO,MULTI,ROYAL","4 PVC SWR GXG 45 BEND ","EA",null,5,{"v":0,"d":"$0.00"}]
[1586,"HARCO,MULTI,ROYAL","6 PVC SWR GXG 45 BEND ","EA",null,5,{"v":0,"d":"$0.00"}]
[1587,"HARCO,MULTI,ROYAL","8 PVC SWR GXG 45 BEND","EA",null,5,{"v":0,"d":"$0.00"}]
[1588,"HARCO,MULTI,ROYAL","10 PVC SWR GXG 45 BEND","EA",null,1,{"v":0,"d":"$0.00"}]
[1589,"HARCO,MULTI,ROYAL","12 PVC SWR GXG 45 BEND","EA",null,1,{"v":0,"d":"$0.00"}]
[1590,"HARCO,MULTI,ROYAL","6 PVC SWR GXG 90 BEND ","EA",null,5,{"v":0,"d":"$0.00"}]
[1591,"HARCO,MULTI,ROYAL","8 PVC SWR GXG 90 BEND","EA",null,5,{"v":0,"d":"$0.00"}]
[1592,"HARCO,MULTI,ROYAL","10 PVC SWR GXG 90 BEND ","EA",null,1,{"v":0,"d":"$0.00"}]
[1593,"HARCO,MULTI,ROYAL","12 PVC SWR GXG 90 BEND ","EA",null,1,{"v":0,"d":"$0.00"}]
[1594,"HARCO,MULTI,ROYAL","6X4 PVC SWR SXG BUSH","EA",null,1,{"v":0,"d":"$0.00"}]
[1595,"HARCO,MULTI,ROYAL","8X6 PVC SWR SXG BUSH","EA",null,1,{"v":0,"d":"$0.00"}]
[1596,"HARCO,MULTI,ROYAL","8X4 PVC SWR SXG BUSH","EA",null,1,{"v":0,"d":"$0.00"}]
[1597,"HARCO,MULTI,ROYAL","10X8 PVC SWR SXG BUSH","EA",null,1,{"v":0,"d":"$0.00"}]
[1598,"HARCO,MULTI,ROYAL","10X6 PVC SWR SXG BUSH ","EA",null,1,{"v":0,"d":"$0.00"}]
[1599,"HARCO,MULTI,ROYAL","10X4 PVC SWR SXG BUSH","EA",null,1,{"v":0,"d":"$0.00"}]
[1600,"HARCO,MULTI,ROYAL","12X10 PVC SWR SXG BUSH","EA",null,1,{"v":0,"d":"$0.00"}]
[1601,"HARCO,MULTI,ROYAL","12X8 PVC SWR SXG BUSH","EA",null,1,{"v":0,"d":"$0.00"}]
[1602,"HARCO,MULTI,ROYAL","12X6 PVC SWR SXG BUSH ","EA",null,1,{"$f":"SUM(E1590*F1590)","v":{"v":0,"d":"$0.00"}}]
[1603,"HARCO,MULTI,ROYAL","12X4 PVC SWR SXG BUSH","EA",null,1,{"v":0,"d":"$0.00"}]
[1604,"HARCO,MULTI,ROYAL","6X4 PVC SWR SXG ECC BUSH ","EA",null,1,{"v":0,"d":"$0.00"}]
[1605,"HARCO,MULTI,ROYAL","8X6 PVC SWR SXG ECC INCR BUSH","EA",null,1,{"v":0,"d":"$0.00"}]
[1606,"HARCO,MULTI,ROYAL","4 PVC SWR GSKT CAP ","EA",null,1,{"v":0,"d":"$0.00"}]
[1607,"HARCO,MULTI,ROYAL","6 PVC SWR GSKT CAP ","EA",null,1,{"v":0,"d":"$0.00"}]
[1608,"HARCO,MULTI,ROYAL","8 PVC SWR GSKT CAP ","EA",null,1,{"v":0,"d":"$0.00"}]
[1609,"HARCO,MULTI,ROYAL","10 PVC SWR GSKT CAP ","EA",null,1,{"v":0,"d":"$0.00"}]
[1610,"HARCO,MULTI,ROYAL","12 PVC SWR GSKT CAP","EA",null,1,{"v":0,"d":"$0.00"}]
[1611,"HARCO,MULTI,ROYAL","4 PVC HW SWR GXG REP COUP","EA",null,5,{"v":0,"d":"$0.00"}]
[1612,"HARCO,MULTI,ROYAL","6 PVC HW SWR GXG REP COUP","EA",null,5,{"v":0,"d":"$0.00"}]
[1613,"HARCO,MULTI,ROYAL","8 PVC HW SWR GXG REP COUP ","EA",null,5,{"v":0,"d":"$0.00"}]
[1614,"HARCO,MULTI,ROYAL","10 PVC HW SWR GXG REP COUP","EA",null,1,{"v":0,"d":"$0.00"}]
[1615,"HARCO,MULTI,ROYAL","12 PVC HW SWR GXG REP COUP","EA",null,1,{"v":0,"d":"$0.00"}]
[1616,"HARCO,MULTI,ROYAL","4 PVC SWR GXG REP COUP ","EA",null,5,{"v":0,"d":"$0.00"}]
[1617,"HARCO,MULTI,ROYAL","6 PVC SWR GXG REP COUP ","EA",null,5,{"v":0,"d":"$0.00"}]
[1618,"HARCO,MULTI,ROYAL","8 PVC SWR GXG REP COUP ","EA",null,5,{"v":0,"d":"$0.00"}]
[1619,"HARCO,MULTI,ROYAL","10 PVC SWR GXG REP COUP","EA",null,1,{"v":0,"d":"$0.00"}]
[1620,"HARCO,MULTI,ROYAL","12 PVC SWR GXG REP COUP","EA",null,1,{"v":0,"d":"$0.00"}]
[1621,"HARCO,MULTI,ROYAL","4 PVC SWR SW COUP","EA",null,5,{"v":0,"d":"$0.00"}]
[1622,"HARCO,MULTI,ROYAL","6 PVC SWR SW COUP","EA",null,5,{"v":0,"d":"$0.00"}]
[1623,"HARCO,MULTI,ROYAL","8 PVC SWR SW COUP","EA",null,5,{"v":0,"d":"$0.00"}]
[1624,"HARCO,MULTI,ROYAL","10 PVC SWR SW COUP HXH","EA",null,1,{"v":0,"d":"$0.00"}]
[1625,"HARCO,MULTI,ROYAL","12 PVC SWR SW COUP HXH","EA",null,1,{"v":0,"d":"$0.00"}]
[1626,"HARCO,MULTI,ROYAL","4 PVC HW SWR GXG 22-1/2 ELL","EA",null,5,{"v":0,"d":"$0.00"}]
[1627,"HARCO,MULTI,ROYAL","6 PVC HW SWR GXG 22-1/2 ELL","EA",null,5,{"v":0,"d":"$0.00"}]
[1628,"HARCO,MULTI,ROYAL","8 PVC HW SWR GXG 22-1/2 ELL","EA",null,5,{"v":0,"d":"$0.00"}]
[1629,"HARCO,MULTI,ROYAL","4 PVC HW SWR GXG 45 ELL","EA",null,5,{"v":0,"d":"$0.00"}]
[1630,"HARCO,MULTI,ROYAL","6 PVC HW SWR GXG 45 ELL","EA",null,5,{"v":0,"d":"$0.00"}]
[1631,"HARCO,MULTI,ROYAL","8 PVC HW SWR GXG 45 ELL","EA",null,5,{"v":0,"d":"$0.00"}]
[1632,"HARCO,MULTI,ROYAL","10 PVC HW SWR GXG 45 ELL","EA",null,1,{"v":0,"d":"$0.00"}]
[1633,"HARCO,MULTI,ROYAL","12 PVC HW SWR GXG 45 ELL","EA",null,1,{"v":0,"d":"$0.00"}]
[1634,"HARCO,MULTI,ROYAL","4 PVC HW SWR GXG 90 ELL","EA",null,5,{"v":0,"d":"$0.00"}]
[1635,"HARCO,MULTI,ROYAL","6 PVC HW SWR GXG 90 ELL","EA",null,5,{"v":0,"d":"$0.00"}]
[1636,"HARCO,MULTI,ROYAL","8 PVC HW SWR GXG 90 ELL","EA",null,5,{"v":0,"d":"$0.00"}]
[1637,"HARCO,MULTI,ROYAL","10 PVC HW SWR GXG 90 ELL","EA",null,1,{"v":0,"d":"$0.00"}]
[1638,"HARCO,MULTI,ROYAL","12 PVC HW SWR GXG 90 ELL","EA",null,1,{"v":0,"d":"$0.00"}]
[1639,"HARCO,MULTI,ROYAL","4 PVC HW SWR SXG 22-1/2 ELL","EA",null,5,{"v":0,"d":"$0.00"}]
[1640,"HARCO,MULTI,ROYAL","6 PVC HW SWR SXG 22-1/2 ELL","EA",null,5,{"v":0,"d":"$0.00"}]
[1641,"HARCO,MULTI,ROYAL","4 PVC HW SWR GXS 45 ELL","EA",null,5,{"v":0,"d":"$0.00"}]
[1642,"HARCO,MULTI,ROYAL","6 PVC HW SWR GXS 45 ELL","EA",null,5,{"v":0,"d":"$0.00"}]
[1643,"HARCO,MULTI,ROYAL","8 PVC HW SWR GXS 45 ELL","EA",null,5,{"v":0,"d":"$0.00"}]
[1644,"HARCO,MULTI,ROYAL","10 PVC HW SWR GXS 45 ELL","EA",null,1,{"v":0,"d":"$0.00"}]
[1645,"HARCO,MULTI,ROYAL","12 PVC HW SWR GXS 45 ELL","EA",null,1,{"v":0,"d":"$0.00"}]
[1646,"HARCO,MULTI,ROYAL","4 PVC SWR GXG 90 ELL","EA",null,5,{"v":0,"d":"$0.00"}]
[1647,"HARCO,MULTI,ROYAL","4 PVC SWR SW ST HXS 45 ELL","EA",null,5,{"v":0,"d":"$0.00"}]
[1648,"HARCO,MULTI,ROYAL","6 PVC SWR SW ST HXS 45 ELL","EA",null,5,{"v":0,"d":"$0.00"}]
[1649,"HARCO,MULTI,ROYAL","8 PVC SWR SW ST HXS 45 ELL","EA",null,5,{"v":0,"d":"$0.00"}]
[1650,"HARCO,MULTI,ROYAL","10 PVC SWR SW ST 45 ELL ","EA",null,1,{"v":0,"d":"$0.00"}]
[1651,"HARCO,MULTI,ROYAL","12 PVC SWR SW ST 45 ELL","EA",null,1,{"v":0,"d":"$0.00"}]
[1652,"HARCO,MULTI,ROYAL","4 PVC SWR SW 45 ELL HXH","EA",null,5,{"v":0,"d":"$0.00"}]
[1653,"HARCO,MULTI,ROYAL","6 PVC SWR SW 45 ELL HXH","EA",null,5,{"v":0,"d":"$0.00"}]
[1654,"HARCO,MULTI,ROYAL","8 PVC SWR SW 45 ELL HXH","EA",null,5,{"v":0,"d":"$0.00"}]
[1655,"HARCO,MULTI,ROYAL","10 PVC SWR SW 45 ELL","EA",null,1,{"v":0,"d":"$0.00"}]
[1656,"HARCO,MULTI,ROYAL","12 PVC SWR SW 45 ELL ","EA",null,1,{"v":0,"d":"$0.00"}]
[1657,"HARCO,MULTI,ROYAL","4 PVC SWR SW 90 ELL HXH","EA",null,5,{"v":0,"d":"$0.00"}]
[1658,"HARCO,MULTI,ROYAL","6 PVC SWR SW 90 ELL HXH","EA",null,5,{"v":0,"d":"$0.00"}]
[1659,"HARCO,MULTI,ROYAL","8 PVC SWR SW 90 ELL HXH","EA",null,5,{"v":0,"d":"$0.00"}]
[1660,"HARCO,MULTI,ROYAL","10 PVC SWR SW 90 ELL","EA",null,1,{"v":0,"d":"$0.00"}]
[1661,"HARCO,MULTI,ROYAL","12 PVC SWR SW 90 ELL","EA",null,1,{"v":0,"d":"$0.00"}]
[1662,"HARCO,MULTI,ROYAL","4 PVC SWR PLUG ","EA",null,20,{"v":0,"d":"$0.00"}]
[1663,"HARCO,MULTI,ROYAL","6 PVC SWR PLUG ","EA",null,20,{"v":0,"d":"$0.00"}]
[1664,"HARCO,MULTI,ROYAL","8 PVC SWR PLUG ","EA",null,1,{"v":0,"d":"$0.00"}]
[1665,"HARCO,MULTI,ROYAL","10 PVC SWR PLUG ","EA",null,1,{"v":0,"d":"$0.00"}]
[1666,"HARCO,MULTI,ROYAL","12 PVC SWR PLUG ","EA",null,1,{"$f":"SUM(E1654*F1654)","v":{"v":0,"d":"$0.00"}}]
[1667,"HARCO,MULTI,ROYAL","4 PVC SWR REC THRD CO PLUG ","EA",null,800,{"v":0,"d":"$0.00"}]
[1668,"HARCO,MULTI,ROYAL","6 PVC SWR REC THRD CO PLUG ","EA",null,100,{"v":0,"d":"$0.00"}]
[1669,"HARCO,MULTI,ROYAL","8 PVC SWR REC THRD CO PLUG ","EA",null,1,{"v":0,"d":"$0.00"}]
[1670,"HARCO,MULTI,ROYAL","4 PVC SWR RH THRD CO PLUG ","EA",null,50,{"v":0,"d":"$0.00"}]
[1671,"HARCO,MULTI,ROYAL","6 PVC SWR RH THRD CO PLUG ","EA",null,10,{"v":0,"d":"$0.00"}]
[1672,"HARCO,MULTI,ROYAL","8 PVC SWR RH THRD CO PLUG ","EA",null,1,{"v":0,"d":"$0.00"}]
[1673,"HARCO,MULTI,ROYAL","10 PVC SWR REC THRD CO PLUG ","EA",null,1,{"v":0,"d":"$0.00"}]
[1674,"HARCO,MULTI,ROYAL","4 PVC HW SWR GXGXG TEE","EA",null,1,{"v":0,"d":"$0.00"}]
[1675,"HARCO,MULTI,ROYAL","6 PVC HW SWR GXGXG TEE","EA",null,1,{"v":0,"d":"$0.00"}]
[1676,"HARCO,MULTI,ROYAL","6X4 PVC HW SWR GXGXG TEE","EA",null,5,{"v":0,"d":"$0.00"}]
[1677,"HARCO,MULTI,ROYAL","8 PVC HW SWR GXGXG TEE","EA",null,1,{"v":0,"d":"$0.00"}]
[1678,"HARCO,MULTI,ROYAL","8X6 PVC HW SWR GXGXG TEE","EA",null,1,{"v":0,"d":"$0.00"}]
[1679,"HARCO,MULTI,ROYAL","8X4 PVC HW SWR GXGXG TEE","EA",null,1,{"v":0,"d":"$0.00"}]
[1680,"HARCO,MULTI,ROYAL","10 PVC HW SWR GXGXG TEE","EA",null,1,{"v":0,"d":"$0.00"}]
[1681,"HARCO,MULTI,ROYAL","10X8 PVC HW SWR GXGXG TEE","EA",null,1,{"v":0,"d":"$0.00"}]
[1682,"HARCO,MULTI,ROYAL","10X6 PVC HW SWR GXGXG TEE","EA",null,1,{"v":0,"d":"$0.00"}]
[1683,"HARCO,MULTI,ROYAL","10X4 PVC HW SWR GXGXG TEE","EA",null,1,{"v":0,"d":"$0.00"}]
[1684,"HARCO,MULTI,ROYAL","12 PVC HW SWR GXGXG TEE","EA",null,1,{"v":0,"d":"$0.00"}]
[1685,"HARCO,MULTI,ROYAL","12X10 PVC HW SWR GXGXG TEE","EA",null,1,{"v":0,"d":"$0.00"}]
[1686,"HARCO,MULTI,ROYAL","12X8 PVC HW SWR GXGXG TEE","EA",null,1,{"v":0,"d":"$0.00"}]
[1687,"HARCO,MULTI,ROYAL","12X6 PVC HW SWR GXGXG TEE","EA",null,1,{"v":0,"d":"$0.00"}]
[1688,"HARCO,MULTI,ROYAL","12X4 PVC HW SWR GXGXG TEE ","EA",null,1,{"v":0,"d":"$0.00"}]
[1689,"HARCO,MULTI,ROYAL","4 PVC SWR GXGXG TEE ","EA",null,5,{"v":0,"d":"$0.00"}]
[1690,"HARCO,MULTI,ROYAL","6 PVC SWR GXGXG TEE","EA",null,5,{"v":0,"d":"$0.00"}]
[1691,"HARCO,MULTI,ROYAL","6X4 PVC SWR GXGXG TEE ","EA",null,5,{"v":0,"d":"$0.00"}]
[1692,"HARCO,MULTI,ROYAL","8 PVC SWR GXGXG TEE ","EA",null,1,{"v":0,"d":"$0.00"}]
[1693,"HARCO,MULTI,ROYAL","8X6 PVC SWR GXGXG TEE ","EA",null,1,{"v":0,"d":"$0.00"}]
[1694,"HARCO,MULTI,ROYAL","8X4 PVC SWR GXGXG TEE ","EA",null,1,{"v":0,"d":"$0.00"}]
[1695,"HARCO,MULTI,ROYAL","10 PVC SWR GXGXG TEE ","EA",null,1,{"v":0,"d":"$0.00"}]
[1696,"HARCO,MULTI,ROYAL","10X8 PVC SWR GXGXG TEE","EA",null,1,{"v":0,"d":"$0.00"}]
[1697,"HARCO,MULTI,ROYAL","10X6 PVC SWR GXGXG TEE","EA",null,1,{"v":0,"d":"$0.00"}]
[1698,"HARCO,MULTI,ROYAL","10X4 PVC SWR GXGXG TEE","EA",null,1,{"v":0,"d":"$0.00"}]
[1699,"HARCO,MULTI,ROYAL","12 PVC SWR GXGXG TEE ","EA",null,1,{"v":0,"d":"$0.00"}]
[1700,"HARCO,MULTI,ROYAL","12X10 PVC SWR GXGXG TEE","EA",null,1,{"v":0,"d":"$0.00"}]
[1701,"HARCO,MULTI,ROYAL","12X8 PVC SWR GXGXG TEE","EA",null,1,{"v":0,"d":"$0.00"}]
[1702,"HARCO,MULTI,ROYAL","12X6 PVC SWR GXGXG TEE","EA",null,1,{"v":0,"d":"$0.00"}]
[1703,"HARCO,MULTI,ROYAL","12X4 PVC SWR GXGXG TEE","EA",null,1,{"v":0,"d":"$0.00"}]
[1704,"HARCO,MULTI,ROYAL","4 PVC HW SWR GXGXG TEE WYE","EA",null,5,{"v":0,"d":"$0.00"}]
[1705,"HARCO,MULTI,ROYAL","6 PVC HW SWR GXGXG TEE WYE","EA",null,5,{"v":0,"d":"$0.00"}]
[1706,"HARCO,MULTI,ROYAL","6X4 PVC HW SWR GXGXG TEE WYE","EA",null,5,{"v":0,"d":"$0.00"}]
[1707,"HARCO,MULTI,ROYAL","8 PVC HW SWR GXGXG TEE WYE ","EA",null,1,{"v":0,"d":"$0.00"}]
[1708,"HARCO,MULTI,ROYAL","8X6 PVC HW SWR GXGXG TEE WYE","EA",null,1,{"v":0,"d":"$0.00"}]
[1709,"HARCO,MULTI,ROYAL","8X4 PVC HW SWR GXGXG TEE WYE","EA",null,1,{"v":0,"d":"$0.00"}]
[1710,"HARCO,MULTI,ROYAL","4 PVC HW SWR GXGXG WYE","EA",null,5,{"v":0,"d":"$0.00"}]
[1711,"HARCO,MULTI,ROYAL","6 PVC HW SWR GXGXG WYE","EA",null,5,{"v":0,"d":"$0.00"}]
[1712,"HARCO,MULTI,ROYAL","6X4 PVC HW SWR GXGXG WYE","EA",null,5,{"v":0,"d":"$0.00"}]
[1713,"HARCO,MULTI,ROYAL","8 PVC HW SWR GXGXG WYE","EA",null,1,{"v":0,"d":"$0.00"}]
[1714,"HARCO,MULTI,ROYAL","8X6 PVC HW SWR GXGXG WYE","EA",null,1,{"v":0,"d":"$0.00"}]
[1715,"HARCO,MULTI,ROYAL","8X4 PVC HW SWR GXGXG WYE ","EA",null,1,{"v":0,"d":"$0.00"}]
[1716,"HARCO,MULTI,ROYAL","10 PVC HW SWR GXGXG WYE","EA",null,1,{"v":0,"d":"$0.00"}]
[1717,"HARCO,MULTI,ROYAL","10X8 PVC HW SWR GXGXG WYE ","EA",null,1,{"v":0,"d":"$0.00"}]
[1718,"HARCO,MULTI,ROYAL","10X6 PVC HW SWR GXGXG WYE ","EA",null,1,{"v":0,"d":"$0.00"}]
[1719,"HARCO,MULTI,ROYAL","10X4 PVC HW SWR GXGXG WYE","EA",null,1,{"v":0,"d":"$0.00"}]
[1720,"HARCO,MULTI,ROYAL","12 PVC HW SWR GXGXG WYE","EA",null,1,{"v":0,"d":"$0.00"}]
[1721,"HARCO,MULTI,ROYAL","12X10 PVC HW SWR GXGXG WYE","EA",null,1,{"v":0,"d":"$0.00"}]
[1722,"HARCO,MULTI,ROYAL","12X8 PVC HW SWR GXGXG WYE","EA",null,1,{"v":0,"d":"$0.00"}]
[1723,"HARCO,MULTI,ROYAL","12X6 PVC HW SWR GXGXG WYE","EA",null,1,{"v":0,"d":"$0.00"}]
[1724,"HARCO,MULTI,ROYAL","12X4 PVC HW SWR GXGXG WYE","EA",null,1,{"v":0,"d":"$0.00"}]
[1725,"HARCO,MULTI,ROYAL","6 PVC HW SWR GXG DBL WYE","EA",null,5,{"v":0,"d":"$0.00"}]
[1726,"HARCO,MULTI,ROYAL","6X4 PVC HW SWR GXG DBL WYE","EA",null,5,{"v":0,"d":"$0.00"}]
[1727,"HARCO,MULTI,ROYAL","8 PVC HW SWR GXG DBL WYE","EA",null,1,{"v":0,"d":"$0.00"}]
[1728,"HARCO,MULTI,ROYAL","4 PVC SWR GXGXG TEE WYE","EA",null,5,{"v":0,"d":"$0.00"}]
[1729,"HARCO,MULTI,ROYAL","6 PVC SWR GXGXG TEE WYE","EA",null,5,{"v":0,"d":"$0.00"}]
[1730,"HARCO,MULTI,ROYAL","6X4 PVC SWR GXGXG TEE WYE","EA",null,5,{"$f":"SUM(E1718*F1718)","v":{"v":0,"d":"$0.00"}}]
[1731,"HARCO,MULTI,ROYAL","8 PVC SWR GXGXG TEE WYE","EA",null,1,{"v":0,"d":"$0.00"}]
[1732,"HARCO,MULTI,ROYAL","8X6 PVC SWR GXGXG TEE WYE","EA",null,1,{"v":0,"d":"$0.00"}]
[1733,"HARCO,MULTI,ROYAL","8X4 PVC SWR GXGXG TEE WYE ","EA",null,1,{"v":0,"d":"$0.00"}]
[1734,"HARCO,MULTI,ROYAL","10 PVC SWR GXGXG TEE WYE ","EA",null,1,{"v":0,"d":"$0.00"}]
[1735,"HARCO,MULTI,ROYAL","10X8 PVC SWR GXGXG TEE WYE","EA",null,1,{"v":0,"d":"$0.00"}]
[1736,"HARCO,MULTI,ROYAL","10X6 PVC SWR GXGXG TEE WYE","EA",null,1,{"v":0,"d":"$0.00"}]
[1737,"HARCO,MULTI,ROYAL","10X4 PVC SWR GXGXG TEE WYE","EA",null,1,{"v":0,"d":"$0.00"}]
[1738,"HARCO,MULTI,ROYAL","12 PVC SWR GXGXG TEE WYE","EA",null,1,{"v":0,"d":"$0.00"}]
[1739,"HARCO,MULTI,ROYAL","12X10 PVC SWR GXGXG TEE WYE","EA",null,1,{"v":0,"d":"$0.00"}]
[1740,"HARCO,MULTI,ROYAL","12X8 PVC SWR GXGXG TEE WYE","EA",null,1,{"v":0,"d":"$0.00"}]
[1741,"HARCO,MULTI,ROYAL","12X6 PVC SWR GXGXG TEE WYE ","EA",null,1,{"v":0,"d":"$0.00"}]
[1742,"HARCO,MULTI,ROYAL","12X4 PVC SWR GXGXG TEE WYE","EA",null,1,{"v":0,"d":"$0.00"}]
[1743,"HARCO,MULTI,ROYAL","4 PVC SWR GXGXG WYE ","EA",null,5,{"v":0,"d":"$0.00"}]
[1744,"HARCO,MULTI,ROYAL","6 PVC SWR GXGXG WYE ","EA",null,5,{"v":0,"d":"$0.00"}]
[1745,"HARCO,MULTI,ROYAL","6X4 PVC SWR GXGXG WYE ","EA",null,5,{"v":0,"d":"$0.00"}]
[1746,"HARCO,MULTI,ROYAL","8 PVC SWR GXGXG WYE ","EA",null,1,{"v":0,"d":"$0.00"}]
[1747,"HARCO,MULTI,ROYAL","8X6 PVC SWR GXGXG WYE ","EA",null,1,{"v":0,"d":"$0.00"}]
[1748,"HARCO,MULTI,ROYAL","8X4 PVC SWR GXGXG WYE","EA",null,1,{"v":0,"d":"$0.00"}]
[1749,"HARCO,MULTI,ROYAL","10 PVC SWR GXGXG WYE ","EA",null,1,{"v":0,"d":"$0.00"}]
[1750,"HARCO,MULTI,ROYAL","10X8 PVC SWR GXGXG WYE ","EA",null,1,{"v":0,"d":"$0.00"}]
[1751,"HARCO,MULTI,ROYAL","10X6 PVC SWR GXGXG WYE ","EA",null,1,{"v":0,"d":"$0.00"}]
[1752,"HARCO,MULTI,ROYAL","10X4 PVC SWR GXGXG WYE ","EA",null,1,{"v":0,"d":"$0.00"}]
[1753,"HARCO,MULTI,ROYAL","12 PVC SWR GXGXG WYE ","EA",null,1,{"v":0,"d":"$0.00"}]
[1754,"HARCO,MULTI,ROYAL","12X10 PVC SWR GXGXG WYE","EA",null,1,{"v":0,"d":"$0.00"}]
[1755,"HARCO,MULTI,ROYAL","12X8 PVC SWR GXGXG WYE ","EA",null,1,{"v":0,"d":"$0.00"}]
[1756,"HARCO,MULTI,ROYAL","12X6 PVC SWR GXGXG WYE","EA",null,1,{"v":0,"d":"$0.00"}]
[1757,"HARCO,MULTI,ROYAL","12X4 PVC SWR GXGXG WYE","EA",null,1,{"v":0,"d":"$0.00"}]
[1758,"HARCO,MULTI,ROYAL","4 PVC SWR GXGXGXG DBL WYE","EA",null,5,{"v":0,"d":"$0.00"}]
[1759,"HARCO,MULTI,ROYAL","6 PVC SWR GXGXGXG DBL WYE","EA",null,5,{"v":0,"d":"$0.00"}]
[1760,"HARCO,MULTI,ROYAL","6X4     PVC SWR GXGXGXG DBL WYE","EA",null,5,{"v":0,"d":"$0.00"}]
[1761,"HARCO,MULTI,ROYAL","3 PVC SWR RH THRD CO PLUG","EA",null,100,{"v":0,"d":"$0.00"}]
[1762,"HARCO,MULTI,ROYAL","6 PVC SWR SW CAP","EA",null,5,{"v":0,"d":"$0.00"}]
[1763,"HARCO,MULTI,ROYAL","8 PVC SWR SW CAP","EA",null,5,{"v":0,"d":"$0.00"}]
[1764,"HARCO,MULTI,ROYAL","8X6 PVC SWR GXGXGXG DBL WYE","EA",null,1,{"v":0,"d":"$0.00"}]
[1765,"HARCO,MULTI,ROYAL","3 PVC SWR SW HXHXH SAN TEE WYE","EA",null,5,{"v":0,"d":"$0.00"}]
[1766,"HARCO,MULTI,ROYAL","6 PVC SWR SW HXHXH SAN TEE WYE","EA",null,5,{"v":0,"d":"$0.00"}]
[1767,"OATEY,EZ WELD","1G ALL PRPS CLR CLNR ","EA",null,1,{"v":0,"d":"$0.00"}]
[1768,"OATEY,EZ WELD","1G PURP PRMR / CLNR ","EA",null,1,{"v":0,"d":"$0.00"}]
[1769,"OATEY,EZ WELD","16 OZ ALL PRPS CLR CLNR ","EA",null,100,{"v":0,"d":"$0.00"}]
[1770,"OATEY,EZ WELD","16 OZ PURP PRMR / CLNR ","EA",null,100,{"v":0,"d":"$0.00"}]
[1771,"OATEY,EZ WELD","32 OZ ALL PRPS CLR CLNR ","EA",null,20,{"v":0,"d":"$0.00"}]
[1772,"OATEY,EZ WELD","32 OZ PURP PRMR / CLNR ","EA",null,20,{"v":0,"d":"$0.00"}]
[1773,"OATEY,EZ WELD","16 OZ PVC BLUE RAIN R SHINE CMNT ","EA",null,100,{"v":0,"d":"$0.00"}]
[1774,"OATEY,EZ WELD","32 OZ PVC BLUE RAIN R SHINE CMNT ","EA",null,20,{"v":0,"d":"$0.00"}]
[1775,"OATEY,EZ WELD","1G PVC BLUE RAIN R SHINE CMNT ","EA",null,1,{"v":0,"d":"$0.00"}]
[1776,"OATEY,EZ WELD","32 OZ PVC REG CLR CMNT ","EA",null,20,{"v":0,"d":"$0.00"}]
[1777,"OATEY,EZ WELD","1G PVC REG CLR CMNT ","EA",null,1,{"v":0,"d":"$0.00"}]
[1778,"OATEY,EZ WELD","16 OZ PVC MED CLR CMNT ","EA",null,100,{"v":0,"d":"$0.00"}]
[1779,"OATEY,EZ WELD","32 OZ PVC MED CLR CMNT ","EA",null,20,{"v":0,"d":"$0.00"}]
[1780,"OATEY,EZ WELD","1G PVC MED CLR CMNT ","EA",null,1,{"v":0,"d":"$0.00"}]
[1781,"OATEY,EZ WELD","16 OZ PVC HD GRAY CMNT ","EA",null,100,{"v":0,"d":"$0.00"}]
[1782,"OATEY,EZ WELD","32 OZ PVC HD GRAY CMNT ","EA",null,20,{"v":0,"d":"$0.00"}]
[1783,"OATEY,EZ WELD","1G PVC HD GRAY CMNT ","EA",null,1,{"v":0,"d":"$0.00"}]
[1784,"OATEY,EZ WELD","32 OZ PVC HD GRAY CMNT FAST SET ","EA",null,20,{"v":0,"d":"$0.00"}]
[1785,"OATEY,LOCKTITE, PERMATEX","16 OZ PIPE DOPE W/ TEF & BRSH","EA",null,100,{"v":0,"d":"$0.00"}]
[1786,"OATEY,LOCKTITE, PERMATEX","32 OZ PIPE JT CMPD W/ TEF W/ BRUSH","EA",null,20,{"v":0,"d":"$0.00"}]
[1787,"OATEY,EZ WELD","8 OZ ALL PRPS CLR CLNR","EA",null,100,{"v":0,"d":"$0.00"}]
[1788,"OATEY,EZ WELD","8 OZ PVC BLUE RAIN R SHINE CMNT","EA",null,100,{"v":0,"d":"$0.00"}]
[1789,"OATEY,EZ WELD","8 OZ PURP PRMR / CLNR","EA",null,100,{"v":0,"d":"$0.00"}]
[1790,"OATEY,EZ WELD","16 OZ PVC LO VOC INDU GRAY CMNT","EA",null,10,{"v":0,"d":"$0.00"}]
[1791,"DIAMOND PLASTICS,ETI PIPE,FREEDOM PLASTIC,JM MANUFACTURING,NATIONAL PIPE,NORTH AMERICAN PIPE, CHARLOTTE, SILVER LINE","1/2X20 FT PVC S40 BE PIPE","FT",null,100,{"v":0,"d":"$0.00"}]
[1792,"DIAMOND PLASTICS,ETI PIPE,FREEDOM PLASTIC,JM MANUFACTURING,NATIONAL PIPE,NORTH AMERICAN PIPE, CHARLOTTE, SILVER LINE","3/4X20 PVC S40 BE PIPE","FT",null,500,{"v":0,"d":"$0.00"}]
[1793,"DIAMOND PLASTICS,ETI PIPE,FREEDOM PLASTIC,JM MANUFACTURING,NATIONAL PIPE,NORTH AMERICAN PIPE, CHARLOTTE, SILVER LINE","1X20 PVC S40 BE PIPE","FT",null,500,{"v":0,"d":"$0.00"}]
[1794,"DIAMOND PLASTICS,ETI PIPE,FREEDOM PLASTIC,JM MANUFACTURING,NATIONAL PIPE,NORTH AMERICAN PIPE, CHARLOTTE, SILVER LINE","1-1/4X20 FT PVC S40 BE PIPE","FT",null,100,{"$f":"SUM(E1782*F1782)","v":{"v":0,"d":"$0.00"}}]
[1795,"DIAMOND PLASTICS,ETI PIPE,FREEDOM PLASTIC,JM MANUFACTURING,NATIONAL PIPE,NORTH AMERICAN PIPE, CHARLOTTE, SILVER LINE","1-1/2X20 FT PVC S40 BE PIPE","FT",null,500,{"v":0,"d":"$0.00"}]
[1796,"DIAMOND PLASTICS,ETI PIPE,FREEDOM PLASTIC,JM MANUFACTURING,NATIONAL PIPE,NORTH AMERICAN PIPE, CHARLOTTE, SILVER LINE","2X20 FT PVC S40 BE PIPE","FT",null,500,{"v":0,"d":"$0.00"}]
[1797,"DIAMOND PLASTICS,ETI PIPE,FREEDOM PLASTIC,JM MANUFACTURING,NATIONAL PIPE,NORTH AMERICAN PIPE, CHARLOTTE, SILVER LINE","2-1/2X20 FT PVC S40 BE PIPE","FT",null,500,{"v":0,"d":"$0.00"}]
[1798,"DIAMOND PLASTICS,ETI PIPE,FREEDOM PLASTIC,JM MANUFACTURING,NATIONAL PIPE,NORTH AMERICAN PIPE, CHARLOTTE, SILVER LINE","3X20 FT PVC S40 BE PIPE","FT",null,500,{"v":0,"d":"$0.00"}]
[1799,"DIAMOND PLASTICS,ETI PIPE,FREEDOM PLASTIC,JM MANUFACTURING,NATIONAL PIPE,NORTH AMERICAN PIPE, CHARLOTTE, SILVER LINE","4X20 FT PVC S40 BE PIPE","FT",null,500,{"v":0,"d":"$0.00"}]
[1800,"DIAMOND PLASTICS,ETI PIPE,FREEDOM PLASTIC,JM MANUFACTURING,NATIONAL PIPE,NORTH AMERICAN PIPE, CHARLOTTE, SILVER LINE","6X20 FT PVC S40 BE PIPE","FT",null,100,{"v":0,"d":"$0.00"}]
[1801,"DIAMOND PLASTICS,ETI PIPE,FREEDOM PLASTIC,JM MANUFACTURING,NATIONAL PIPE,NORTH AMERICAN PIPE, CHARLOTTE, SILVER LINE","8X20 FT PVC S40 BE PIPE","FT",null,20,{"v":0,"d":"$0.00"}]
[1802,"DIAMOND PLASTICS,ETI PIPE,FREEDOM PLASTIC,JM MANUFACTURING,NATIONAL PIPE,NORTH AMERICAN PIPE, CHARLOTTE, SILVER LINE","10X20 FT PVC S40 BE PIPE","FT",null,20,{"v":0,"d":"$0.00"}]
[1803,"DIAMOND PLASTICS,ETI PIPE,FREEDOM PLASTIC,JM MANUFACTURING,NATIONAL PIPE,NORTH AMERICAN PIPE, CHARLOTTE, SILVER LINE","12X20 FT PVC S40 BE PIPE","FT",null,20,{"v":0,"d":"$0.00"}]
[1804,"DIAMOND PLASTICS,ETI PIPE,FREEDOM PLASTIC,JM MANUFACTURING,NATIONAL PIPE,NORTH AMERICAN PIPE, CHARLOTTE, SILVER LINE","1/2 X 20 FT PVC S80 BE PIPE","FT",null,100,{"v":0,"d":"$0.00"}]
[1805,"DIAMOND PLASTICS,ETI PIPE,FREEDOM PLASTIC,JM MANUFACTURING,NATIONAL PIPE,NORTH AMERICAN PIPE, CHARLOTTE, SILVER LINE","3/4 X 20 FT PVC S80 BE PIPE","FT",null,2500,{"v":0,"d":"$0.00"}]
[1806,"DIAMOND PLASTICS,ETI PIPE,FREEDOM PLASTIC,JM MANUFACTURING,NATIONAL PIPE,NORTH AMERICAN PIPE, CHARLOTTE, SILVER LINE","1 X 20 FT PVC S80 BE PIPE","FT",null,100,{"v":0,"d":"$0.00"}]
[1807,"DIAMOND PLASTICS,ETI PIPE,FREEDOM PLASTIC,JM MANUFACTURING,NATIONAL PIPE,NORTH AMERICAN PIPE, CHARLOTTE, SILVER LINE","1-1/4 X 20 FT PVC S80 BE PIPE","FT",null,100,{"v":0,"d":"$0.00"}]
[1808,"DIAMOND PLASTICS,ETI PIPE,FREEDOM PLASTIC,JM MANUFACTURING,NATIONAL PIPE,NORTH AMERICAN PIPE, CHARLOTTE, SILVER LINE","1-1/2 X 20 FT PVC S80 BE PIPE","FT",null,100,{"v":0,"d":"$0.00"}]
[1809,"DIAMOND PLASTICS,ETI PIPE,FREEDOM PLASTIC,JM MANUFACTURING,NATIONAL PIPE,NORTH AMERICAN PIPE, CHARLOTTE, SILVER LINE","2 X 20 FT PVC S80 BE PIPE","FT",null,100,{"v":0,"d":"$0.00"}]
[1810,"DIAMOND PLASTICS,ETI PIPE,FREEDOM PLASTIC,JM MANUFACTURING,NATIONAL PIPE,NORTH AMERICAN PIPE, CHARLOTTE, SILVER LINE","2-1/2 X 20 FT PVC S80 BE PIPE","FT",null,100,{"v":0,"d":"$0.00"}]
[1811,"DIAMOND PLASTICS,ETI PIPE,FREEDOM PLASTIC,JM MANUFACTURING,NATIONAL PIPE,NORTH AMERICAN PIPE, CHARLOTTE, SILVER LINE","3 X 20 FT PVC S80 BE PIPE","FT",null,20,{"v":0,"d":"$0.00"}]
[1812,"DIAMOND PLASTICS,ETI PIPE,FREEDOM PLASTIC,JM MANUFACTURING,NATIONAL PIPE,NORTH AMERICAN PIPE, CHARLOTTE, SILVER LINE","4 X 20 FT PVC S80 BE PIPE","FT",null,20,{"v":0,"d":"$0.00"}]
[1813,"DIAMOND PLASTICS,ETI PIPE,FREEDOM PLASTIC,JM MANUFACTURING,NATIONAL PIPE,NORTH AMERICAN PIPE, CHARLOTTE, SILVER LINE","6 X 20 FT PVC S80 BE PIPE","FT",null,20,{"v":0,"d":"$0.00"}]
[1814,"DIAMOND PLASTICS,ETI PIPE,FREEDOM PLASTIC,JM MANUFACTURING,NATIONAL PIPE,NORTH AMERICAN PIPE, CHARLOTTE, SILVER LINE","8 X 20 FT PVC S80 BE PIPE","FT",null,20,{"v":0,"d":"$0.00"}]
[1815,"DIAMOND PLASTICS,ETI PIPE,FREEDOM PLASTIC,JM MANUFACTURING,NATIONAL PIPE,NORTH AMERICAN PIPE, CHARLOTTE, SILVER LINE","10 X 20 FT PVC S80 BE PIPE","FT",null,20,{"v":0,"d":"$0.00"}]
[1816,"DIAMOND PLASTICS,ETI PIPE,FREEDOM PLASTIC,JM MANUFACTURING,NATIONAL PIPE,NORTH AMERICAN PIPE, CHARLOTTE, SILVER LINE","12 X 20 FT PVC S80 BE PIPE","FT",null,20,{"v":0,"d":"$0.00"}]
[1817,"DIAMOND PLASTICS,ETI PIPE,FREEDOM PLASTIC,JM MANUFACTURING,NATIONAL PIPE,NORTH AMERICAN PIPE, CHARLOTTE, SILVER LINE","4X14 SDR26 HW PVC GJ SWR PIPE","FT",null,42,{"v":0,"d":"$0.00"}]
[1818,"DIAMOND PLASTICS,ETI PIPE,FREEDOM PLASTIC,JM MANUFACTURING,NATIONAL PIPE,NORTH AMERICAN PIPE, CHARLOTTE, SILVER LINE","6X14 SDR26 HW PVC GJ SWR PIPE","FT",null,42,{"v":0,"d":"$0.00"}]
[1819,"DIAMOND PLASTICS,ETI PIPE,FREEDOM PLASTIC,JM MANUFACTURING,NATIONAL PIPE,NORTH AMERICAN PIPE, CHARLOTTE, SILVER LINE","8X14 SDR26 HW PVC GJ SWR PIPE","FT",null,42,{"v":0,"d":"$0.00"}]
[1820,"DIAMOND PLASTICS,ETI PIPE,FREEDOM PLASTIC,JM MANUFACTURING,NATIONAL PIPE,NORTH AMERICAN PIPE, CHARLOTTE, SILVER LINE","10X14 SDR26 HW PVC GJ SWR PIPE","FT",null,42,{"v":0,"d":"$0.00"}]
[1821,"DIAMOND PLASTICS,ETI PIPE,FREEDOM PLASTIC,JM MANUFACTURING,NATIONAL PIPE,NORTH AMERICAN PIPE, CHARLOTTE, SILVER LINE","12X14 SDR26 HW PVC GJ SWR PIPE","FT",null,42,{"v":0,"d":"$0.00"}]
[1822,"DIAMOND PLASTICS,ETI PIPE,FREEDOM PLASTIC,JM MANUFACTURING,NATIONAL PIPE,NORTH AMERICAN PIPE, CHARLOTTE, SILVER LINE","3X40 IPS SDR17 HDPE PIPE","FT",null,40,{"v":0,"d":"$0.00"}]
[1823,"DIAMOND PLASTICS,ETI PIPE,FREEDOM PLASTIC,JM MANUFACTURING,NATIONAL PIPE,NORTH AMERICAN PIPE, CHARLOTTE, SILVER LINE","4 C900 DR14 PVC GJ BLUE PIPE","FT",null,100,{"v":0,"d":"$0.00"}]
[1824,"DIAMOND PLASTICS,ETI PIPE,FREEDOM PLASTIC,JM MANUFACTURING,NATIONAL PIPE,NORTH AMERICAN PIPE, CHARLOTTE, SILVER LINE","6 C900 DR14 PVC GJ BLUE PIPE","FT",null,500,{"v":0,"d":"$0.00"}]
[1825,"DIAMOND PLASTICS,ETI PIPE,FREEDOM PLASTIC,JM MANUFACTURING,NATIONAL PIPE,NORTH AMERICAN PIPE, CHARLOTTE, SILVER LINE","8 C900 DR14 PVC GJ BLUE PIPE","FT",null,500,{"v":0,"d":"$0.00"}]
[1826,"DIAMOND PLASTICS,ETI PIPE,FREEDOM PLASTIC,JM MANUFACTURING,NATIONAL PIPE,NORTH AMERICAN PIPE, CHARLOTTE, SILVER LINE","10 C900 DR14 PVC GJ BLUE PIPE","FT",null,500,{"v":0,"d":"$0.00"}]
[1827,"DIAMOND PLASTICS,ETI PIPE,FREEDOM PLASTIC,JM MANUFACTURING,NATIONAL PIPE,NORTH AMERICAN PIPE, CHARLOTTE, SILVER LINE","12 C900 DR14 PVC GJ BLUE PIPE","FT",null,500,{"v":0,"d":"$0.00"}]
[1828,"DIAMOND PLASTICS,ETI PIPE,FREEDOM PLASTIC,JM MANUFACTURING,NATIONAL PIPE,NORTH AMERICAN PIPE, CHARLOTTE, SILVER LINE","14 C900 DR14 PVC GJ BLUE PIPE","FT",null,20,{"v":0,"d":"$0.00"}]
[1829,"DIAMOND PLASTICS,ETI PIPE,FREEDOM PLASTIC,JM MANUFACTURING,NATIONAL PIPE,NORTH AMERICAN PIPE, CHARLOTTE, SILVER LINE","16 C900 DR14 PVC GJ BLUE PIPE","FT",null,20,{"v":0,"d":"$0.00"}]
[1830,"DIAMOND PLASTICS,ETI PIPE,FREEDOM PLASTIC,JM MANUFACTURING,NATIONAL PIPE,NORTH AMERICAN PIPE, CHARLOTTE, SILVER LINE","4 C900 DR14 PVC GJ GREE PIPE","FT",null,100,{"v":0,"d":"$0.00"}]
[1831,"DIAMOND PLASTICS,ETI PIPE,FREEDOM PLASTIC,JM MANUFACTURING,NATIONAL PIPE,NORTH AMERICAN PIPE, CHARLOTTE, SILVER LINE","6 C900 DR14 PVC GJ GREE PIPE","FT",null,500,{"v":0,"d":"$0.00"}]
[1832,"DIAMOND PLASTICS,ETI PIPE,FREEDOM PLASTIC,JM MANUFACTURING,NATIONAL PIPE,NORTH AMERICAN PIPE, CHARLOTTE, SILVER LINE","8 C900 DR14 PVC GJ GREE PIPE","FT",null,500,{"v":0,"d":"$0.00"}]
[1833,"DIAMOND PLASTICS,ETI PIPE,FREEDOM PLASTIC,JM MANUFACTURING,NATIONAL PIPE,NORTH AMERICAN PIPE, CHARLOTTE, SILVER LINE","10 C900 DR14 PVC GJ GREE PIPE","FT",null,500,{"v":0,"d":"$0.00"}]
[1834,"DIAMOND PLASTICS,ETI PIPE,FREEDOM PLASTIC,JM MANUFACTURING,NATIONAL PIPE,NORTH AMERICAN PIPE, CHARLOTTE, SILVER LINE","12 C900 DR14 PVC GJ GREE PIPE","FT",null,500,{"v":0,"d":"$0.00"}]
[1835,"DIAMOND PLASTICS,ETI PIPE,FREEDOM PLASTIC,JM MANUFACTURING,NATIONAL PIPE,NORTH AMERICAN PIPE, CHARLOTTE, SILVER LINE","14 C900 DR14 PVC GJ GREE PIPE","FT",null,20,{"v":0,"d":"$0.00"}]
[1836,"DIAMOND PLASTICS,ETI PIPE,FREEDOM PLASTIC,JM MANUFACTURING,NATIONAL PIPE,NORTH AMERICAN PIPE, CHARLOTTE, SILVER LINE","16 C900 DR14 PVC GJ GREE PIPE","FT",null,20,{"v":0,"d":"$0.00"}]
[1837,"DIAMOND PLASTICS,ETI PIPE,FREEDOM PLASTIC,JM MANUFACTURING,NATIONAL PIPE,NORTH AMERICAN PIPE, CHARLOTTE, SILVER LINE","4 C900 DR14 PVC GJ PURP PIPE","FT",null,100,{"v":0,"d":"$0.00"}]
[1838,"DIAMOND PLASTICS,ETI PIPE,FREEDOM PLASTIC,JM MANUFACTURING,NATIONAL PIPE,NORTH AMERICAN PIPE, CHARLOTTE, SILVER LINE","6 C900 DR14 PVC GJ PURP PIPE","FT",null,100,{"v":0,"d":"$0.00"}]
[1839,"DIAMOND PLASTICS,ETI PIPE,FREEDOM PLASTIC,JM MANUFACTURING,NATIONAL PIPE,NORTH AMERICAN PIPE, CHARLOTTE, SILVER LINE","8 C900 DR14 PVC GJ PURP PIPE","FT",null,100,{"v":0,"d":"$0.00"}]
[1840,"DIAMOND PLASTICS,ETI PIPE,FREEDOM PLASTIC,JM MANUFACTURING,NATIONAL PIPE,NORTH AMERICAN PIPE, CHARLOTTE, SILVER LINE","10 C900 DR14 PVC GJ PURP PIPE","FT",null,100,{"v":0,"d":"$0.00"}]
[1841,"DIAMOND PLASTICS,ETI PIPE,FREEDOM PLASTIC,JM MANUFACTURING,NATIONAL PIPE,NORTH AMERICAN PIPE, CHARLOTTE, SILVER LINE","12 C900 DR14 PVC GJ PURP PIPE","FT",null,100,{"v":0,"d":"$0.00"}]
[1842,"DIAMOND PLASTICS,ETI PIPE,FREEDOM PLASTIC,JM MANUFACTURING,NATIONAL PIPE,NORTH AMERICAN PIPE, CHARLOTTE, SILVER LINE","14 C900 DR14 PVC GJ PURP PIPE","FT",null,20,{"v":0,"d":"$0.00"}]
[1843,"DIAMOND PLASTICS,ETI PIPE,FREEDOM PLASTIC,JM MANUFACTURING,NATIONAL PIPE,NORTH AMERICAN PIPE, CHARLOTTE, SILVER LINE","16 C900 DR14 PVC GJ PURP PIPE","FT",null,20,{"v":0,"d":"$0.00"}]
[1844,"DIAMOND PLASTICS,ETI PIPE,FREEDOM PLASTIC,JM MANUFACTURING,NATIONAL PIPE,NORTH AMERICAN PIPE, CHARLOTTE, SILVER LINE","4 C900 DR18 PVC GJ BLUE PIPE","FT",null,100,{"v":0,"d":"$0.00"}]
[1845,"DIAMOND PLASTICS,ETI PIPE,FREEDOM PLASTIC,JM MANUFACTURING,NATIONAL PIPE,NORTH AMERICAN PIPE, CHARLOTTE, SILVER LINE","6 C900 DR18 PVC GJ BLUE PIPE","FT",null,500,{"v":0,"d":"$0.00"}]
[1846,"DIAMOND PLASTICS,ETI PIPE,FREEDOM PLASTIC,JM MANUFACTURING,NATIONAL PIPE,NORTH AMERICAN PIPE, CHARLOTTE, SILVER LINE","8 C900 DR18 PVC GJ BLUE PIPE","FT",null,500,{"v":0,"d":"$0.00"}]
[1847,"DIAMOND PLASTICS,ETI PIPE,FREEDOM PLASTIC,JM MANUFACTURING,NATIONAL PIPE,NORTH AMERICAN PIPE, CHARLOTTE, SILVER LINE","10 C900 DR18 PVC GJ BLUE PIPE","FT",null,500,{"v":0,"d":"$0.00"}]
[1848,"DIAMOND PLASTICS,ETI PIPE,FREEDOM PLASTIC,JM MANUFACTURING,NATIONAL PIPE,NORTH AMERICAN PIPE, CHARLOTTE, SILVER LINE","12 C900 DR18 PVC GJ BLUE PIPE","FT",null,500,{"v":0,"d":"$0.00"}]
[1849,"DIAMOND PLASTICS,ETI PIPE,FREEDOM PLASTIC,JM MANUFACTURING,NATIONAL PIPE,NORTH AMERICAN PIPE, CHARLOTTE, SILVER LINE","14 C905 DR18 CL235 PVC GJ BLUE PIPE","FT",null,20,{"v":0,"d":"$0.00"}]
[1850,"DIAMOND PLASTICS,ETI PIPE,FREEDOM PLASTIC,JM MANUFACTURING,NATIONAL PIPE,NORTH AMERICAN PIPE, CHARLOTTE, SILVER LINE","16 C905 DR18 CL235 PVC GJ BLUE PIPE","FT",null,20,{"v":0,"d":"$0.00"}]
[1851,"DIAMOND PLASTICS,ETI PIPE,FREEDOM PLASTIC,JM MANUFACTURING,NATIONAL PIPE,NORTH AMERICAN PIPE, CHARLOTTE, SILVER LINE","18 C905 DR18 CL235 PVC GJ BLUE PIPE","FT",null,20,{"v":0,"d":"$0.00"}]
[1852,"DIAMOND PLASTICS,ETI PIPE,FREEDOM PLASTIC,JM MANUFACTURING,NATIONAL PIPE,NORTH AMERICAN PIPE, CHARLOTTE, SILVER LINE","20 C905 DR18 CL235 PVC GJ BLUE PIPE","FT",null,20,{"v":0,"d":"$0.00"}]
[1853,"DIAMOND PLASTICS,ETI PIPE,FREEDOM PLASTIC,JM MANUFACTURING,NATIONAL PIPE,NORTH AMERICAN PIPE, CHARLOTTE, SILVER LINE","24 C905 DR18 CL235 PVC GJ BLUE PIPE","FT",null,20,{"v":0,"d":"$0.00"}]
[1854,"DIAMOND PLASTICS,ETI PIPE,FREEDOM PLASTIC,JM MANUFACTURING,NATIONAL PIPE,NORTH AMERICAN PIPE, CHARLOTTE, SILVER LINE","4 C900 DR18 PVC GJ GREE PIPE","FT",null,100,{"v":0,"d":"$0.00"}]
[1855,"DIAMOND PLASTICS,ETI PIPE,FREEDOM PLASTIC,JM MANUFACTURING,NATIONAL PIPE,NORTH AMERICAN PIPE, CHARLOTTE, SILVER LINE","6 C900 DR18 PVC GJ GREE PIPE","FT",null,500,{"v":0,"d":"$0.00"}]
[1856,"DIAMOND PLASTICS,ETI PIPE,FREEDOM PLASTIC,JM MANUFACTURING,NATIONAL PIPE,NORTH AMERICAN PIPE, CHARLOTTE, SILVER LINE","8 C900 DR18 PVC GJ GREE PIPE","FT",null,500,{"v":0,"d":"$0.00"}]
[1857,"DIAMOND PLASTICS,ETI PIPE,FREEDOM PLASTIC,JM MANUFACTURING,NATIONAL PIPE,NORTH AMERICAN PIPE, CHARLOTTE, SILVER LINE","10 C900 DR18 PVC GJ GREE PIPE","FT",null,500,{"v":0,"d":"$0.00"}]
[1858,"DIAMOND PLASTICS,ETI PIPE,FREEDOM PLASTIC,JM MANUFACTURING,NATIONAL PIPE,NORTH AMERICAN PIPE, CHARLOTTE, SILVER LINE","12 C900 DR18 PVC GJ GREE PIPE","FT",null,500,{"$f":"SUM(E1846*F1846)","v":{"v":0,"d":"$0.00"}}]
[1859,"DIAMOND PLASTICS,ETI PIPE,FREEDOM PLASTIC,JM MANUFACTURING,NATIONAL PIPE,NORTH AMERICAN PIPE, CHARLOTTE, SILVER LINE","14 C905 DR18 CL235 PVC GJ GREE PIPE","FT",null,20,{"v":0,"d":"$0.00"}]
[1860,"DIAMOND PLASTICS,ETI PIPE,FREEDOM PLASTIC,JM MANUFACTURING,NATIONAL PIPE,NORTH AMERICAN PIPE, CHARLOTTE, SILVER LINE","16 C905 DR18 CL235 PVC GJ GREE PIPE","FT",null,20,{"v":0,"d":"$0.00"}]
[1861,"DIAMOND PLASTICS,ETI PIPE,FREEDOM PLASTIC,JM MANUFACTURING,NATIONAL PIPE,NORTH AMERICAN PIPE, CHARLOTTE, SILVER LINE","18 C905 DR18 CL235 PVC GJ GREE PIPE","FT",null,20,{"v":0,"d":"$0.00"}]
[1862,"DIAMOND PLASTICS,ETI PIPE,FREEDOM PLASTIC,JM MANUFACTURING,NATIONAL PIPE,NORTH AMERICAN PIPE, CHARLOTTE, SILVER LINE","20 C900 DR18 CL235 PVC GJ GREE PIPE","FT",null,20,{"v":0,"d":"$0.00"}]
[1863,"DIAMOND PLASTICS,ETI PIPE,FREEDOM PLASTIC,JM MANUFACTURING,NATIONAL PIPE,NORTH AMERICAN PIPE, CHARLOTTE, SILVER LINE","24 C905 DR18 CL235 PVC GJ GREE PIPE","FT",null,20,{"v":0,"d":"$0.00"}]
[1864,"DIAMOND PLASTICS,ETI PIPE,FREEDOM PLASTIC,JM MANUFACTURING,NATIONAL PIPE,NORTH AMERICAN PIPE, CHARLOTTE, SILVER LINE","4 C900 DR18 PVC GJ PURP PIPE","FT",null,20,{"v":0,"d":"$0.00"}]
[1865,"DIAMOND PLASTICS,ETI PIPE,FREEDOM PLASTIC,JM MANUFACTURING,NATIONAL PIPE,NORTH AMERICAN PIPE, CHARLOTTE, SILVER LINE","6 C900 DR18 PVC GJ PURP PIPE","FT",null,20,{"v":0,"d":"$0.00"}]
[1866,"DIAMOND PLASTICS,ETI PIPE,FREEDOM PLASTIC,JM MANUFACTURING,NATIONAL PIPE,NORTH AMERICAN PIPE, CHARLOTTE, SILVER LINE","8 C900 DR18 PVC GJ PURP PIPE","FT",null,20,{"v":0,"d":"$0.00"}]
[1867,"DIAMOND PLASTICS,ETI PIPE,FREEDOM PLASTIC,JM MANUFACTURING,NATIONAL PIPE,NORTH AMERICAN PIPE, CHARLOTTE, SILVER LINE","10 C900 DR18 PVC GJ PURP PIPE","FT",null,20,{"v":0,"d":"$0.00"}]
[1868,"DIAMOND PLASTICS,ETI PIPE,FREEDOM PLASTIC,JM MANUFACTURING,NATIONAL PIPE,NORTH AMERICAN PIPE, CHARLOTTE, SILVER LINE","12 C900 DR18 PVC GJ PURP PIPE","FT",null,20,{"v":0,"d":"$0.00"}]
[1869,"DIAMOND PLASTICS,ETI PIPE,FREEDOM PLASTIC,JM MANUFACTURING,NATIONAL PIPE,NORTH AMERICAN PIPE, CHARLOTTE, SILVER LINE","14 C905 DR18 CL235 PVC PURP PIPE","FT",null,20,{"v":0,"d":"$0.00"}]
[1870,"DIAMOND PLASTICS,ETI PIPE,FREEDOM PLASTIC,JM MANUFACTURING,NATIONAL PIPE,NORTH AMERICAN PIPE, CHARLOTTE, SILVER LINE","16 C905 DR18 CL235 PVC PURP PIPE ","FT",null,20,{"v":0,"d":"$0.00"}]
[1871,"DIAMOND PLASTICS,ETI PIPE,FREEDOM PLASTIC,JM MANUFACTURING,NATIONAL PIPE,NORTH AMERICAN PIPE, CHARLOTTE, SILVER LINE","18 C905 DR18 CL235 PVC PURP PIPE","FT",null,20,{"v":0,"d":"$0.00"}]
[1872,"DIAMOND PLASTICS,ETI PIPE,FREEDOM PLASTIC,JM MANUFACTURING,NATIONAL PIPE,NORTH AMERICAN PIPE, CHARLOTTE, SILVER LINE","20 C905 DR18 CL235 PVC PURP PIPE ","FT",null,20,{"v":0,"d":"$0.00"}]
[1873,"DIAMOND PLASTICS,ETI PIPE,FREEDOM PLASTIC,JM MANUFACTURING,NATIONAL PIPE,NORTH AMERICAN PIPE, CHARLOTTE, SILVER LINE","24 C905 DR18 CL235 PVC PURP PIPE","FT",null,20,{"v":0,"d":"$0.00"}]
[1874,"AMERICAN","4 CL350 CL DI FASTITE PIPE","FT",null,20,{"v":0,"d":"$0.00"}]
[1875,"AMERICAN","6 CL350 CL DI FASTITE PIPE","FT",null,20,{"v":0,"d":"$0.00"}]
[1876,"AMERICAN","8 CL350 CL DI FASTITE PIPE","FT",null,20,{"v":0,"d":"$0.00"}]
[1877,"AMERICAN","10 CL350 CL DI FASTITE PIPE","FT",null,20,{"v":0,"d":"$0.00"}]
[1878,"AMERICAN","12 CL350 CL DI FASTITE PIPE","FT",null,20,{"v":0,"d":"$0.00"}]
[1879,"AMERICAN","14 CL350 CL DI FASTITE PIPE","FT",null,20,{"v":0,"d":"$0.00"}]
[1880,"AMERICAN","16 CL350 CL DI FASTITE PIPE","FT",null,20,{"v":0,"d":"$0.00"}]
[1881,"AMERICAN","18 CL350 CL DI FASTITE PIPE","FT",null,20,{"v":0,"d":"$0.00"}]
[1882,"AMERICAN","20 CL350 CL DI FASTITE PIPE","FT",null,20,{"v":0,"d":"$0.00"}]
[1883,"AMERICAN","24 CL350 CL DI FASTITE PIPE","FT",null,20,{"v":0,"d":"$0.00"}]
[1884,"AMERICAN","3 CL51 EPOX DI FASTITE PIPE","FT",null,20,{"v":0,"d":"$0.00"}]
[1885,"AMERICAN","4 CL51 EPOX DI FASTITE PIPE ","FT",null,20,{"v":0,"d":"$0.00"}]
[1886,"AMERICAN","6 CL51 EPOX DI FASTITE PIPE ","FT",null,20,{"v":0,"d":"$0.00"}]
[1887,"AMERICAN","8 CL51 EPOX DI FASTITE PIPE ","FT",null,20,{"v":0,"d":"$0.00"}]
[1888,"AMERICAN","10 CL51 EPOX DI FASTITE PIPE ","FT",null,20,{"v":0,"d":"$0.00"}]
[1889,"AMERICAN","12 CL51 EPOX DI FASTITE PIPE ","FT",null,20,{"v":0,"d":"$0.00"}]
[1890,"AMERICAN","14 CL51 EPOX DI FASTITE PIPE ","FT",null,20,{"v":0,"d":"$0.00"}]
[1891,"AMERICAN","16 CL51 EPOX DI FASTITE PIPE ","FT",null,20,{"v":0,"d":"$0.00"}]
[1892,"AMERICAN","18 CL51 EPOX DI FASTITE PIPE ","FT",null,20,{"v":0,"d":"$0.00"}]
[1893,"AMERICAN","20 CL51 EPOX DI FASTITE PIPE ","FT",null,20,{"v":0,"d":"$0.00"}]
[1894,"AMERICAN","24 CL51 EPOX DI FASTITE PIPE ","FT",null,20,{"v":0,"d":"$0.00"}]
[1896,"AMERICAN","8 CL350 P-401 DI FASTITE PIPE","FT",null,20,{"v":0,"d":"$0.00"}]
[1897,"DIAMOND PLASTICS,ETI PIPE,FREEDOM PLASTIC,JM MANUFACTURING,NATIONAL PIPE,NORTH AMERICAN PIPE, CHARLOTTE, SILVER LINE","4X20 FT PVC PR160 BE PIPE","FT",null,20,{"v":0,"d":"$0.00"}]
[1898,"AMERICAN","24 CL250 P-401 DI FASTITE","FT",null,20,{"v":0,"d":"$0.00"}]
[1899,"US PIPE OR EQUIVALENT","2 SS S40 316L A312 WELD PIPE","FT",null,20,{"v":0,"d":"$0.00"}]
[1900,"AMERICAN","4 CL350 P-401 DI FASTITE PIPE","FT",null,20,{"v":0,"d":"$0.00"}]
[1901,"AMERICAN","6 CL350 P-401 DI FASTITE PIPE","FT",null,20,{"v":0,"d":"$0.00"}]
[1902,"JM EAGLE OR EQUIVALENT","24X50 DIPS DR11 GREEN STRIPE PIPE","FT",null,50,{"v":0,"d":"$0.00"}]
[1903,"JM EAGLE OR EQUIVALENT","24X50 DIPS SDR11 PURPLE STRIPE PIPE","FT",null,50,{"v":0,"d":"$0.00"}]
[1904,"US PIPE OR EQUIVALENT","2 SS S40 316L A312 SMLS PIPE","FT",null,20,{"v":0,"d":"$0.00"}]
[1905,"JM EAGLE OR EQUIVALENT","18X50 DIPS SDR11 HDPE PIPE GREE","FT",null,50,{"v":0,"d":"$0.00"}]
[1906,"JM EAGLE OR EQUIVALENT","3X40 IPS SDR11 HDPE PIPE AWWA","FT",null,40,{"v":0,"d":"$0.00"}]
[1907,"JM EAGLE OR EQUIVALENT","16X50 DIPS DR9 PIPE GREEN","FT",null,50,{"v":0,"d":"$0.00"}]
[1908,"AMERICAN","16 CL350 P-401 DI FASTITE PIPE","FT",null,20,{"v":0,"d":"$0.00"}]
[1909,"AMERICAN","12 CL350 P-401 DI FASTITE PIPE","FT",null,20,{"v":0,"d":"$0.00"}]
[1910,"JM EAGLE OR EQUIVALENT","8X40 DIPS SDR11 HDPE PIPE BLUE","FT",null,40,{"v":0,"d":"$0.00"}]
[1911,"JM EAGLE OR EQUIVALENT","10X40 DIPS SDR11 HDPE PIPE BLUE","FT",null,40,{"v":0,"d":"$0.00"}]
[1912,"JM EAGLE OR EQUIVALENT","14X50 DIPS SDR11 HDPE PIPE BLUE","FT",null,50,{"v":0,"d":"$0.00"}]
[1913,"JM EAGLE OR EQUIVALENT","10X50 DIPS SDR11 HDPE PIPE BLUE","FT",null,50,{"v":0,"d":"$0.00"}]
[1914,"JM EAGLE OR EQUIVALENT","6X40 DIPS SDR11 HDPE PIPE","FT",null,40,{"v":0,"d":"$0.00"}]
[1915,"JM EAGLE OR EQUIVALENT","8X40 DIPS SDR11 HDPE PIPE BLAC","FT",null,40,{"v":0,"d":"$0.00"}]
[1916,"JM EAGLE OR EQUIVALENT","12X50 DIPS SDR11 HDPE PIPE BLUE","FT",null,50,{"v":0,"d":"$0.00"}]
[1917,"DIAMOND PLASTICS,ETI PIPE,FREEDOM PLASTIC,JM MANUFACTURING,NATIONAL PIPE,NORTH AMERICAN PIPE, CHARLOTTE, SILVER LINE","24 C905 DR25 CL165 PVC GJ PURP PIPE","FT",null,20,{"v":0,"d":"$0.00"}]
[1918,"JM EAGLE OR EQUIVALENT","4X40 DIPS SDR11 HDPE PIPE BLUE","FT",null,40,{"v":0,"d":"$0.00"}]
[1919,"JM EAGLE OR EQUIVALENT","12X40 DIPS SDR11 HDPE PIPE BLUE","FT",null,40,{"v":0,"d":"$0.00"}]
[1920,"AMERICAN","20 CL250 CL DI FASTITE PIPE","FT",null,20,{"v":0,"d":"$0.00"}]
[1921,"DIAMOND PLASTICS,ETI PIPE,FREEDOM PLASTIC,JM MANUFACTURING,NATIONAL PIPE,NORTH AMERICAN PIPE, CHARLOTTE, SILVER LINE","14 X 20 FT PVC S80 BE PIPE","C",null,20,{"v":0,"d":"$0.00"}]
[1922,"FORD,JCM,SMILTH-BLAIR,ROMAC","16X4 ALL SS MJ TAPN SLV 17.40-17.80","EA",null,1,{"$f":"SUM(E1909*F1909)","v":{"v":0,"d":"$0.00"}}]
[1923,"FORD,JCM,SMILTH-BLAIR,ROMAC","6X6 SS MJ TAPN SLV 7.10-7.50","EA",null,1,{"v":0,"d":"$0.00"}]
[1924,"FORD,JCM,SMILTH-BLAIR,ROMAC","6X6 SS MJ TAPN SLV 6.60-7.00","EA",null,1,{"v":0,"d":"$0.00"}]
[1925,"FORD,JCM,ROMAC","4X2 IP ALL SS SDL 4.50-4.80","EA",null,1,{"v":0,"d":"$0.00"}]
[1926,"FORD,JCM,ROMAC","6X2 IP ALL SS SDL 6.63-6.90","EA",null,1,{"v":0,"d":"$0.00"}]
[1927,"FORD,JCM,ROMAC","8X2 IP ALL SS SDL 8.63-9.05","EA",null,1,{"v":0,"d":"$0.00"}]
[1928,"FORD,JCM,ROMAC","2-1/2X2 IP ALL SS SDL 2.88 OD","EA",null,1,{"v":0,"d":"$0.00"}]
[1929,"FORD,JCM,ROMAC","8X2 IP ALL 316SS SDL 8.63-9.05","EA",null,1,{"v":0,"d":"$0.00"}]
[1930,"FORD,JCM,ROMAC","10X2 IP ALL SS SDL 10.75-11.10","EA",null,1,{"v":0,"d":"$0.00"}]
[1931,"FORD,JCM,ROMAC","12X2 IP ALL SS SDL 12.75-13.20","EA",null,1,{"v":0,"d":"$0.00"}]
[1932,"FORD,JCM,ROMAC","20X2 IP ALL SS SDL 21.60-22.80","EA",null,1,{"v":0,"d":"$0.00"}]
[1933,"FORD,JCM,ROMAC","4X2 IP ALL 316SS SDL 4.50-4.80","EA",null,1,{"v":0,"d":"$0.00"}]
[1934,"FORD,JCM,ROMAC","24X2 IP ALL SS SDL 25.80-27.00","EA",null,1,{"v":0,"d":"$0.00"}]
[1935,"FORD,JCM,SMILTH-BLAIR,ROMAC","20X8 SS MJ TAPN SLV 21.40-21.80","EA",null,1,{"v":0,"d":"$0.00"}]
[1936,"FORD,JCM,SMILTH-BLAIR,ROMAC","8X8 SS MJ TAPN SLV 8.60-9.05","EA",null,1,{"v":0,"d":"$0.00"}]
[1937,"FORD,JCM,SMILTH-BLAIR,ROMAC","24X24 SS MJ TAPN SLV 25.60-26.00","EA",null,1,{"v":0,"d":"$0.00"}]
[1938,"FORD,JCM,ROMAC","3X2 IP ALL SS SDL 3.48-3.52","EA",null,1,{"v":0,"d":"$0.00"}]
[1939,"FORD,JCM,SMILTH-BLAIR,ROMAC","16X16 SS MJ TAPN SLV 17.40-17.80","EA",null,1,{"v":0,"d":"$0.00"}]
[1940,"FORD,JCM,SMILTH-BLAIR,ROMAC","12X12 SS MJ TAPN SLV 13.20-13.60","EA",null,1,{"v":0,"d":"$0.00"}]
[1941,"FORD,JCM,SMILTH-BLAIR,ROMAC","24X20 SS MJ TAPN SLV 25.60-26.00","EA",null,1,{"v":0,"d":"$0.00"}]
[1942,"FORD,SMITH-BLAIR,JCM","22X20 SS 2B REP CLMP 21.52-22.27","EA",null,1,{"v":0,"d":"$0.00"}]
[1943,"FORD,JCM,ROMAC","3X1 IP ALL SS SDL 3.48-3.88 W/EPDM","EA",null,1,{"v":0,"d":"$0.00"}]
[1944,"FORD,JCM,SMILTH-BLAIR,ROMAC","24X24 SS MJ TAPN SLV 25.71-26.41","EA",null,1,{"v":0,"d":"$0.00"}]
[1945,"FORD,JCM,SMILTH-BLAIR,ROMAC","16X8 SS MJ TAPN SLV 17.40-17.80","EA",null,1,{"v":0,"d":"$0.00"}]
[1946,"FORD,JCM,ROMAC","6X2 IP ALL 316SS SDL 6.63-6.90","EA",null,1,{"v":0,"d":"$0.00"}]
[1947,"FORD,JCM,ROMAC","10X2 IP ALL 316SS SDL 10.75-11.10","EA",null,1,{"v":0,"d":"$0.00"}]
[1948,"FORD,JCM,ROMAC","24X1 IP ALL SS SDL 25.80-27.00","EA",null,1,{"v":0,"d":"$0.00"}]
[1949,"FORD,JCM,SMILTH-BLAIR,ROMAC","12X6 SS MJ TAPN SLV 13.20-13.60","EA",null,1,{"v":0,"d":"$0.00"}]
[1950,"FORD,JCM,SMILTH-BLAIR,ROMAC","10X10 SS MJ TAPN SLV 11.10-11.50","EA",null,1,{"v":0,"d":"$0.00"}]
[1951,"FORD,JCM,SMILTH-BLAIR,ROMAC","12X10 SS MJ TAPN SLV 13.20-13.60","EA",null,1,{"v":0,"d":"$0.00"}]
[1952,"FORD,JCM,SMILTH-BLAIR,ROMAC","24X12 SS MJ TAPN SLV 25.60-26.00","EA",null,1,{"v":0,"d":"$0.00"}]
[1953,"PRESCO OR EQUIVALENT","21 WIRE FLAG GREEN WITH IRCU LOGO","EA",null,15000,{"v":0,"d":"$0.00"}]
[1954,"PRESCO OR EQUIVALENT","21 WIRE FLAG PURPLE WITH IRCU LOGO","EA",null,5000,{"v":0,"d":"$0.00"}]
[1955,"PRESCO OR EQUIVALENT","21 WIRE FLAG BLUE WITH IRC LOGO","EA",null,15000,{"v":0,"d":"$0.00"}]
[1956,"BINGHAM & TAYLOR,EAST JORDAN,TYLER,US FOUNDRY","5-1/4X1 VLV BX RSR-DOMESTIC","EA",null,40,{"v":0,"d":"$0.00"}]
[1957,"BINGHAM & TAYLOR,EAST JORDAN,TYLER,US FOUNDRY","5-1/4X1-1/2 VLV BX RSR-DOMESTIC","EA",null,40,{"v":0,"d":"$0.00"}]
[1958,"BINGHAM & TAYLOR,EAST JORDAN,TYLER,US FOUNDRY","5-1/4X2 VLV BX RSR-DOMESTIC","EA",null,40,{"v":0,"d":"$0.00"}]
[1959,"BINGHAM & TAYLOR,EAST JORDAN,TYLER,US FOUNDRY","5-1/4X3 VLV BX RSR-DOMESTIC","EA",null,40,{"v":0,"d":"$0.00"}]
[1960,"BINGHAM & TAYLOR,EAST JORDAN,TYLER,US FOUNDRY","5-1/4X4 VLV BX RSR-DOMESTIC","EA",null,40,{"v":0,"d":"$0.00"}]
[1961,"BINGHAM & TAYLOR,EAST JORDAN,TYLER,US FOUNDRY","5-1/4X6 VLV BX RSR-DOMESTIC","EA",null,40,{"v":0,"d":"$0.00"}]
[1962,"AMERICAN VALVE,CLOW/MCWANE,STAR, TYLER, US PIPE","8X13 MJ C153 SWVL HYD ADPT","EA",null,1,{"v":0,"d":"$0.00"}]
[1963,"BINGHAM & TAYLOR,EAST JORDAN,TYLER,US FOUNDRY","5-1/4 CI VLV BX LID REUSE-DOMESTIC","EA",null,10,{"v":0,"d":"$0.00"}]
[1964,"BINGHAM & TAYLOR,EAST JORDAN,TYLER,US FOUNDRY","2PC SC CI VLV BX 19-22 WTR -DOMESTIC","EA",null,10,{"v":0,"d":"$0.00"}]
[1965,"BINGHAM & TAYLOR,EAST JORDAN,TYLER,US FOUNDRY","2PC SC CI VLV BX 19-22 REUSE -DOMESTIC","EA",null,10,{"v":0,"d":"$0.00"}]
[1966,"BINGHAM & TAYLOR,EAST JORDAN,TYLER,US FOUNDRY","2PC SC CI VLV BX 19-22 SWR -DOMESTIC","EA",null,10,{"v":0,"d":"$0.00"}]
[1967,"BINGHAM & TAYLOR,EAST JORDAN,TYLER,US FOUNDRY","2PC SC CI  VLV BX 27-37 WTR-DOMESTIC","EA",null,10,{"v":0,"d":"$0.00"}]
[1968,"BINGHAM & TAYLOR,EAST JORDAN,TYLER,US FOUNDRY","15 SC  VLV BX BOT SECT-DOMESTIC","EA",null,10,{"v":0,"d":"$0.00"}]
[1969,"BINGHAM & TAYLOR,EAST JORDAN,TYLER,US FOUNDRY","10 SC  VLV BX TOP SECT-DOMESTIC","EA",null,10,{"v":0,"d":"$0.00"}]
[1970,"BINGHAM & TAYLOR,EAST JORDAN,TYLER,US FOUNDRY","5-1/4 CI VLV BX LID WTR-DOMESTIC","EA",null,50,{"v":0,"d":"$0.00"}]
[1971,"BINGHAM & TAYLOR,EAST JORDAN,TYLER,US FOUNDRY","5-1/4 CI VLV BX LID SWR-DOMESTIC","EA",null,20,{"v":0,"d":"$0.00"}]
[1972,"AMERICAN VALVE,CLOW/MCWANE,STAR, TYLER, US PIPE","6X13 MJ C153 SWVL HYD ADPT","EA",null,10,{"v":0,"d":"$0.00"}]
[1973,"AMERICAN VALVE,CLOW/MCWANE,STAR, TYLER, US PIPE","3 MJ C153 P-401 90 BEND L/A","EA",null,1,{"v":0,"d":"$0.00"}]
[1974,"AMERICAN VALVE,CLOW/MCWANE,STAR, TYLER, US PIPE","4 MJ C153 P-401 90 BEND L/A","EA",null,1,{"v":0,"d":"$0.00"}]
[1975,"AMERICAN VALVE,CLOW/MCWANE,STAR, TYLER, US PIPE","6 MJ C153 P-401 90 BEND L/A","EA",null,1,{"v":0,"d":"$0.00"}]
[1976,"AMERICAN VALVE,CLOW/MCWANE,STAR, TYLER, US PIPE","8 MJ C153 P-401 90 BEND L/A","EA",null,1,{"v":0,"d":"$0.00"}]
[1977,"AMERICAN VALVE,CLOW/MCWANE,STAR, TYLER, US PIPE","10 MJ C153 P-401 90 BEND L/A","EA",null,1,{"v":0,"d":"$0.00"}]
[1978,"AMERICAN VALVE,CLOW/MCWANE,STAR, TYLER, US PIPE","12 MJ C153 P-401 90 BEND L/A","EA",null,1,{"v":0,"d":"$0.00"}]
[1979,"AMERICAN VALVE,CLOW/MCWANE,STAR, TYLER, US PIPE","16 MJ C153 P-401 90 BEND L/A","EA",null,1,{"v":0,"d":"$0.00"}]
[1980,"AMERICAN VALVE,CLOW/MCWANE,STAR, TYLER, US PIPE","20 MJ C153 P-401 90 BEND L/A","EA",null,1,{"v":0,"d":"$0.00"}]
[1981,"AMERICAN VALVE,CLOW/MCWANE,STAR, TYLER, US PIPE","24 MJ C153 P-401 90 BEND L/A","EA",null,1,{"v":0,"d":"$0.00"}]
[1982,"AMERICAN VALVE,CLOW/MCWANE,STAR, TYLER, US PIPE","3 MJ C153 P-401 45 BEND L/A","EA",null,1,{"v":0,"d":"$0.00"}]
[1983,"AMERICAN VALVE,CLOW/MCWANE,STAR, TYLER, US PIPE","4 MJ C153 P-401 45 BEND L/A","EA",null,1,{"v":0,"d":"$0.00"}]
[1984,"AMERICAN VALVE,CLOW/MCWANE,STAR, TYLER, US PIPE","6 MJ C153 P-401 45 BEND L/A","EA",null,1,{"v":0,"d":"$0.00"}]
[1985,"AMERICAN VALVE,CLOW/MCWANE,STAR, TYLER, US PIPE","8 MJ C153 P-401 45 BEND L/A","EA",null,1,{"v":0,"d":"$0.00"}]
[1986,"AMERICAN VALVE,CLOW/MCWANE,STAR, TYLER, US PIPE","10 MJ C153 P-401 45 BEND L/A","EA",null,1,{"$f":"SUM(E1973*F1973)","v":{"v":0,"d":"$0.00"}}]
[1987,"AMERICAN VALVE,CLOW/MCWANE,STAR, TYLER, US PIPE","12 MJ C153 P-401 45 BEND L/A","EA",null,1,{"v":0,"d":"$0.00"}]
[1988,"AMERICAN VALVE,CLOW/MCWANE,STAR, TYLER, US PIPE","16 MJ C153 P-401 45 BEND L/A","EA",null,1,{"v":0,"d":"$0.00"}]
[1989,"AMERICAN VALVE,CLOW/MCWANE,STAR, TYLER, US PIPE","20 MJ C153 P-401 45 BEND L/A","EA",null,1,{"v":0,"d":"$0.00"}]
[1990,"AMERICAN VALVE,CLOW/MCWANE,STAR, TYLER, US PIPE","24 MJ C153 P-401 45 BEND L/A","EA",null,1,{"v":0,"d":"$0.00"}]
[1991,"AMERICAN VALVE,CLOW/MCWANE,STAR, TYLER, US PIPE","3 MJ C153 P-401 22-1/2 BEND L/A","EA",null,1,{"v":0,"d":"$0.00"}]
[1992,"AMERICAN VALVE,CLOW/MCWANE,STAR, TYLER, US PIPE","4 MJ C153 P-401 22-1/2 BEND L/A","EA",null,1,{"v":0,"d":"$0.00"}]
[1993,"AMERICAN VALVE,CLOW/MCWANE,STAR, TYLER, US PIPE","6 MJ C153 P-401 22-1/2 BEND L/A","EA",null,1,{"v":0,"d":"$0.00"}]
[1994,"AMERICAN VALVE,CLOW/MCWANE,STAR, TYLER, US PIPE","8 MJ C153 P-401 22-1/2 BEND L/A","EA",null,1,{"v":0,"d":"$0.00"}]
[1995,"AMERICAN VALVE,CLOW/MCWANE,STAR, TYLER, US PIPE","10 MJ C153 P-401 22-1/2 BEND L/A","EA",null,1,{"v":0,"d":"$0.00"}]
[1996,"AMERICAN VALVE,CLOW/MCWANE,STAR, TYLER, US PIPE","12 MJ C153 P-401 22-1/2 BEND L/A","EA",null,1,{"v":0,"d":"$0.00"}]
[1997,"AMERICAN VALVE,CLOW/MCWANE,STAR, TYLER, US PIPE","16 MJ C153 P-401 22-1/2 BEND L/A","EA",null,1,{"v":0,"d":"$0.00"}]
[1998,"AMERICAN VALVE,CLOW/MCWANE,STAR, TYLER, US PIPE","20 MJ C153 P-401 22-1/2 BEND L/A","EA",null,1,{"v":0,"d":"$0.00"}]
[1999,"AMERICAN VALVE,CLOW/MCWANE,STAR, TYLER, US PIPE","24 MJ C153 P-401 22-1/2 BEND L/A","EA",null,1,{"v":0,"d":"$0.00"}]
[2000,"AMERICAN VALVE,CLOW/MCWANE,STAR, TYLER, US PIPE","3 MJ C153 P-401 11-1/4 BEND L/A","EA",null,1,{"v":0,"d":"$0.00"}]
[2001,"AMERICAN VALVE,CLOW/MCWANE,STAR, TYLER, US PIPE","4 MJ C153 P-401 11-1/4 BEND L/A","EA",null,1,{"v":0,"d":"$0.00"}]
[2002,"AMERICAN VALVE,CLOW/MCWANE,STAR, TYLER, US PIPE","6 MJ C153 P-401 11-1/4 BEND L/A","EA",null,1,{"v":0,"d":"$0.00"}]
[2003,"AMERICAN VALVE,CLOW/MCWANE,STAR, TYLER, US PIPE","8 MJ C153 P-401 11-1/4 BEND L/A","EA",null,1,{"v":0,"d":"$0.00"}]
[2004,"AMERICAN VALVE,CLOW/MCWANE,STAR, TYLER, US PIPE","10 MJ C153 P-401 11-1/4 BEND L/A","EA",null,1,{"v":0,"d":"$0.00"}]
[2005,"AMERICAN VALVE,CLOW/MCWANE,STAR, TYLER, US PIPE","12 MJ C153 P-401 11-1/4 BEND L/A","EA",null,1,{"v":0,"d":"$0.00"}]
[2006,"AMERICAN VALVE,CLOW/MCWANE,STAR, TYLER, US PIPE","16 MJ C153 P-401 11-1/4 BEND L/A","EA",null,1,{"v":0,"d":"$0.00"}]
[2007,"AMERICAN VALVE,CLOW/MCWANE,STAR, TYLER, US PIPE","20 MJ C153 P-401 11-1/4 BEND L/A","EA",null,1,{"v":0,"d":"$0.00"}]
[2008,"AMERICAN VALVE,CLOW/MCWANE,STAR, TYLER, US PIPE","24 MJ C153 P-401 11-1/4 BEND L/A","EA",null,1,{"v":0,"d":"$0.00"}]
[2009,"AMERICAN VALVE,CLOW/MCWANE,STAR, TYLER, US PIPE","3 DI 125# FLG P-401 90 BEND","EA",null,1,{"v":0,"d":"$0.00"}]
[2010,"AMERICAN VALVE,CLOW/MCWANE,STAR, TYLER, US PIPE","4 DI 125# FLG P-401 90 BEND","EA",null,1,{"v":0,"d":"$0.00"}]
[2011,"AMERICAN VALVE,CLOW/MCWANE,STAR, TYLER, US PIPE","6 DI 125# FLG P-401 90 BEND","EA",null,1,{"v":0,"d":"$0.00"}]
[2012,"AMERICAN VALVE,CLOW/MCWANE,STAR, TYLER, US PIPE","8 DI 125# FLG P-401 90 BEND","EA",null,1,{"v":0,"d":"$0.00"}]
[2013,"AMERICAN VALVE,CLOW/MCWANE,STAR, TYLER, US PIPE","10 DI 125# FLG P-401 90 BEND","EA",null,1,{"v":0,"d":"$0.00"}]
[2014,"AMERICAN VALVE,CLOW/MCWANE,STAR, TYLER, US PIPE","12 DI 125# FLG P-401 90 BEND","EA",null,1,{"v":0,"d":"$0.00"}]
[2015,"AMERICAN VALVE,CLOW/MCWANE,STAR, TYLER, US PIPE","3 DI 125# FLG P-401 45 BEND","EA",null,1,{"v":0,"d":"$0.00"}]
[2016,"AMERICAN VALVE,CLOW/MCWANE,STAR, TYLER, US PIPE","4 DI 125# FLG P-401 45 BEND","EA",null,1,{"v":0,"d":"$0.00"}]
[2017,"AMERICAN VALVE,CLOW/MCWANE,STAR, TYLER, US PIPE","6 DI 125# FLG P-401 45 BEND","EA",null,1,{"v":0,"d":"$0.00"}]
[2018,"AMERICAN VALVE,CLOW/MCWANE,STAR, TYLER, US PIPE","8 DI 125# FLG P-401 45 BEND","EA",null,1,{"v":0,"d":"$0.00"}]
[2019,"AMERICAN VALVE,CLOW/MCWANE,STAR, TYLER, US PIPE","10 DI 125# FLG P-401 45 BEND","EA",null,1,{"v":0,"d":"$0.00"}]
[2020,"AMERICAN VALVE,CLOW/MCWANE,STAR, TYLER, US PIPE","12 DI 125# FLG P-401 45 BEND","EA",null,1,{"v":0,"d":"$0.00"}]
[2021,"AMERICAN VALVE,CLOW/MCWANE,STAR, TYLER, US PIPE","3 MJ C153 11-1/4 BEND L/A","EA",null,1,{"v":0,"d":"$0.00"}]
[2022,"AMERICAN VALVE,CLOW/MCWANE,STAR, TYLER, US PIPE","4 MJ C153 11-1/4 BEND L/A","EA",null,1,{"v":0,"d":"$0.00"}]
[2023,"AMERICAN VALVE,CLOW/MCWANE,STAR, TYLER, US PIPE","6 MJ C153 11-1/4 BEND L/A","EA",null,1,{"v":0,"d":"$0.00"}]
[2024,"AMERICAN VALVE,CLOW/MCWANE,STAR, TYLER, US PIPE","8 MJ C153 11-1/4 BEND L/A","EA",null,1,{"v":0,"d":"$0.00"}]
[2025,"AMERICAN VALVE,CLOW/MCWANE,STAR, TYLER, US PIPE","10 MJ C153 11-1/4 BEND L/A","EA",null,1,{"v":0,"d":"$0.00"}]
[2026,"AMERICAN VALVE,CLOW/MCWANE,STAR, TYLER, US PIPE","12 MJ C153 11-1/4 BEND L/A","EA",null,1,{"v":0,"d":"$0.00"}]
[2027,"AMERICAN VALVE,CLOW/MCWANE,STAR, TYLER, US PIPE","14 MJ C153 11-1/4 BEND L/A","EA",null,1,{"v":0,"d":"$0.00"}]
[2028,"AMERICAN VALVE,CLOW/MCWANE,STAR, TYLER, US PIPE","16 MJ C153 11-1/4 BEND L/A","EA",null,1,{"v":0,"d":"$0.00"}]
[2029,"AMERICAN VALVE,CLOW/MCWANE,STAR, TYLER, US PIPE","18 MJ C153 11-1/4 BEND","EA",null,1,{"v":0,"d":"$0.00"}]
[2030,"AMERICAN VALVE,CLOW/MCWANE,STAR, TYLER, US PIPE","20 MJ C153 11-1/4 BEND L/A","EA",null,1,{"v":0,"d":"$0.00"}]
[2031,"AMERICAN VALVE,CLOW/MCWANE,STAR, TYLER, US PIPE","24 MJ C153 11-1/4 BEND L/A","EA",null,1,{"v":0,"d":"$0.00"}]
[2032,"AMERICAN VALVE,CLOW/MCWANE,STAR, TYLER, US PIPE","3 MJ C153 22-1/2 BEND L/A","EA",null,1,{"v":0,"d":"$0.00"}]
[2033,"AMERICAN VALVE,CLOW/MCWANE,STAR, TYLER, US PIPE","4 MJ C153 22-1/2 BEND L/A","EA",null,1,{"v":0,"d":"$0.00"}]
[2034,"AMERICAN VALVE,CLOW/MCWANE,STAR, TYLER, US PIPE","6 MJ C153 22-1/2 BEND L/A","EA",null,1,{"v":0,"d":"$0.00"}]
[2035,"AMERICAN VALVE,CLOW/MCWANE,STAR, TYLER, US PIPE","8 MJ C153 22-1/2 BEND L/A","EA",null,1,{"v":0,"d":"$0.00"}]
[2036,"AMERICAN VALVE,CLOW/MCWANE,STAR, TYLER, US PIPE","10 MJ C153 22-1/2 BEND L/A","EA",null,1,{"v":0,"d":"$0.00"}]
[2037,"AMERICAN VALVE,CLOW/MCWANE,STAR, TYLER, US PIPE","12 MJ C153 22-1/2 BEND L/A","EA",null,1,{"v":0,"d":"$0.00"}]
[2038,"AMERICAN VALVE,CLOW/MCWANE,STAR, TYLER, US PIPE","14 MJ C153 22-1/2 BEND L/A","EA",null,1,{"v":0,"d":"$0.00"}]
[2039,"AMERICAN VALVE,CLOW/MCWANE,STAR, TYLER, US PIPE","16 MJ C153 22-1/2 BEND L/A","EA",null,1,{"v":0,"d":"$0.00"}]
[2040,"AMERICAN VALVE,CLOW/MCWANE,STAR, TYLER, US PIPE","18 MJ C153 22-1/2 BEND L/A","EA",null,1,{"v":0,"d":"$0.00"}]
[2041,"AMERICAN VALVE,CLOW/MCWANE,STAR, TYLER, US PIPE","20 MJ C153 22-1/2 BEND L/A","EA",null,1,{"v":0,"d":"$0.00"}]
[2042,"AMERICAN VALVE,CLOW/MCWANE,STAR, TYLER, US PIPE","24 MJ C153 22-1/2 BEND L/A","EA",null,1,{"v":0,"d":"$0.00"}]
[2043,"AMERICAN VALVE,CLOW/MCWANE,STAR, TYLER, US PIPE","3 MJ C153 45 BEND L/A","EA",null,1,{"v":0,"d":"$0.00"}]
[2044,"AMERICAN VALVE,CLOW/MCWANE,STAR, TYLER, US PIPE","4 MJ C153 45 BEND L/A","EA",null,1,{"v":0,"d":"$0.00"}]
[2045,"AMERICAN VALVE,CLOW/MCWANE,STAR, TYLER, US PIPE","6 MJ C153 45 BEND L/A","EA",null,1,{"v":0,"d":"$0.00"}]
[2046,"AMERICAN VALVE,CLOW/MCWANE,STAR, TYLER, US PIPE","8 MJ C153 45 BEND L/A","EA",null,1,{"v":0,"d":"$0.00"}]
[2047,"AMERICAN VALVE,CLOW/MCWANE,STAR, TYLER, US PIPE","10 MJ C153 45 BEND L/A","EA",null,1,{"v":0,"d":"$0.00"}]
[2048,"AMERICAN VALVE,CLOW/MCWANE,STAR, TYLER, US PIPE","12 MJ C153 45 BEND L/A","EA",null,1,{"v":0,"d":"$0.00"}]
[2049,"AMERICAN VALVE,CLOW/MCWANE,STAR, TYLER, US PIPE","14 MJ C153 45 BEND L/A","EA",null,1,{"v":0,"d":"$0.00"}]
[2050,"AMERICAN VALVE,CLOW/MCWANE,STAR, TYLER, US PIPE","16 MJ C153 45 BEND L/A","EA",null,1,{"$f":"SUM(E2037*F2037)","v":{"v":0,"d":"$0.00"}}]
[2051,"AMERICAN VALVE,CLOW/MCWANE,STAR, TYLER, US PIPE","18 MJ C153 45 BEND L/A","EA",null,1,{"v":0,"d":"$0.00"}]
[2052,"AMERICAN VALVE,CLOW/MCWANE,STAR, TYLER, US PIPE","20 MJ C153 45 BEND L/A","EA",null,1,{"v":0,"d":"$0.00"}]
[2053,"AMERICAN VALVE,CLOW/MCWANE,STAR, TYLER, US PIPE","24 MJ C153 45 BEND L/A","EA",null,1,{"v":0,"d":"$0.00"}]
[2054,"AMERICAN VALVE,CLOW/MCWANE,STAR, TYLER, US PIPE","3 MJ C153 90 BEND L/A","EA",null,1,{"v":0,"d":"$0.00"}]
[2055,"AMERICAN VALVE,CLOW/MCWANE,STAR, TYLER, US PIPE","4 MJ C153 90 BEND L/A","EA",null,1,{"v":0,"d":"$0.00"}]
[2056,"AMERICAN VALVE,CLOW/MCWANE,STAR, TYLER, US PIPE","6 MJ C153 90 BEND L/A","EA",null,1,{"v":0,"d":"$0.00"}]
[2057,"AMERICAN VALVE,CLOW/MCWANE,STAR, TYLER, US PIPE","8 MJ C153 90 BEND L/A","EA",null,1,{"v":0,"d":"$0.00"}]
[2058,"AMERICAN VALVE,CLOW/MCWANE,STAR, TYLER, US PIPE","10 MJ C153 90 BEND L/A ","EA",null,1,{"v":0,"d":"$0.00"}]
[2059,"AMERICAN VALVE,CLOW/MCWANE,STAR, TYLER, US PIPE","12 MJ C153 90 BEND L/A ","EA",null,1,{"v":0,"d":"$0.00"}]
[2060,"AMERICAN VALVE,CLOW/MCWANE,STAR, TYLER, US PIPE","14 MJ C153 90 BEND L/A","EA",null,1,{"v":0,"d":"$0.00"}]
[2061,"AMERICAN VALVE,CLOW/MCWANE,STAR, TYLER, US PIPE","16 MJ C153 90 BEND L/A","EA",null,1,{"v":0,"d":"$0.00"}]
[2062,"AMERICAN VALVE,CLOW/MCWANE,STAR, TYLER, US PIPE","18 MJ C153 90 BEND L/A","EA",null,1,{"v":0,"d":"$0.00"}]
[2063,"AMERICAN VALVE,CLOW/MCWANE,STAR, TYLER, US PIPE","20 MJ C153 90 BEND L/A","EA",null,1,{"v":0,"d":"$0.00"}]
[2064,"AMERICAN VALVE,CLOW/MCWANE,STAR, TYLER, US PIPE","24 MJ C153 90 BEND L/A","EA",null,1,{"v":0,"d":"$0.00"}]
[2065,"AMERICAN VALVE,CLOW/MCWANE,STAR, TYLER, US PIPE","3 MJXPE C153 90 BEND L/A","EA",null,1,{"v":0,"d":"$0.00"}]
[2066,"AMERICAN VALVE,CLOW/MCWANE,STAR, TYLER, US PIPE","4 MJXPE C153 90 BEND L/A","EA",null,1,{"v":0,"d":"$0.00"}]
[2067,"AMERICAN VALVE,CLOW/MCWANE,STAR, TYLER, US PIPE","6 MJXPE C153 90 BEND L/A ","EA",null,1,{"v":0,"d":"$0.00"}]
[2068,"AMERICAN VALVE,CLOW/MCWANE,STAR, TYLER, US PIPE","8 MJXPE C153 90 BEND L/A","EA",null,1,{"v":0,"d":"$0.00"}]
[2069,"AMERICAN VALVE,CLOW/MCWANE,STAR, TYLER, US PIPE","10 MJXPE C153 90 BEND L/A","EA",null,1,{"v":0,"d":"$0.00"}]
[2070,"AMERICAN VALVE,CLOW/MCWANE,STAR, TYLER, US PIPE","12 MJXPE C153 90 BEND L/A","EA",null,1,{"v":0,"d":"$0.00"}]
[2071,"AMERICAN VALVE,CLOW/MCWANE,STAR, TYLER, US PIPE","14 MJXPE C153 90 BEND L/A","EA",null,1,{"v":0,"d":"$0.00"}]
[2072,"AMERICAN VALVE,CLOW/MCWANE,STAR, TYLER, US PIPE","16 MJXPE C153 90 BEND L/A","EA",null,1,{"v":0,"d":"$0.00"}]
[2073,"AMERICAN VALVE,CLOW/MCWANE,STAR, TYLER, US PIPE","3 MJXPE C153 45 BEND L/A","EA",null,1,{"v":0,"d":"$0.00"}]
[2074,"AMERICAN VALVE,CLOW/MCWANE,STAR, TYLER, US PIPE","4 MJXPE C153 45 BEND L/A","EA",null,1,{"v":0,"d":"$0.00"}]
[2075,"AMERICAN VALVE,CLOW/MCWANE,STAR, TYLER, US PIPE","6 MJXPE C153 45 BEND L/A","EA",null,1,{"v":0,"d":"$0.00"}]
[2076,"AMERICAN VALVE,CLOW/MCWANE,STAR, TYLER, US PIPE","8 MJXPE C153 45 BEND L/A ","EA",null,1,{"v":0,"d":"$0.00"}]
[2077,"AMERICAN VALVE,CLOW/MCWANE,STAR, TYLER, US PIPE","10 MJXPE C153 45 BEND L/A","EA",null,1,{"v":0,"d":"$0.00"}]
[2078,"AMERICAN VALVE,CLOW/MCWANE,STAR, TYLER, US PIPE","12 MJXPE C153 45 BEND L/A","EA",null,1,{"v":0,"d":"$0.00"}]
[2079,"AMERICAN VALVE,CLOW/MCWANE,STAR, TYLER, US PIPE","14 MJXPE C153 45 BEND L/A","EA",null,1,{"v":0,"d":"$0.00"}]
[2080,"AMERICAN VALVE,CLOW/MCWANE,STAR, TYLER, US PIPE","16 MJXPE C153 45 BEND L/A","EA",null,1,{"v":0,"d":"$0.00"}]
[2081,"AMERICAN VALVE,CLOW/MCWANE,STAR, TYLER, US PIPE","3 DI 125# C110 FLG 90 BEND","EA",null,1,{"v":0,"d":"$0.00"}]
[2082,"AMERICAN VALVE,CLOW/MCWANE,STAR, TYLER, US PIPE","4 DI 125# C110 FLG 90 BEND","EA",null,1,{"v":0,"d":"$0.00"}]
[2083,"AMERICAN VALVE,CLOW/MCWANE,STAR, TYLER, US PIPE","6 DI 125# C110 FLG 90 BEND","EA",null,1,{"v":0,"d":"$0.00"}]
[2084,"AMERICAN VALVE,CLOW/MCWANE,STAR, TYLER, US PIPE","8 DI 125# C110 FLG 90 BEND","EA",null,1,{"v":0,"d":"$0.00"}]
[2085,"AMERICAN VALVE,CLOW/MCWANE,STAR, TYLER, US PIPE","10 DI 125# C110 FLG 90 BEND","EA",null,1,{"v":0,"d":"$0.00"}]
[2086,"AMERICAN VALVE,CLOW/MCWANE,STAR, TYLER, US PIPE","12 DI 125# C110 FLG 90 BEND","EA",null,1,{"v":0,"d":"$0.00"}]
[2087,"AMERICAN VALVE,CLOW/MCWANE,STAR, TYLER, US PIPE","14 DI 125# C110 FLG 90 BEND","EA",null,1,{"v":0,"d":"$0.00"}]
[2088,"AMERICAN VALVE,CLOW/MCWANE,STAR, TYLER, US PIPE","16 DI 125# C110 FLG 90 BEND","EA",null,1,{"v":0,"d":"$0.00"}]
[2089,"AMERICAN VALVE,CLOW/MCWANE,STAR, TYLER, US PIPE","18 DI 125# C110 FLG 90 BEND","EA",null,1,{"v":0,"d":"$0.00"}]
[2090,"AMERICAN VALVE,CLOW/MCWANE,STAR, TYLER, US PIPE","20 DI 125# C110 FLG 90 BEND","EA",null,1,{"v":0,"d":"$0.00"}]
[2091,"AMERICAN VALVE,CLOW/MCWANE,STAR, TYLER, US PIPE","24 DI 125# C110 FLG 90 BEND","EA",null,1,{"v":0,"d":"$0.00"}]
[2092,"AMERICAN VALVE,CLOW/MCWANE,STAR, TYLER, US PIPE","3 DI 125# C110 FLG 45 BEND","EA",null,1,{"v":0,"d":"$0.00"}]
[2093,"AMERICAN VALVE,CLOW/MCWANE,STAR, TYLER, US PIPE","4 DI 125# C110 FLG 45 BEND","EA",null,1,{"v":0,"d":"$0.00"}]
[2094,"AMERICAN VALVE,CLOW/MCWANE,STAR, TYLER, US PIPE","6 DI 125# C110 FLG 45 BEND","EA",null,1,{"v":0,"d":"$0.00"}]
[2095,"AMERICAN VALVE,CLOW/MCWANE,STAR, TYLER, US PIPE","8 DI 125# C110 FLG 45 BEND","EA",null,1,{"v":0,"d":"$0.00"}]
[2096,"AMERICAN VALVE,CLOW/MCWANE,STAR, TYLER, US PIPE","10 DI 125# C110 FLG 45 BEND","EA",null,1,{"v":0,"d":"$0.00"}]
[2097,"AMERICAN VALVE,CLOW/MCWANE,STAR, TYLER, US PIPE","12 DI 125# C110 FLG 45 BEND","EA",null,1,{"v":0,"d":"$0.00"}]
[2098,"AMERICAN VALVE,CLOW/MCWANE,STAR, TYLER, US PIPE","14 DI 125# C110 FLG 45 BEND","EA",null,1,{"v":0,"d":"$0.00"}]
[2099,"AMERICAN VALVE,CLOW/MCWANE,STAR, TYLER, US PIPE","16 DI 125# C110 FLG 45 BEND","EA",null,1,{"v":0,"d":"$0.00"}]
[2100,"AMERICAN VALVE,CLOW/MCWANE,STAR, TYLER, US PIPE","18 DI 125# C110 FLG 45 BEND","EA",null,1,{"v":0,"d":"$0.00"}]
[2101,"AMERICAN VALVE,CLOW/MCWANE,STAR, TYLER, US PIPE","20 DI 125# C110 FLG 45 BEND","EA",null,1,{"v":0,"d":"$0.00"}]
[2102,"AMERICAN VALVE,CLOW/MCWANE,STAR, TYLER, US PIPE","24 DI 125# C110 FLG 45 BEND","EA",null,1,{"v":0,"d":"$0.00"}]
[2103,"AMERICAN VALVE,CLOW/MCWANE,STAR, TYLER, US PIPE","3 DI 125# C110 FLG 22-1/2 BEND","EA",null,1,{"v":0,"d":"$0.00"}]
[2104,"AMERICAN VALVE,CLOW/MCWANE,STAR, TYLER, US PIPE","4 DI 125# C110 FLG 22-1/2 BEND","EA",null,1,{"v":0,"d":"$0.00"}]
[2105,"AMERICAN VALVE,CLOW/MCWANE,STAR, TYLER, US PIPE","6 DI 125# C110 FLG 22-1/2 BEND","EA",null,1,{"v":0,"d":"$0.00"}]
[2106,"AMERICAN VALVE,CLOW/MCWANE,STAR, TYLER, US PIPE","8 DI 125# C110 FLG 22-1/2 BEND","EA",null,1,{"v":0,"d":"$0.00"}]
[2107,"AMERICAN VALVE,CLOW/MCWANE,STAR, TYLER, US PIPE","10 DI 125# C110 FLG 22-1/2 BEND","EA",null,1,{"v":0,"d":"$0.00"}]
[2108,"AMERICAN VALVE,CLOW/MCWANE,STAR, TYLER, US PIPE","12 DI 125# C110 FLG 22-1/2 BEND","EA",null,1,{"v":0,"d":"$0.00"}]
[2109,"AMERICAN VALVE,CLOW/MCWANE,STAR, TYLER, US PIPE","3 DI 125# C110 FLG 11-1/4 BEND","EA",null,1,{"v":0,"d":"$0.00"}]
[2110,"AMERICAN VALVE,CLOW/MCWANE,STAR, TYLER, US PIPE","4 DI 125# C110 FLG 11-1/4 BEND","EA",null,1,{"v":0,"d":"$0.00"}]
[2111,"AMERICAN VALVE,CLOW/MCWANE,STAR, TYLER, US PIPE","6 DI 125# C110 FLG 11-1/4 BEND","EA",null,1,{"v":0,"d":"$0.00"}]
[2112,"AMERICAN VALVE,CLOW/MCWANE,STAR, TYLER, US PIPE","8 DI 125# C110 FLG 11-1/4 BEND","EA",null,1,{"v":0,"d":"$0.00"}]
[2113,"AMERICAN VALVE,CLOW/MCWANE,STAR, TYLER, US PIPE","10 DI 125# C110 FLG 11-1/4 BEND","EA",null,1,{"v":0,"d":"$0.00"}]
[2114,"AMERICAN VALVE,CLOW/MCWANE,STAR, TYLER, US PIPE","12 DI 125# C110 FLG 11-1/4 BEND","EA",null,1,{"$f":"SUM(E2101*F2101)","v":{"v":0,"d":"$0.00"}}]
[2115,"AMERICAN VALVE,CLOW/MCWANE,STAR, TYLER, US PIPE","20 DI 125# FLG P-401 90 BEND","EA",null,1,{"v":0,"d":"$0.00"}]
[2116,"AMERICAN VALVE,CLOW/MCWANE,STAR, TYLER, US PIPE","6 MJ C153 SWVL 90 BEND","EA",null,1,{"v":0,"d":"$0.00"}]
[2117,"AMERICAN VALVE,CLOW/MCWANE,STAR, TYLER, US PIPE","3 MJ C153 SLD CAP L/A ","EA",null,1,{"v":0,"d":"$0.00"}]
[2118,"AMERICAN VALVE,CLOW/MCWANE,STAR, TYLER, US PIPE","4 MJ C153 SLD CAP L/A","EA",null,1,{"v":0,"d":"$0.00"}]
[2119,"AMERICAN VALVE,CLOW/MCWANE,STAR, TYLER, US PIPE","6 MJ C153 SLD CAP L/A","EA",null,1,{"v":0,"d":"$0.00"}]
[2120,"AMERICAN VALVE,CLOW/MCWANE,STAR, TYLER, US PIPE","8 MJ C153 SLD CAP L/A","EA",null,1,{"v":0,"d":"$0.00"}]
[2121,"AMERICAN VALVE,CLOW/MCWANE,STAR, TYLER, US PIPE","10 MJ C153 SLD CAP L/A","EA",null,1,{"v":0,"d":"$0.00"}]
[2122,"AMERICAN VALVE,CLOW/MCWANE,STAR, TYLER, US PIPE","12 MJ C153 SLD CAP L/A","EA",null,1,{"v":0,"d":"$0.00"}]
[2123,"AMERICAN VALVE,CLOW/MCWANE,STAR, TYLER, US PIPE","14 MJ C153 SLD CAP L/A","EA",null,1,{"v":0,"d":"$0.00"}]
[2124,"AMERICAN VALVE,CLOW/MCWANE,STAR, TYLER, US PIPE","16 MJ C153 SLD CAP L/A","EA",null,1,{"v":0,"d":"$0.00"}]
[2125,"AMERICAN VALVE,CLOW/MCWANE,STAR, TYLER, US PIPE","18 MJ C153 SLD CAP L/A","EA",null,1,{"v":0,"d":"$0.00"}]
[2126,"AMERICAN VALVE,CLOW/MCWANE,STAR, TYLER, US PIPE","20 MJ C153 SLD CAP L/A","EA",null,1,{"v":0,"d":"$0.00"}]
[2127,"AMERICAN VALVE,CLOW/MCWANE,STAR, TYLER, US PIPE","24 MJ C153 SLD CAP L/A","EA",null,1,{"v":0,"d":"$0.00"}]
[2128,"AMERICAN VALVE,CLOW/MCWANE,STAR, TYLER, US PIPE","3X2 MJ C153 TAP CAP L/A","EA",null,1,{"v":0,"d":"$0.00"}]
[2129,"AMERICAN VALVE,CLOW/MCWANE,STAR, TYLER, US PIPE","4X2 MJ C153 TAP CAP L/A","EA",null,1,{"v":0,"d":"$0.00"}]
[2130,"AMERICAN VALVE,CLOW/MCWANE,STAR, TYLER, US PIPE","6X2 MJ C153 TAP CAP L/A","EA",null,1,{"v":0,"d":"$0.00"}]
[2131,"AMERICAN VALVE,CLOW/MCWANE,STAR, TYLER, US PIPE","8X2 MJ C153 TAP CAP L/A","EA",null,1,{"v":0,"d":"$0.00"}]
[2132,"AMERICAN VALVE,CLOW/MCWANE,STAR, TYLER, US PIPE","10X2 MJ C153 TAP CAP L/A","EA",null,1,{"v":0,"d":"$0.00"}]
[2133,"AMERICAN VALVE,CLOW/MCWANE,STAR, TYLER, US PIPE","12X2 MJ C153 TAP CAP L/A","EA",null,1,{"v":0,"d":"$0.00"}]
[2134,"AMERICAN VALVE,CLOW/MCWANE,STAR, TYLER, US PIPE","14X2 MJ C153 TAP CAP L/A","EA",null,1,{"v":0,"d":"$0.00"}]
[2135,"AMERICAN VALVE,CLOW/MCWANE,STAR, TYLER, US PIPE","16X2 MJ C153 TAP CAP L/A","EA",null,1,{"v":0,"d":"$0.00"}]
[2136,"AMERICAN VALVE,CLOW/MCWANE,STAR, TYLER, US PIPE","18X2 MJ C153 TAP CAP L/A","EA",null,1,{"v":0,"d":"$0.00"}]
[2137,"AMERICAN VALVE,CLOW/MCWANE,STAR, TYLER, US PIPE","20X2 MJ C153 TAP CAP L/A","EA",null,1,{"v":0,"d":"$0.00"}]
[2138,"AMERICAN VALVE,CLOW/MCWANE,STAR, TYLER, US PIPE","24X2 MJ C153 TAP CAP L/A","EA",null,1,{"v":0,"d":"$0.00"}]
[2139,"AMERICAN VALVE,CLOW/MCWANE,STAR, TYLER, US PIPE","24X2  MJ C153 P-401 TAP CAP L/A","EA",null,1,{"v":0,"d":"$0.00"}]
[2140,"AMERICAN VALVE,CLOW/MCWANE,STAR, TYLER, US PIPE","10    MJ C153 P-401 SLD CAP L/A","EA",null,1,{"v":0,"d":"$0.00"}]
[2141,"AMERICAN VALVE,CLOW/MCWANE,STAR, TYLER, US PIPE","6     MJ C153 P-401 SLD CAP L/A","EA",null,1,{"v":0,"d":"$0.00"}]
[2142,"AMERICAN VALVE,CLOW/MCWANE,STAR, TYLER, US PIPE","3 DI STD DUTY REST ZIP FLG","EA",null,1,{"v":0,"d":"$0.00"}]
[2143,"AMERICAN VALVE,CLOW/MCWANE,STAR, TYLER, US PIPE","4 DI STD DUTY REST ZIP FLG","EA",null,1,{"v":0,"d":"$0.00"}]
[2144,"AMERICAN VALVE,CLOW/MCWANE,STAR, TYLER, US PIPE","6 DI STD DUTY REST ZIP FLG","EA",null,1,{"v":0,"d":"$0.00"}]
[2145,"AMERICAN VALVE,CLOW/MCWANE,STAR, TYLER, US PIPE","8 DI STD DUTY REST ZIP FLG","EA",null,1,{"v":0,"d":"$0.00"}]
[2146,"AMERICAN VALVE,CLOW/MCWANE,STAR, TYLER, US PIPE","10 DI STD DUTY REST ZIP FLG","EA",null,1,{"v":0,"d":"$0.00"}]
[2147,"AMERICAN VALVE,CLOW/MCWANE,STAR, TYLER, US PIPE","12 DI STD DUTY REST ZIP FLG","EA",null,1,{"v":0,"d":"$0.00"}]
[2148,"AMERICAN VALVE,CLOW/MCWANE,STAR, TYLER, US PIPE","16 DI HD REST ZIP FLG","EA",null,1,{"v":0,"d":"$0.00"}]
[2149,"AMERICAN VALVE,CLOW/MCWANE,STAR, TYLER, US PIPE","24 DI P-401 125# BLND FLG","EA",null,1,{"v":0,"d":"$0.00"}]
[2150,"AMERICAN VALVE,CLOW/MCWANE,STAR, TYLER, US PIPE","3 DI 125# C110 BLIND FLG","EA",null,1,{"v":0,"d":"$0.00"}]
[2151,"AMERICAN VALVE,CLOW/MCWANE,STAR, TYLER, US PIPE","4 DI 125# C110 BLIND FLG","EA",null,1,{"v":0,"d":"$0.00"}]
[2152,"AMERICAN VALVE,CLOW/MCWANE,STAR, TYLER, US PIPE","6 DI 125# C110 BLIND FLG","EA",null,1,{"v":0,"d":"$0.00"}]
[2153,"AMERICAN VALVE,CLOW/MCWANE,STAR, TYLER, US PIPE","8 DI 125# C110 BLIND FLG","EA",null,1,{"v":0,"d":"$0.00"}]
[2154,"AMERICAN VALVE,CLOW/MCWANE,STAR, TYLER, US PIPE","10 DI 125# C110 BLIND FLG","EA",null,1,{"v":0,"d":"$0.00"}]
[2155,"AMERICAN VALVE,CLOW/MCWANE,STAR, TYLER, US PIPE","12 DI 125# C110 BLIND FLG","EA",null,1,{"v":0,"d":"$0.00"}]
[2156,"AMERICAN VALVE,CLOW/MCWANE,STAR, TYLER, US PIPE","24 DI C110 125# BLND FLG","EA",null,1,{"v":0,"d":"$0.00"}]
[2157,"AMERICAN VALVE,CLOW/MCWANE,STAR, TYLER, US PIPE","3X2 DI 125# C110 TAP BLIND FLG","EA",null,1,{"v":0,"d":"$0.00"}]
[2158,"AMERICAN VALVE,CLOW/MCWANE,STAR, TYLER, US PIPE","4X2 DI 125# C110 TAP BLIND FLG","EA",null,1,{"v":0,"d":"$0.00"}]
[2159,"AMERICAN VALVE,CLOW/MCWANE,STAR, TYLER, US PIPE","6X2 DI 125# C110 TAP BLIND FLG","EA",null,1,{"v":0,"d":"$0.00"}]
[2160,"AMERICAN VALVE,CLOW/MCWANE,STAR, TYLER, US PIPE","8X2 DI 125# C110 TAP BLIND FLG","EA",null,1,{"v":0,"d":"$0.00"}]
[2161,"AMERICAN VALVE,CLOW/MCWANE,STAR, TYLER, US PIPE","10X2 DI 125# C110 TAP BLIND FLG","EA",null,1,{"v":0,"d":"$0.00"}]
[2162,"AMERICAN VALVE,CLOW/MCWANE,STAR, TYLER, US PIPE","12X2 DI 125# C110 TAP BLIND FLG","EA",null,1,{"v":0,"d":"$0.00"}]
[2163,"AMERICAN VALVE,CLOW/MCWANE,STAR, TYLER, US PIPE","4X3  DI C110 THRD COMP FLG F/ STL","EA",null,1,{"v":0,"d":"$0.00"}]
[2164,"AMERICAN VALVE,CLOW/MCWANE,STAR, TYLER, US PIPE","6X4  DI C110 THRD COMP FLG F/ STL","EA",null,1,{"v":0,"d":"$0.00"}]
[2165,"AMERICAN VALVE,CLOW/MCWANE,STAR, TYLER, US PIPE","8X4  DI C110 THRD COMP FLG F/ STL","EA",null,1,{"v":0,"d":"$0.00"}]
[2166,"AMERICAN VALVE,CLOW/MCWANE,STAR, TYLER, US PIPE","3 DI 125# C110 THRD COMP FLG F/ STL","EA",null,1,{"v":0,"d":"$0.00"}]
[2167,"AMERICAN VALVE,CLOW/MCWANE,STAR, TYLER, US PIPE","3 DI 125# C110 THRD COMP FLG F/ STL","EA",null,1,{"v":0,"d":"$0.00"}]
[2168,"AMERICAN VALVE,CLOW/MCWANE,STAR, TYLER, US PIPE","6 DI 125# C110 THRD COMP FLG F/ STL","EA",null,1,{"v":0,"d":"$0.00"}]
[2169,"AMERICAN VALVE,CLOW/MCWANE,STAR, TYLER, US PIPE","8 DI 125# C110 THRD COMP FLG F/ STL","EA",null,1,{"v":0,"d":"$0.00"}]
[2170,"AMERICAN VALVE,CLOW/MCWANE,STAR, TYLER, US PIPE","6X3 DI C110 125# TAP BLND FLG","EA",null,1,{"v":0,"d":"$0.00"}]
[2171,"AMERICAN VALVE,CLOW/MCWANE,STAR, TYLER, US PIPE","3 MJ C153 P-401 LONG SLV L/A","EA",null,1,{"v":0,"d":"$0.00"}]
[2172,"AMERICAN VALVE,CLOW/MCWANE,STAR, TYLER, US PIPE","4 MJ C153 P-401 LONG SLV L/A","EA",null,1,{"v":0,"d":"$0.00"}]
[2173,"AMERICAN VALVE,CLOW/MCWANE,STAR, TYLER, US PIPE","6 MJ C153 P-401 LONG SLV L/A","EA",null,1,{"v":0,"d":"$0.00"}]
[2174,"AMERICAN VALVE,CLOW/MCWANE,STAR, TYLER, US PIPE","8 MJ C153 P-401 LONG SLV L/A","EA",null,1,{"v":0,"d":"$0.00"}]
[2175,"AMERICAN VALVE,CLOW/MCWANE,STAR, TYLER, US PIPE","10 MJ C153 P-401 LONG SLV L/A","EA",null,1,{"v":0,"d":"$0.00"}]
[2176,"AMERICAN VALVE,CLOW/MCWANE,STAR, TYLER, US PIPE","12 MJ C153 P-401 LONG SLV L/A","EA",null,1,{"v":0,"d":"$0.00"}]
[2177,"AMERICAN VALVE,CLOW/MCWANE,STAR, TYLER, US PIPE","16 MJ C153 P-401 LONG SLV L/A","EA",null,1,{"v":0,"d":"$0.00"}]
[2178,"AMERICAN VALVE,CLOW/MCWANE,STAR, TYLER, US PIPE","20 MJ C153 P-401 LONG SLV L/A","EA",null,1,{"$f":"SUM(E2165*F2165)","v":{"v":0,"d":"$0.00"}}]
[2179,"AMERICAN VALVE,CLOW/MCWANE,STAR, TYLER, US PIPE","24 MJ C153 P-401 LONG SLV L/A","EA",null,1,{"v":0,"d":"$0.00"}]
[2180,"AMERICAN VALVE,CLOW/MCWANE,STAR, TYLER, US PIPE","3X12 MJ C153 LONG SLV L/A","EA",null,1,{"v":0,"d":"$0.00"}]
[2181,"AMERICAN VALVE,CLOW/MCWANE,STAR, TYLER, US PIPE","4X12 MJ C153 LONG SLV L/A","EA",null,1,{"v":0,"d":"$0.00"}]
[2182,"AMERICAN VALVE,CLOW/MCWANE,STAR, TYLER, US PIPE","6X12 MJ C153 LONG SLV L/A","EA",null,1,{"v":0,"d":"$0.00"}]
[2183,"AMERICAN VALVE,CLOW/MCWANE,STAR, TYLER, US PIPE","8X12 MJ C153 LONG SLV L/A","EA",null,1,{"v":0,"d":"$0.00"}]
[2184,"AMERICAN VALVE,CLOW/MCWANE,STAR, TYLER, US PIPE","10X12 MJ C153 LONG SLV L/A","EA",null,1,{"v":0,"d":"$0.00"}]
[2185,"AMERICAN VALVE,CLOW/MCWANE,STAR, TYLER, US PIPE","12X12 MJ C153 LONG SLV L/A","EA",null,1,{"v":0,"d":"$0.00"}]
[2186,"AMERICAN VALVE,CLOW/MCWANE,STAR, TYLER, US PIPE","14X15 MJ C153 LONG SLV L/A","EA",null,1,{"v":0,"d":"$0.00"}]
[2187,"AMERICAN VALVE,CLOW/MCWANE,STAR, TYLER, US PIPE","14X9-1/2 MJ C153 SHORT SLV L/A","EA",null,1,{"v":0,"d":"$0.00"}]
[2188,"AMERICAN VALVE,CLOW/MCWANE,STAR, TYLER, US PIPE","16X15 MJ C153 LONG SLV L/A","EA",null,1,{"v":0,"d":"$0.00"}]
[2189,"AMERICAN VALVE,CLOW/MCWANE,STAR, TYLER, US PIPE","16X9-1/2 MJ C153 SHORT SLV L/A","EA",null,1,{"v":0,"d":"$0.00"}]
[2190,"AMERICAN VALVE,CLOW/MCWANE,STAR, TYLER, US PIPE","18X15 MJ C153 LONG SLV L/A","EA",null,1,{"v":0,"d":"$0.00"}]
[2191,"AMERICAN VALVE,CLOW/MCWANE,STAR, TYLER, US PIPE","20X15 MJ C153 LONG SLV L/A","EA",null,1,{"v":0,"d":"$0.00"}]
[2192,"AMERICAN VALVE,CLOW/MCWANE,STAR, TYLER, US PIPE","24X15 MJ C153 LONG SLV L/A","EA",null,1,{"v":0,"d":"$0.00"}]
[2193,"AMERICAN VALVE,CLOW/MCWANE,STAR, TYLER, US PIPE","3 MJ C153 CRS L/A","EA",null,1,{"v":0,"d":"$0.00"}]
[2194,"AMERICAN VALVE,CLOW/MCWANE,STAR, TYLER, US PIPE","4X3 MJ C153 CRS L/A ","EA",null,1,{"v":0,"d":"$0.00"}]
[2195,"AMERICAN VALVE,CLOW/MCWANE,STAR, TYLER, US PIPE","6 MJ C153 CRS L/A","EA",null,1,{"v":0,"d":"$0.00"}]
[2196,"AMERICAN VALVE,CLOW/MCWANE,STAR, TYLER, US PIPE","6X4 MJ C153 CRS L/A","EA",null,1,{"v":0,"d":"$0.00"}]
[2197,"AMERICAN VALVE,CLOW/MCWANE,STAR, TYLER, US PIPE","8 MJ C153 CRS L/A ","EA",null,1,{"v":0,"d":"$0.00"}]
[2198,"AMERICAN VALVE,CLOW/MCWANE,STAR, TYLER, US PIPE","8X6 MJ C153 CRS L/A","EA",null,1,{"v":0,"d":"$0.00"}]
[2199,"AMERICAN VALVE,CLOW/MCWANE,STAR, TYLER, US PIPE","8X4 MJ C153 CRS L/A","EA",null,1,{"v":0,"d":"$0.00"}]
[2200,"AMERICAN VALVE,CLOW/MCWANE,STAR, TYLER, US PIPE","10 MJ C153 CRS L/A","EA",null,1,{"v":0,"d":"$0.00"}]
[2201,"AMERICAN VALVE,CLOW/MCWANE,STAR, TYLER, US PIPE","10X8 MJ C153 CRS L/A","EA",null,1,{"v":0,"d":"$0.00"}]
[2202,"AMERICAN VALVE,CLOW/MCWANE,STAR, TYLER, US PIPE","10X6 MJ C153 CRS L/A","EA",null,1,{"v":0,"d":"$0.00"}]
[2203,"AMERICAN VALVE,CLOW/MCWANE,STAR, TYLER, US PIPE","10X4 MJ C153 CRS L/A","EA",null,1,{"v":0,"d":"$0.00"}]
[2204,"AMERICAN VALVE,CLOW/MCWANE,STAR, TYLER, US PIPE","12 MJ C153 CRS L/A","EA",null,1,{"v":0,"d":"$0.00"}]
[2205,"AMERICAN VALVE,CLOW/MCWANE,STAR, TYLER, US PIPE","12X10 MJ C153 CRS L/A","EA",null,1,{"v":0,"d":"$0.00"}]
[2206,"AMERICAN VALVE,CLOW/MCWANE,STAR, TYLER, US PIPE","12X8 MJ C153 CRS L/A","EA",null,1,{"v":0,"d":"$0.00"}]
[2207,"AMERICAN VALVE,CLOW/MCWANE,STAR, TYLER, US PIPE","12X6 MJ C153 CRS L/A","EA",null,1,{"v":0,"d":"$0.00"}]
[2208,"AMERICAN VALVE,CLOW/MCWANE,STAR, TYLER, US PIPE","12X4 MJ C153 CRS L/A","EA",null,1,{"v":0,"d":"$0.00"}]
[2209,"AMERICAN VALVE,CLOW/MCWANE,STAR, TYLER, US PIPE","14 MJ C153 CRS L/A","EA",null,1,{"v":0,"d":"$0.00"}]
[2210,"AMERICAN VALVE,CLOW/MCWANE,STAR, TYLER, US PIPE","16 MJ C153 CRS L/A","EA",null,1,{"v":0,"d":"$0.00"}]
[2211,"AMERICAN VALVE,CLOW/MCWANE,STAR, TYLER, US PIPE","16X12 MJ C153 CRS L/A","EA",null,1,{"v":0,"d":"$0.00"}]
[2212,"AMERICAN VALVE,CLOW/MCWANE,STAR, TYLER, US PIPE","3 MJ C153 SLD PLUG ","EA",null,1,{"v":0,"d":"$0.00"}]
[2213,"AMERICAN VALVE,CLOW/MCWANE,STAR, TYLER, US PIPE","4 MJ C153 SLD PLUG ","EA",null,1,{"v":0,"d":"$0.00"}]
[2214,"AMERICAN VALVE,CLOW/MCWANE,STAR, TYLER, US PIPE","6 MJ C153 SLD PLUG ","EA",null,1,{"v":0,"d":"$0.00"}]
[2215,"AMERICAN VALVE,CLOW/MCWANE,STAR, TYLER, US PIPE","8 MJ C153 SLD PLUG ","EA",null,1,{"v":0,"d":"$0.00"}]
[2216,"AMERICAN VALVE,CLOW/MCWANE,STAR, TYLER, US PIPE","10 MJ C153 SLD PLUG ","EA",null,1,{"v":0,"d":"$0.00"}]
[2217,"AMERICAN VALVE,CLOW/MCWANE,STAR, TYLER, US PIPE","12 MJ C153 SLD PLUG ","EA",null,1,{"v":0,"d":"$0.00"}]
[2218,"AMERICAN VALVE,CLOW/MCWANE,STAR, TYLER, US PIPE","14 MJ C153 SLD PLUG ","EA",null,1,{"v":0,"d":"$0.00"}]
[2219,"AMERICAN VALVE,CLOW/MCWANE,STAR, TYLER, US PIPE","16 MJ C153 SLD PLUG ","EA",null,1,{"v":0,"d":"$0.00"}]
[2220,"AMERICAN VALVE,CLOW/MCWANE,STAR, TYLER, US PIPE","18 MJ C153 SLD PLUG ","EA",null,1,{"v":0,"d":"$0.00"}]
[2221,"AMERICAN VALVE,CLOW/MCWANE,STAR, TYLER, US PIPE","20 MJ C153 SLD PLUG ","EA",null,1,{"v":0,"d":"$0.00"}]
[2222,"AMERICAN VALVE,CLOW/MCWANE,STAR, TYLER, US PIPE","24 MJ C153 SLD PLUG ","EA",null,1,{"v":0,"d":"$0.00"}]
[2223,"AMERICAN VALVE,CLOW/MCWANE,STAR, TYLER, US PIPE","3X2 MJ C153 TAP PLUG ","EA",null,1,{"v":0,"d":"$0.00"}]
[2224,"AMERICAN VALVE,CLOW/MCWANE,STAR, TYLER, US PIPE","4X2 MJ C153 TAP PLUG ","EA",null,1,{"v":0,"d":"$0.00"}]
[2225,"AMERICAN VALVE,CLOW/MCWANE,STAR, TYLER, US PIPE","6X2 MJ C153 TAP PLUG ","EA",null,1,{"v":0,"d":"$0.00"}]
[2226,"AMERICAN VALVE,CLOW/MCWANE,STAR, TYLER, US PIPE","8X2 MJ C153 TAP PLUG ","EA",null,1,{"v":0,"d":"$0.00"}]
[2227,"AMERICAN VALVE,CLOW/MCWANE,STAR, TYLER, US PIPE","10X2 MJ C153 TAP PLUG ","EA",null,1,{"v":0,"d":"$0.00"}]
[2228,"AMERICAN VALVE,CLOW/MCWANE,STAR, TYLER, US PIPE","12X2 MJ C153 TAP PLUG ","EA",null,1,{"v":0,"d":"$0.00"}]
[2229,"AMERICAN VALVE,CLOW/MCWANE,STAR, TYLER, US PIPE","14X2 MJ C153 TAP PLUG ","EA",null,1,{"v":0,"d":"$0.00"}]
[2230,"AMERICAN VALVE,CLOW/MCWANE,STAR, TYLER, US PIPE","16X2 MJ C153 TAP PLUG ","EA",null,1,{"v":0,"d":"$0.00"}]
[2231,"AMERICAN VALVE,CLOW/MCWANE,STAR, TYLER, US PIPE","18X2 MJ C153 TAP PLUG ","EA",null,1,{"v":0,"d":"$0.00"}]
[2232,"AMERICAN VALVE,CLOW/MCWANE,STAR, TYLER, US PIPE","20X2 MJ C153 TAP PLUG ","EA",null,1,{"v":0,"d":"$0.00"}]
[2233,"AMERICAN VALVE,CLOW/MCWANE,STAR, TYLER, US PIPE","24X2 MJ C153 TAP PLUG ","EA",null,1,{"v":0,"d":"$0.00"}]
[2234,"AMERICAN VALVE,CLOW/MCWANE,STAR, TYLER, US PIPE","8X2   MJ C153 P-401 TAP PLUG","EA",null,1,{"v":0,"d":"$0.00"}]
[2235,"AMERICAN VALVE,CLOW/MCWANE,STAR, TYLER, US PIPE","24X2  MJ C153 P-401 TAP PLUG","EA",null,1,{"v":0,"d":"$0.00"}]
[2236,"AMERICAN VALVE,CLOW/MCWANE,STAR, TYLER, US PIPE","4X3 MJ C153 P-401 RED L/A","EA",null,1,{"v":0,"d":"$0.00"}]
[2237,"AMERICAN VALVE,CLOW/MCWANE,STAR, TYLER, US PIPE","6X4 MJ C153 P-401 RED L/A","EA",null,1,{"v":0,"d":"$0.00"}]
[2238,"AMERICAN VALVE,CLOW/MCWANE,STAR, TYLER, US PIPE","8X6 MJ C153 P-401 RED L/A","EA",null,1,{"v":0,"d":"$0.00"}]
[2239,"AMERICAN VALVE,CLOW/MCWANE,STAR, TYLER, US PIPE","10X8 MJ C153 P-401 RED L/A","EA",null,1,{"v":0,"d":"$0.00"}]
[2240,"AMERICAN VALVE,CLOW/MCWANE,STAR, TYLER, US PIPE","10X6 MJ C153 P-401 RED L/A","EA",null,1,{"v":0,"d":"$0.00"}]
[2241,"AMERICAN VALVE,CLOW/MCWANE,STAR, TYLER, US PIPE","10X4 MJ C153 P-401 RED L/A","EA",null,1,{"v":0,"d":"$0.00"}]
[2242,"AMERICAN VALVE,CLOW/MCWANE,STAR, TYLER, US PIPE","12X10 MJ C153 P-401 RED L/A","EA",null,1,{"$f":"SUM(E2229*F2229)","v":{"v":0,"d":"$0.00"}}]
[2243,"AMERICAN VALVE,CLOW/MCWANE,STAR, TYLER, US PIPE","12X8 MJ C153 P-401 RED L/A","EA",null,1,{"v":0,"d":"$0.00"}]
[2244,"AMERICAN VALVE,CLOW/MCWANE,STAR, TYLER, US PIPE","12X6 MJ C153 P-401 RED L/A","EA",null,1,{"v":0,"d":"$0.00"}]
[2245,"AMERICAN VALVE,CLOW/MCWANE,STAR, TYLER, US PIPE","12X4 MJ C153 P-401 RED L/A","EA",null,1,{"v":0,"d":"$0.00"}]
[2246,"AMERICAN VALVE,CLOW/MCWANE,STAR, TYLER, US PIPE","16X12 MJ C153 P-401 RED L/A","EA",null,1,{"v":0,"d":"$0.00"}]
[2247,"AMERICAN VALVE,CLOW/MCWANE,STAR, TYLER, US PIPE","16X10 MJ C153 P-401 RED L/A","EA",null,1,{"v":0,"d":"$0.00"}]
[2248,"AMERICAN VALVE,CLOW/MCWANE,STAR, TYLER, US PIPE","4X3 DI 125# FLG P-401 CONC RED","EA",null,1,{"v":0,"d":"$0.00"}]
[2249,"AMERICAN VALVE,CLOW/MCWANE,STAR, TYLER, US PIPE","6X4 DI 125# FLG P-401 CONC RED","EA",null,1,{"v":0,"d":"$0.00"}]
[2250,"AMERICAN VALVE,CLOW/MCWANE,STAR, TYLER, US PIPE","6X3 DI 125# FLG P-401 CONC RED","EA",null,1,{"v":0,"d":"$0.00"}]
[2251,"AMERICAN VALVE,CLOW/MCWANE,STAR, TYLER, US PIPE","8X6 DI 125# FLG P-401 CONC RED","EA",null,1,{"v":0,"d":"$0.00"}]
[2252,"AMERICAN VALVE,CLOW/MCWANE,STAR, TYLER, US PIPE","8X4 DI 125# FLG P-401 CONC RED","EA",null,1,{"v":0,"d":"$0.00"}]
[2253,"AMERICAN VALVE,CLOW/MCWANE,STAR, TYLER, US PIPE","24X20 DI 125# FLG P-401 CONC RED","EA",null,1,{"v":0,"d":"$0.00"}]
[2254,"AMERICAN VALVE,CLOW/MCWANE,STAR, TYLER, US PIPE","4X3 MJ C153 RED L/A","EA",null,1,{"v":0,"d":"$0.00"}]
[2255,"AMERICAN VALVE,CLOW/MCWANE,STAR, TYLER, US PIPE","6X4 MJ C153 RED L/A","EA",null,1,{"v":0,"d":"$0.00"}]
[2256,"AMERICAN VALVE,CLOW/MCWANE,STAR, TYLER, US PIPE","6X3 MJ C153 RED L/A","EA",null,1,{"v":0,"d":"$0.00"}]
[2257,"AMERICAN VALVE,CLOW/MCWANE,STAR, TYLER, US PIPE","8X6 MJ C153 RED L/A","EA",null,1,{"v":0,"d":"$0.00"}]
[2258,"AMERICAN VALVE,CLOW/MCWANE,STAR, TYLER, US PIPE","8X4 MJ C153 RED L/A","EA",null,1,{"v":0,"d":"$0.00"}]
[2259,"AMERICAN VALVE,CLOW/MCWANE,STAR, TYLER, US PIPE","8X3 MJ C153 RED L/A","EA",null,1,{"v":0,"d":"$0.00"}]
[2260,"AMERICAN VALVE,CLOW/MCWANE,STAR, TYLER, US PIPE","10X8 MJ C153 RED L/A","EA",null,1,{"v":0,"d":"$0.00"}]
[2261,"AMERICAN VALVE,CLOW/MCWANE,STAR, TYLER, US PIPE","10X6 MJ C153 RED L/A","EA",null,1,{"v":0,"d":"$0.00"}]
[2262,"AMERICAN VALVE,CLOW/MCWANE,STAR, TYLER, US PIPE","10X4 MJ C153 RED L/A","EA",null,1,{"v":0,"d":"$0.00"}]
[2263,"AMERICAN VALVE,CLOW/MCWANE,STAR, TYLER, US PIPE","12X10 MJ C153 RED L/A","EA",null,1,{"v":0,"d":"$0.00"}]
[2264,"AMERICAN VALVE,CLOW/MCWANE,STAR, TYLER, US PIPE","12X8 MJ C153 RED L/A","EA",null,1,{"v":0,"d":"$0.00"}]
[2265,"AMERICAN VALVE,CLOW/MCWANE,STAR, TYLER, US PIPE","12X6 MJ C153 RED L/A","EA",null,1,{"v":0,"d":"$0.00"}]
[2266,"AMERICAN VALVE,CLOW/MCWANE,STAR, TYLER, US PIPE","12X4 MJ C153 RED L/A","EA",null,1,{"v":0,"d":"$0.00"}]
[2267,"AMERICAN VALVE,CLOW/MCWANE,STAR, TYLER, US PIPE","16X14 MJ C153 RED L/A","EA",null,1,{"v":0,"d":"$0.00"}]
[2268,"AMERICAN VALVE,CLOW/MCWANE,STAR, TYLER, US PIPE","16X12 MJ C153 RED L/A","EA",null,1,{"v":0,"d":"$0.00"}]
[2269,"AMERICAN VALVE,CLOW/MCWANE,STAR, TYLER, US PIPE","16X10 MJ C153 RED L/A","EA",null,1,{"v":0,"d":"$0.00"}]
[2270,"AMERICAN VALVE,CLOW/MCWANE,STAR, TYLER, US PIPE","16X8 MJ C153 RED L/A","EA",null,1,{"v":0,"d":"$0.00"}]
[2271,"AMERICAN VALVE,CLOW/MCWANE,STAR, TYLER, US PIPE","16X6 MJ C153 RED L/A","EA",null,1,{"v":0,"d":"$0.00"}]
[2272,"AMERICAN VALVE,CLOW/MCWANE,STAR, TYLER, US PIPE","18X16 MJ C153 RED L/A","EA",null,1,{"v":0,"d":"$0.00"}]
[2273,"AMERICAN VALVE,CLOW/MCWANE,STAR, TYLER, US PIPE","18X14 MJ C153 RED L/A","EA",null,1,{"v":0,"d":"$0.00"}]
[2274,"AMERICAN VALVE,CLOW/MCWANE,STAR, TYLER, US PIPE","18X12 MJ C153 RED L/A","EA",null,1,{"v":0,"d":"$0.00"}]
[2275,"AMERICAN VALVE,CLOW/MCWANE,STAR, TYLER, US PIPE","18X10 MJ C153 RED L/A","EA",null,1,{"v":0,"d":"$0.00"}]
[2276,"AMERICAN VALVE,CLOW/MCWANE,STAR, TYLER, US PIPE","18X8 MJ C153 RED L/A","EA",null,1,{"v":0,"d":"$0.00"}]
[2277,"AMERICAN VALVE,CLOW/MCWANE,STAR, TYLER, US PIPE","20X18 MJ C153 RED L/A","EA",null,1,{"v":0,"d":"$0.00"}]
[2278,"AMERICAN VALVE,CLOW/MCWANE,STAR, TYLER, US PIPE","20X16 MJ C153 RED L/A","EA",null,1,{"v":0,"d":"$0.00"}]
[2279,"AMERICAN VALVE,CLOW/MCWANE,STAR, TYLER, US PIPE","20X14 MJ C153 RED L/A","EA",null,1,{"v":0,"d":"$0.00"}]
[2280,"AMERICAN VALVE,CLOW/MCWANE,STAR, TYLER, US PIPE","20X12 MJ C153 RED L/A","EA",null,1,{"v":0,"d":"$0.00"}]
[2281,"AMERICAN VALVE,CLOW/MCWANE,STAR, TYLER, US PIPE","20X10 MJ C153 RED L/A","EA",null,1,{"v":0,"d":"$0.00"}]
[2282,"AMERICAN VALVE,CLOW/MCWANE,STAR, TYLER, US PIPE","20X8 MJ C153 RED L/A","EA",null,1,{"v":0,"d":"$0.00"}]
[2283,"AMERICAN VALVE,CLOW/MCWANE,STAR, TYLER, US PIPE","24X20 MJ C153 RED L/A","EA",null,1,{"v":0,"d":"$0.00"}]
[2284,"AMERICAN VALVE,CLOW/MCWANE,STAR, TYLER, US PIPE","24X18 MJ C153 RED L/A","EA",null,1,{"v":0,"d":"$0.00"}]
[2285,"AMERICAN VALVE,CLOW/MCWANE,STAR, TYLER, US PIPE","24X16 MJ C153 RED L/A","EA",null,1,{"v":0,"d":"$0.00"}]
[2286,"AMERICAN VALVE,CLOW/MCWANE,STAR, TYLER, US PIPE","24X14 MJ C153 RED L/A","EA",null,1,{"v":0,"d":"$0.00"}]
[2287,"AMERICAN VALVE,CLOW/MCWANE,STAR, TYLER, US PIPE","24X12 MJ C153 RED L/A","EA",null,1,{"v":0,"d":"$0.00"}]
[2288,"AMERICAN VALVE,CLOW/MCWANE,STAR, TYLER, US PIPE","4X3 SEMJ C153 RED L/A","EA",null,1,{"v":0,"d":"$0.00"}]
[2289,"AMERICAN VALVE,CLOW/MCWANE,STAR, TYLER, US PIPE","6X4 SEMJ C153 RED L/A","EA",null,1,{"v":0,"d":"$0.00"}]
[2290,"AMERICAN VALVE,CLOW/MCWANE,STAR, TYLER, US PIPE","6X3 SEMJ C153 RED L/A","EA",null,1,{"v":0,"d":"$0.00"}]
[2291,"AMERICAN VALVE,CLOW/MCWANE,STAR, TYLER, US PIPE","8X6 SEMJ C153 RED L/A","EA",null,1,{"v":0,"d":"$0.00"}]
[2292,"AMERICAN VALVE,CLOW/MCWANE,STAR, TYLER, US PIPE","8X4 SEMJ C153 RED L/A","EA",null,1,{"v":0,"d":"$0.00"}]
[2293,"AMERICAN VALVE,CLOW/MCWANE,STAR, TYLER, US PIPE","8X3 SEMJ C153 RED L/A","EA",null,1,{"v":0,"d":"$0.00"}]
[2294,"AMERICAN VALVE,CLOW/MCWANE,STAR, TYLER, US PIPE","10X8 SEMJ C153 RED L/A","EA",null,1,{"v":0,"d":"$0.00"}]
[2295,"AMERICAN VALVE,CLOW/MCWANE,STAR, TYLER, US PIPE","10X6 SEMJ C153 RED L/A","EA",null,1,{"v":0,"d":"$0.00"}]
[2296,"AMERICAN VALVE,CLOW/MCWANE,STAR, TYLER, US PIPE","10X4 SEMJ C153 RED L/A","EA",null,1,{"v":0,"d":"$0.00"}]
[2297,"AMERICAN VALVE,CLOW/MCWANE,STAR, TYLER, US PIPE","12X10 SEMJ C153 RED L/A","EA",null,1,{"v":0,"d":"$0.00"}]
[2298,"AMERICAN VALVE,CLOW/MCWANE,STAR, TYLER, US PIPE","12X8 SEMJ C153 RED L/A","EA",null,1,{"v":0,"d":"$0.00"}]
[2299,"AMERICAN VALVE,CLOW/MCWANE,STAR, TYLER, US PIPE","12X6 SEMJ C153 RED L/A","EA",null,1,{"v":0,"d":"$0.00"}]
[2300,"AMERICAN VALVE,CLOW/MCWANE,STAR, TYLER, US PIPE","12X4 SEMJ C153 RED L/A","EA",null,1,{"v":0,"d":"$0.00"}]
[2301,"AMERICAN VALVE,CLOW/MCWANE,STAR, TYLER, US PIPE","4X3 LEMJ C153 RED L/A","EA",null,1,{"v":0,"d":"$0.00"}]
[2302,"AMERICAN VALVE,CLOW/MCWANE,STAR, TYLER, US PIPE","6X4 LEMJ C153 RED L/A","EA",null,1,{"v":0,"d":"$0.00"}]
[2303,"AMERICAN VALVE,CLOW/MCWANE,STAR, TYLER, US PIPE","6X3 LEMJ C153 RED L/A","EA",null,1,{"v":0,"d":"$0.00"}]
[2304,"AMERICAN VALVE,CLOW/MCWANE,STAR, TYLER, US PIPE","8X6 LEMJ C153 RED L/A","EA",null,1,{"v":0,"d":"$0.00"}]
[2305,"AMERICAN VALVE,CLOW/MCWANE,STAR, TYLER, US PIPE","8X4 LEMJ C153 RED L/A","EA",null,1,{"v":0,"d":"$0.00"}]
[2306,"AMERICAN VALVE,CLOW/MCWANE,STAR, TYLER, US PIPE","10X8 LEMJ C153 RED L/A","EA",null,1,{"$f":"SUM(E2293*F2293)","v":{"v":0,"d":"$0.00"}}]
[2307,"AMERICAN VALVE,CLOW/MCWANE,STAR, TYLER, US PIPE","10X6 LEMJ C153 RED L/A","EA",null,1,{"v":0,"d":"$0.00"}]
[2308,"AMERICAN VALVE,CLOW/MCWANE,STAR, TYLER, US PIPE","10X4 LEMJ C153 RED L/A","EA",null,1,{"v":0,"d":"$0.00"}]
[2309,"AMERICAN VALVE,CLOW/MCWANE,STAR, TYLER, US PIPE","12X10 LEMJ C153 RED L/A","EA",null,1,{"v":0,"d":"$0.00"}]
[2310,"AMERICAN VALVE,CLOW/MCWANE,STAR, TYLER, US PIPE","12X8 LEMJ C153 RED L/A","EA",null,1,{"v":0,"d":"$0.00"}]
[2311,"AMERICAN VALVE,CLOW/MCWANE,STAR, TYLER, US PIPE","12X6 LEMJ C153 RED L/A","EA",null,1,{"v":0,"d":"$0.00"}]
[2312,"AMERICAN VALVE,CLOW/MCWANE,STAR, TYLER, US PIPE","12X4 LEMJ C153 RED L/A","EA",null,1,{"v":0,"d":"$0.00"}]
[2313,"AMERICAN VALVE,CLOW/MCWANE,STAR, TYLER, US PIPE","4X3 DI 125# C110 FLG CONC RED","EA",null,1,{"v":0,"d":"$0.00"}]
[2314,"AMERICAN VALVE,CLOW/MCWANE,STAR, TYLER, US PIPE","6X4 DI 125# C110 FLG CONC RED","EA",null,1,{"v":0,"d":"$0.00"}]
[2315,"AMERICAN VALVE,CLOW/MCWANE,STAR, TYLER, US PIPE","6X3 DI 125# C110 FLG CONC RED","EA",null,1,{"v":0,"d":"$0.00"}]
[2316,"AMERICAN VALVE,CLOW/MCWANE,STAR, TYLER, US PIPE","8X6 DI 125# C110 FLG CONC RED","EA",null,1,{"v":0,"d":"$0.00"}]
[2317,"AMERICAN VALVE,CLOW/MCWANE,STAR, TYLER, US PIPE","8X4 DI 125# C110 FLG CONC RED","EA",null,1,{"v":0,"d":"$0.00"}]
[2318,"AMERICAN VALVE,CLOW/MCWANE,STAR, TYLER, US PIPE","8X3 DI 125# C110 FLG CONC RED","EA",null,1,{"v":0,"d":"$0.00"}]
[2319,"AMERICAN VALVE,CLOW/MCWANE,STAR, TYLER, US PIPE","10X8 DI 125# C110 FLG CONC RED","EA",null,1,{"v":0,"d":"$0.00"}]
[2320,"AMERICAN VALVE,CLOW/MCWANE,STAR, TYLER, US PIPE","10X6 DI 125# C110 FLG CONC RED","EA",null,1,{"v":0,"d":"$0.00"}]
[2321,"AMERICAN VALVE,CLOW/MCWANE,STAR, TYLER, US PIPE","10X4 DI 125# C110 FLG CONC RED","EA",null,1,{"v":0,"d":"$0.00"}]
[2322,"AMERICAN VALVE,CLOW/MCWANE,STAR, TYLER, US PIPE","12X10 DI 125# C110 FLG CONC RED","EA",null,1,{"v":0,"d":"$0.00"}]
[2323,"AMERICAN VALVE,CLOW/MCWANE,STAR, TYLER, US PIPE","12X8 DI 125# C110 FLG CONC RED","EA",null,1,{"v":0,"d":"$0.00"}]
[2324,"AMERICAN VALVE,CLOW/MCWANE,STAR, TYLER, US PIPE","12X6 DI 125# C110 FLG CONC RED","EA",null,1,{"v":0,"d":"$0.00"}]
[2325,"AMERICAN VALVE,CLOW/MCWANE,STAR, TYLER, US PIPE","12X4 DI 125# C110 FLG CONC RED","EA",null,1,{"v":0,"d":"$0.00"}]
[2326,"AMERICAN VALVE,CLOW/MCWANE,STAR, TYLER, US PIPE","4X3 DI 125# C110 FLG ECC RED","EA",null,1,{"v":0,"d":"$0.00"}]
[2327,"AMERICAN VALVE,CLOW/MCWANE,STAR, TYLER, US PIPE","6X4 DI 125# C110 FLG ECC RED","EA",null,1,{"v":0,"d":"$0.00"}]
[2328,"AMERICAN VALVE,CLOW/MCWANE,STAR, TYLER, US PIPE","6X3 DI 125# C110 FLG ECC RED","EA",null,1,{"v":0,"d":"$0.00"}]
[2329,"AMERICAN VALVE,CLOW/MCWANE,STAR, TYLER, US PIPE","8X6 DI 125# C110 FLG ECC RED","EA",null,1,{"v":0,"d":"$0.00"}]
[2330,"AMERICAN VALVE,CLOW/MCWANE,STAR, TYLER, US PIPE","8X4 DI 125# C110 FLG ECC RED","EA",null,1,{"v":0,"d":"$0.00"}]
[2331,"AMERICAN VALVE,CLOW/MCWANE,STAR, TYLER, US PIPE","10X8 DI 125# C110 FLG ECC RED","EA",null,1,{"v":0,"d":"$0.00"}]
[2332,"AMERICAN VALVE,CLOW/MCWANE,STAR, TYLER, US PIPE","10X6 DI 125# C110 FLG ECC RED","EA",null,1,{"v":0,"d":"$0.00"}]
[2333,"AMERICAN VALVE,CLOW/MCWANE,STAR, TYLER, US PIPE","10X4 DI 125# C110 FLG ECC RED","EA",null,1,{"v":0,"d":"$0.00"}]
[2334,"AMERICAN VALVE,CLOW/MCWANE,STAR, TYLER, US PIPE","12X10 DI 125# C110 FLG ECC RED","EA",null,1,{"v":0,"d":"$0.00"}]
[2335,"AMERICAN VALVE,CLOW/MCWANE,STAR, TYLER, US PIPE","12X8 DI 125# C110 FLG ECC RED","EA",null,1,{"v":0,"d":"$0.00"}]
[2336,"AMERICAN VALVE,CLOW/MCWANE,STAR, TYLER, US PIPE","12X6 DI 125# C110 FLG ECC RED","EA",null,1,{"v":0,"d":"$0.00"}]
[2337,"AMERICAN VALVE,CLOW/MCWANE,STAR, TYLER, US PIPE","12X4 DI 125# C110 FLG ECC RED","EA",null,1,{"v":0,"d":"$0.00"}]
[2338,"AMERICAN VALVE,CLOW/MCWANE,STAR, TYLER, US PIPE","10X8  DI 125# FLG P-401 CONC RED","EA",null,1,{"v":0,"d":"$0.00"}]
[2339,"SIGMA,EBBA,STAR,US PIPE","3 PVC WDG REST *ONELOK ACC SET","EA",null,1,{"v":0,"d":"$0.00"}]
[2340,"SIGMA,EBBA,STAR,US PIPE","4 PVC WDG REST *ONELOK W/A ","EA",null,1,{"v":0,"d":"$0.00"}]
[2341,"SIGMA,EBBA,STAR,US PIPE","6 PVC WDG REST *ONELOK W/A ","EA",null,1,{"v":0,"d":"$0.00"}]
[2342,"SIGMA,EBBA,STAR,US PIPE","8 PVC WDG REST *ONELOK W/A ","EA",null,1,{"v":0,"d":"$0.00"}]
[2343,"SIGMA,EBBA,STAR,US PIPE","10 PVC WDG REST *ONELOK W/A ","EA",null,1,{"v":0,"d":"$0.00"}]
[2344,"SIGMA,EBBA,STAR,US PIPE","12 PVC WDG REST *ONELOK W/A ","EA",null,1,{"v":0,"d":"$0.00"}]
[2345,"SIGMA,EBBA,STAR,US PIPE","14 PVC WDG REST *ONELOK W/A ","EA",null,1,{"v":0,"d":"$0.00"}]
[2346,"SIGMA,EBBA,STAR,US PIPE","14 PVC WDG REST *ONELOK ACC SET","EA",null,1,{"v":0,"d":"$0.00"}]
[2347,"SIGMA,EBBA,STAR,US PIPE","16 PVC WDG REST *ONELOK W/A ","EA",null,1,{"v":0,"d":"$0.00"}]
[2348,"SIGMA,EBBA,STAR,US PIPE","16 PVC WDG REST *ONELOK ACC SET","EA",null,1,{"v":0,"d":"$0.00"}]
[2349,"SIGMA,EBBA,STAR,US PIPE","18 PVC WDG REST *ONELOK ACC SET","EA",null,1,{"v":0,"d":"$0.00"}]
[2350,"SIGMA,EBBA,STAR,US PIPE","20 PVC WDG REST *ONELOK W/A ","EA",null,1,{"v":0,"d":"$0.00"}]
[2351,"SIGMA,EBBA,STAR,US PIPE","20 PVC WDG REST *ONELOK ACC SET","EA",null,1,{"v":0,"d":"$0.00"}]
[2352,"SIGMA,EBBA,STAR,US PIPE","24 PVC WDG REST *ONELOK W/A ","EA",null,1,{"v":0,"d":"$0.00"}]
[2353,"SIGMA,EBBA,STAR,US PIPE","24 PVC WDG REST *ONELOK ACC SET","EA",null,1,{"v":0,"d":"$0.00"}]
[2354,"SIGMA,EBBA,STAR,US PIPE","3 DI WDG REST *ONELOK W/A ","EA",null,1,{"v":0,"d":"$0.00"}]
[2355,"SIGMA,EBBA,STAR,US PIPE","3 DI WDG REST *ONELOK ACC SET","EA",null,1,{"v":0,"d":"$0.00"}]
[2356,"SIGMA,EBBA,STAR,US PIPE","4 DI WDG REST *ONELOK W/A ","EA",null,1,{"v":0,"d":"$0.00"}]
[2357,"SIGMA,EBBA,STAR,US PIPE","6 DI WDG REST *ONELOK W/A ","EA",null,1,{"v":0,"d":"$0.00"}]
[2358,"SIGMA,EBBA,STAR,US PIPE","8 DI WDG REST *ONELOK W/A ","EA",null,1,{"v":0,"d":"$0.00"}]
[2359,"SIGMA,EBBA,STAR,US PIPE","10 DI WDG REST *ONELOK W/A ","EA",null,1,{"v":0,"d":"$0.00"}]
[2360,"SIGMA,EBBA,STAR,US PIPE","12 DI WDG REST *ONELOK W/A ","EA",null,1,{"v":0,"d":"$0.00"}]
[2361,"SIGMA,EBBA,STAR,US PIPE","14 DI WDG REST *ONELOK ACC SET","EA",null,1,{"v":0,"d":"$0.00"}]
[2362,"SIGMA,EBBA,STAR,US PIPE","14 DI WDG REST *ONELOK W/A ","EA",null,1,{"v":0,"d":"$0.00"}]
[2363,"SIGMA,EBBA,STAR,US PIPE","16 DI WDG REST *ONELOK W/A ","EA",null,1,{"v":0,"d":"$0.00"}]
[2364,"SIGMA,EBBA,STAR,US PIPE","16 DI WDG REST *ONELOK ACC SET","EA",null,1,{"v":0,"d":"$0.00"}]
[2365,"SIGMA,EBBA,STAR,US PIPE","18 DI WDG REST *ONELOK ACC SET","EA",null,1,{"v":0,"d":"$0.00"}]
[2366,"SIGMA,EBBA,STAR,US PIPE","20 DI WDG REST *ONELOK ACC SET","EA",null,1,{"v":0,"d":"$0.00"}]
[2367,"SIGMA,EBBA,STAR,US PIPE","24 DI WDG REST *ONELOK ACC SET","EA",null,1,{"v":0,"d":"$0.00"}]
[2368,"SIGMA,EBBA,STAR,US PIPE","3 PVC REST CLMP RNGS IPS *PVLOK","EA",null,1,{"v":0,"d":"$0.00"}]
[2369,"SIGMA,EBBA,STAR,US PIPE","4 SIGMA BELL REST F/ C900 *PVLOK","EA",null,1,{"v":0,"d":"$0.00"}]
[2370,"SIGMA,EBBA,STAR,US PIPE","6 SIGMA BELL REST F/ C900 *PVLOK","EA",null,1,{"$f":"SUM(E2357*F2357)","v":{"v":0,"d":"$0.00"}}]
[2371,"SIGMA,EBBA,STAR,US PIPE","8 SIGMA BELL REST F/ C900 *PVLOK","EA",null,1,{"v":0,"d":"$0.00"}]
[2372,"SIGMA,EBBA,STAR,US PIPE","10 SIGMA BELL REST F/ C900 *PVLOK","EA",null,1,{"v":0,"d":"$0.00"}]
[2373,"SIGMA,EBBA,STAR,US PIPE","12 SIGMA BELL REST F/ C900 *PVLOK","EA",null,1,{"v":0,"d":"$0.00"}]
[2374,"SIGMA,EBBA,STAR,US PIPE","14 SIGMA BELL REST F/ C900 *PVLOK","EA",null,1,{"v":0,"d":"$0.00"}]
[2375,"SIGMA,EBBA,STAR,US PIPE","16 SIGMA BELL REST F/ C900 *PVLOK","EA",null,1,{"v":0,"d":"$0.00"}]
[2376,"SIGMA,EBBA,STAR,US PIPE","18 SIGMA BELL REST F/ C900 *PVLOK","EA",null,1,{"v":0,"d":"$0.00"}]
[2377,"SIGMA,EBBA,STAR,US PIPE","20 SIGMA BELL REST F/ C900 *PVLOK","EA",null,1,{"v":0,"d":"$0.00"}]
[2378,"SIGMA,EBBA,STAR,US PIPE","24 SIGMA BELL REST F/ C900 *PVLOK","EA",null,1,{"v":0,"d":"$0.00"}]
[2379,"SIGMA,EBBA,STAR,US PIPE","20 DI BELL REST W/ WDG GLND RNG","EA",null,1,{"v":0,"d":"$0.00"}]
[2380,"SIGMA,EBBA,STAR,US PIPE","3 PVC WDG REST GLND *ONELOK","EA",null,1,{"v":0,"d":"$0.00"}]
[2381,"SIGMA,EBBA,STAR,US PIPE","4 PVC WDG REST GLND *ONELOK","EA",null,1,{"v":0,"d":"$0.00"}]
[2382,"SIGMA,EBBA,STAR,US PIPE","6 PVC WDG REST GLND *ONELOK","EA",null,1,{"v":0,"d":"$0.00"}]
[2383,"SIGMA,EBBA,STAR,US PIPE","8 PVC WDG REST GLND *ONELOK","EA",null,1,{"v":0,"d":"$0.00"}]
[2384,"SIGMA,EBBA,STAR,US PIPE","10 PVC WDG REST GLND *ONELOK","EA",null,1,{"v":0,"d":"$0.00"}]
[2385,"SIGMA,EBBA,STAR,US PIPE","12 PVC WDG REST GLND *ONELOK","EA",null,1,{"v":0,"d":"$0.00"}]
[2386,"SIGMA,EBBA,STAR,US PIPE","14 PVC WDG REST GLND *ONELOK","EA",null,1,{"v":0,"d":"$0.00"}]
[2387,"SIGMA,EBBA,STAR,US PIPE","16 PVC WDG REST GLND *ONELOK","EA",null,1,{"v":0,"d":"$0.00"}]
[2388,"SIGMA,EBBA,STAR,US PIPE","18 PVC WDG REST GLND *ONELOK","EA",null,1,{"v":0,"d":"$0.00"}]
[2389,"SIGMA,EBBA,STAR,US PIPE","20 PVC WDG REST GLND *ONELOK","EA",null,1,{"v":0,"d":"$0.00"}]
[2390,"SIGMA,EBBA,STAR,US PIPE","24 PVC WDG REST GLND *ONELOK","EA",null,1,{"v":0,"d":"$0.00"}]
[2391,"SIGMA,EBBA,STAR,US PIPE","3 DI MJ WDG REST GLND *ONELOK","EA",null,1,{"v":0,"d":"$0.00"}]
[2392,"SIGMA,EBBA,STAR,US PIPE","4 DI MJ WDG REST GLND *ONELOK","EA",null,1,{"v":0,"d":"$0.00"}]
[2393,"SIGMA,EBBA,STAR,US PIPE","6 DI MJ WDG REST GLND *ONELOK","EA",null,1,{"v":0,"d":"$0.00"}]
[2394,"SIGMA,EBBA,STAR,US PIPE","8 DI MJ WDG REST GLND *ONELOK","EA",null,1,{"v":0,"d":"$0.00"}]
[2395,"SIGMA,EBBA,STAR,US PIPE","10 DI MJ WDG REST GLND *ONELOK","EA",null,1,{"v":0,"d":"$0.00"}]
[2396,"SIGMA,EBBA,STAR,US PIPE","12 DI MJ WDG REST GLND *ONELOK","EA",null,1,{"v":0,"d":"$0.00"}]
[2397,"SIGMA,EBBA,STAR,US PIPE","14 DI MJ WDG REST GLND *ONELOK","EA",null,1,{"v":0,"d":"$0.00"}]
[2398,"SIGMA,EBBA,STAR,US PIPE","16 DI MJ WDG REST GLND *ONELOK","EA",null,1,{"v":0,"d":"$0.00"}]
[2399,"SIGMA,EBBA,STAR,US PIPE","18 DI MJ WDG REST GLND *ONELOK","EA",null,1,{"v":0,"d":"$0.00"}]
[2400,"SIGMA,EBBA,STAR,US PIPE","20 DI MJ WDG REST GLND *ONELOK","EA",null,1,{"v":0,"d":"$0.00"}]
[2401,"SIGMA,EBBA,STAR,US PIPE","24 DI MJ WDG REST GLND *ONELOK","EA",null,1,{"v":0,"d":"$0.00"}]
[2402,"SIGMA,EBBA,STAR,US PIPE","3 PVC WDG REST GLND PK *ONELOK","EA",null,1,{"v":0,"d":"$0.00"}]
[2403,"SIGMA,EBBA,STAR,US PIPE","4 PVC WDG REST GLND PK *ONELOK","EA",null,1,{"v":0,"d":"$0.00"}]
[2404,"SIGMA,EBBA,STAR,US PIPE","6 PVC WDG REST GLND PK *ONELOK","EA",null,1,{"v":0,"d":"$0.00"}]
[2405,"SIGMA,EBBA,STAR,US PIPE","8 PVC WDG REST GLND PK *ONELOK","EA",null,1,{"v":0,"d":"$0.00"}]
[2406,"SIGMA,EBBA,STAR,US PIPE","10 PVC WDG REST GLND PK *ONELOK","EA",null,1,{"v":0,"d":"$0.00"}]
[2407,"SIGMA,EBBA,STAR,US PIPE","12 PVC WDG REST GLND PK *ONELOK","EA",null,1,{"v":0,"d":"$0.00"}]
[2408,"SIGMA,EBBA,STAR,US PIPE","14 PVC WDG REST GLND PK *ONELOK","EA",null,1,{"v":0,"d":"$0.00"}]
[2409,"SIGMA,EBBA,STAR,US PIPE","16 PVC WDG REST GLND PK *ONELOK","EA",null,1,{"v":0,"d":"$0.00"}]
[2410,"SIGMA,EBBA,STAR,US PIPE","18 PVC WDG REST GLND PK *ONELOK","EA",null,1,{"v":0,"d":"$0.00"}]
[2411,"SIGMA,EBBA,STAR,US PIPE","20 PVC WDG REST GLND PK *ONELOK","EA",null,1,{"v":0,"d":"$0.00"}]
[2412,"SIGMA,EBBA,STAR,US PIPE","24 PVC WDG REST GLND PK *ONELOK","EA",null,1,{"v":0,"d":"$0.00"}]
[2413,"SIGMA,EBBA,STAR,US PIPE","3 DI MJ WDG REST GLND PK *ONELOK","EA",null,1,{"v":0,"d":"$0.00"}]
[2414,"SIGMA,EBBA,STAR,US PIPE","4 DI MJ WDG REST GLND PK *ONELOK","EA",null,1,{"v":0,"d":"$0.00"}]
[2415,"SIGMA,EBBA,STAR,US PIPE","6 DI MJ WDG REST GLND PK *ONELOK","EA",null,1,{"v":0,"d":"$0.00"}]
[2416,"SIGMA,EBBA,STAR,US PIPE"," 8 DI MJ WDG REST GLND PK *ONELOK","EA",null,1,{"v":0,"d":"$0.00"}]
[2417,"SIGMA,EBBA,STAR,US PIPE","10 DI MJ WDG REST GLND PK *ONELOK","EA",null,1,{"v":0,"d":"$0.00"}]
[2418,"SIGMA,EBBA,STAR,US PIPE","12 DI MJ WDG REST GLND PK *ONELOK","EA",null,1,{"v":0,"d":"$0.00"}]
[2419,"SIGMA,EBBA,STAR,US PIPE","14 DI MJ WDG REST GLND PK *ONELOK","EA",null,1,{"v":0,"d":"$0.00"}]
[2420,"SIGMA,EBBA,STAR,US PIPE","16 DI MJ WDG REST GLND PK *ONELOK","EA",null,1,{"v":0,"d":"$0.00"}]
[2421,"SIGMA,EBBA,STAR,US PIPE","18 DI MJ WDG REST GLND PK *ONELOK","EA",null,1,{"v":0,"d":"$0.00"}]
[2422,"SIGMA,EBBA,STAR,US PIPE","20 DI MJ WDG REST GLND PK *ONELOK","EA",null,1,{"v":0,"d":"$0.00"}]
[2423,"SIGMA,EBBA,STAR,US PIPE","24 DI MJ WDG REST GLND PK *ONELOK","EA",null,1,{"v":0,"d":"$0.00"}]
[2424,"SIGMA,EBBA,STAR,US PIPE","24 DI BELL REST W/ WDG GLND RNG","EA",null,1,{"v":0,"d":"$0.00"}]
[2425,"AMERICAN VALVE,CLOW/MCWANE,STAR, TYLER, US PIPE","3 MJ C153 P-401 TEE L/A","EA",null,1,{"v":0,"d":"$0.00"}]
[2426,"AMERICAN VALVE,CLOW/MCWANE,STAR, TYLER, US PIPE","4 MJ C153 P-401 TEE L/A","EA",null,1,{"v":0,"d":"$0.00"}]
[2427,"AMERICAN VALVE,CLOW/MCWANE,STAR, TYLER, US PIPE","6 MJ C153 P-401 TEE L/A","EA",null,1,{"v":0,"d":"$0.00"}]
[2428,"AMERICAN VALVE,CLOW/MCWANE,STAR, TYLER, US PIPE","6X4 MJ C153 P-401 TEE L/A","EA",null,1,{"v":0,"d":"$0.00"}]
[2429,"AMERICAN VALVE,CLOW/MCWANE,STAR, TYLER, US PIPE","8 MJ C153 P-401 TEE L/A","EA",null,1,{"v":0,"d":"$0.00"}]
[2430,"AMERICAN VALVE,CLOW/MCWANE,STAR, TYLER, US PIPE","8X6 MJ C153 P-401 TEE L/A","EA",null,1,{"v":0,"d":"$0.00"}]
[2431,"AMERICAN VALVE,CLOW/MCWANE,STAR, TYLER, US PIPE","8X4 MJ C153 P-401 TEE L/A","EA",null,1,{"v":0,"d":"$0.00"}]
[2432,"AMERICAN VALVE,CLOW/MCWANE,STAR, TYLER, US PIPE","10    MJ C153 P-401 TEE L/A","EA",null,1,{"v":0,"d":"$0.00"}]
[2433,"AMERICAN VALVE,CLOW/MCWANE,STAR, TYLER, US PIPE","10X8 MJ C153 P-401 TEE L/A","EA",null,1,{"v":0,"d":"$0.00"}]
[2434,"AMERICAN VALVE,CLOW/MCWANE,STAR, TYLER, US PIPE","10X6 MJ C153 P-401 TEE L/A","EA",null,1,{"$f":"SUM(E2421*F2421)","v":{"v":0,"d":"$0.00"}}]
[2435,"AMERICAN VALVE,CLOW/MCWANE,STAR, TYLER, US PIPE","10X4 MJ C153 P-401 TEE L/A","EA",null,1,{"v":0,"d":"$0.00"}]
[2436,"AMERICAN VALVE,CLOW/MCWANE,STAR, TYLER, US PIPE","12 MJ C153 P-401 TEE L/A","EA",null,1,{"v":0,"d":"$0.00"}]
[2437,"AMERICAN VALVE,CLOW/MCWANE,STAR, TYLER, US PIPE","12X10 MJ C153 P-401 TEE L/A","EA",null,1,{"v":0,"d":"$0.00"}]
[2438,"AMERICAN VALVE,CLOW/MCWANE,STAR, TYLER, US PIPE","12X8 MJ C153 P-401 TEE L/A","EA",null,1,{"v":0,"d":"$0.00"}]
[2439,"AMERICAN VALVE,CLOW/MCWANE,STAR, TYLER, US PIPE","12X6 MJ C153 P-401 TEE L/A","EA",null,1,{"v":0,"d":"$0.00"}]
[2440,"AMERICAN VALVE,CLOW/MCWANE,STAR, TYLER, US PIPE","12X4 MJ C153 P-401 TEE L/A","EA",null,1,{"v":0,"d":"$0.00"}]
[2441,"AMERICAN VALVE,CLOW/MCWANE,STAR, TYLER, US PIPE","16 MJ C153 P-401 TEE L/A","EA",null,1,{"v":0,"d":"$0.00"}]
[2442,"AMERICAN VALVE,CLOW/MCWANE,STAR, TYLER, US PIPE","16X12 MJ C153 P-401 TEE L/A","EA",null,1,{"v":0,"d":"$0.00"}]
[2443,"AMERICAN VALVE,CLOW/MCWANE,STAR, TYLER, US PIPE","16X10 MJ C153 P-401 TEE L/A","EA",null,1,{"v":0,"d":"$0.00"}]
[2444,"AMERICAN VALVE,CLOW/MCWANE,STAR, TYLER, US PIPE","16X8 MJ C153 P-401 TEE L/A","EA",null,1,{"v":0,"d":"$0.00"}]
[2445,"AMERICAN VALVE,CLOW/MCWANE,STAR, TYLER, US PIPE","16X6 MJ C153 P-401 TEE L/A","EA",null,1,{"v":0,"d":"$0.00"}]
[2446,"AMERICAN VALVE,CLOW/MCWANE,STAR, TYLER, US PIPE","20 MJ C153 P-401 TEE L/A","EA",null,1,{"v":0,"d":"$0.00"}]
[2447,"AMERICAN VALVE,CLOW/MCWANE,STAR, TYLER, US PIPE","24 MJ C153 P-401 TEE L/A","EA",null,1,{"v":0,"d":"$0.00"}]
[2448,"AMERICAN VALVE,CLOW/MCWANE,STAR, TYLER, US PIPE","3 DI 125# FLG P-401 TEE","EA",null,1,{"v":0,"d":"$0.00"}]
[2449,"AMERICAN VALVE,CLOW/MCWANE,STAR, TYLER, US PIPE","4 DI 125# FLG P-401 TEE","EA",null,1,{"v":0,"d":"$0.00"}]
[2450,"AMERICAN VALVE,CLOW/MCWANE,STAR, TYLER, US PIPE","4X3 DI 125# FLG P-401 TEE","EA",null,1,{"v":0,"d":"$0.00"}]
[2451,"AMERICAN VALVE,CLOW/MCWANE,STAR, TYLER, US PIPE","6 DI 125# FLG P-401 TEE","EA",null,1,{"v":0,"d":"$0.00"}]
[2452,"AMERICAN VALVE,CLOW/MCWANE,STAR, TYLER, US PIPE","6X4 DI 125# FLG P-401 TEE","EA",null,1,{"v":0,"d":"$0.00"}]
[2453,"AMERICAN VALVE,CLOW/MCWANE,STAR, TYLER, US PIPE","8 DI 125# FLG P-401 TEE","EA",null,1,{"v":0,"d":"$0.00"}]
[2454,"AMERICAN VALVE,CLOW/MCWANE,STAR, TYLER, US PIPE","8X6 DI 125# FLG P-401 TEE","EA",null,1,{"v":0,"d":"$0.00"}]
[2455,"AMERICAN VALVE,CLOW/MCWANE,STAR, TYLER, US PIPE","10 DI 125# FLG P-401 TEE","EA",null,1,{"v":0,"d":"$0.00"}]
[2456,"AMERICAN VALVE,CLOW/MCWANE,STAR, TYLER, US PIPE","12 DI 125# FLG P-401 TEE","EA",null,1,{"v":0,"d":"$0.00"}]
[2457,"AMERICAN VALVE,CLOW/MCWANE,STAR, TYLER, US PIPE","20 DI 125# FLG P-401 TEE","EA",null,1,{"v":0,"d":"$0.00"}]
[2458,"AMERICAN VALVE,CLOW/MCWANE,STAR, TYLER, US PIPE","3 MJ C153 TEE L/A","EA",null,1,{"v":0,"d":"$0.00"}]
[2459,"AMERICAN VALVE,CLOW/MCWANE,STAR, TYLER, US PIPE","4 MJ C153 TEE L/A","EA",null,1,{"v":0,"d":"$0.00"}]
[2460,"AMERICAN VALVE,CLOW/MCWANE,STAR, TYLER, US PIPE","4X3 MJ C153 TEE L/A","EA",null,1,{"v":0,"d":"$0.00"}]
[2461,"AMERICAN VALVE,CLOW/MCWANE,STAR, TYLER, US PIPE","6 MJ C153 TEE L/A","EA",null,1,{"v":0,"d":"$0.00"}]
[2462,"AMERICAN VALVE,CLOW/MCWANE,STAR, TYLER, US PIPE","6X4 MJ C153 TEE L/A","EA",null,1,{"v":0,"d":"$0.00"}]
[2463,"AMERICAN VALVE,CLOW/MCWANE,STAR, TYLER, US PIPE","6X3 MJ C153 TEE L/A","EA",null,1,{"v":0,"d":"$0.00"}]
[2464,"AMERICAN VALVE,CLOW/MCWANE,STAR, TYLER, US PIPE","8 MJ C153 TEE L/A","EA",null,1,{"v":0,"d":"$0.00"}]
[2465,"AMERICAN VALVE,CLOW/MCWANE,STAR, TYLER, US PIPE","8X6 MJ C153 TEE L/A","EA",null,1,{"v":0,"d":"$0.00"}]
[2466,"AMERICAN VALVE,CLOW/MCWANE,STAR, TYLER, US PIPE","8X4 MJ C153 TEE L/A","EA",null,1,{"v":0,"d":"$0.00"}]
[2467,"AMERICAN VALVE,CLOW/MCWANE,STAR, TYLER, US PIPE","8X3 MJ C153 TEE L/A","EA",null,1,{"v":0,"d":"$0.00"}]
[2468,"AMERICAN VALVE,CLOW/MCWANE,STAR, TYLER, US PIPE","10 MJ C153 TEE L/A","EA",null,1,{"v":0,"d":"$0.00"}]
[2469,"AMERICAN VALVE,CLOW/MCWANE,STAR, TYLER, US PIPE","10X8 MJ C153 TEE L/A","EA",null,1,{"v":0,"d":"$0.00"}]
[2470,"AMERICAN VALVE,CLOW/MCWANE,STAR, TYLER, US PIPE","10X6 MJ C153 TEE L/A","EA",null,1,{"v":0,"d":"$0.00"}]
[2471,"AMERICAN VALVE,CLOW/MCWANE,STAR, TYLER, US PIPE","10X4 MJ C153 TEE L/A","EA",null,1,{"v":0,"d":"$0.00"}]
[2472,"AMERICAN VALVE,CLOW/MCWANE,STAR, TYLER, US PIPE","10X3 MJ C153 TEE L/A","EA",null,1,{"v":0,"d":"$0.00"}]
[2473,"AMERICAN VALVE,CLOW/MCWANE,STAR, TYLER, US PIPE","12 MJ C153 TEE L/A","EA",null,1,{"v":0,"d":"$0.00"}]
[2474,"AMERICAN VALVE,CLOW/MCWANE,STAR, TYLER, US PIPE","12X10 MJ C153 TEE L/A","EA",null,1,{"v":0,"d":"$0.00"}]
[2475,"AMERICAN VALVE,CLOW/MCWANE,STAR, TYLER, US PIPE","12X8 MJ C153 TEE L/A","EA",null,1,{"v":0,"d":"$0.00"}]
[2476,"AMERICAN VALVE,CLOW/MCWANE,STAR, TYLER, US PIPE","12X6 MJ C153 TEE L/A","EA",null,1,{"v":0,"d":"$0.00"}]
[2477,"AMERICAN VALVE,CLOW/MCWANE,STAR, TYLER, US PIPE","12X4 MJ C153 TEE L/A","EA",null,1,{"v":0,"d":"$0.00"}]
[2478,"AMERICAN VALVE,CLOW/MCWANE,STAR, TYLER, US PIPE","12X3 MJ C153 TEE L/A","EA",null,1,{"v":0,"d":"$0.00"}]
[2479,"AMERICAN VALVE,CLOW/MCWANE,STAR, TYLER, US PIPE","14 MJ C153 TEE L/A","EA",null,1,{"v":0,"d":"$0.00"}]
[2480,"AMERICAN VALVE,CLOW/MCWANE,STAR, TYLER, US PIPE","14X12 MJ C153 TEE L/A","EA",null,1,{"v":0,"d":"$0.00"}]
[2481,"AMERICAN VALVE,CLOW/MCWANE,STAR, TYLER, US PIPE","14X10 MJ C153 TEE L/A","EA",null,1,{"v":0,"d":"$0.00"}]
[2482,"AMERICAN VALVE,CLOW/MCWANE,STAR, TYLER, US PIPE","14X8 MJ C153 TEE L/A","EA",null,1,{"v":0,"d":"$0.00"}]
[2483,"AMERICAN VALVE,CLOW/MCWANE,STAR, TYLER, US PIPE","14X6 MJ C153 TEE L/A","EA",null,1,{"v":0,"d":"$0.00"}]
[2484,"AMERICAN VALVE,CLOW/MCWANE,STAR, TYLER, US PIPE","16 MJ C153 TEE L/A","EA",null,1,{"v":0,"d":"$0.00"}]
[2485,"AMERICAN VALVE,CLOW/MCWANE,STAR, TYLER, US PIPE","16X14 MJ C153 TEE L/A","EA",null,1,{"v":0,"d":"$0.00"}]
[2486,"AMERICAN VALVE,CLOW/MCWANE,STAR, TYLER, US PIPE","16X12 MJ C153 TEE L/A","EA",null,1,{"v":0,"d":"$0.00"}]
[2487,"AMERICAN VALVE,CLOW/MCWANE,STAR, TYLER, US PIPE","16X10 MJ C153 TEE L/A","EA",null,1,{"v":0,"d":"$0.00"}]
[2488,"AMERICAN VALVE,CLOW/MCWANE,STAR, TYLER, US PIPE","16X8 MJ C153 TEE L/A","EA",null,1,{"v":0,"d":"$0.00"}]
[2489,"AMERICAN VALVE,CLOW/MCWANE,STAR, TYLER, US PIPE","16X6 MJ C153 TEE L/A","EA",null,1,{"v":0,"d":"$0.00"}]
[2490,"AMERICAN VALVE,CLOW/MCWANE,STAR, TYLER, US PIPE","18 MJ C153 TEE L/A","EA",null,1,{"v":0,"d":"$0.00"}]
[2491,"AMERICAN VALVE,CLOW/MCWANE,STAR, TYLER, US PIPE","18X16 MJ C153 TEE L/A","EA",null,1,{"v":0,"d":"$0.00"}]
[2492,"AMERICAN VALVE,CLOW/MCWANE,STAR, TYLER, US PIPE","18X14 MJ C153 TEE L/A","EA",null,1,{"v":0,"d":"$0.00"}]
[2493,"AMERICAN VALVE,CLOW/MCWANE,STAR, TYLER, US PIPE","18X12 MJ C153 TEE L/A","EA",null,1,{"v":0,"d":"$0.00"}]
[2494,"AMERICAN VALVE,CLOW/MCWANE,STAR, TYLER, US PIPE","18X10 MJ C153 TEE L/A","EA",null,1,{"v":0,"d":"$0.00"}]
[2495,"AMERICAN VALVE,CLOW/MCWANE,STAR, TYLER, US PIPE","18X8 MJ C153 TEE L/A","EA",null,1,{"v":0,"d":"$0.00"}]
[2496,"AMERICAN VALVE,CLOW/MCWANE,STAR, TYLER, US PIPE","18X6 MJ C153 TEE L/A","EA",null,1,{"v":0,"d":"$0.00"}]
[2497,"AMERICAN VALVE,CLOW/MCWANE,STAR, TYLER, US PIPE","20 MJ C153 TEE L/A","EA",null,1,{"v":0,"d":"$0.00"}]
[2498,"AMERICAN VALVE,CLOW/MCWANE,STAR, TYLER, US PIPE","20X18 MJ C153 TEE L/A","EA",null,1,{"$f":"SUM(E2485*F2485)","v":{"v":0,"d":"$0.00"}}]
[2499,"AMERICAN VALVE,CLOW/MCWANE,STAR, TYLER, US PIPE","20X16 MJ C153 TEE L/A","EA",null,1,{"v":0,"d":"$0.00"}]
[2500,"AMERICAN VALVE,CLOW/MCWANE,STAR, TYLER, US PIPE","20X14 MJ C153 TEE L/A","EA",null,1,{"v":0,"d":"$0.00"}]
[2501,"AMERICAN VALVE,CLOW/MCWANE,STAR, TYLER, US PIPE","20X12 MJ C153 TEE L/A","EA",null,1,{"v":0,"d":"$0.00"}]
[2502,"AMERICAN VALVE,CLOW/MCWANE,STAR, TYLER, US PIPE","20X10 MJ C153 TEE L/A","EA",null,1,{"v":0,"d":"$0.00"}]
[2503,"AMERICAN VALVE,CLOW/MCWANE,STAR, TYLER, US PIPE","20X8 MJ C153 TEE L/A","EA",null,1,{"v":0,"d":"$0.00"}]
[2504,"AMERICAN VALVE,CLOW/MCWANE,STAR, TYLER, US PIPE","20X6 MJ C153 TEE L/A","EA",null,1,{"v":0,"d":"$0.00"}]
[2505,"AMERICAN VALVE,CLOW/MCWANE,STAR, TYLER, US PIPE","24 MJ C153 TEE L/A","EA",null,1,{"v":0,"d":"$0.00"}]
[2506,"AMERICAN VALVE,CLOW/MCWANE,STAR, TYLER, US PIPE","24X20 MJ C153 TEE L/A","EA",null,1,{"v":0,"d":"$0.00"}]
[2507,"AMERICAN VALVE,CLOW/MCWANE,STAR, TYLER, US PIPE","24X18 MJ C153 TEE L/A","EA",null,1,{"v":0,"d":"$0.00"}]
[2508,"AMERICAN VALVE,CLOW/MCWANE,STAR, TYLER, US PIPE","24X16 MJ C153 TEE L/A","EA",null,1,{"v":0,"d":"$0.00"}]
[2509,"AMERICAN VALVE,CLOW/MCWANE,STAR, TYLER, US PIPE","24X14 MJ C153 TEE L/A","EA",null,1,{"v":0,"d":"$0.00"}]
[2510,"AMERICAN VALVE,CLOW/MCWANE,STAR, TYLER, US PIPE","24X12 MJ C153 TEE L/A","EA",null,1,{"v":0,"d":"$0.00"}]
[2511,"AMERICAN VALVE,CLOW/MCWANE,STAR, TYLER, US PIPE","24X10 MJ C153 TEE L/A","EA",null,1,{"v":0,"d":"$0.00"}]
[2512,"AMERICAN VALVE,CLOW/MCWANE,STAR, TYLER, US PIPE","24X8 MJ C153 TEE L/A","EA",null,1,{"v":0,"d":"$0.00"}]
[2513,"AMERICAN VALVE,CLOW/MCWANE,STAR, TYLER, US PIPE","24X6 MJ C153 TEE L/A","EA",null,1,{"v":0,"d":"$0.00"}]
[2514,"AMERICAN VALVE,CLOW/MCWANE,STAR, TYLER, US PIPE","6 MJ C153 SWVL TEE L/A","EA",null,1,{"v":0,"d":"$0.00"}]
[2515,"AMERICAN VALVE,CLOW/MCWANE,STAR, TYLER, US PIPE","8X6 MJ C153 SWVL TEE L/A","EA",null,1,{"v":0,"d":"$0.00"}]
[2516,"AMERICAN VALVE,CLOW/MCWANE,STAR, TYLER, US PIPE","10X6 MJ C153 SWVL TEE L/A","EA",null,1,{"v":0,"d":"$0.00"}]
[2517,"AMERICAN VALVE,CLOW/MCWANE,STAR, TYLER, US PIPE","10X8 MJ C153 SWVL TEE L/A","EA",null,1,{"v":0,"d":"$0.00"}]
[2518,"AMERICAN VALVE,CLOW/MCWANE,STAR, TYLER, US PIPE","12X6 MJ C153 SWVL TEE L/A","EA",null,1,{"v":0,"d":"$0.00"}]
[2519,"AMERICAN VALVE,CLOW/MCWANE,STAR, TYLER, US PIPE","12X8 MJ C153 SWVL TEE L/A","EA",null,1,{"v":0,"d":"$0.00"}]
[2520,"AMERICAN VALVE,CLOW/MCWANE,STAR, TYLER, US PIPE","3 DI 125# C110 FLG TEE","EA",null,1,{"v":0,"d":"$0.00"}]
[2521,"AMERICAN VALVE,CLOW/MCWANE,STAR, TYLER, US PIPE","4 DI 125# C110 FLG TEE","EA",null,1,{"v":0,"d":"$0.00"}]
[2522,"AMERICAN VALVE,CLOW/MCWANE,STAR, TYLER, US PIPE","4X3 DI 125# C110 FLG TEE","EA",null,1,{"v":0,"d":"$0.00"}]
[2523,"AMERICAN VALVE,CLOW/MCWANE,STAR, TYLER, US PIPE","6 DI 125# C110 FLG TEE","EA",null,1,{"v":0,"d":"$0.00"}]
[2524,"AMERICAN VALVE,CLOW/MCWANE,STAR, TYLER, US PIPE","6X4 DI 125# C110 FLG TEE","EA",null,1,{"v":0,"d":"$0.00"}]
[2525,"AMERICAN VALVE,CLOW/MCWANE,STAR, TYLER, US PIPE","6X3 DI 125# C110 FLG TEE","EA",null,1,{"v":0,"d":"$0.00"}]
[2526,"AMERICAN VALVE,CLOW/MCWANE,STAR, TYLER, US PIPE","8 DI 125# C110 FLG TEE","EA",null,1,{"v":0,"d":"$0.00"}]
[2527,"AMERICAN VALVE,CLOW/MCWANE,STAR, TYLER, US PIPE","8X6 DI 125# C110 FLG TEE","EA",null,1,{"v":0,"d":"$0.00"}]
[2528,"AMERICAN VALVE,CLOW/MCWANE,STAR, TYLER, US PIPE","8X4 DI 125# C110 FLG TEE","EA",null,1,{"v":0,"d":"$0.00"}]
[2529,"AMERICAN VALVE,CLOW/MCWANE,STAR, TYLER, US PIPE","8X3 DI 125# C110 FLG TEE","EA",null,1,{"v":0,"d":"$0.00"}]
[2530,"AMERICAN VALVE,CLOW/MCWANE,STAR, TYLER, US PIPE","10 DI 125# C110 FLG TEE","EA",null,1,{"v":0,"d":"$0.00"}]
[2531,"AMERICAN VALVE,CLOW/MCWANE,STAR, TYLER, US PIPE","10X8 DI 125# C110 FLG TEE","EA",null,1,{"v":0,"d":"$0.00"}]
[2532,"AMERICAN VALVE,CLOW/MCWANE,STAR, TYLER, US PIPE","10X6 DI 125# C110 FLG TEE","EA",null,1,{"v":0,"d":"$0.00"}]
[2533,"AMERICAN VALVE,CLOW/MCWANE,STAR, TYLER, US PIPE","10X4 DI 125# C110 FLG TEE","EA",null,1,{"v":0,"d":"$0.00"}]
[2534,"AMERICAN VALVE,CLOW/MCWANE,STAR, TYLER, US PIPE","12 DI 125# C110 FLG TEE","EA",null,1,{"v":0,"d":"$0.00"}]
[2535,"AMERICAN VALVE,CLOW/MCWANE,STAR, TYLER, US PIPE","12X10 DI 125# C110 FLG TEE","EA",null,1,{"v":0,"d":"$0.00"}]
[2536,"AMERICAN VALVE,CLOW/MCWANE,STAR, TYLER, US PIPE","12X8 DI 125# C110 FLG TEE","EA",null,1,{"v":0,"d":"$0.00"}]
[2537,"AMERICAN VALVE,CLOW/MCWANE,STAR, TYLER, US PIPE","12X6 DI 125# C110 FLG TEE","EA",null,1,{"v":0,"d":"$0.00"}]
[2538,"AMERICAN VALVE,CLOW/MCWANE,STAR, TYLER, US PIPE","12X4 DI 125# C110 FLG TEE","EA",null,1,{"v":0,"d":"$0.00"}]
[2539,"AMERICAN VALVE,CLOW/MCWANE,STAR, TYLER, US PIPE","16X8 DI 125# C110 FLG TEE","EA",null,1,{"v":0,"d":"$0.00"}]
[2540,"AMERICAN VALVE,CLOW/MCWANE,STAR, TYLER, US PIPE","8 MJ C153 SWVL TEE L/A","EA",null,1,{"v":0,"d":"$0.00"}]
[2541,"AMERICAN VALVE,CLOW/MCWANE,STAR, TYLER, US PIPE","3 MJ C153 WYE L/A","EA",null,1,{"v":0,"d":"$0.00"}]
[2542,"AMERICAN VALVE,CLOW/MCWANE,STAR, TYLER, US PIPE","4 MJ C153 WYE L/A","EA",null,1,{"v":0,"d":"$0.00"}]
[2543,"AMERICAN VALVE,CLOW/MCWANE,STAR, TYLER, US PIPE","4X3 MJ C153 WYE L/A","EA",null,null,{"v":0,"d":"$0.00"}]
[2544,"AMERICAN VALVE,CLOW/MCWANE,STAR, TYLER, US PIPE","6 MJ C153 WYE L/A","EA",null,1,{"v":0,"d":"$0.00"}]
[2545,"AMERICAN VALVE,CLOW/MCWANE,STAR, TYLER, US PIPE","6X4 MJ C153 WYE L/A","EA",null,1,{"v":0,"d":"$0.00"}]
[2546,"AMERICAN VALVE,CLOW/MCWANE,STAR, TYLER, US PIPE","8 MJ C153 WYE L/A","EA",null,1,{"v":0,"d":"$0.00"}]
[2547,"AMERICAN VALVE,CLOW/MCWANE,STAR, TYLER, US PIPE","8X6 MJ C153 WYE L/A","EA",null,1,{"v":0,"d":"$0.00"}]
[2548,"AMERICAN VALVE,CLOW/MCWANE,STAR, TYLER, US PIPE","8X4 MJ C153 WYE L/A","EA",null,1,{"v":0,"d":"$0.00"}]
[2549,"AMERICAN VALVE,CLOW/MCWANE,STAR, TYLER, US PIPE","10 MJ C153 WYE L/A","EA",null,1,{"v":0,"d":"$0.00"}]
[2550,"AMERICAN VALVE,CLOW/MCWANE,STAR, TYLER, US PIPE","10X8 MJ C153 WYE L/A","EA",null,1,{"v":0,"d":"$0.00"}]
[2551,"AMERICAN VALVE,CLOW/MCWANE,STAR, TYLER, US PIPE","10X6 MJ C153 WYE L/A","EA",null,1,{"v":0,"d":"$0.00"}]
[2552,"AMERICAN VALVE,CLOW/MCWANE,STAR, TYLER, US PIPE","10X4 MJ C153 WYE L/A","EA",null,1,{"v":0,"d":"$0.00"}]
[2553,"AMERICAN VALVE,CLOW/MCWANE,STAR, TYLER, US PIPE","12 MJ C153 WYE L/A","EA",null,1,{"v":0,"d":"$0.00"}]
[2554,"AMERICAN VALVE,CLOW/MCWANE,STAR, TYLER, US PIPE","12X10 MJ C153 WYE L/A","EA",null,1,{"v":0,"d":"$0.00"}]
[2555,"AMERICAN VALVE,CLOW/MCWANE,STAR, TYLER, US PIPE","12X8 MJ C153 WYE L/A","EA",null,1,{"v":0,"d":"$0.00"}]
[2556,"AMERICAN VALVE,CLOW/MCWANE,STAR, TYLER, US PIPE","12X6 MJ C153 WYE L/A","EA",null,1,{"v":0,"d":"$0.00"}]
[2557,"AMERICAN VALVE,CLOW/MCWANE,STAR, TYLER, US PIPE","12X4 MJ C153 WYE L/A","EA",null,1,{"v":0,"d":"$0.00"}]
[2558,"AMERICAN VALVE,CLOW/MCWANE,STAR, TYLER, US PIPE","14 MJ C153 WYE L/A","EA",null,1,{"v":0,"d":"$0.00"}]
[2559,"AMERICAN VALVE,CLOW/MCWANE,STAR, TYLER, US PIPE","16 MJ C153 WYE L/A","EA",null,1,{"v":0,"d":"$0.00"}]
[2560,"AMERICAN VALVE,CLOW/MCWANE,STAR, TYLER, US PIPE","8     MJ C153 P-401 WYE L/A","EA",null,1,{"v":0,"d":"$0.00"}]
[2561,"AMERICAN VALVE,CLOW/MCWANE,STAR, TYLER, US PIPE","3 DI 125# C110 FLG WYE","EA",null,1,{"v":0,"d":"$0.00"}]
[2562,"AMERICAN VALVE,CLOW/MCWANE,STAR, TYLER, US PIPE","8X4   MJ C153 P-401 WYE L/A","EA",null,1,{"$f":"SUM(E2549*F2549)","v":{"v":0,"d":"$0.00"}}]
[2563,"AMERICAN VALVE,CLOW/MCWANE,STAR, TYLER, US PIPE","6     MJ C153 P-401 WYE L/A","EA",null,1,{"v":0,"d":"$0.00"}]
[2564,"AMERICAN VALVE,CLOW/MCWANE,STAR, TYLER, US PIPE","24 MJ C153 GLAND","EA",null,1,{"v":0,"d":"$0.00"}]
[2565,"AMERICAN VALVE,CLOW/MCWANE,STAR, TYLER, US PIPE","24X8  MJ C153 P-401 TEE L/A","EA",null,1,{"v":0,"d":"$0.00"}]
[2566,"AMERICAN VALVE,CLOW/MCWANE,STAR, TYLER, US PIPE","24X12 MJ C153 P-401 TEE L/A","EA",null,1,{"v":0,"d":"$0.00"}]
[2567,"AMERICAN VALVE,CLOW/MCWANE,STAR, TYLER, US PIPE","16X6 MJ C153 SWVL TEE L/A","EA",null,1,{"v":0,"d":"$0.00"}]
[2568,"AMERICAN VALVE,CLOW/MCWANE,STAR, TYLER, US PIPE","18 MJ C153 P-401 22-1/2 BEND L/A","EA",null,1,{"v":0,"d":"$0.00"}]
[2569,"AMERICAN VALVE,CLOW/MCWANE,STAR, TYLER, US PIPE","18 MJ C153 P-401 LONG SLV L/A","EA",null,1,{"v":0,"d":"$0.00"}]
[2570,"AMERICAN VALVE,CLOW/MCWANE,STAR, TYLER, US PIPE","18X16 MJ C153 P-401 RED L/A","EA",null,1,{"v":0,"d":"$0.00"}]
[2571,"AMERICAN VALVE,CLOW/MCWANE,STAR, TYLER, US PIPE","24X18 MJ C153 P-401 RED L/A","EA",null,1,{"v":0,"d":"$0.00"}]
[2572,"AMERICAN VALVE,CLOW/MCWANE,STAR, TYLER, US PIPE","18 MJ C153 GLAND","EA",null,1,{"v":0,"d":"$0.00"}]
[2573,"AMERICAN VALVE,CLOW/MCWANE,STAR, TYLER, US PIPE","24X16 MJ C153 P-401 TEE L/A","EA",null,1,{"v":0,"d":"$0.00"}]
[2574,"AMERICAN VALVE,CLOW/MCWANE,STAR, TYLER, US PIPE","24X12 MJ C153 P-401 RED L/A","EA",null,1,{"v":0,"d":"$0.00"}]
[2575,"AMERICAN VALVE,CLOW/MCWANE,STAR, TYLER, US PIPE","24 X 12 SEMJ C153 RED L/A","EA",null,1,{"v":0,"d":"$0.00"}]
[2576,"AMERICAN VALVE,CLOW/MCWANE,STAR, TYLER, US PIPE","10X8 SEMJ C153 P401 RED L/A","EA",null,1,{"v":0,"d":"$0.00"}]
[2577,"AMERICAN VALVE,CLOW/MCWANE,STAR, TYLER, US PIPE","4 MJ C153 P-401 SLD PLUG","EA",null,1,{"v":0,"d":"$0.00"}]
[2578,"AMERICAN VALVE,CLOW/MCWANE,STAR, TYLER, US PIPE","8X2 MJ C153 P-401 TAP CAP L/A","EA",null,1,{"v":0,"d":"$0.00"}]
[2579,"AMERICAN VALVE,CLOW/MCWANE,STAR, TYLER, US PIPE","18 MJ C153 P-401 45 BEND L/A","EA",null,1,{"v":0,"d":"$0.00"}]
[2580,"AMERICAN VALVE,CLOW/MCWANE,STAR, TYLER, US PIPE","12 MJ C153 P-401 SLD CAP L/A","EA",null,1,{"v":0,"d":"$0.00"}]
[2581,"AMERICAN VALVE,CLOW/MCWANE,STAR, TYLER, US PIPE","8X3 DI C110 125# TAP BLND FLG","EA",null,1,{"v":0,"d":"$0.00"}]
[2582,"AMERICAN VALVE,CLOW/MCWANE,STAR, TYLER, US PIPE","14X12 MJ C153 RED L/A","EA",null,1,{"v":0,"d":"$0.00"}]
[2583,"AMERICAN VALVE,CLOW/MCWANE,STAR, TYLER, US PIPE","4 DI 125# C110 FLG LR 90 BEND","EA",null,1,{"v":0,"d":"$0.00"}]
[2584,"AMERICAN VALVE,CLOW/MCWANE,STAR, TYLER, US PIPE","4 MJ C153 P-401 SLD CAP L/A","EA",null,1,{"v":0,"d":"$0.00"}]
[2585,"AMERICAN VALVE,CLOW/MCWANE,STAR, TYLER, US PIPE","8 MJ C153 P-401 SLD CAP L/A","EA",null,1,{"v":0,"d":"$0.00"}]
[2586,"AMERICAN VALVE,CLOW/MCWANE,STAR, TYLER, US PIPE","6X4 DI 125 FLG P-401 90 BEND","EA",null,1,{"v":0,"d":"$0.00"}]
[2587,"SIGMA,EBBA,STAR,US PIPE","16 DI SPLIT BELL REST W/ WDG GLND","EA",null,1,{"v":0,"d":"$0.00"}]
[2588,"AMERICAN VALVE,CLOW/MCWANE,STAR, TYLER, US PIPE","24X10 MJ C153 P-401 TEE L/A","EA",null,1,{"v":0,"d":"$0.00"}]
[2589,"AMERICAN VALVE,CLOW/MCWANE,STAR, TYLER, US PIPE","24 MJ C153 P-401 SLD PLUG","EA",null,1,{"v":0,"d":"$0.00"}]
[2590,"AMERICAN VALVE,CLOW/MCWANE,STAR, TYLER, US PIPE","8X4 MJ C153 P-401 RED L/A","EA",null,1,{"v":0,"d":"$0.00"}]
[2591,"AMERICAN VALVE,CLOW/MCWANE,STAR, TYLER, US PIPE","36X18 MJ C110 TEE L/A","EA",null,1,{"v":0,"d":"$0.00"}]
[2592,"AMERICAN VALVE,CLOW/MCWANE,STAR, TYLER, US PIPE","18X12 DI 125 C110 FLG TEE","EA",null,1,{"v":0,"d":"$0.00"}]
[2593,"AMERICAN VALVE,CLOW/MCWANE,STAR, TYLER, US PIPE","18X12 DI 125 C110 FLG CONC RED","EA",null,1,{"v":0,"d":"$0.00"}]
[2594,"AMERICAN VALVE,CLOW/MCWANE,STAR, TYLER, US PIPE","18X6 DI 125 C110 FLG TEE","EA",null,1,{"v":0,"d":"$0.00"}]
[2595,"AMERICAN VALVE,CLOW/MCWANE,STAR, TYLER, US PIPE","6 MJ C153 P-401 SLD PLUG","EA",null,1,{"v":0,"d":"$0.00"}]
[2596,"AMERICAN VALVE,CLOW/MCWANE,STAR, TYLER, US PIPE","4X2 MJ C153 P-401 TAP PLUG","EA",null,1,{"v":0,"d":"$0.00"}]
[2597,"AMERICAN VALVE,CLOW/MCWANE,STAR, TYLER, US PIPE","16X10 DI 125 C110 FLG CONC RED","EA",null,1,{"v":0,"d":"$0.00"}]
[2598,"AMERICAN VALVE,CLOW/MCWANE,STAR, TYLER, US PIPE","8 MJ 22-1/2 C153 BEND EPOX L/A","EA",null,1,{"v":0,"d":"$0.00"}]
[2599,"AMERICAN VALVE,CLOW/MCWANE,STAR, TYLER, US PIPE","8 MJ 45 C153 BEND EPOX L/A","EA",null,1,{"v":0,"d":"$0.00"}]
[2600,"AMERICAN VALVE,CLOW/MCWANE,STAR, TYLER, US PIPE","12 MJ 90 C153 BEND EPOX","EA",null,1,{"v":0,"d":"$0.00"}]
[2601,"AMERICAN VALVE,CLOW/MCWANE,STAR, TYLER, US PIPE","8 MJ 90 C153 BEND EPOX","EA",null,1,{"v":0,"d":"$0.00"}]
[2602,"AMERICAN VALVE,CLOW/MCWANE,STAR, TYLER, US PIPE","10X8 MJ C153 RED EPOX","EA",null,1,{"v":0,"d":"$0.00"}]
[2603,"AMERICAN VALVE,CLOW/MCWANE,STAR, TYLER, US PIPE","12X10 MJ C153 RED EPOX","EA",null,1,{"v":0,"d":"$0.00"}]
[2604,"AMERICAN VALVE,CLOW/MCWANE,STAR, TYLER, US PIPE","10 MJ C153 CAP SLD EPOX","EA",null,1,{"v":0,"d":"$0.00"}]
[2605,"AMERICAN VALVE,CLOW/MCWANE,STAR, TYLER, US PIPE","8 MJ C153 CAP SLD EPOX L/A","EA",null,1,{"v":0,"d":"$0.00"}]
[2606,"AMERICAN VALVE,CLOW/MCWANE,STAR, TYLER, US PIPE","10X12 MJ C153 LONG SLV SLD EPOX","EA",null,1,{"v":0,"d":"$0.00"}]
[2607,"AMERICAN VALVE,CLOW/MCWANE,STAR, TYLER, US PIPE","6X12 MJ C153 LONG SLV SLD EPOX","EA",null,1,{"v":0,"d":"$0.00"}]
[2608,"AMERICAN VALVE,CLOW/MCWANE,STAR, TYLER, US PIPE","8X12 MJ C153 LONG SLV EPOX L/A","EA",null,1,{"v":0,"d":"$0.00"}]
[2609,"AMERICAN VALVE,CLOW/MCWANE,STAR, TYLER, US PIPE","10X2 MJ C153 CAP TAP EPOX","EA",null,1,{"v":0,"d":"$0.00"}]
[2610,"AMERICAN VALVE,CLOW/MCWANE,STAR, TYLER, US PIPE","8X2 MJ C153 CAP TAP EPOX","EA",null,1,{"v":0,"d":"$0.00"}]
[2611,"AMERICAN VALVE,CLOW/MCWANE,STAR, TYLER, US PIPE","12X10 MJ C153 EPOX TEE","EA",null,1,{"v":0,"d":"$0.00"}]
[2612,"AMERICAN VALVE,CLOW/MCWANE,STAR, TYLER, US PIPE","8 MJ C153 EPOX TEE L/A","EA",null,1,{"v":0,"d":"$0.00"}]
[2613,"AMERICAN VALVE,CLOW/MCWANE,STAR, TYLER, US PIPE","8X6 MJ C153 EPOX TEE","EA",null,1,{"v":0,"d":"$0.00"}]
[2614,"AMERICAN VALVE,CLOW/MCWANE,STAR, TYLER, US PIPE","14 MJ C153 P-401 LONG SLV L/A","EA",null,1,{"v":0,"d":"$0.00"}]
[2615,"AMERICAN VALVE,CLOW/MCWANE,STAR, TYLER, US PIPE","16X14 MJ C153 P-401 RED L/A","EA",null,1,{"v":0,"d":"$0.00"}]
[2616,"AMERICAN VALVE,CLOW/MCWANE,STAR, TYLER, US PIPE","8X6 MJ C153 P-401 WYE L/A","EA",null,1,{"v":0,"d":"$0.00"}]
[2617,"AMERICAN VALVE,CLOW/MCWANE,STAR, TYLER, US PIPE","16X2 MJ C153 P-401 TAPT PLUG","EA",null,1,{"v":0,"d":"$0.00"}]
[2618,"DIAMOND PLASTICS,ETI PIPE,FREEDOM PLASTIC,JM MANUFACTURING,NATIONAL PIPE,NORTH AMERICAN PIPE, CHARLOTTE, SILVER LINE","6 PVC S80 SXF ADPT","EA",null,1,{"v":0,"d":"$0.00"}]
[2619,"DIAMOND PLASTICS,ETI PIPE,FREEDOM PLASTIC,JM MANUFACTURING,NATIONAL PIPE,NORTH AMERICAN PIPE, CHARLOTTE, SILVER LINE","6 PVC S80 SXM ADPT","EA",null,1,{"v":0,"d":"$0.00"}]
[2620,"DIAMOND PLASTICS,ETI PIPE,FREEDOM PLASTIC,JM MANUFACTURING,NATIONAL PIPE,NORTH AMERICAN PIPE, CHARLOTTE, SILVER LINE","8 PVC S80 SXM ADPT","EA",null,1,{"v":0,"d":"$0.00"}]
[2621,"DIAMOND PLASTICS,ETI PIPE,FREEDOM PLASTIC,JM MANUFACTURING,NATIONAL PIPE,NORTH AMERICAN PIPE, CHARLOTTE, SILVER LINE","2-1/2X3/4 PVC S40 SPXSLIP BUSH","EA",null,1,{"v":0,"d":"$0.00"}]
[2622,"DIAMOND PLASTICS,ETI PIPE,FREEDOM PLASTIC,JM MANUFACTURING,NATIONAL PIPE,NORTH AMERICAN PIPE, CHARLOTTE, SILVER LINE","2-1/2X1/2 PVC S40 SPXSLIP BUSH","EA",null,1,{"v":0,"d":"$0.00"}]
[2623,"DIAMOND PLASTICS,ETI PIPE,FREEDOM PLASTIC,JM MANUFACTURING,NATIONAL PIPE,NORTH AMERICAN PIPE, CHARLOTTE, SILVER LINE","6X3 PVC S40 FTG X F BUSH","EA",null,1,{"v":0,"d":"$0.00"}]
[2624,"DIAMOND PLASTICS,ETI PIPE,FREEDOM PLASTIC,JM MANUFACTURING,NATIONAL PIPE,NORTH AMERICAN PIPE, CHARLOTTE, SILVER LINE","4X2-1/2 PVC S40 FTG X F BUSH","EA",null,1,{"v":0,"d":"$0.00"}]
[2625,"DIAMOND PLASTICS,ETI PIPE,FREEDOM PLASTIC,JM MANUFACTURING,NATIONAL PIPE,NORTH AMERICAN PIPE, CHARLOTTE, SILVER LINE","3X1-1/2 PVC S40 FTG X F BUSH","EA",null,1,{"v":0,"d":"$0.00"}]
[2626,"DIAMOND PLASTICS,ETI PIPE,FREEDOM PLASTIC,JM MANUFACTURING,NATIONAL PIPE,NORTH AMERICAN PIPE, CHARLOTTE, SILVER LINE","3X1-1/4 PVC S40 FTG X F BUSH","EA",null,1,{"$f":"SUM(E2613*F2613)","v":{"v":0,"d":"$0.00"}}]
[2627,"DIAMOND PLASTICS,ETI PIPE,FREEDOM PLASTIC,JM MANUFACTURING,NATIONAL PIPE,NORTH AMERICAN PIPE, CHARLOTTE, SILVER LINE","2-1/2X1-1/4 PVC S40 FTG X F BUSH","EA",null,1,{"v":0,"d":"$0.00"}]
[2628,"DIAMOND PLASTICS,ETI PIPE,FREEDOM PLASTIC,JM MANUFACTURING,NATIONAL PIPE,NORTH AMERICAN PIPE, CHARLOTTE, SILVER LINE","2-1/2X1 PVC S40 FTG X F BUSH","EA",null,1,{"v":0,"d":"$0.00"}]
[2629,"DIAMOND PLASTICS,ETI PIPE,FREEDOM PLASTIC,JM MANUFACTURING,NATIONAL PIPE,NORTH AMERICAN PIPE, CHARLOTTE, SILVER LINE","2-1/2X3/4 PVC S40 FTG X F BUSH","EA",null,1,{"v":0,"d":"$0.00"}]
[2630,"DIAMOND PLASTICS,ETI PIPE,FREEDOM PLASTIC,JM MANUFACTURING,NATIONAL PIPE,NORTH AMERICAN PIPE, CHARLOTTE, SILVER LINE","2-1/2X1/2 PVC S40 FTG X F BUSH","EA",null,1,{"v":0,"d":"$0.00"}]
[2631,"DIAMOND PLASTICS,ETI PIPE,FREEDOM PLASTIC,JM MANUFACTURING,NATIONAL PIPE,NORTH AMERICAN PIPE, CHARLOTTE, SILVER LINE","3X1-1/2 PVC S40 THRD BUSH","EA",null,1,{"v":0,"d":"$0.00"}]
[2632,"DIAMOND PLASTICS,ETI PIPE,FREEDOM PLASTIC,JM MANUFACTURING,NATIONAL PIPE,NORTH AMERICAN PIPE, CHARLOTTE, SILVER LINE","2-1/2X2 PVC S40 THRD BUSH","EA",null,1,{"v":0,"d":"$0.00"}]
[2633,"DIAMOND PLASTICS,ETI PIPE,FREEDOM PLASTIC,JM MANUFACTURING,NATIONAL PIPE,NORTH AMERICAN PIPE, CHARLOTTE, SILVER LINE","2X3/4 PVC S40 THRD BUSH","EA",null,1,{"v":0,"d":"$0.00"}]
[2634,"DIAMOND PLASTICS,ETI PIPE,FREEDOM PLASTIC,JM MANUFACTURING,NATIONAL PIPE,NORTH AMERICAN PIPE, CHARLOTTE, SILVER LINE","1-1/2X1/2 PVC S40 THRD BUSH","EA",null,1,{"v":0,"d":"$0.00"}]
[2635,"DIAMOND PLASTICS,ETI PIPE,FREEDOM PLASTIC,JM MANUFACTURING,NATIONAL PIPE,NORTH AMERICAN PIPE, CHARLOTTE, SILVER LINE","2-1/2X3/4 PVC S80 SXS BUSH","EA",null,1,{"v":0,"d":"$0.00"}]
[2636,"DIAMOND PLASTICS,ETI PIPE,FREEDOM PLASTIC,JM MANUFACTURING,NATIONAL PIPE,NORTH AMERICAN PIPE, CHARLOTTE, SILVER LINE","2-1/2X1/2 PVC S80 SXS BUSH","EA",null,1,{"v":0,"d":"$0.00"}]
[2637,"DIAMOND PLASTICS,ETI PIPE,FREEDOM PLASTIC,JM MANUFACTURING,NATIONAL PIPE,NORTH AMERICAN PIPE, CHARLOTTE, SILVER LINE","4X2-1/2 PVC S80 SXF BUSH","EA",null,1,{"v":0,"d":"$0.00"}]
[2638,"DIAMOND PLASTICS,ETI PIPE,FREEDOM PLASTIC,JM MANUFACTURING,NATIONAL PIPE,NORTH AMERICAN PIPE, CHARLOTTE, SILVER LINE","2-1/2X1-1/4 PVC S80 SXF BUSH","EA",null,1,{"v":0,"d":"$0.00"}]
[2639,"DIAMOND PLASTICS,ETI PIPE,FREEDOM PLASTIC,JM MANUFACTURING,NATIONAL PIPE,NORTH AMERICAN PIPE, CHARLOTTE, SILVER LINE","2-1/2X1 PVC S80 SXF BUSH","EA",null,1,{"v":0,"d":"$0.00"}]
[2640,"DIAMOND PLASTICS,ETI PIPE,FREEDOM PLASTIC,JM MANUFACTURING,NATIONAL PIPE,NORTH AMERICAN PIPE, CHARLOTTE, SILVER LINE","2-1/2X3/4 PVC SCH80 SXF BUSH","EA",null,1,{"v":0,"d":"$0.00"}]
[2641,"DIAMOND PLASTICS,ETI PIPE,FREEDOM PLASTIC,JM MANUFACTURING,NATIONAL PIPE,NORTH AMERICAN PIPE, CHARLOTTE, SILVER LINE","21/2X1/2 S80 PVC SPGXT BUS","EA",null,1,{"v":0,"d":"$0.00"}]
[2642,"DIAMOND PLASTICS,ETI PIPE,FREEDOM PLASTIC,JM MANUFACTURING,NATIONAL PIPE,NORTH AMERICAN PIPE, CHARLOTTE, SILVER LINE","1-1/4X1/2 PVC S80 SXF BUSH","EA",null,1,{"v":0,"d":"$0.00"}]
[2643,"DIAMOND PLASTICS,ETI PIPE,FREEDOM PLASTIC,JM MANUFACTURING,NATIONAL PIPE,NORTH AMERICAN PIPE, CHARLOTTE, SILVER LINE","4X3 PVC S80 THRD BUSH","EA",null,1,{"v":0,"d":"$0.00"}]
[2644,"DIAMOND PLASTICS,ETI PIPE,FREEDOM PLASTIC,JM MANUFACTURING,NATIONAL PIPE,NORTH AMERICAN PIPE, CHARLOTTE, SILVER LINE","1-1/2X1/2 PVC S80 THRD BUSH","EA",null,1,{"v":0,"d":"$0.00"}]
[2645,"DIAMOND PLASTICS,ETI PIPE,FREEDOM PLASTIC,JM MANUFACTURING,NATIONAL PIPE,NORTH AMERICAN PIPE, CHARLOTTE, SILVER LINE","1-1/4X1/2 PVC S80 THRD BUSH","EA",null,1,{"v":0,"d":"$0.00"}]
[2646,"DIAMOND PLASTICS,ETI PIPE,FREEDOM PLASTIC,JM MANUFACTURING,NATIONAL PIPE,NORTH AMERICAN PIPE, CHARLOTTE, SILVER LINE","1X1/4 PVC S80 THRD BUSH","EA",null,1,{"v":0,"d":"$0.00"}]
[2647,"DIAMOND PLASTICS,ETI PIPE,FREEDOM PLASTIC,JM MANUFACTURING,NATIONAL PIPE,NORTH AMERICAN PIPE, CHARLOTTE, SILVER LINE","3X2-1/2 S40 PVC SXS COUP","EA",null,1,{"v":0,"d":"$0.00"}]
[2648,"DIAMOND PLASTICS,ETI PIPE,FREEDOM PLASTIC,JM MANUFACTURING,NATIONAL PIPE,NORTH AMERICAN PIPE, CHARLOTTE, SILVER LINE","6 PVC S80 THRD COUP","EA",null,1,{"v":0,"d":"$0.00"}]
[2649,"DIAMOND PLASTICS,ETI PIPE,FREEDOM PLASTIC,JM MANUFACTURING,NATIONAL PIPE,NORTH AMERICAN PIPE, CHARLOTTE, SILVER LINE","2-1/2 PVC S40 SXF 90 ELL","EA",null,1,{"v":0,"d":"$0.00"}]
[2650,"DIAMOND PLASTICS,ETI PIPE,FREEDOM PLASTIC,JM MANUFACTURING,NATIONAL PIPE,NORTH AMERICAN PIPE, CHARLOTTE, SILVER LINE","3 PVC S40 SXF 90 ELL","EA",null,10,{"v":0,"d":"$0.00"}]
[2651,"DIAMOND PLASTICS,ETI PIPE,FREEDOM PLASTIC,JM MANUFACTURING,NATIONAL PIPE,NORTH AMERICAN PIPE, CHARLOTTE, SILVER LINE","4 PVC S40 SXF 90 ELL","EA",null,10,{"v":0,"d":"$0.00"}]
[2652,"DIAMOND PLASTICS,ETI PIPE,FREEDOM PLASTIC,JM MANUFACTURING,NATIONAL PIPE,NORTH AMERICAN PIPE, CHARLOTTE, SILVER LINE","2 PVC S80 VAN STONE THRD FLG","EA",null,1,{"v":0,"d":"$0.00"}]
[2653,"DIAMOND PLASTICS,ETI PIPE,FREEDOM PLASTIC,JM MANUFACTURING,NATIONAL PIPE,NORTH AMERICAN PIPE, CHARLOTTE, SILVER LINE","6 PVC S80 SPGT VAN STONE FLG","EA",null,1,{"v":0,"d":"$0.00"}]
[2654,"DIAMOND PLASTICS,ETI PIPE,FREEDOM PLASTIC,JM MANUFACTURING,NATIONAL PIPE,NORTH AMERICAN PIPE, CHARLOTTE, SILVER LINE","10 PVC S80 SPGT VAN STONE FLG","EA",null,1,{"v":0,"d":"$0.00"}]
[2655,"DIAMOND PLASTICS,ETI PIPE,FREEDOM PLASTIC,JM MANUFACTURING,NATIONAL PIPE,NORTH AMERICAN PIPE, CHARLOTTE, SILVER LINE","1/2 PVC S80 BLIND FLG","EA",null,1,{"v":0,"d":"$0.00"}]
[2656,"DIAMOND PLASTICS,ETI PIPE,FREEDOM PLASTIC,JM MANUFACTURING,NATIONAL PIPE,NORTH AMERICAN PIPE, CHARLOTTE, SILVER LINE","3/4 PVC S80 BLIND FLG","EA",null,1,{"v":0,"d":"$0.00"}]
[2657,"DIAMOND PLASTICS,ETI PIPE,FREEDOM PLASTIC,JM MANUFACTURING,NATIONAL PIPE,NORTH AMERICAN PIPE, CHARLOTTE, SILVER LINE","1-1/4 PVC S80 BLIND FLG","EA",null,1,{"v":0,"d":"$0.00"}]
[2658,"DIAMOND PLASTICS,ETI PIPE,FREEDOM PLASTIC,JM MANUFACTURING,NATIONAL PIPE,NORTH AMERICAN PIPE, CHARLOTTE, SILVER LINE","1-1/2 PVC S80 BLIND FLG","EA",null,1,{"v":0,"d":"$0.00"}]
[2659,"DIAMOND PLASTICS,ETI PIPE,FREEDOM PLASTIC,JM MANUFACTURING,NATIONAL PIPE,NORTH AMERICAN PIPE, CHARLOTTE, SILVER LINE","2-1/2 PVC S80 BLIND FLG","EA",null,1,{"v":0,"d":"$0.00"}]
[2660,"DIAMOND PLASTICS,ETI PIPE,FREEDOM PLASTIC,JM MANUFACTURING,NATIONAL PIPE,NORTH AMERICAN PIPE, CHARLOTTE, SILVER LINE","10 BLIND PVC S80 COMP FLG","EA",null,1,{"v":0,"d":"$0.00"}]
[2661,"DIAMOND PLASTICS,ETI PIPE,FREEDOM PLASTIC,JM MANUFACTURING,NATIONAL PIPE,NORTH AMERICAN PIPE, CHARLOTTE, SILVER LINE","12 PVC S80 BLIND FLG","EA",null,1,{"v":0,"d":"$0.00"}]
[2662,"DIAMOND PLASTICS,ETI PIPE,FREEDOM PLASTIC,JM MANUFACTURING,NATIONAL PIPE,NORTH AMERICAN PIPE, CHARLOTTE, SILVER LINE","1/2 PVC S80 SXS CRS","EA",null,1,{"v":0,"d":"$0.00"}]
[2663,"DIAMOND PLASTICS,ETI PIPE,FREEDOM PLASTIC,JM MANUFACTURING,NATIONAL PIPE,NORTH AMERICAN PIPE, CHARLOTTE, SILVER LINE","3/4 PVC S80 SXS CRS","EA",null,1,{"v":0,"d":"$0.00"}]
[2664,"DIAMOND PLASTICS,ETI PIPE,FREEDOM PLASTIC,JM MANUFACTURING,NATIONAL PIPE,NORTH AMERICAN PIPE, CHARLOTTE, SILVER LINE","1-1/4 PVC S80 SXS CRS","EA",null,1,{"v":0,"d":"$0.00"}]
[2665,"DIAMOND PLASTICS,ETI PIPE,FREEDOM PLASTIC,JM MANUFACTURING,NATIONAL PIPE,NORTH AMERICAN PIPE, CHARLOTTE, SILVER LINE","1/4 PVC S80 SXS 90 ELL","EA",null,1,{"v":0,"d":"$0.00"}]
[2666,"DIAMOND PLASTICS,ETI PIPE,FREEDOM PLASTIC,JM MANUFACTURING,NATIONAL PIPE,NORTH AMERICAN PIPE, CHARLOTTE, SILVER LINE","1/4X2 PVC S80 NIP","EA",null,1,{"v":0,"d":"$0.00"}]
[2667,"DIAMOND PLASTICS,ETI PIPE,FREEDOM PLASTIC,JM MANUFACTURING,NATIONAL PIPE,NORTH AMERICAN PIPE, CHARLOTTE, SILVER LINE","1/4X3 PVC S80 NIP","EA",null,1,{"v":0,"d":"$0.00"}]
[2668,"DIAMOND PLASTICS,ETI PIPE,FREEDOM PLASTIC,JM MANUFACTURING,NATIONAL PIPE,NORTH AMERICAN PIPE, CHARLOTTE, SILVER LINE","1/4X6 PVC S80 NIP","EA",null,1,{"v":0,"d":"$0.00"}]
[2669,"DIAMOND PLASTICS,ETI PIPE,FREEDOM PLASTIC,JM MANUFACTURING,NATIONAL PIPE,NORTH AMERICAN PIPE, CHARLOTTE, SILVER LINE","1-1/2 PVC S80 SXSXF TEE","EA",null,1,{"v":0,"d":"$0.00"}]
[2670,"DIAMOND PLASTICS,ETI PIPE,FREEDOM PLASTIC,JM MANUFACTURING,NATIONAL PIPE,NORTH AMERICAN PIPE, CHARLOTTE, SILVER LINE","2-1/2X4 PVC S80 NIP","EA",null,1,{"v":0,"d":"$0.00"}]
[2671,"DIAMOND PLASTICS,ETI PIPE,FREEDOM PLASTIC,JM MANUFACTURING,NATIONAL PIPE,NORTH AMERICAN PIPE, CHARLOTTE, SILVER LINE","3/4 PVC SOC COMP BV EPDM","EA",null,1,{"v":0,"d":"$0.00"}]
[2672,"DIAMOND PLASTICS,ETI PIPE,FREEDOM PLASTIC,JM MANUFACTURING,NATIONAL PIPE,NORTH AMERICAN PIPE, CHARLOTTE, SILVER LINE","1 PVC COMP BV SOC EPDM","EA",null,1,{"v":0,"d":"$0.00"}]
[2673,"DIAMOND PLASTICS,ETI PIPE,FREEDOM PLASTIC,JM MANUFACTURING,NATIONAL PIPE,NORTH AMERICAN PIPE, CHARLOTTE, SILVER LINE","1-1/4 PVC COMP BV SOC EPDM","EA",null,1,{"v":0,"d":"$0.00"}]
[2674,"DIAMOND PLASTICS,ETI PIPE,FREEDOM PLASTIC,JM MANUFACTURING,NATIONAL PIPE,NORTH AMERICAN PIPE, CHARLOTTE, SILVER LINE","1-1/2 PVC COMP BV SOC EPDM","EA",null,1,{"v":0,"d":"$0.00"}]
[2675,"DIAMOND PLASTICS,ETI PIPE,FREEDOM PLASTIC,JM MANUFACTURING,NATIONAL PIPE,NORTH AMERICAN PIPE, CHARLOTTE, SILVER LINE","1/2 PVC EPDM SXS 2000 UNION","EA",null,1,{"v":0,"d":"$0.00"}]
[2676,"DIAMOND PLASTICS,ETI PIPE,FREEDOM PLASTIC,JM MANUFACTURING,NATIONAL PIPE,NORTH AMERICAN PIPE, CHARLOTTE, SILVER LINE","3/4 PVC S80 VITON SXS UNION","EA",null,1,{"v":0,"d":"$0.00"}]
[2677,"DIAMOND PLASTICS,ETI PIPE,FREEDOM PLASTIC,JM MANUFACTURING,NATIONAL PIPE,NORTH AMERICAN PIPE, CHARLOTTE, SILVER LINE","1 PVC EPDM SXS 2000 UNION","EA",null,1,{"v":0,"d":"$0.00"}]
[2678,"DIAMOND PLASTICS,ETI PIPE,FREEDOM PLASTIC,JM MANUFACTURING,NATIONAL PIPE,NORTH AMERICAN PIPE, CHARLOTTE, SILVER LINE","1-1/4 PVC EPDM SXS 2000 UNION","EA",null,1,{"v":0,"d":"$0.00"}]
[2679,"DIAMOND PLASTICS,ETI PIPE,FREEDOM PLASTIC,JM MANUFACTURING,NATIONAL PIPE,NORTH AMERICAN PIPE, CHARLOTTE, SILVER LINE","1-1/4 PVC S80 SOC 90 ELL","EA",null,1,{"v":0,"d":"$0.00"}]
[2680,"DIAMOND PLASTICS,ETI PIPE,FREEDOM PLASTIC,JM MANUFACTURING,NATIONAL PIPE,NORTH AMERICAN PIPE, CHARLOTTE, SILVER LINE","1-1/2 PVC S80 SOC 90 ELL","EA",null,10,{"v":0,"d":"$0.00"}]
[2681,"DIAMOND PLASTICS,ETI PIPE,FREEDOM PLASTIC,JM MANUFACTURING,NATIONAL PIPE,NORTH AMERICAN PIPE, CHARLOTTE, SILVER LINE","1-1/2 PVC EPDM SXS 2000 UNION","EA",null,1,{"v":0,"d":"$0.00"}]
[2682,"DIAMOND PLASTICS,ETI PIPE,FREEDOM PLASTIC,JM MANUFACTURING,NATIONAL PIPE,NORTH AMERICAN PIPE, CHARLOTTE, SILVER LINE","2 PVC EPDM SXS 2000 UNION","EA",null,1,{"v":0,"d":"$0.00"}]
[2683,"DIAMOND PLASTICS,ETI PIPE,FREEDOM PLASTIC,JM MANUFACTURING,NATIONAL PIPE,NORTH AMERICAN PIPE, CHARLOTTE, SILVER LINE","1-1/2 PVC T/U BALL CHK VLV VITON","EA",null,1,{"v":0,"d":"$0.00"}]
[2684,"DIAMOND PLASTICS,ETI PIPE,FREEDOM PLASTIC,JM MANUFACTURING,NATIONAL PIPE,NORTH AMERICAN PIPE, CHARLOTTE, SILVER LINE","1-1/2 PVC T/U BV VITON","EA",null,1,{"v":0,"d":"$0.00"}]
[2685,"DIAMOND PLASTICS,ETI PIPE,FREEDOM PLASTIC,JM MANUFACTURING,NATIONAL PIPE,NORTH AMERICAN PIPE, CHARLOTTE, SILVER LINE","2 PVC T/U BV VITON","EA",null,1,{"v":0,"d":"$0.00"}]
[2686,"DIAMOND PLASTICS,ETI PIPE,FREEDOM PLASTIC,JM MANUFACTURING,NATIONAL PIPE,NORTH AMERICAN PIPE, CHARLOTTE, SILVER LINE","2 PVC UNI BALL CHK VLV VITON","EA",null,1,{"v":0,"d":"$0.00"}]
[2687,"DIAMOND PLASTICS,ETI PIPE,FREEDOM PLASTIC,JM MANUFACTURING,NATIONAL PIPE,NORTH AMERICAN PIPE, CHARLOTTE, SILVER LINE","3/4 S80 PVC SPGT PLUG","EA",null,1,{"v":0,"d":"$0.00"}]
[2688,"DIAMOND PLASTICS,ETI PIPE,FREEDOM PLASTIC,JM MANUFACTURING,NATIONAL PIPE,NORTH AMERICAN PIPE, CHARLOTTE, SILVER LINE","1 PVC S80 SPGT PLUG","EA",null,1,{"v":0,"d":"$0.00"}]
[2689,"DIAMOND PLASTICS,ETI PIPE,FREEDOM PLASTIC,JM MANUFACTURING,NATIONAL PIPE,NORTH AMERICAN PIPE, CHARLOTTE, SILVER LINE","1-1/2 PVC S80 SPGT PLUG","EA",null,1,{"v":0,"d":"$0.00"}]
[2690,"DIAMOND PLASTICS,ETI PIPE,FREEDOM PLASTIC,JM MANUFACTURING,NATIONAL PIPE,NORTH AMERICAN PIPE, CHARLOTTE, SILVER LINE","2 S80 PVC SPGT PLUG","EA",null,1,{"$f":"SUM(E2677*F2677)","v":{"v":0,"d":"$0.00"}}]
[2691,"DIAMOND PLASTICS,ETI PIPE,FREEDOM PLASTIC,JM MANUFACTURING,NATIONAL PIPE,NORTH AMERICAN PIPE, CHARLOTTE, SILVER LINE","3 PVC S40 SXS 22-1/2 ELL","EA",null,5,{"v":0,"d":"$0.00"}]
[2692,"DIAMOND PLASTICS,ETI PIPE,FREEDOM PLASTIC,JM MANUFACTURING,NATIONAL PIPE,NORTH AMERICAN PIPE, CHARLOTTE, SILVER LINE","4 PVC S40 SXS 22-1/2 ELL","EA",null,5,{"v":0,"d":"$0.00"}]
[2693,"DIAMOND PLASTICS,ETI PIPE,FREEDOM PLASTIC,JM MANUFACTURING,NATIONAL PIPE,NORTH AMERICAN PIPE, CHARLOTTE, SILVER LINE","6 PVC S40 SXS 22-1/2 ELL ","EA",null,5,{"v":0,"d":"$0.00"}]
[2694,"DIAMOND PLASTICS,ETI PIPE,FREEDOM PLASTIC,JM MANUFACTURING,NATIONAL PIPE,NORTH AMERICAN PIPE, CHARLOTTE, SILVER LINE","1-1/2 PVC INS X MALE ADPT","EA",null,1,{"v":0,"d":"$0.00"}]
[2695,"DIAMOND PLASTICS,ETI PIPE,FREEDOM PLASTIC,JM MANUFACTURING,NATIONAL PIPE,NORTH AMERICAN PIPE, CHARLOTTE, SILVER LINE","3 PVC S40 ST 90","EA",null,5,{"v":0,"d":"$0.00"}]
[2696,"DIAMOND PLASTICS,ETI PIPE,FREEDOM PLASTIC,JM MANUFACTURING,NATIONAL PIPE,NORTH AMERICAN PIPE, CHARLOTTE, SILVER LINE","3/4 MIPT X INS MALE ADPT PVC","EA",null,5,{"v":0,"d":"$0.00"}]
[2697,"DIAMOND PLASTICS,ETI PIPE,FREEDOM PLASTIC,JM MANUFACTURING,NATIONAL PIPE,NORTH AMERICAN PIPE, CHARLOTTE, SILVER LINE","1 PLAS INS X MALE ADP","EA",null,5,{"v":0,"d":"$0.00"}]
[2698,"DIAMOND PLASTICS,ETI PIPE,FREEDOM PLASTIC,JM MANUFACTURING,NATIONAL PIPE,NORTH AMERICAN PIPE, CHARLOTTE, SILVER LINE","2 PVC S80 SXSXF TEE","EA",null,5,{"v":0,"d":"$0.00"}]
[2699,"SIGMA,EBBA,STAR,US PIPE","3 4000 SER PVC STARGRIP REST","EA",null,2,{"v":0,"d":"$0.00"}]
[2700,"SIGMA,EBBA,STAR,US PIPE","4 4000 SER PVC STARGRIP REST L/A","EA",null,2,{"v":0,"d":"$0.00"}]
[2701,"SIGMA,EBBA,STAR,US PIPE","6 4000 SER PVC STARGRIP REST L/A","EA",null,2,{"v":0,"d":"$0.00"}]
[2702,"SIGMA,EBBA,STAR,US PIPE","8 4000 SER PVC STARGRIP REST L/A","EA",null,2,{"v":0,"d":"$0.00"}]
[2703,"SIGMA,EBBA,STAR,US PIPE","10 4000 SER PVC STARGRIP REST","EA",null,2,{"v":0,"d":"$0.00"}]
[2704,"SIGMA,EBBA,STAR,US PIPE","12 4000 SER PVC STARGRIP REST L/A","EA",null,2,{"v":0,"d":"$0.00"}]
[2705,"SIGMA,EBBA,STAR,US PIPE","14 4000 PVC STARGRIP","EA",null,2,{"v":0,"d":"$0.00"}]
[2706,"SIGMA,EBBA,STAR,US PIPE","16 4000 SER PVC STARGRIP REST L/A","EA",null,2,{"v":0,"d":"$0.00"}]
[2707,"SIGMA,EBBA,STAR,US PIPE","18 4000 PVC STARGRIP","EA",null,2,{"v":0,"d":"$0.00"}]
[2708,"SIGMA,EBBA,STAR,US PIPE","20 4000 PVC STARGRIP","EA",null,2,{"v":0,"d":"$0.00"}]
[2709,"SIGMA,EBBA,STAR,US PIPE","24 4000 PVC STARGRIP","EA",null,2,{"v":0,"d":"$0.00"}]
[2710,"SIGMA,EBBA,STAR,US PIPE","3 3000 SER DI MJ STARGRIP REST","EA",null,2,{"v":0,"d":"$0.00"}]
[2711,"SIGMA,EBBA,STAR,US PIPE","4 3000 SER DI MJ STARGRIP REST","EA",null,2,{"v":0,"d":"$0.00"}]
[2712,"SIGMA,EBBA,STAR,US PIPE","6 3000 SER DI MJ STARGRIP REST","EA",null,2,{"v":0,"d":"$0.00"}]
[2713,"SIGMA,EBBA,STAR,US PIPE","8 3000 SER DI MJ STARGRIP REST","EA",null,2,{"v":0,"d":"$0.00"}]
[2714,"SIGMA,EBBA,STAR,US PIPE","10 3000 SER DI MJ STARGRIP REST","EA",null,2,{"v":0,"d":"$0.00"}]
[2715,"SIGMA,EBBA,STAR,US PIPE","12 3000 SER DI MJ STARGRIP REST","EA",null,2,{"v":0,"d":"$0.00"}]
[2716,"SIGMA,EBBA,STAR,US PIPE","14 DI MJ REST 3000 SER","EA",null,2,{"v":0,"d":"$0.00"}]
[2717,"SIGMA,EBBA,STAR,US PIPE","16 DI MJ REST 3000 SER","EA",null,2,{"v":0,"d":"$0.00"}]
[2718,"SIGMA,EBBA,STAR,US PIPE","18 DI MJ REST 3000 SER","EA",null,2,{"v":0,"d":"$0.00"}]
[2719,"SIGMA,EBBA,STAR,US PIPE","20 DI MJ REST 3000 SER","EA",null,2,{"v":0,"d":"$0.00"}]
[2720,"SIGMA,EBBA,STAR,US PIPE","24 DI MJ REST 3000 SER","EA",null,2,{"v":0,"d":"$0.00"}]
[2721,"SIGMA,EBBA,STAR,US PIPE","3 DI REST SER 3000 ACC SET","EA",null,2,{"v":0,"d":"$0.00"}]
[2722,"SIGMA,EBBA,STAR,US PIPE","4 DI REST SER 3000 W/A ","EA",null,2,{"v":0,"d":"$0.00"}]
[2723,"SIGMA,EBBA,STAR,US PIPE","6 DI REST SER 3000 W/A ","EA",null,2,{"v":0,"d":"$0.00"}]
[2724,"SIGMA,EBBA,STAR,US PIPE","8 DI REST SER 3000 W/A ","EA",null,2,{"v":0,"d":"$0.00"}]
[2725,"SIGMA,EBBA,STAR,US PIPE","10 DI REST SER 3000 W/A ","EA",null,2,{"v":0,"d":"$0.00"}]
[2726,"SIGMA,EBBA,STAR,US PIPE","12 DI REST SER 3000 W/A ","EA",null,2,{"v":0,"d":"$0.00"}]
[2727,"SIGMA,EBBA,STAR,US PIPE","14 DI REST SER 3000 ACC SET","EA",null,2,{"v":0,"d":"$0.00"}]
[2728,"SIGMA,EBBA,STAR,US PIPE","16 DI REST SER 3000 ACC SET","EA",null,2,{"v":0,"d":"$0.00"}]
[2729,"SIGMA,EBBA,STAR,US PIPE","18 DI REST SER 3000 ACC SET","EA",null,2,{"v":0,"d":"$0.00"}]
[2730,"SIGMA,EBBA,STAR,US PIPE","20 DI REST SER 3000 ACC SET","EA",null,2,{"v":0,"d":"$0.00"}]
[2731,"SIGMA,EBBA,STAR,US PIPE","24 DI REST SER 3000 ACC SET","EA",null,2,{"v":0,"d":"$0.00"}]
[2732,"SIGMA,EBBA,STAR,US PIPE","4 PVC PIPE REST 1100C SER","EA",null,2,{"v":0,"d":"$0.00"}]
[2733,"SIGMA,EBBA,STAR,US PIPE","6 PVC PIPE REST 1100C SER","EA",null,2,{"v":0,"d":"$0.00"}]
[2734,"SIGMA,EBBA,STAR,US PIPE","8 PVC PIPE REST 1100C SER","EA",null,2,{"v":0,"d":"$0.00"}]
[2735,"SIGMA,EBBA,STAR,US PIPE","10 PVC PIPE REST 1100C SER","EA",null,2,{"v":0,"d":"$0.00"}]
[2736,"SIGMA,EBBA,STAR,US PIPE","12 PVC PIPE REST 1100C SER","EA",null,2,{"v":0,"d":"$0.00"}]
[2737,"SIGMA,EBBA,STAR,US PIPE","16 PVC PIPE REST 1100C SER","EA",null,2,{"v":0,"d":"$0.00"}]
[2738,"SIGMA,EBBA,STAR,US PIPE","18 PVC PIPE REST 1100C SER","EA",null,2,{"v":0,"d":"$0.00"}]
[2739,"SIGMA,EBBA,STAR,US PIPE","20 PVC PIPE REST 1100C SER","EA",null,2,{"v":0,"d":"$0.00"}]
[2740,"SIGMA,EBBA,STAR,US PIPE","24 PVC PIPE REST 1100C SER","EA",null,2,{"v":0,"d":"$0.00"}]
[2741,"SIGMA,EBBA,STAR,US PIPE","4 PVC STARGRIP SER 4000 W/A ","EA",null,2,{"v":0,"d":"$0.00"}]
[2742,"SIGMA,EBBA,STAR,US PIPE","6 PVC STARGRIP SER 4000 W/A ","EA",null,2,{"v":0,"d":"$0.00"}]
[2743,"SIGMA,EBBA,STAR,US PIPE","8 PVC STARGRIP SER 4000 W/A ","EA",null,2,{"v":0,"d":"$0.00"}]
[2744,"SIGMA,EBBA,STAR,US PIPE","10 PVC STARGRIP SER 4000 W/A ","EA",null,2,{"v":0,"d":"$0.00"}]
[2745,"SIGMA,EBBA,STAR,US PIPE","12 PVC STARGRIP SER 4000 W/A ","EA",null,2,{"v":0,"d":"$0.00"}]
[2746,"SIGMA,EBBA,STAR,US PIPE","14 PVC STARGRIP SER 4000 ACC SET","EA",null,2,{"v":0,"d":"$0.00"}]
[2747,"SIGMA,EBBA,STAR,US PIPE","16 PVC STARGRIP SER 4000 ACC SET","EA",null,2,{"v":0,"d":"$0.00"}]
[2748,"SIGMA,EBBA,STAR,US PIPE","18 PVC STARGRIP SER 4000 ACC SET","EA",null,2,{"v":0,"d":"$0.00"}]
[2749,"SIGMA,EBBA,STAR,US PIPE","20 PVC STARGRIP SER 4000 ACC SET","EA",null,2,{"v":0,"d":"$0.00"}]
[2750,"SIGMA,EBBA,STAR,US PIPE","24 PVC STARGRIP SER 4000 ACC SET","EA",null,2,{"v":0,"d":"$0.00"}]
[2751,"WATTS","3/4 RK009M3RT REP KIT","EA",null,1,{"v":0,"d":"$0.00"}]
[2752,"WATTS","3/4 RK009M3 CK1 REP KIT","EA",null,1,{"v":0,"d":"$0.00"}]
[2753,"WATTS","3/4 RK009M3 CK2 REP KIT","EA",null,1,{"v":0,"d":"$0.00"}]
[2754,"WATTS","3/4 REP KIT F/ 009M3 REL VLV ","EA",null,1,{"$f":"SUM(E2741*F2741)","v":{"v":0,"d":"$0.00"}}]
[2755,"WATTS","1 RK 009M2 RT TOTAL RUB PART KIT","EA",null,1,{"v":0,"d":"$0.00"}]
[2756,"WATTS","1 RK009M2 CK1 REP KIT","EA",null,1,{"v":0,"d":"$0.00"}]
[2757,"WATTS","1 RK009M2 CK2 REP KIT","EA",null,1,{"v":0,"d":"$0.00"}]
[2758,"WATTS","1 RK009M2RV REP KIT","EA",null,1,{"v":0,"d":"$0.00"}]
[2759,"WATTS","1-1/4 - 2 RK009M1 RT REP KIT","EA",null,1,{"v":0,"d":"$0.00"}]
[2760,"WATTS","1-1/4 - 2 RK009M1 CK1 REP KIT","EA",null,1,{"v":0,"d":"$0.00"}]
[2761,"WATTS","1-1/4 - 2 RK009M1 CK2 REP KIT","EA",null,1,{"v":0,"d":"$0.00"}]
[2762,"WATTS","1-1/4 - 2 RK009M1 RV REP KIT","EA",null,1,{"v":0,"d":"$0.00"}]
[2763,"WATTS","2 RK009M2 RT REP KIT","EA",null,1,{"v":0,"d":"$0.00"}]
[2764,"WATTS","2 009M2 CK1 REP KIT","EA",null,1,{"v":0,"d":"$0.00"}]
[2765,"WATTS","2 009M2 CK2 REP KIT","EA",null,1,{"v":0,"d":"$0.00"}]
[2766,"WATTS","2 RK 009M2 RV","EA",null,1,{"v":0,"d":"$0.00"}]
[2767,"WATTS","RK957/957RPDA CK1-RS 6","EA",null,1,{"v":0,"d":"$0.00"}]
[2768,"WATTS","2-1/2 - 10 REL VLV RUB PARTS KIT","EA",null,1,{"v":0,"d":"$0.00"}]
[2769,"WATTS","LF 3/4 BRZ IPS RPZ BFP W/ BV","EA",null,1,{"v":0,"d":"$0.00"}]
[2770,"WATTS","LF 1 BRZ IPS RPZ BFP W/ BV","EA",null,1,{"v":0,"d":"$0.00"}]
[2771,"WATTS","LF 1-1/2 BRZ IPS RPZ BFP W/ BV","EA",null,1,{"v":0,"d":"$0.00"}]
[2772,"WATTS","LF 2 BRZ IPS RPZ BFP W/ BV","EA",null,1,{"v":0,"d":"$0.00"}]
[2773,"WATTS","2-1/2 RPZ 957 ASSYOS&Y","EA",null,1,{"v":0,"d":"$0.00"}]
[2774,"WATTS","3 RPZ 957 ASSYOS&Y","EA",null,1,{"v":0,"d":"$0.00"}]
[2775,"WATTS","4 RPZ 957 ASSY OS&Y","EA",null,1,{"v":0,"d":"$0.00"}]
[2776,"WATTS","6 RPZ 957 ASSYOS&Y","EA",null,1,{"v":0,"d":"$0.00"}]
[2777,"WATTS","8 RPZ 957 ASSYOS&Y","EA",null,1,{"v":0,"d":"$0.00"}]
[2778,"WATTS","10 RPZ 957 ASSYOS&Y","EA",null,1,{"v":0,"d":"$0.00"}]
[2779,"WATTS","2-1/2 - 3 RK709 RT REP KIT LFNP","EA",null,1,{"v":0,"d":"$0.00"}]
[2780,"WILKINS","2-1/2 DCDA W/ OS&Y","EA",null,1,{"v":0,"d":"$0.00"}]
[2781,"WILKINS","3 OS&Y DBL DET CHK ASSY","EA",null,1,{"v":0,"d":"$0.00"}]
[2782,"WILKINS","4 OS&Y DBL DET CHK ASSY","EA",null,1,{"v":0,"d":"$0.00"}]
[2783,"WILKINS","6 OS&Y DBL DET CHK ASSY","EA",null,1,{"v":0,"d":"$0.00"}]
[2784,"WILKINS","8 OS&Y DBL DET CHK ASSY","EA",null,1,{"v":0,"d":"$0.00"}]
[2785,"WILKINS","10 OS&Y DCDA","EA",null,1,{"v":0,"d":"$0.00"}]
[2786,"WILKINS","3/4\"-1\" SEAL RING SILICONE","EA",null,1,{"v":0,"d":"$0.00"}]
[2787,"WILKINS","3/4 - 1 REP KIT 975XLR","EA",null,1,{"v":0,"d":"$0.00"}]
[2788,"WILKINS","3/4 - 1 POPPET ASSY","EA",null,1,{"v":0,"d":"$0.00"}]
[2789,"WILKINS","WILKINS 3/4-1 975 #1 SPRING ","EA",null,1,{"v":0,"d":"$0.00"}]
[2790,"WILKINS","WILKINS 3/4-1 975 #2 SPRING ","EA",null,1,{"v":0,"d":"$0.00"}]
[2791,"WILKINS","SEAL RING","EA",null,1,{"v":0,"d":"$0.00"}]
[2792,"WILKINS","3/4 - 1 975XX RV RUB KIT","EA",null,1,{"v":0,"d":"$0.00"}]
[2793,"WILKINS","1-1/4-2 REP KIT 975XLR","EA",null,1,{"v":0,"d":"$0.00"}]
[2794,"WILKINS","1-1/4 - 2 POPPET ASSY","EA",null,1,{"v":0,"d":"$0.00"}]
[2795,"WILKINS","WILKINS 1-1/4-2 975 #1 CHK","EA",null,1,{"v":0,"d":"$0.00"}]
[2796,"WILKINS","WILKINS 1-1/4-2 975 #2 CHK SPRING ","EA",null,1,{"v":0,"d":"$0.00"}]
[2797,"WILKINS","2-1/2 - 3 CHK REP KIT RUB PARTS","EA",null,1,{"v":0,"d":"$0.00"}]
[2798,"WILKINS","#1 CHECK ASSEMBLY","EA",null,1,{"v":0,"d":"$0.00"}]
[2799,"WILKINS","#2 CHECK ASSEMBLY","EA",null,1,{"v":0,"d":"$0.00"}]
[2800,"WILKINS","4 CHK REP KIT/ RUB PARTS","EA",null,1,{"v":0,"d":"$0.00"}]
[2801,"WILKINS","CHK ASSY #1","EA",null,1,{"v":0,"d":"$0.00"}]
[2802,"WILKINS","2-1/2-4 350/450 375/475 #2 CV ASSY","EA",null,1,{"v":0,"d":"$0.00"}]
[2803,"WILKINS","6 CHK REP KIT/ RUB PARTS","EA",null,1,{"v":0,"d":"$0.00"}]
[2804,"WILKINS","#1 REPLACEMENT CHECK F/6\"","EA",null,1,{"v":0,"d":"$0.00"}]
[2805,"WILKINS","2ND CHK ASSY F/ 6 350/375DA","EA",null,1,{"v":0,"d":"$0.00"}]
[2806,"WILKINS","2-1/2 - 6 RED PRES ASSY REP KIT","EA",null,1,{"v":0,"d":"$0.00"}]
[2807,"WILKINS","8 350/375 REP KIT","EA",null,1,{"v":0,"d":"$0.00"}]
[2808,"WILKINS","8-10 375/475 #1 CV ASSY","EA",null,1,{"v":0,"d":"$0.00"}]
[2809,"WILKINS","REP KIT, 8-10 375 RBR ","EA",null,1,{"v":0,"d":"$0.00"}]
[2810,"WILKINS","LF 1/8X1/4 TEST COCK REP KIT 4 PK","EA",null,1,{"v":0,"d":"$0.00"}]
[2811,"WILKINS","SENSING LINE 3\" 375","EA",null,1,{"v":0,"d":"$0.00"}]
[2812,"WILKINS","3/4 SS BV HDL","EA",null,1,{"v":0,"d":"$0.00"}]
[2813,"WILKINS","2-1/2 - 3 350/450 375/475 #1 RETNR","EA",null,1,{"v":0,"d":"$0.00"}]
[2814,"WILKINS","LF 3/4 RED PRES BFP W/ 90 BV","EA",null,1,{"v":0,"d":"$0.00"}]
[2815,"WILKINS","LF 1 RED PRES BFP W/ 90 BV","EA",null,1,{"v":0,"d":"$0.00"}]
[2816,"WILKINS","LF 1-1/2 RED PRES BFP W/ 90 BV","EA",null,1,{"v":0,"d":"$0.00"}]
[2817,"WILKINS","LF 2 RED PRES BFP W/ 90 BV","EA",null,1,{"v":0,"d":"$0.00"}]
[2818,"WILKINS","LF 3/4 BRZ 300# IPS WYE STRN","EA",null,1,{"$f":"SUM(E2805*F2805)","v":{"v":0,"d":"$0.00"}}]
[2819,"WILKINS","LF 1 STRN FNPT X FNPT","EA",null,1,{"v":0,"d":"$0.00"}]
[2820,"WILKINS","LF 1-1/2 STRN FNPT X FNPT","EA",null,1,{"v":0,"d":"$0.00"}]
[2821,"WILKINS","LF 2 STRN FNPT X FNPT","EA",null,1,{"v":0,"d":"$0.00"}]
[2822,"WILKINS","LF 1/4 MNPT TEST COCK 4 PK","EA",null,1,{"v":0,"d":"$0.00"}]
[2823,"WILKINS","8-10 375/475 350/450 #2 CV ASSY","EA",null,1,{"v":0,"d":"$0.00"}]
[2824,"WILKINS","8\"-10\" 375 RV COMP INTERNAL KIT","EA",null,1,{"v":0,"d":"$0.00"}]
[2825,"WILKINS","2-1/2\"-6\" 375 RV COMP INTERNAL KIT","EA",null,1,{"v":0,"d":"$0.00"}]
[2826,"WILKINS","1 SS BV HDL","EA",null,1,{"v":0,"d":"$0.00"}]
[2827,"WILKINS","1-1/2 SS BV HDL","EA",null,1,{"v":0,"d":"$0.00"}]
[2828,"WILKINS","2 SS BV HDL","EA",null,1,{"v":0,"d":"$0.00"}]
[2829,"WILKINS","SENSING LINE","EA",null,1,{"v":0,"d":"$0.00"}]
[2830,"WILKINS","WILKN WASHER 1.05X0.255X0.47","EA",null,1,{"v":0,"d":"$0.00"}]
[2831,"WILKINS","3/4-1 975XL RV SEAT","EA",null,1,{"v":0,"d":"$0.00"}]
[2832,"WILKINS","WILKN ORING","EA",null,1,{"v":0,"d":"$0.00"}]
[2833,"WILKINS","WILKN 3/4-1 975XL RV ASSY","EA",null,1,{"v":0,"d":"$0.00"}]
[2834,"WILKINS","2-1/2-4 375/475 #1 CV ASSY","EA",null,1,{"v":0,"d":"$0.00"}]
[2835,"WILKINS","8-10 375/375AST 475/475V RV ASSY","EA",null,1,{"v":0,"d":"$0.00"}]
[2836,"WILKINS","POPPET ASSY F/ 975 #2 CHECK","EA",null,1,{"v":0,"d":"$0.00"}]
[2837,"WILKINS","WILKN 21/2,3 950/975 SEAT KIT","EA",null,1,{"v":0,"d":"$0.00"}]
[2838,"WILKINS","LF SEALING ORING","EA",null,1,{"v":0,"d":"$0.00"}]
[2839,"WILKINS","WILKINS SEAT WRENCH SET","EA",null,1,{"v":0,"d":"$0.00"}]
[2840,"WILKINS","2-1/2 SS RED PRES FLGXFLG VLV","EA",null,1,{"v":0,"d":"$0.00"}]
[2841,"WILKINS","3 SS RED PRES FLGXFLG OSY VLV","EA",null,1,{"v":0,"d":"$0.00"}]
[2842,"WILKINS","4 SS RED PRES FLGXFLG OSY VLV","EA",null,1,{"v":0,"d":"$0.00"}]
[2843,"WILKINS","6 SS RED PRES FLGXFLG OSY VLV","EA",null,1,{"v":0,"d":"$0.00"}]
[2844,"WILKINS","8 SS RPZ BFP W/ OS&Y GATE VLV","EA",null,1,{"v":0,"d":"$0.00"}]
[2845,"WILKINS","10 RPP ASSY SS BDY FLGXFLG","EA",null,1,{"v":0,"d":"$0.00"}]
[2846,"WILKINS","LF 3/4 RED PRES BFP W/ BV","EA",null,1,{"v":0,"d":"$0.00"}]
[2847,"WILKINS","LF 1 RED PRES BFP W/ BV","EA",null,1,{"v":0,"d":"$0.00"}]
[2848,"WILKINS","LF 1-1/2 RED PRES BFP W/ BV","EA",null,1,{"v":0,"d":"$0.00"}]
[2849,"WILKINS","LF 2 RED PRES BFP W/ BV","EA",null,1,{"v":0,"d":"$0.00"}]
[2850,"WILKINS","WILKINS SENSING TUBE - 12\"","EA",null,1,{"v":0,"d":"$0.00"}]
[2851,"WILKINS","LFNP 8-10 REP KIT 975 RUB","EA",null,1,{"v":0,"d":"$0.00"}]
[2852,"WILKINS","RELIEF VLV STEM ASSEMBLY","EA",null,1,{"v":0,"d":"$0.00"}]
[2853,"WILKINS","2-1/2\"- 4\" 350/450 A-BDY #2 RETNR","EA",null,1,{"v":0,"d":"$0.00"}]
[2854,"WILKINS","RK 1/4-2 950/975 SEAT TL","EA",null,1,{"v":0,"d":"$0.00"}]
[2855,"WILKINS","3/4 - 1 975XL2 RV CVR LF","EA",null,1,{"v":0,"d":"$0.00"}]
[2856,"WILKINS","SEAT RETAINER  2","EA",null,1,{"v":0,"d":"$0.00"}]
[2857,"WILKINS","8-10 375/475DA 2 CV ASSY","EA",null,1,{"v":0,"d":"$0.00"}]
[2858,"WILKINS","4IN 350/375/450/475 A-BDY #1 SEAT RT","EA",null,1,{"v":0,"d":"$0.00"}]
[2859,"WILKINS","4IN 350/375 450/475 A-BODY #2 SEAT RE","EA",null,1,{"v":0,"d":"$0.00"}]
[2860,"WILKINS","2 RETAINER RING F/ 8IN-10IN 375","EA",null,1,{"v":0,"d":"$0.00"}]
[2861,"WILKINS","3/4 CHK SEAT F/ 950/975","EA",null,1,{"v":0,"d":"$0.00"}]
[2862,"WILKINS","CHK SEAT ORING","EA",null,1,{"v":0,"d":"$0.00"}]
[2863,"WILKINS","#1 SEAT RETAINER WILKINS 6","EA",null,1,{"v":0,"d":"$0.00"}]
[2864,"WILKINS","LFNP RUB REP KIT F/ 6","EA",null,1,{"v":0,"d":"$0.00"}]
[2865,"WILKINS","1-1/4 CHK SEAT F/ 950/975","EA",null,1,{"v":0,"d":"$0.00"}]
[2866,"WILKINS","6 375A W/OSY GV","EA",null,1,{"v":0,"d":"$0.00"}]
[2867,"WILKINS","RUB REP KIT F/ 4","EA",null,1,{"v":0,"d":"$0.00"}]
[2868,"WILKINS","WILKIN - BV UNION GASKET 1-1/2IN","EA",null,1,{"v":0,"d":"$0.00"}]
[2869,"WILKINS","WILKIN - BV UNION GASKET 2IN","EA",null,1,{"v":0,"d":"$0.00"}]
[2870,"WILKINS","POPPET ASSEMBLY 1 FOR 10IN 375 AST","EA",null,1,{"v":0,"d":"$0.00"}]
[2871,"WILKINS","POPPET ASSEMBLY 2 FOR 10IN 375AST","EA",null,1,{"v":0,"d":"$0.00"}]
[2872,"WILKINS","COVER - CONTROL UNIT (CU /COVER)","EA",null,1,{"v":0,"d":"$0.00"}]
[2873,"WILKINS","PITOT TUBE ASSY / PLUG","EA",null,1,{"v":0,"d":"$0.00"}]
[2874,"AMES","LF PARTS KIT F/ 2-1/2-4 C400/C500","EA",null,1,{"v":0,"d":"$0.00"}]
[2875,"AMES","LF #1 CHK F/ 2-1/2-4 C400/C500","EA",null,1,{"v":0,"d":"$0.00"}]
[2876,"AMES","LF #2 CHK F/ 2-1/2-4 C400/C500","EA",null,1,{"v":0,"d":"$0.00"}]
[2877,"AMES","LF RUB PARTS KIT F/ 6 C400/C500","EA",null,1,{"v":0,"d":"$0.00"}]
[2878,"AMES","LF #1 CHK F/ 6 C400/C500","EA",null,1,{"v":0,"d":"$0.00"}]
[2879,"AMES","LF #2 CHK F/ 6 C400/C500","EA",null,1,{"v":0,"d":"$0.00"}]
[2880,"AMES","LF VLV KIT F/ 2-1/2-10 C/M 400/500","EA",null,1,{"v":0,"d":"$0.00"}]
[2881,"AMES","3 FLG ULFM STRN ","EA",null,1,{"v":0,"d":"$0.00"}]
[2882,"AMES","4 FLG ULFM STRN ","EA",null,1,{"$f":"SUM(E2869*F2869)","v":{"v":0,"d":"$0.00"}}]
[2883,"AMES","6 FLG ULFM STRN ","EA",null,1,{"v":0,"d":"$0.00"}]
[2884,"AMES","8 FLG ULFM STRN ","EA",null,1,{"v":0,"d":"$0.00"}]
[2885,"AMES","LF 3/4 LF4000BM3","EA",null,1,{"v":0,"d":"$0.00"}]
[2886,"AMES","LF 1 LF4000BM2","EA",null,1,{"v":0,"d":"$0.00"}]
[2887,"AMES","LF 1 1/2 LF4000B","EA",null,1,{"v":0,"d":"$0.00"}]
[2888,"AMES","LF 2 LF4000B","EA",null,1,{"v":0,"d":"$0.00"}]
[2889,"AMES","LF 3 RPZ BFP W/ OS&Y C400","EA",null,1,{"v":0,"d":"$0.00"}]
[2890,"AMES","LF 4 RPZ BFP W/ OS&Y C400","EA",null,1,{"v":0,"d":"$0.00"}]
[2891,"AMES","LF 6 RPZ BFP W/ OS&Y C400A","EA",null,1,{"v":0,"d":"$0.00"}]
[2892,"AMES","LF 8 RPZ BFP W/ OS&Y C400","EA",null,1,{"v":0,"d":"$0.00"}]
[2931,"FEBCO","8\" 805Y/825Y CHK RUB SILICONE","EA",null,1,{"v":0,"d":"$0.00"}]
[2932,"FEBCO","8\" 825YD #1 CHK ASSY ","EA",null,1,{"v":0,"d":"$0.00"}]
[2933,"FEBCO","8\" 805Y/825Y #2 CHK ASSY ","EA",null,1,{"v":0,"d":"$0.00"}]
[2934,"FEBCO","2-1/2 - 10 REL VLV RUB KIT ","EA",null,1,{"v":0,"d":"$0.00"}]
[2935,"FEBCO","RELIEF VLV KIT #905320 F/860/880V","EA",null,1,{"v":0,"d":"$0.00"}]
[2936,"FEBCO","4 CHK RUB LFNP","EA",null,1,{"v":0,"d":"$0.00"}]
[2937,"FEBCO","RUB REP KIT 870/876V 6 LFNP","EA",null,1,{"v":0,"d":"$0.00"}]
[2938,"FEBCO","FEBCO 860 COMPLETE RV ASSEMBLY","EA",null,1,{"v":0,"d":"$0.00"}]
[2939,"FEBCO","6IN 860 CK1 ASSEMBLY","EA",null,1,{"v":0,"d":"$0.00"}]
[2940,"FEBCO","6IN 860 2 CK ASSEMBLY","EA",null,1,{"v":0,"d":"$0.00"}]
[2941,"FEBCO","3/4\" 860QTLF RP BFP W/BV","EA",null,1,{"v":0,"d":"$0.00"}]
[2942,"FEBCO","1\" 860QTLF RP BFP W/BV","EA",null,1,{"v":0,"d":"$0.00"}]
[2943,"FEBCO","1-1/2\" 860QTLF RP BFP W/BV","EA",null,1,{"v":0,"d":"$0.00"}]
[2944,"FEBCO","2\" 860QTLF RP BFP W/BV","EA",null,1,{"v":0,"d":"$0.00"}]
[2945,"FEBCO","3\" LF860-DOSY RP W/OSY GV ","EA",null,1,{"v":0,"d":"$0.00"}]
[2946,"FEBCO","4\" LF860-DOSY RP W/OSY GV","EA",null,1,{"$f":"SUM(E2895*F2895)","v":{"v":0,"d":"$0.00"}}]
[2947,"FEBCO","6\" LF860-DOSY RP W/OSY GV","EA",null,1,{"v":0,"d":"$0.00"}]
[2948,"FEBCO","8\" LF860-DOSY RP W/OSY GV","EA",null,1,{"v":0,"d":"$0.00"}]
[2949,"HUNTER","1\" IRRIGATION VALVE","EA",null,1,{"v":0,"d":"$0.00"}]
[2950,"HUNTER","1-1/2\" IRRIGATION VALVE","EA",null,1,{"v":0,"d":"$0.00"}]
[2951,"HUNTER","2\" IRRIGATION VALVE","EA",null,10,{"v":0,"d":"$0.00"}]
[2952,"HUNTER","NODE-100 CONTROLLER","EA",null,10,{"v":0,"d":"$0.00"}]
[2953,"RAZOR BACK OR EQUIVALENT","ROUND POINT SHOVEL","EA",null,100,{"v":0,"d":"$0.00"}]
[2954,"RAZOR BACK OR EQUIVALENT","SQUARE HEAD SHOVEL","EA",null,40,{"v":0,"d":"$0.00"}]
[2955,"RAZOR BACK OR EQUIVALENT","POST HOLE DIGGER","EA",null,20,{"v":0,"d":"$0.00"}]
[2956,"RAZOR BACK OR EQUIVALENT","TRENCHING SHOVEL","EA",null,30,{"v":0,"d":"$0.00"}]
[2957,"RAZOR BACK OR EQUIVALENT","METAL LEAF RAKE","EA",null,25,{"v":0,"d":"$0.00"}]
[2958,"RAZOR BACK OR EQUIVALENT","HARD RAKE","EA",null,50,{"v":0,"d":"$0.00"}]
[2959,"PROMARK OR EQUIVALENT","66' GREEN FIELD MARKER-FORCE MAIN","EA",null,30,{"v":0,"d":"$0.00"}]
[2960,"PROMARK OR EQUIVALENT","66' BLUE FIELD MARKER-WATER MAIN","EA",null,30,{"v":0,"d":"$0.00"}]
[2961,"PROMARK OR EQUIVALENT","66' PURPLE FIELD MARKER-RECLAIM/REUSE","EA",null,30,{"v":0,"d":"$0.00"}]
[2962,"GENERIC","WHITE MARKING FLAGS","EA",null,15000,{"v":0,"d":"$0.00"}]
[2964,"ROMAC, CASCADE OR EQUIVALENT","4\" SS INSERT FOR DIPS HDPE","EA",null,2,{"v":0,"d":"$0.00"}]
[2965,"ROMAC, CASCADE OR EQUIVALENT","6\" SS INSERT FOR DIPS HDPE","EA",null,2,{"v":0,"d":"$0.00"}]
[2966,"ROMAC, CASCADE OR EQUIVALENT","8\" SS INSERT FOR DIPS HDPE","EA",null,2,{"v":0,"d":"$0.00"}]
[2967,"ROMAC, CASCADE OR EQUIVALENT","10\" SS INSERT FOR DIPS HDPE","EA",null,2,{"v":0,"d":"$0.00"}]
[2968,"ROMAC, CASCADE OR EQUIVALENT","12\" SS INSERT FOR DIPS HDPE","EA",null,2,{"v":0,"d":"$0.00"}]
[2969,"ROMAC, CASCADE OR EQUIVALENT","14\" SS INSERT FOR DIPS HDPE","EA",null,1,{"v":0,"d":"$0.00"}]
[2970,"ROMAC, CASCADE OR EQUIVALENT","16\" SS INSERT FOR DIPS HDPE","EA",null,1,{"v":0,"d":"$0.00"}]
[2971,"ROMAC, CASCADE OR EQUIVALENT","18\" SS INSERT FOR DIPS HDPE","EA",null,1,{"v":0,"d":"$0.00"}]
[2972,"ROMAC, CASCADE OR EQUIVALENT","20\" SS INSERT FOR DIPS HDPE","EA",null,1,{"v":0,"d":"$0.00"}]
[2973,"MUELLER","1-1/2\" MUELLER 110 CORP NUT AND GASKET","EA",null,25,{"v":0,"d":"$0.00"}]
[2974,"MUELLER","1\" MUELLER 110 CORP NUT AND GASKET","EA",null,50,{"v":0,"d":"$0.00"}]
[2975,"MUELLER","2\" MUELLER 110 CORP NUT AND GASKET","EA",null,25,{"v":0,"d":"$0.00"}]
[2976,"MAX ADAPTER","4\" MAX ADAPTER COUPLING","EA",null,20,{"v":0,"d":"$0.00"}]
[2977,"MAX ADAPTER","6\" MAX ADAPTER COUPLING","EA",null,20,{"v":0,"d":"$0.00"}]
[2978,"MAX ADAPTER","8\" MAX ADAPTER COUPLING","EA",null,10,{"v":0,"d":"$0.00"}]
[2979,"MAX ADAPTER","10\" MAX ADAPTER COUPLING","EA",null,5,{"v":0,"d":"$0.00"}]
[2980,"MAX ADAPTER","12\" MAX ADAPTER COUPLING","EA",null,5,{"v":0,"d":"$0.00"}]
[2981,"DIAMOND PLASTICS,ETI PIPE,FREEDOM PLASTIC,JM MANUFACTURING,NATIONAL PIPE,NORTH AMERICAN PIPE, CHARLOTTE, SILVER LINE","3/4\" IPS COMP COUP WITH LOCKING RING","EA",null,20,{"v":0,"d":"$0.00"}]
[2982,"DIAMOND PLASTICS,ETI PIPE,FREEDOM PLASTIC,JM MANUFACTURING,NATIONAL PIPE,NORTH AMERICAN PIPE, CHARLOTTE, SILVER LINE","1\" IPS COMP COUP WITH LOCKING RING","EA",null,20,{"v":0,"d":"$0.00"}]
[2983,"DIAMOND PLASTICS,ETI PIPE,FREEDOM PLASTIC,JM MANUFACTURING,NATIONAL PIPE,NORTH AMERICAN PIPE, CHARLOTTE, SILVER LINE","1-1/2\" IPS COMP COUP WITH LOCKING RING","EA",null,20,{"v":0,"d":"$0.00"}]
[2984,"DIAMOND PLASTICS,ETI PIPE,FREEDOM PLASTIC,JM MANUFACTURING,NATIONAL PIPE,NORTH AMERICAN PIPE, CHARLOTTE, SILVER LINE","2\" IPS COMP COUP WITH LOCKING RING","EA",null,40,{"v":0,"d":"$0.00"}]
[2985,"DIAMOND PLASTICS,ETI PIPE,FREEDOM PLASTIC,JM MANUFACTURING,NATIONAL PIPE,NORTH AMERICAN PIPE, CHARLOTTE, SILVER LINE","2-1/2\" IPS COMP COUP WITH LOCKING RING","EA",null,20,{"v":0,"d":"$0.00"}]
[2986,"EAST JORDAN","6\" EAST JORDAN HYDRANT EXT KIT","EA",null,1,{"v":0,"d":"$0.00"}]
[2987,"EAST JORDAN","12\" EAST JORDAN HYDRANT EXT KIT","EA",null,1,{"v":0,"d":"$0.00"}]
[2988,"EAST JORDAN","18\" EAST JORDAN HYDRANT EXT KIT","EA",null,1,{"v":0,"d":"$0.00"}]
[2989,"CLOW","6\" CLOW HYDRANT EXT KIT","EA",null,5,{"v":0,"d":"$0.00"}]
[2990,"CLOW","12\" CLOW HYDRANT EXT KIT","EA",null,5,{"v":0,"d":"$0.00"}]
[2991,"CLOW","18\" CLOW HYDRANT EXT KIT","EA",null,5,{"v":0,"d":"$0.00"}]
[2992,"DOS-SEGGIE OR EQUIVALVENT","14\" STREET SAW BLADE-MULTI PURPOSE","EA",null,25,{"v":0,"d":"$0.00"}]
[2993,"DIAMOND TEC OR EQUIVALENT","14\" STREET SAW DEMO BLADE F/ROOTS","EA",null,10,{"v":0,"d":"$0.00"}]
[2994,"US FOUNDRY,PAMREX","SEWER MANHOLE LID","EA",null,25,{"v":0,"d":"$0.00"}]
[2995,"MUELLER","MUELLER 10\",12\" STEM O-RING","EA",null,5,{"v":0,"d":"$0.00"}]
[2996,"MUELLER","MUELLER 12\" STUFFING BOX O-RING","EA",null,5,{"v":0,"d":"$0.00"}]
[2997,"MUELLER","MUELLER 4\" STEM O-RING","EA",null,5,{"v":0,"d":"$0.00"}]
[2998,"MUELLER","MUELLER 10\" STUFFING BOX O-RING","EA",null,5,{"v":0,"d":"$0.00"}]
[2999,"MUELLER","MUELLER 4\" STUFFING BOX O-RING","EA",null,5,{"v":0,"d":"$0.00"}]
[3000,"MUELLER","MUELLER 6\",8\" STEM O-RING","EA",null,5,{"v":0,"d":"$0.00"}]
[3001,"MUELLER","MUELLER 6\" GATE VALVE  BONNET GASKET","EA",null,5,{"v":0,"d":"$0.00"}]
[3002,"MUELLER","MUELLER 6\",8\" STUFFING BOX O-RING","EA",null,5,{"v":0,"d":"$0.00"}]
[3003,"MUELLER","MUELLER 10\" BONNET O-RING","EA",null,5,{"v":0,"d":"$0.00"}]
[3004,"SIGMA,EBBA,STAR,US PIPE OR EQUIVALENT","2\" OVAL METER FLG GASKET (NO DROP INS)","EA",null,200,{"v":0,"d":"$0.00"}]
[3005,"CLOW","CLOW 2-1/2\" MEDALLION HOSE NOZZLE","EA",null,2,{"v":0,"d":"$0.00"}]
[3006,"MUELLER","MUELLER 5-1/4 SAFETY FLANGE GASKET","EA",null,2,{"v":0,"d":"$0.00"}]
[3007,"MUELLER","MUELLER 5-1/4 VO SHOE REPAIR KIT","EA",null,2,{"v":0,"d":"$0.00"}]
[3008,"MUELLER","MUELLER 5-1/4 VO MAIN VLV REPAIR KIT A-45","EA",null,2,{"v":0,"d":"$0.00"}]
[3009,"JTM PRODUCT OR EQUIVALENT","PIPE LUBE","EA",null,10,{"v":0,"d":"$0.00"}]
[3010,"FORD","5/8 X 3/4 RETROSETTER 6\" RISE","EA",null,250,{"$f":"SUM(E2958*F2958)","v":{"v":0,"d":"$0.00"}}]
[3011,"MERIT OR EQUIVALENT","2\" X CLOSE EXTRA HEAVY BRASS NIPPLE S80","EA",null,50,{"v":0,"d":"$0.00"}]
[3012,"FORD, AY MCDONALD, MUELLER OR EQUIVALENT","3/4 HOSE BIB MIPT","EA",null,500,{"v":0,"d":"$0.00"}]
[3013,"PRESCO OR EQUIVALENT","ORANGE FLAGGING RIBBON","EA",null,150,{"v":0,"d":"$0.00"}]
[3014,"HILL OR EQUIVALENT","YELLOW TRACER DYE","EA",null,10,{"v":0,"d":"$0.00"}]
[3015,"MUELLER","MUELLER 4\" BONNET O-RING","EA",null,5,{"v":0,"d":"$0.00"}]
[3016,"MUELLER","MUELLER 6\" BONNET O-RING","EA",null,5,{"v":0,"d":"$0.00"}]
[3017,"MUELLER","MUELLER 8\" BONNET O-RING","EA",null,5,{"v":0,"d":"$0.00"}]
[3018,"MUELLER","MUELLER 12\" BONNET O-RING","EA",null,5,{"v":0,"d":"$0.00"}]
[3019,"MUELLER","MUELLER 5-1/4 MAIN VALVE SEAT","EA",null,2,{"v":0,"d":"$0.00"}]
[3020,"SIGMA OR EQUIVALENT","DAVIS TYPE VALVE BOX-SEWER","EA",null,5,{"v":0,"d":"$0.00"}]
[3021,"SIGMA OR EQUIVALENT","DAVIS TYPE VALVE BOX-WATER","EA",null,5,{"v":0,"d":"$0.00"}]
[3022,"MUELLER","MUELLER CENT 5\" PUMPER NOZZLE M-36","EA",null,2,{"v":0,"d":"$0.00"}]
[3023,"CLOW","CLOW MAIN VALVE REPAIR KIT","EA",null,2,{"v":0,"d":"$0.00"}]
[3024,"HIGHFIELD OR EQUIVALENT","#4 FIROMATIC BARREL LOCK","EA",null,800,{"v":0,"d":"$0.00"}]
[3025,"HIGHFIELD OR EQUIVALENT","#4 PIN LOCK KEY","EA",null,25,{"v":0,"d":"$0.00"}]
[3026,"TRUMBULL OR EQUIVALENT","O.D. MEASURING TAPE","EA",null,25,{"v":0,"d":"$0.00"}]
[3027,"CERROWIRE OR EQUIVALENT","10 GAUGE BLUE TRACER WIRE","EA",null,20,{"v":0,"d":"$0.00"}]
[3028,"CERROWIRE OR EQUIVALENT","10 GAUGE GREEN TRACER WIRE","EA",null,5,{"v":0,"d":"$0.00"}]
[3029,"CERROWIRE OR EQUIVALENT","10 GAUGE PURPLE TRACER WIRE","EA",null,5,{"v":0,"d":"$0.00"}]
[3030,"FORD","METER BOX KEY-PENTAGON STYLE #1MLW","EA",null,5,{"v":0,"d":"$0.00"}]
[3031,"US FOUNDRY,PAMREX","SANITARY SWR MANHOLE RING AND CVR-170","EA",null,15,{"v":0,"d":"$0.00"}]
[3032,"MUELLER","MUELLER 4-1/2 LOWER VALVE PLATE","EA",null,2,{"v":0,"d":"$0.00"}]
[3033,"FORD, AY MCDONALD, MUELLER","1\" CURB STOP LOCKING PLUG-SHORT","EA",null,15,{"v":0,"d":"$0.00"}]
[3034,"HIGHFIELD OR EQUIVALENT","#6 ADVANCED PIN LOCK KEY","EA",null,10,{"v":0,"d":"$0.00"}]
[3035,"MUELLER","MUELLER 2-1/2 HOSE NOZZLE GASKET","EA",null,10,{"v":0,"d":"$0.00"}]
[3036,"MUELLER","MUELLER 2-1/2 HOSE NOZZLE A-18","EA",null,2,{"v":0,"d":"$0.00"}]
[3037,"ROMAC","4\" ROMAC ALPHA","EA",null,10,{"v":0,"d":"$0.00"}]
[3038,"ROMAC","4\" ROMAC ALPHA FC","EA",null,5,{"v":0,"d":"$0.00"}]
[3039,"ROMAC","4\" ROMAC MACRO","EA",null,5,{"v":0,"d":"$0.00"}]
[3040,"ROMAC","6\" ROMAC ALPHA","EA",null,15,{"v":0,"d":"$0.00"}]
[3041,"ROMAC","6\" ROMAC ALPHA FC","EA",null,5,{"v":0,"d":"$0.00"}]
[3042,"ROMAC","6\" ROMAC MACRO","EA",null,10,{"v":0,"d":"$0.00"}]
[3043,"ROMAC","8\" ROMAC ALPHA","EA",null,10,{"v":0,"d":"$0.00"}]
[3044,"ROMAC","8\" ROMAC ALPHA FC","EA",null,5,{"v":0,"d":"$0.00"}]
[3045,"ROMAC","8\" ROMAC MACRO","EA",null,10,{"v":0,"d":"$0.00"}]
[3046,"ROMAC","10\" ROMAC ALPHA ","EA",null,5,{"v":0,"d":"$0.00"}]
[3047,"ROMAC","10\" ROMAC ALPHA FC","EA",null,5,{"v":0,"d":"$0.00"}]
[3048,"ROMAC","10\" ROMAC MACRO","EA",null,5,{"v":0,"d":"$0.00"}]
[3049,"ROMAC","12\" ROMAC ALPHA","EA",null,10,{"v":0,"d":"$0.00"}]
[3050,"ROMAC","12\" ROMAC ALPHA FC","EA",null,5,{"v":0,"d":"$0.00"}]
[3051,"ROMAC","12\" ROMAC MACRO","EA",null,5,{"v":0,"d":"$0.00"}]
[3052,"CDR SYSTEMS, GLASMASTERS,HUBBELL","10X15X2 CDR WATER LID W/ IRON READER LID","EA",null,50,{"v":0,"d":"$0.00"}]
[3053,"CDR SYSTEMS, GLASMASTERS,HUBBELL","11X18X2 CDR WATER LID W/ IRON READER LID","EA",null,1000,{"v":0,"d":"$0.00"}]
[3054,"CDR SYSTEMS, GLASMASTERS,HUBBELL","17X30X2 CDR WATER LID W/ IRON READER LID","EA",null,20,{"v":0,"d":"$0.00"}]
[3055,"CDR SYSTEMS, GLASMASTERS,HUBBELL","13X24X2 CDR WATER LID W/ IRON READER LID","EA",null,20,{"v":0,"d":"$0.00"}]
[3056,"CDR SYSTEMS, GLASMASTERS,HUBBELL","30X48 CDR HD BOLT DOWN LID","EA",null,2,{"v":0,"d":"$0.00"}]
[3057,"CDR SYSTEMS, GLASMASTERS,HUBBELL","30X48X36 CDR BOX W/ LID","EA",null,3,{"v":0,"d":"$0.00"}]
[3058,"CDR SYSTEMS, GLASMASTERS,HUBBELL","11X18 CDR BOX FLARED WALL","EA",null,500,{"v":0,"d":"$0.00"}]
[3059,"CDR SYSTEMS, GLASMASTERS,HUBBELL","13X24 CDR BOX FLARED WALL","EA",null,25,{"v":0,"d":"$0.00"}]
[3060,"CDR SYSTEMS, GLASMASTERS,HUBBELL","17X30 CDR BOX FLARED WALL","EA",null,10,{"v":0,"d":"$0.00"}]
[3061,"CLOW","CLOW 5-1/4 BONNET REPAIR KIT","EA",null,5,{"v":0,"d":"$0.00"}]
[3062,"RAZOR BACK OR EQUIVALENT","CONCRETE COME ALONG RAKE","EA",null,10,{"v":0,"d":"$0.00"}]
[3063,"PERMATEX OR EQUIVALENT","BLACK FORM-A-GASKET (1 PINT)","EA",null,20,{"v":0,"d":"$0.00"}]
[3064,"EAST JORDAN","36\" EAST JORDAN HYDRANT","EA",null,1,{"v":0,"d":"$0.00"}]
[3065,"EAST JORDAN","42\" EAST JORDAN HYDRANT","EA",null,1,{"v":0,"d":"$0.00"}]
[3066,"EAST JORDAN","48\" EAST JORDAN HYDRANT","EA",null,1,{"v":0,"d":"$0.00"}]
[3067,"EAST JORDAN","54\" EAST JORDAN HYDRANT","EA",null,1,{"v":0,"d":"$0.00"}]
[3068,"EAST JORDAN","60\" EAST JORDAN HYDRANT","EA",null,1,{"v":0,"d":"$0.00"}]
[3069,"EAST JORDAN","72\" EAST JORDAN HYDRANT","EA",null,1,{"v":0,"d":"$0.00"}]
[3070,"CLOW","36\" CLOW HYDRANT","EA",null,3,{"v":0,"d":"$0.00"}]
[3071,"CLOW","42\" CLOW HYDRANT","EA",null,5,{"v":0,"d":"$0.00"}]
[3072,"CLOW","48\" CLOW HYDRANT","EA",null,5,{"v":0,"d":"$0.00"}]
[3073,"CLOW","54\" CLOW HYDRANT","EA",null,2,{"v":0,"d":"$0.00"}]
[3074,"CLOW","60\" CLOW HYDRANT","EA",null,2,{"$f":"SUM(E3022*F3022)","v":{"v":0,"d":"$0.00"}}]
[3075,"CLOW","72\" CLOW HYDRANT","EA",null,2,{"v":0,"d":"$0.00"}]
[3076,"CLOW","CLOW UPPER VALVE PLATE","EA",null,2,{"v":0,"d":"$0.00"}]
[3077,"CLOW","M19 BRASS SEAT RING","EA",null,2,{"v":0,"d":"$0.00"}]
[3078,"CLOW","M24 LOWER VALVE PLATE BRASS","EA",null,2,{"v":0,"d":"$0.00"}]
[3079,"FORD","1\" FORD CORP NUT AND GASKET","EA",null,50,{"v":0,"d":"$0.00"}]
[3080,"FORD","1-1/2 FORD CORP NUT AND GASKET","EA",null,25,{"v":0,"d":"$0.00"}]
[3081,"FORD","2\" FORD CORP NUT AND GASKET","EA",null,15,{"v":0,"d":"$0.00"}]
[3082,"FORD","3/4 FORD CORP NUT AND GASKET","EA",null,10,{"v":0,"d":"$0.00"}]
[3083,"FORD","3/4 FORD DRESSER NUT AND GASKET","EA",null,10,{"v":0,"d":"$0.00"}]
[3084,"FORD","1 FORD DRESSER NUT AND GASKET","EA",null,30,{"v":0,"d":"$0.00"}]
[3085,"FORD","1-1/2 FORD DRESSER NUT AND GASKET","EA",null,10,{"v":0,"d":"$0.00"}]
[3086,"FORD","2 FORD DRESSER NUT AND GASKET","EA",null,10,{"v":0,"d":"$0.00"}]
[3087,"FORD","1\" FORD CORP THREADED CAP","EA",null,15,{"v":0,"d":"$0.00"}]
[3088,"FORD","1-1/2 FORD CORP THREADED CAP","EA",null,15,{"v":0,"d":"$0.00"}]
[3089,"FORD","2 FORD CORP THREADED CAP","EA",null,15,{"v":0,"d":"$0.00"}]
[3090,"MUELLER","MUELLER 5-1/4 SAFETY FLANGE REPAIR KIT","EA",null,10,{"v":0,"d":"$0.00"}]
[3091,"CLOW","CLOW MEDALLION SAFETY FLANGE REPAIR KIT","EA",null,10,{"v":0,"d":"$0.00"}]
[3092,"MUELLER","MUELLER CENT BONNET REPAIR KIT","EA",null,2,{"v":0,"d":"$0.00"}]
[3094,"TRUMBULL OR EQUIVALENT","2\" POLY LINE CRIMPER (1\" LINE)","EA",null,10,{"v":0,"d":"$0.00"}]
[3095,"WHEELER OR EQUIVALENT","4\" POLY LINE CRIMPER (2\" LINE)","EA",null,10,{"v":0,"d":"$0.00"}]
[3096,"CLOW","CLOW VO SAFETY STEM COUPLING","EA",null,5,{"v":0,"d":"$0.00"}]
[3097,"CLOW","CLOW 5-1/4 OP-NUT","EA",null,2,{"v":0,"d":"$0.00"}]
[3098,"CLOW","CLOW PUMPER NOZZLE GASKET","EA",null,5,{"v":0,"d":"$0.00"}]
[3099,"CLOW","CLOW HOSE NOZZLE O-RING","EA",null,5,{"v":0,"d":"$0.00"}]
[3100,"MUELLER","MUELLER PUMPER NOZZLE GASKET A-15","EA",null,5,{"v":0,"d":"$0.00"}]
[3101,"MUELLER","MUELLER DRAIN VALVE FACING","EA",null,2,{"v":0,"d":"$0.00"}]
[3102,"US FOUNDRY,PAMREX","MINI MANHOLE W/ LID","EA",null,2,{"v":0,"d":"$0.00"}]
[3103,"SUPERIOR SIGNAL OR EQUIVALENT","SMOKE OIL (1 GAL)","EA",null,10,{"v":0,"d":"$0.00"}]
[3104,"SUPERIOR SIGNAL OR EQUIVALENT","SMOKE OIL (5 GAL)","EA",null,25,{"v":0,"d":"$0.00"}]
[3105,"CLOW","CLOW 5-1/4 MAIN VALVE RUBBER M-21","EA",null,2,{"v":0,"d":"$0.00"}]
[3106,"CLOW","CLOW 4\" STEM O-RING","EA",null,5,{"v":0,"d":"$0.00"}]
[3107,"CLOW","CLOW 6\" STEM O-RING","EA",null,5,{"v":0,"d":"$0.00"}]
[3108,"CLOW","CLOW 8\" STEM O-RING","EA",null,5,{"v":0,"d":"$0.00"}]
[3109,"CLOW","CLOW 10\",12\" STEM O-RING","EA",null,5,{"v":0,"d":"$0.00"}]
[3110,"CLOW","CLOW 6\" STUFFING BOX O-RING","EA",null,5,{"v":0,"d":"$0.00"}]
[3111,"CLOW","CLOW 8\", 10\", 12\" STUFFING BOX O-RING","EA",null,5,{"v":0,"d":"$0.00"}]
[3112,"CLOW","CLOW 4\", 6\" BONNET O-RING","EA",null,5,{"v":0,"d":"$0.00"}]
[3113,"CLOW","CLOW 8\" BONNET O-RING","EA",null,5,{"v":0,"d":"$0.00"}]
[3114,"CLOW","CLOW 10\" BONNET O-RING","EA",null,5,{"v":0,"d":"$0.00"}]
[3115,"CLOW","CLOW 12\" BONNET  O-RING","EA",null,5,{"v":0,"d":"$0.00"}]
[3116,"CLOW","CLOW 5-1/4\" MEDALLION UPPER O-RING M18","EA",null,5,{"v":0,"d":"$0.00"}]
[3117,"CLOW","CLOW 4\" TOP O-RING GASKET","EA",null,5,{"v":0,"d":"$0.00"}]
[3118,"CLOW","CLOW LOWER O-RING M20","EA",null,5,{"v":0,"d":"$0.00"}]
[3119,"FORD","5/8\" X 3/4\" X 12\" RISE RESETTER","EA",null,40,{"v":0,"d":"$0.00"}]
[3120,"RIGID OR EQUIVALENT","SPRING LOADED PIPE WRENCH ","EA",null,10,{"v":0,"d":"$0.00"}]
[3121,"CRETEX OR EQUIVALENT","4\" PRO-RING MANHOLE RISER","EA",null,5,{"v":0,"d":"$0.00"}]
[3122,"CRETEX OR EQUIVALENT","6\" PRO-RING MANHOLE RISER","EA",null,5,{"v":0,"d":"$0.00"}]
[3123,"CRETEX OR EQUIVALENT","8\" PRO-RING MANHOLE RISER","EA",null,5,{"v":0,"d":"$0.00"}]
[3124,"CRETEX OR EQUIVALENT","10\" PRO-RING MANHOLE RISER","EA",null,5,{"v":0,"d":"$0.00"}]
[3125,"CRETEX OR EQUIVALENT","12\" PRO-RING MANHOLE RISER","EA",null,5,{"$f":"SUM(E3072*F3072)","v":{"v":0,"d":"$0.00"}}]
[3126,"CRETEX OR EQUIVALENT","4\" PRO-RING AIR RELEASE MANHOLE RISER","EA",null,5,{"v":0,"d":"$0.00"}]
[3127,"CRETEX OR EQUIVALENT","6\" PRO-RING AIR RELEASE MANHOLE RISER","EA",null,5,{"v":0,"d":"$0.00"}]
[3128,"CRETEX OR EQUIVALENT","8\" PRO-RING AIR RELEASE MANHOLE RISER","EA",null,5,{"v":0,"d":"$0.00"}]
[3129,"CRETEX OR EQUIVALENT","10\" PRO-RING AIR RELEASE MANHOLE RISER","EA",null,5,{"v":0,"d":"$0.00"}]
[3130,"CRETEX OR EQUIVALENT","12\" PR-RING AIR RELEASE MANHOLE RISER","EA",null,5,{"v":0,"d":"$0.00"}]
[3131,"EAST JORDAN, R.E.L.L. CORP OR EQUIVALENT","1\" MANHOLE RING RISER","EA",null,5,{"v":0,"d":"$0.00"}]
[3132,"EAST JORDAN, R.E.L.L. CORP OR EQUIVALENT","1-1/4 MANHOLE RING RISER","EA",null,5,{"v":0,"d":"$0.00"}]
[3133,"EAST JORDAN, R.E.L.L. CORP OR EQUIVALENT","1/2\" MANHOLE RING RISER","EA",null,5,{"v":0,"d":"$0.00"}]
[3134,"EAST JORDAN, R.E.L.L. CORP OR EQUIVALENT","1-1/2\" MANHOLE RING RISER","EA",null,5,{"v":0,"d":"$0.00"}]
[3135,"EAST JORDAN, R.E.L.L. CORP OR EQUIVALENT","2\" MANHOLE RING RISER","EA",null,5,{"v":0,"d":"$0.00"}]
[3136,"HUNTER","4\" POP UP SPRINKLER","EA",null,10,{"v":0,"d":"$0.00"}]
[3137,"HUNTER","4\" ROTOR SPRINKLER","EA",null,10,{"v":0,"d":"$0.00"}]
[3138,"HUNTER","6 POP UP SPRINKLER","EA",null,10,{"$f":"SUM(E3085*F3085)","v":{"v":0,"d":"$0.00"}}]
[3139,"HUNTER","6\" ROTOR SPRINKLER","EA",null,10,{"v":0,"d":"$0.00"}]
[null,null,"Total Estimated Annual Bid",{"$nulls":3},{"$f":"SUM(G7:G3086)","v":{"v":0,"d":"$0.00"}}]
[null,null,"Will your company extend these prices to other governmental agencies within the State of Florida?"]
[]
[null,null,"The undersigned hereby certifies that they have read and understand the contents of this solicitation and agree to furnish at the prices shown any or all of the items above, subject to all instructions, conditions, specifications, and attachments hereto. Failure to have read all the provisions of this solicitation shall not be cause to alter any resulting contract or request additional compensation. "]
[]
[]
[null,null,"Company Name:"]
[]
[null,null,"Company Address:"]
[]
[null,null,"City, State, ZIP:"]
[]
[null,null,"Telephone:"]
[]
[null,null,"E-mail:"]
[]
[null,null,"Business Tax Receipt Number:"]
[]
[null,null,"Authorized Signature:"]
[]
[null,null,"Name:"]
[]
[null,null,"Title:"]